Workbook

Sheet Individual Cases
M2: 2010 ref level
J20: (Elec $ tied to petro $)
J22: (CNG $ tied to petro $)
B35: Codings
B36: 512 | C36: =B36/2 -> 256 | D36: =C36/2 -> 128 | E36: 64 | F36: 32 | G36: 16 | H36: 8 | I36: 4 | J36: 2 | K36: 1
B37: petroleum prices L = 00; B (ref) = 01 H = 10 | D37: biofuel volumes: no longer used in lookup number with new format | F37: elec infra HC = 0 UC = 1 | G37: H2 price L = 0 H = 1 | H37: FCEV tech L = 0 H = 1 | I37: CNGV system L = 0 H = 1 | J37: en battery L = 0 H = 1 | K37: FE tech L = 0 H = 1
B38: 0 | C38: 1 | D38: 0 | E38: 1 | F38: 0 | G38: 1 | H38: 1 | I38: 1 | J38: 1 | K38: 1
F39: 0 | G39: 1 | H39: 1 | I39: 1 | J39: 0 | L39: masking bits
B40: =B38 -> 0 | C40: =C38 -> 1 | D40: =0 -> 0 | E40: =0 -> 0 | F40: =F38*F39 -> 0 | G40: =G38*G39 -> 1 | H40: =H38*H39 -> 1 | I40: 1 | J40: 0 | K40: =K38 -> 1
B42: =C42*2 -> 524288 | C42: 262144 | D42: 131072 | E42: 65536 | F42: 32768 | G42: 16384 | H42: 8192 | I42: 4096 | J42: =K42*2 -> 2048 | K42: =B36*2 -> 1024
B43: not used | C43: not used | D43: not used | E43: not used | F43: run not used = 0000; Liq ICE = 0001; Liq ICE + CNG = 0010 (2); Liq ICE + PEV = 0011 (3); Liq ICE + BEV = 0100 (4); Liq ICE + PHEV = 0101 (5); Liq ICE + H2 = 0110 (6); Liq ICE + PEV + H2 = 0111 (7); Liq ICE + CNG + H2 = 1000 (8); Liq ICE + CNG + PEV = 1001 (9); All In = 1010 (10) | J43: horizon 3yr = 0 17yr = 1 | K43: year 2035 = 0 2050 = 1
B44: 0 | C44: 0 | D44: 0 | E44: 0 | F44: 1 | G44: 0 | H44: 0 | I44: 0 | J44: 0 | K44: 1
B48: 2035 lookup number | D48: Biofuels case
B49: =SUMPRODUCT(B40:K40,B36:K36)+SUMPRODUCT(B44:J44,B42:J42) -> 33053 | D49: =E38+2*D38 -> 1
B50: 2050 lookup number | D50: 0 = NoAdv; 1 = Lo; 2 = Hi
B51: =B49+1024 -> 34077
B53: Market Share Data (text) | L53: Market Share Data (values)
C54: Diesel | D54: Conv | E54: CNGV | F54: HEV | G54: PHEV10 | H54: PHEV40 | I54: BEV100 | J54: FCEV | M54: Diesel | N54: Conv | O54: CNGV | P54: HEV | Q54: PHEV10 | R54: PHEV40 | S54: BEV100 | T54: FCEV
B55: 2035 | C55: =TEXT(M55,"0.0%") -> 4.6% | D55: =TEXT(N55,"0.0%") -> 37.8% | E55: 31.7% | F55: 23.1% | G55: 0.0% | H55: 0.0% | I55: 0.0% | J55: 2.8% | L55: 2035 | M55: =VLOOKUP($B$49,VCMdata!$B$8:$CO$1999,69,0) -> 0.04593486252 | N55: =VLOOKUP($B$49,VCMdata!$B$8:$CO$1999,68,0) -> 0.3777406239 | O55: =VLOOKUP($B$49,VCMdata!$B$8:$CO$1999,72,0) -> 0.3172277988 | P55: =VLOOKUP($B$49,VCMdata!$B$8:$CO$1999,74,0) -> 0.2312631394 | Q55: =VLOOKUP($B$49,VCMdata!$B$8:$CO$1999,70,0) -> 0 | R55: =VLOOKUP($B$49,VCMdata!$B$8:$CO$1999,71,0) -> 0 | S55: =VLOOKUP($B$49,VCMdata!$B$8:$CO$1999,73,0) -> 0 | T55: =VLOOKUP($B$49,VCMdata!$B$8:$CO$1999,75,0) -> 0.0278336531
B56: 2050 | C56: =TEXT(M56,"0.0%") -> 2.2% | D56: 36.7% | E56: 37.6% | F56: 18.3% | G56: 0.0% | H56: 0.0% | I56: 0.0% | J56: 5.2% | L56: 2050 | M56: =VLOOKUP($B$51,VCMdata!$B$8:$CO$1999,69,0) -> 0.02195188427 | N56: =VLOOKUP($B$51,VCMdata!$B$8:$CO$1999,68,0) -> 0.3671683053 | O56: =VLOOKUP($B$51,VCMdata!$B$8:$CO$1999,72,0) -> 0.3759265151 | P56: =VLOOKUP($B$51,VCMdata!$B$8:$CO$1999,74,0) -> 0.1828554633 | Q56: =VLOOKUP($B$51,VCMdata!$B$8:$CO$1999,70,0) -> 0 | R56: =VLOOKUP($B$51,VCMdata!$B$8:$CO$1999,71,0) -> 0 | S56: =VLOOKUP($B$51,VCMdata!$B$8:$CO$1999,73,0) -> 0 | T56: =VLOOKUP($B$51,VCMdata!$B$8:$CO$1999,75,0) -> 0.05209783213
B58: LDV GHG Data
C59: Base | D59: Selection | E59: Target | L59: New Light Duty Vehicle Fuel Economy - Test
B60: 2035 | C60: =441.310540770394*(44/12) -> 1618.138649 | D60: =VLOOKUP($B$49,VCMdata!$B$8:$CO$1999,35+D49,0)*(44/12) -> 1432.75492 | F60: MMTCe; baseline data from VISION AEO2010 model
B61: 2050 | C61: =462.527447283983*(44/12) -> 1695.933973 | D61: =VLOOKUP($B$51,VCMdata!$B$8:$CO$1999,35+D49,0)*(44/12) -> 1030.656075 | E61: =204*(44/12) -> 748 | F61: LDV C & Energy by Vehicle Tech column R | L61: Lookup Key
L62: =VLOOKUP($B$49,VCMdata!$B$8:$CO$1999,3,0) -> 839
B63: rounded | C63: Base | D63: Selection | E63: Target
B64: 2035 | C64: =INT(C60+0.5) -> 1618 | D64: =INT(D60+0.5) -> 1433 | L64: Year | M64: Lookup | N64: FE
B65: 2050 | C65: =INT(C61+0.5) -> 1696 | D65: 1031 | E65: =TEXT(E61,"0") -> 748 | F65: 50% reduction from 2005 - NPC number per Puneet's note of 12Sep2011 | L65: 2010 | M65: =($L$62*10)+(L65-2010)/5 -> 8390 | N65: =VLOOKUP(M65,MarketShares!$B$8:$BN$8971,57,0) -> 28.27672881
L66: 2015 | M66: =($L$62*10)+(L66-2010)/5 -> 8391 | N66: =VLOOKUP(M66,MarketShares!$B$8:$BN$8971,57,0) -> 32.4504429
B67: LDV Oil Data | L67: 2020 | M67: 8392 | N67: =VLOOKUP(M67,MarketShares!$B$8:$BN$8971,57,0) -> 35.887967
C68: Base | D68: Selection | L68: 2025 | M68: 8393 | N68: =VLOOKUP(M68,MarketShares!$B$8:$BN$8971,57,0) -> 37.41614258
B69: 2035 | C69: 15.89 | D69: =VLOOKUP($B$49,VCMdata!$B$8:$CO$1999,21,0)*(1-VLOOKUP($B$49,VCMdata!$B$8:$CO$1999,29+D49,0))+VLOOKUP($B$49,VCMdata!$B$8:$CO$1999,22,0)*(1-VLOOKUP($B$49,VCMdata!$B$8:$CO$1999,32+D49,0)) -> 11.39392642 | F69: Quad BTU; baseline data from VISION AEO2010 model | L69: 2030 | M69: 8394 | N69: =VLOOKUP(M69,MarketShares!$B$8:$BN$8971,57,0) -> 39.00643335
B70: 2050 | C70: 16.68 | D70: =VLOOKUP($B$51,VCMdata!$B$8:$CO$1999,21,0)*(1-VLOOKUP($B$51,VCMdata!$B$8:$CO$1999,29+D49,0))+VLOOKUP($B$51,VCMdata!$B$8:$CO$1999,22,0)*(1-VLOOKUP($B$51,VCMdata!$B$8:$CO$1999,32+D49,0)) -> 5.387905487 | F70: Lt Veh Energy by Fuel Type columns CG + CH | L70: 2035 | M70: 8395 | N70: =VLOOKUP(M70,MarketShares!$B$8:$BN$8971,57,0) -> 40.68622491
L71: 2040 | M71: 8396 | N71: =VLOOKUP(M71,MarketShares!$B$8:$BN$8971,57,0) -> 42.73563547
B72: rounded - text | C72: Base | D72: Selection | L72: 2045 | M72: 8397 | N72: =VLOOKUP(M72,MarketShares!$B$8:$BN$8971,57,0) -> 44.78861966
B73: 2035 | C73: =TEXT(INT(C69*10+0.5)/10,"0.0") -> 15.9 | D73: =TEXT(INT(D69*10+0.5)/10,"0.0") -> 11.4 | L73: 2050 | M73: 8398 | N73: =VLOOKUP(M73,MarketShares!$B$8:$BN$8971,57,0) -> 46.86056544
B74: 2050 | C74: =TEXT(INT(C70*10+0.5)/10,"0.0") -> 16.7 | D74: 5.4
B76: LDV Parc $/mile
C77: Base | F77: Selection
C78: Vehicle | D78: Fuel | E78: Total $/mile | F78: Vehicle | G78: Fuel | H78: Total $/mile
B79: 2035
B80: 2050 | F80: =VLOOKUP($B$51,VCMdata!$B$8:$CO$1999,44,0) -> 0.1163289857 | G80: =VLOOKUP($B$51,VCMdata!$B$8:$CO$1999,45,0) -> 0.1230752223 | H80: =SUM(F80:G80) -> 0.239404208
B82: rounded - text | C82: Base | F82: Selection
C83: Vehicle | D83: Fuel | E83: Total $/mile | F83: Vehicle | G83: Fuel | H83: Total $/mile
B84: 2035
B85: 2050 | F85: =TEXT(F80,"$0.000") -> $0.116 | G85: =TEXT(G80,"$0.000") -> $0.123 | H85: =TEXT(H80,"$0.000") -> $0.239
B89: Column Charts - Labels, order, and color coding
B91: Chart | C91: Label | D91: Color
D92: Name | E92: Code
E93: Red | F93: Green | G93: Blue
B95: Carbon | C95: Carbon | D95: Gray | E95: 127 | F95: 127 | G95: 127
B97: Oil | C97: Oil | D97: Black | E97: 0 | F97: 0 | G97: 0
B99: Market Shares | C99: FCEV | D99: Blue | E99: 0 | F99: 51 | G99: 204
C100: BEV100 | D100: Yellow | E100: 255 | F100: 255 | G100: 0
C101: PHEV40 | D101: Light Green | E101: 0 | F101: 234 | G101: 0
C102: PHEV10 | D102: Dark Green | E102: 119 | F102: 147 | G102: 60
C103: CNGV | D103: Purple | E103: 255 | F103: 1 | G103: 255
C104: Diesel | D104: Black | E104: 0 | F104: 0 | G104: 0
C105: HEV | D105: Tan | E105: 255 | F105: 197 | G105: 33
C106: Conv | D106: Brown | E106: 153 | F106: 102 | G106: 0
B108: $/mile | C108: Fuel | D108: Dark Green | E108: 0 | F108: 153 | G108: 0
C109: Veh | D109: Light Green | E109: 102 | F109: 255 | G109: 51

Sheet VCMdata
B1: 1 | C1: 2 | D1: 3 | E1: 4 | F1: 5 | G1: 6 | H1: 7 | I1: 8 | J1: 9 | K1: 10 | L1: 11 | M1: 12 | N1: 13 | O1: 14 | P1: 15 | Q1: 16 | R1: 17 | S1: 18 | T1: 19 | U1: 20 | V1: 21 | W1: 22 | X1: 23 | Y1: 24 | Z1: 25 | AA1: 26 | AB1: 27 | AC1: 28 | AD1: 29 | AE1: 30 | AF1: 31 | AG1: 32 | AH1: 33 | AI1: 34 | AJ1: 35 | AK1: 36 | AL1: 37 | AM1: 38 | AN1: 39 | AO1: 40 | AP1: 41 | AQ1: 42 | AR1: 43 | AS1: 44 | AT1: 45 | AU1: 46 | AV1: 47 | AW1: 48 | AX1: 49 | AY1: 50 | AZ1: 51 | BA1: 52 | BB1: 53 | BC1: 54 | BD1: 55 | BE1: 56 | BF1: 57 | BG1: 58 | BH1: 59 | BI1: 60 | BJ1: 61 | BK1: 62 | BL1: 63 | BM1: 64 | BN1: 65 | BO1: 66 | BP1: 67 | BQ1: 68 | BR1: 69 | BS1: 70 | BT1: 71 | BU1: 72 | BV1: 73 | BW1: 74 | BX1: 75 | BY1: 76 | BZ1: 77 | CA1: 78 | CB1: 79 | CC1: 80 | CD1: 81 | CE1: 82 | CF1: 83 | CG1: 84 | CH1: 85 | CI1: 86 | CJ1: 87 | CK1: 88 | CL1: 89 | CM1: 90 | CN1: 91 | CO1: 92
B2: é | D2: lookup column #s | U2: =SUBTOTAL(5,U8:U1999) -> 2035 | V2: 1.469424706 | W2: 0.1259821817 | X2: 0 | Y2: -6.14301589e-09 | Z2: 0 | AA2: 0
U3: =SUBTOTAL(4,U8:U1999) -> 2050 | V3: 20.17994965 | W3: 4.390806859 | X3: 13.64082808 | Y3: 6.692444714 | Z3: 1.351633959 | AA3: 3.131126373
U4: =SUBTOTAL(1,U8:U1999) -> 2042.5 | V4: 9.767923326 | W4: 1.563087228 | X4: 3.417390124 | Y4: 0.504257716 | Z4: 0.1823698475 | AA4: 0.1465961897
G6: Toggles - set 1 | I6: Vehicle Attribute Model Case #s | N6: Toggles - set 2 | V6: Energy Use (TtW) | AD6: Biofuels % (energy basis) | AJ6: LDV Carbon (MMT C WtW) | AM6: Carbon per Qbtu (MMT C) | AP6: Carbon per VMT (kg C / mile) | AS6: Cost of Driving | AV6: Annual Fuel Spend ($ billions) | BD6: Annual Infrastructure Spend ($ billions) | BL6: Vehicle Prices (RPE $s) | BQ6: New Vehicle Market Shares | BY6: Fleet Shares | CG6: VMT (billion miles)
B7: Case Lookup Number | C7: Run # | D7: Key | E7: Run | F7: Time Horizon | G7: Oil Price | H7: Vehicle Technology Price | I7: LiqICE Case # | J7: CNGV Case # | K7: BEV Case # | L7: PHEV Case # | M7: FCEV Case # | N7: CNGV System Price | O7: BEV Battery Price | P7: BEV Charging Scenario | Q7: PHEV Battery Price | R7: PHEV Charging Scenario | S7: FCEV System Price | T7: Hydrogen Fuel Price | U7: Year | V7: Qbtu Gasoline | W7: Qbtu Diesel | X7: Qbtu CNG | Y7: Qbtu Hydrogen | Z7: Qbtu PHEV10 Electricity | AA7: Qbtu PHEV40 Electricity | AB7: Qbtu BEV Electricity | AC7: Qbtu Total LDV | AD7: % EtOH NoAdv | AE7: % EtOH LowVol | AF7: % EtOH HighVol | AG7: % BioDsl NoAdv | AH7: % BioDsl LowVol | AI7: % BioDsl HighVol | AJ7: NoAdv BioFuels | AK7: LowVol BioFuels | AL7: HighVol BioFuels | AM7: NoAdv BioFuels | AN7: LowVol BioFuels | AO7: HighVol BioFuels | AP7: NoAdv BioFuels | AQ7: LowVol BioFuels | AR7: HighVol BioFuels | AS7: Fuel $ Per Mile | AT7: Vehicle $ Per Mile | AU7: Total $ Per Mile | AV7: Gasoline | AW7: Diesel | AX7: CNG | AY7: Hydrogen | AZ7: PHEV10 Electricity | BA7: PHEV40 Electricity | BB7: BEV Electricity | BC7: Total | BD7: CNG | BE7: PHEV10 | BF7: PHEV40 | BG7: BEV | BH7: Hydrogen Hi | BI7: Hydrogen Lo | BJ7: Vehicle Spend Bil$ | BK7: Flt Veh COD Bil$ | BL7: Small Car | BM7: Large Car | BN7: Pickup | BO7: Small SUV | BP7: Large SUV | BQ7: Conv | BR7: Diesel | BS7: PHEV10 | BT7: PHEV40 | BU7: CNGV | BV7: BEV100 | BW7: HEV | BX7: FCEV | BY7: Conv | BZ7: Diesel | CA7: PHEV10 | CB7: PHEV40 | CC7: CNGV | CD7: BEV100 | CE7: HEV | CF7: FCEV | CG7: Conv | CH7: BEV | CI7: Diesel | CJ7: CNGV | CK7: HEV | CL7: PHEV10 | CM7: PHEV40 | CN7: FCEV | CO7: Total LDV
B8: =1*(MID(H8,1,1)="H")+2*(OR(MID(O8,1,1)="H",MID(Q8,1,1)="H"))+4*(MID(N8,1,1)="H")+8*(MID(S8,1,1)="H")+16*(MID(T8,1,1)="H")+32*(OR(MID(P8,1,1)="U",MID(R8,1,1)="U"))+256*(MID(G8,1,1)="B")+512*(MID(G8,1,1)="H")+1024*(U8=2050)+2048*(F8=17)+4096*C8 -> 40970 | C8: =1*(E8="liqICEonly")+2*(E8="LiqICE&CNG")+3*(E8="liqICE&allElect")+4*(E8="liqICE&EV")+5*(E8="liqICE&PHEV")+6*(E8="liqICE&FCEV")+7*(E8="noCNG")+8*(E8="NoElect")+9*(E8="noFCEV")+10*(E8="All_In") -> 10 | D8: 1 | E8: All_In | F8: 3 | G8: L | H8: L | I8: 1 | J8: 1 | K8: 3 | L8: 3 | M8: 3 | N8: L | O8: H | P8: R | Q8: H | R8: R | S8: H | T8: L | U8: 2035 | V8: 12.6040904 | W8: 3.037789907 | X8: 3.546146396 | Y8: 0.08377831451 | Z8: 0.09883754532 | AA8: 0.003789810448 | AB8: 0.0279953703 | AC8: 19.40242775 | AD8: 0.09725679092 | AE8: 0.09725679092 | AF8: 0.09725679092 | AG8: 0.009050379939 | AH8: 0.009050379939 | AI8: 0.009050379939 | AJ8: 455.3559417 | AK8: 455.3559417 | AL8: 455.3559417 | AM8: 23.46901881 | AN8: 23.46901881 | AO8: 23.46901881 | AP8: 0.09523573088 | AQ8: 0.09523573088 | AR8: 0.09523573088 | AS8: 0.07245558916 | AT8: 0.1265847516 | AU8: 0.1990403407 | AV8: 223.3444819 | AW8: 48.66539431 | AX8: 65.08455249 | AY8: 3.617011439 | AZ8: 4.263842217 | BA8: 0.1668240982 | BB8: 1.293865921 | BC8: 346.4359724 | BD8: 91.82349523 | BE8: 5.025715882 | BF8: 0.1780412765 | BG8: 1.72085401 | BH8: 13.70114107 | BI8: 8.449427353 | BJ8: 426.5727291 | BK8: 347.8429729 | BL8: 19258.87537 | BM8: 23427.25242 | BN8: 17770.5929 | BO8: 20826.14528 | BP8: 27270.19447 | BQ8: 0.3223387035 | BR8: 0.1252472843 | BS8: 0.05490080426 | BT8: 0.001765051002 | BU8: 0.2064212888 | BV8: 0.008070489454 | BW8: 0.2677143786 | BX8: 0.01354203577 | BY8: 0.3193089374 | BZ8: 0.1500473434 | CA8: 0.04693159381 | CB8: 0.0008628685033 | CC8: 0.1859306483 | CD8: 0.005364680685 | CE8: 0.2829157489 | CF8: 0.008638178987 | CG8: 1532.385874 | CH8: 26.09146076 | CI8: 711.554091 | CJ8: 872.5210407 | CK8: 1359.05358 | CL8: 229.6531146 | CM8: 4.604133301 | CN8: 45.49279468 | CO8: 4781.356089
B9: =1*(MID(H9,1,1)="H")+2*(OR(MID(O9,1,1)="H",MID(Q9,1,1)="H"))+4*(MID(N9,1,1)="H")+8*(MID(S9,1,1)="H")+16*(MID(T9,1,1)="H")+32*(OR(MID(P9,1,1)="U",MID(R9,1,1)="U"))+256*(MID(G9,1,1)="B")+512*(MID(G9,1,1)="H")+1024*(U9=2050)+2048*(F9=17)+4096*C9 -> 41994 | C9: =1*(E9="liqICEonly")+2*(E9="LiqICE&CNG")+3*(E9="liqICE&allElect")+4*(E9="liqICE&EV")+5*(E9="liqICE&PHEV")+6*(E9="liqICE&FCEV")+7*(E9="noCNG")+8*(E9="NoElect")+9*(E9="noFCEV")+10*(E9="All_In") -> 10 | D9: 1 | E9: All_In | F9: 3 | G9: L | H9: L | I9: 1 | J9: 1 | K9: 3 | L9: 3 | M9: 3 | N9: L | O9: H | P9: R | Q9: H | R9: R | S9: H | T9: L | U9: 2050 | V9: 12.7569969 | W9: 2.184981818 | X9: 4.323189462 | Y9: 0.1886625984 | Z9: 0.1369100588 | AA9: 0.01751237034 | AB9: 0.06550837502 | AC9: 19.67376159 | AD9: 0.09616208813 | AE9: 0.09616208813 | AF9: 0.09616208813 | AG9: 0.008809446666 | AH9: 0.008809446666 | AI9: 0.008809446666 | AJ9: 460.5431199 | AK9: 460.5431199 | AL9: 460.5431199 | AM9: 23.40900178 | AN9: 23.40900178 | AO9: 23.40900178 | AP9: 0.08378917574 | AQ9: 0.08378917574 | AR9: 0.08378917574 | AS9: 0.07257152186 | AT9: 0.1098950308 | AU9: 0.1824665526 | AV9: 248.067459 | AW9: 37.58693123 | AX9: 93.70253768 | AY9: 8.886913967 | AZ9: 6.516175104 | BA9: 0.8447848719 | BB9: 3.281030395 | BC9: 398.8858322 | BD9: 112.04799 | BE9: 5.839126687 | BF9: 0.4663679634 | BG9: 2.718065579 | BH9: 27.26422567 | BI9: 17.88108465 | BJ9: 414.5793816 | BK9: 347.1452181 | BL9: 17286.20725 | BM9: 21051.66756 | BN9: 15954.96457 | BO9: 18840.36656 | BP9: 24411.73441 | BQ9: 0.3475923776 | BR9: 0.09158877666 | BS9: 0.0583647355 | BT9: 0.005369427471 | BU9: 0.2276081123 | BV9: 0.01443869055 | BW9: 0.2328393364 | BX9: 0.02219854348 | BY9: 0.3350307531 | BZ9: 0.1079723692 | CA9: 0.05724972393 | CB9: 0.003593387306 | CC9: 0.2170168863 | CD9: 0.01123372225 | CE9: 0.2500508344 | CF9: 0.01785232342 | CG9: 1873.67509 | CH9: 61.00994431 | CI9: 593.2674322 | CJ9: 1147.041516 | CK9: 1381.146648 | CL9: 316.7452216 | CM9: 21.12275301 | CN9: 102.4426469 | CO9: 5496.451252
B10: 40962 | C10: 10 | D10: 2 | E10: All_In | F10: 3 | G10: L | H10: L | I10: 1 | J10: 1 | K10: 3 | L10: 3 | M10: 1 | N10: L | O10: H | P10: R | Q10: H | R10: R | S10: L | T10: L | U10: 2035 | V10: 12.20991591 | W10: 2.946496177 | X10: 3.422698946 | Y10: 0.3873604299 | Z10: 0.09500606519 | AA10: 0.003594060078 | AB10: 0.02664169988 | AC10: 19.09171329 | AD10: 0.1002890034 | AE10: 0.1002890034 | AF10: 0.1002890034 | AG10: 0.00913971658 | AH10: 0.00913971658 | AI10: 0.00913971658 | AJ10: 449.432624 | AK10: 449.432624 | AL10: 449.432624 | AM10: 23.54071723 | AN10: 23.54071723 | AO10: 23.54071723 | AP10: 0.0939144833 | AQ10: 0.0939144833 | AR10: 0.0939144833 | AS10: 0.0728428504 | AT10: 0.127143288 | AU10: 0.1999861384 | AV10: 216.35971 | AW10: 47.20286876 | AX10: 62.81884737 | AY10: 16.72374426 | AZ10: 4.098552532 | BA10: 0.1582073403 | BB10: 1.231303146 | BC10: 348.5932334 | BD10: 88.61046571 | BE10: 4.850955723 | BF10: 0.1689663848 | BG10: 1.640881216 | BH10: 67.02316384 | BI10: 40.42650186 | BJ10: 428.7459071 | BK10: 349.684362 | BL10: 19367.08989 | BM10: 23529.20429 | BN10: 17843.86061 | BO10: 20934.93346 | BP10: 27436.13073 | BQ10: 0.3085765625 | BR10: 0.1197279571 | BS10: 0.05228725777 | BT10: 0.001562818953 | BU10: 0.1971986496 | BV10: 0.007644696028 | BW10: 0.2561221082 | BX10: 0.05687998545 | BY10: 0.3095515684 | BZ10: 0.1456084151 | CA10: 0.04514557983 | CB10: 0.0008184328356 | CC10: 0.1795033431 | CD10: 0.005109265871 | CE10: 0.2741764566 | CF10: 0.0400869383 | CG10: 1482.566543 | CH10: 24.83155518 | CI10: 689.0520847 | CJ10: 841.2106048 | CK10: 1314.764588 | CL10: 220.6089325 | CM10: 4.366035761 | CN10: 208.1514497 | CO10: 4785.551794
B11: 41986 | C11: 10 | D11: 2 | E11: All_In | F11: 3 | G11: L | H11: L | I11: 1 | J11: 1 | K11: 3 | L11: 3 | M11: 1 | N11: L | O11: H | P11: R | Q11: H | R11: R | S11: L | T11: L | U11: 2050 | V11: 12.14179306 | W11: 2.077907769 | X11: 4.105717754 | Y11: 0.7084243666 | Z11: 0.1295737268 | AA11: 0.01646236 | AB11: 0.0615421821 | AC11: 19.24142121 | AD11: 0.1008683458 | AE11: 0.1008683458 | AF11: 0.1008683458 | AG11: 0.00890885988 | AH11: 0.00890885988 | AI11: 0.00890885988 | AJ11: 452.822099 | AK11: 452.822099 | AL11: 452.822099 | AM11: 23.53371375 | AN11: 23.53371375 | AO11: 23.53371375 | AP11: 0.08230294176 | AQ11: 0.08230294176 | AR11: 0.08230294176 | AS11: 0.07347507872 | AT11: 0.1101875886 | AU11: 0.1836626673 | AV11: 236.104451 | AW11: 35.7450006 | AX11: 88.98896888 | AY11: 33.3701881 | AZ11: 6.167005553 | BA11: 0.7941330849 | BB11: 3.082380993 | BC11: 404.2521283 | BD11: 106.3877433 | BE11: 5.591394825 | BF11: 0.4397347176 | BG11: 2.570061268 | BH11: 108.5414654 | BI11: 69.29798678 | BJ11: 415.7665887 | BK11: 348.4140706 | BL11: 17356.56841 | BM11: 21066.98085 | BN11: 16050.38373 | BO11: 18863.91354 | BP11: 24529.37492 | BQ11: 0.3284232472 | BR11: 0.08635172799 | BS11: 0.05487878831 | BT11: 0.005029891741 | BU11: 0.2146216041 | BV11: 0.01350887855 | BW11: 0.2197371242 | BX11: 0.07744873797 | BY11: 0.3185449621 | BZ11: 0.1025935637 | CA11: 0.05416165202 | CB11: 0.003377921086 | CC11: 0.2058984589 | CD11: 0.01055905874 | CE11: 0.2376770218 | CF11: 0.06718736172 | CG11: 1780.460103 | CH11: 57.31609558 | CI11: 563.2658492 | CJ11: 1087.620945 | CK11: 1311.887826 | CL11: 299.480635 | CM11: 19.84982185 | CN11: 382.0131805 | CO11: 5501.894456
B12: 40994 | C12: 10 | D12: 3 | E12: All_In | F12: 3 | G12: L | H12: L | I12: 1 | J12: 1 | K12: 7 | L12: 7 | M12: 1 | N12: L | O12: H | P12: U | Q12: H | R12: U | S12: L | T12: L | U12: 2035 | V12: 12.21172866 | W12: 2.947852107 | X12: 3.424637963 | Y12: 0.3876378351 | Z12: 0.092927933 | AA12: 0.003630562163 | AB12: 0.02658107967 | AC12: 19.09499614 | AD12: 0.1002746261 | AE12: 0.1002746261 | AF12: 0.1002746261 | AG12: 0.009138376817 | AH12: 0.009138376817 | AI12: 0.009138376817 | AJ12: 449.4400007 | AK12: 449.4400007 | AL12: 449.4400007 | AM12: 23.53705638 | AN12: 23.53705638 | AO12: 23.53705638 | AP12: 0.09391910474 | AQ12: 0.09391910474 | AR12: 0.09391910474 | AS12: 0.07287693659 | AT12: 0.1271325783 | AU12: 0.2000095149 | AV12: 216.3918319 | AW12: 47.22459075 | AX12: 62.85443532 | AY12: 16.73572084 | AZ12: 4.150520933 | BA12: 0.1585373191 | BB12: 1.229280466 | BC12: 348.7449175 | BD12: 88.6609335 | BE12: 5.829425525 | BF12: 0.1549675233 | BG12: 1.645629716 | BH12: 67.06524524 | BI12: 40.45338024 | BJ12: 428.689633 | BK12: 349.6434403 | BL12: 19366.98 | BM12: 23526.04405 | BN12: 17840.0489 | BO12: 20930.99795 | BP12: 27431.28159 | BQ12: 0.3088083812 | BR12: 0.1198214932 | BS12: 0.05068612766 | BT12: 0.001694589702 | BU12: 0.1973531345 | BV12: 0.007648656277 | BW12: 0.2570613274 | BX12: 0.05692632571 | BY12: 0.309699241 | BZ12: 0.1456706107 | CA12: 0.044261252 | CB12: 0.0008271840369 | CC12: 0.1795987573 | CD12: 0.005111063345 | CE12: 0.2747174396 | CF12: 0.040114452 | CG12: 1483.349757 | CH12: 24.77475762 | CI12: 689.3807563 | CJ12: 841.6927042 | CK12: 1317.62358 | CL12: 215.8632097 | CM12: 4.410149798 | CN12: 208.2999414 | CO12: 4785.394856
B13: 42018 | C13: 10 | D13: 3 | E13: All_In | F13: 3 | G13: L | H13: L | I13: 1 | J13: 1 | K13: 7 | L13: 7 | M13: 1 | N13: L | O13: H | P13: U | Q13: H | R13: U | S13: L | T13: L | U13: 2050 | V13: 12.14821015 | W13: 2.081310202 | X13: 4.112865547 | Y13: 0.7097450854 | Z13: 0.1220631617 | AA13: 0.01661403719 | AB13: 0.06146333193 | AC13: 19.25227152 | AD13: 0.1008168793 | AE13: 0.1008168793 | AF13: 0.1008168793 | AG13: 0.008905666377 | AH13: 0.008905666377 | AI13: 0.008905666377 | AJ13: 452.8245717 | AK13: 452.8245717 | AL13: 452.8245717 | AM13: 23.52057892 | AN13: 23.52057892 | AO13: 23.52057892 | AP13: 0.08230762462 | AQ13: 0.08230762462 | AR13: 0.08230762462 | AS13: 0.07353625931 | AT13: 0.1101522371 | AU13: 0.1836884964 | AV13: 236.2292354 | AW13: 35.80353062 | AX13: 89.14389302 | AY13: 33.4324003 | AZ13: 6.074264027 | BA13: 0.8043713353 | BB13: 3.080233036 | BC13: 404.5679277 | BD13: 106.5737826 | BE13: 6.93036038 | BF13: 0.4278366766 | BG13: 2.583783478 | BH13: 108.7184627 | BI13: 69.41868453 | BJ13: 415.5797644 | BK13: 348.2843743 | BL13: 17348.56131 | BM13: 21059.49002 | BN13: 16040.41031 | BO13: 18854.69364 | BP13: 24517.68791 | BQ13: 0.3291754059 | BR13: 0.08655492873 | BS13: 0.05077718059 | BT13: 0.005074158154 | BU13: 0.2151222599 | BV13: 0.01353659242 | BW13: 0.2221257831 | BX13: 0.0776336912 | BY13: 0.3190698773 | BZ13: 0.1027556074 | CA13: 0.05122144653 | CB13: 0.003411791161 | CC13: 0.2062457298 | CD13: 0.01057512276 | CE13: 0.2394127652 | CF13: 0.0673076598 | CG13: 1783.528456 | CH13: 57.24194677 | CI13: 564.2047729 | CJ13: 1089.539192 | CK13: 1321.992971 | CL13: 282.347932 | CM13: 20.03188382 | CN13: 382.7243167 | CO13: 5501.611471
B14: 40960 | C14: 10 | D14: 4 | E14: All_In | F14: 3 | G14: L | H14: L | I14: 1 | J14: 1 | K14: 1 | L14: 1 | M14: 1 | N14: L | O14: L | P14: R | Q14: L | R14: R | S14: L | T14: L | U14: 2035 | V14: 11.81469381 | W14: 2.824995526 | X14: 3.26490356 | Y14: 0.365445195 | Z14: 0.1513838552 | AA14: 0.02237422138 | AB14: 0.1591213557 | AC14: 18.60291752 | AD14: 0.1035252277 | AE14: 0.1035252277 | AF14: 0.1035252277 | AG14: 0.009261384584 | AH14: 0.009261384584 | AI14: 0.009261384584 | AJ14: 444.509221 | AK14: 444.509221 | AL14: 444.509221 | AM14: 23.89459721 | AN14: 23.89459721 | AO14: 23.89459721 | AP14: 0.09297474761 | AQ14: 0.09297474761 | AR14: 0.09297474761 | AS14: 0.07219937247 | AT14: 0.1281139741 | AU14: 0.2003133466 | AV14: 209.3563742 | AW14: 45.25642833 | AX14: 59.92273398 | AY14: 15.77758467 | AZ14: 6.530684979 | BA14: 0.9848934015 | BB14: 7.354133814 | BC14: 345.1828334 | BD14: 84.50344502 | BE14: 7.994672604 | BF14: 1.142806682 | BG14: 10.4389499 | BH14: 63.29246562 | BI14: 38.15164011 | BJ14: 431.6676419 | BK14: 352.0165008 | BL14: 19554.42385 | BM14: 23712.45603 | BN14: 17886.63177 | BO14: 21159.04716 | BP14: 27471.34906 | BQ14: 0.2920664619 | BR14: 0.1132135828 | BS14: 0.07726936212 | BT14: 0.008321961906 | BU14: 0.186145534 | BV14: 0.04274142963 | BW14: 0.226942915 | BX14: 0.05329878832 | BY14: 0.2962111584 | BZ14: 0.1393863384 | CA14: 0.0721945784 | CB14: 0.005087445654 | CC14: 0.1709155727 | CD14: 0.03138410432 | CE14: 0.2470719221 | CF14: 0.0377488801 | CG14: 1416.653589 | CH14: 150.5297625 | CI14: 658.7367668 | CJ14: 800.491364 | CK14: 1182.669567 | CL14: 349.3275936 | CM14: 26.5367876 | CN14: 196.0217946 | CO14: 4780.967225
B15: 41984 | C15: 10 | D15: 4 | E15: All_In | F15: 3 | G15: L | H15: L | I15: 1 | J15: 1 | K15: 1 | L15: 1 | M15: 1 | N15: L | O15: L | P15: R | Q15: L | R15: R | S15: L | T15: L | U15: 2050 | V15: 11.53848365 | W15: 1.956802725 | X15: 3.85368047 | Y15: 0.65821606 | Z15: 0.1806355772 | AA15: 0.0694080001 | AB15: 0.2961964426 | AC15: 18.55342292 | AD15: 0.1059535498 | AE15: 0.1059535498 | AF15: 0.1059535498 | AG15: 0.009024039188 | AH15: 0.009024039188 | AI15: 0.009024039188 | AJ15: 447.6135463 | AK15: 447.6135463 | AL15: 447.6135463 | AM15: 24.12565855 | AN15: 24.12565855 | AO15: 24.12565855 | AP15: 0.08145096198 | AQ15: 0.08145096198 | AR15: 0.08145096198 | AS15: 0.07266793613 | AT15: 0.1109563825 | AU15: 0.1836243186 | AV15: 224.3727376 | AW15: 33.66170319 | AX15: 83.52621198 | AY15: 31.00513586 | AZ15: 8.597272264 | BA15: 3.348194866 | BB15: 14.83519521 | BC15: 399.3464509 | BD15: 99.82784085 | BE15: 8.642085276 | BF15: 2.145289747 | BG15: 14.1640962 | BH15: 101.1520558 | BI15: 64.47888726 | BJ15: 418.2199045 | BK15: 350.4370729 | BL15: 17540.92549 | BM15: 21157.88991 | BN15: 16099.80659 | BO15: 19040.24558 | BP15: 24574.74079 | BQ15: 0.3055584896 | BR15: 0.08017768049 | BS15: 0.07278129974 | BT15: 0.01975107918 | BU15: 0.1990051464 | BV15: 0.06324133552 | BW15: 0.188313888 | BX15: 0.07117108096 | BY15: 0.298874556 | BZ15: 0.09627114874 | CA15: 0.07546761308 | CB15: 0.01416566815 | CC15: 0.1925732457 | CD15: 0.05297775464 | CE15: 0.207402656 | CF15: 0.06226735766 | CG15: 1669.810559 | CH15: 285.9754972 | CI15: 528.1460646 | CJ15: 1016.747018 | CK15: 1143.122721 | CL15: 415.1726363 | CM15: 82.66746211 | CN15: 353.8553981 | CO15: 5495.497357
B16: 40992 | C16: 10 | D16: 5 | E16: All_In | F16: 3 | G16: L | H16: L | I16: 1 | J16: 1 | K16: 5 | L16: 5 | M16: 1 | N16: L | O16: L | P16: U | Q16: L | R16: U | S16: L | T16: L | U16: 2035 | V16: 11.8169748 | W16: 2.827040894 | X16: 3.267754888 | Y16: 0.365825011 | Z16: 0.148297456 | AA16: 0.0226414767 | AB16: 0.1589430815 | AC16: 18.60747761 | AD16: 0.103505951 | AE16: 0.103505951 | AF16: 0.103505951 | AG16: 0.009259309599 | AH16: 0.009259309599 | AI16: 0.009259309599 | AJ16: 444.5163159 | AK16: 444.5163159 | AL16: 444.5163159 | AM16: 23.8891227 | AN16: 23.8891227 | AO16: 23.8891227 | AP16: 0.09298277461 | AQ16: 0.09298277461 | AR16: 0.09298277461 | AS16: 0.07225360791 | AT16: 0.1281110353 | AU16: 0.2003646432 | AV16: 209.3967935 | AW16: 45.28919512 | AX16: 59.97506612 | AY16: 15.79398269 | AZ16: 6.623538 | BA16: 0.988695099 | BB16: 7.350552638 | BC16: 345.4178232 | BD16: 84.57765799 | BE16: 9.589547923 | BF16: 1.046072562 | BG16: 10.47856778 | BH16: 63.35046525 | BI16: 38.18856544 | BJ16: 431.6091117 | BK16: 351.9836555 | BL16: 19551.46708 | BM16: 23710.75475 | BN16: 17881.02813 | BO16: 21156.6148 | BP16: 27467.19053 | BQ16: 0.2924590214 | BR16: 0.1133655952 | BS16: 0.07494870694 | BT16: 0.008444668981 | BU16: 0.1863938621 | BV16: 0.04277960995 | BW16: 0.2282399606 | BX16: 0.05336861044 | BY16: 0.2964330745 | BZ16: 0.1394788452 | CA16: 0.07088133722 | CB16: 0.005149122597 | CC16: 0.1710539481 | CD16: 0.03139979024 | CE16: 0.247817562 | CF16: 0.03778632014 | CG16: 1417.829681 | CH16: 150.3607765 | CI16: 659.2243986 | CJ16: 801.1904125 | CK16: 1186.608196 | CL16: 342.3418526 | CM16: 26.85172826 | CN16: 196.2237517 | CO16: 4780.630797
B17: 42016 | C17: 10 | D17: 5 | E17: All_In | F17: 3 | G17: L | H17: L | I17: 1 | J17: 1 | K17: 5 | L17: 5 | M17: 1 | N17: L | O17: L | P17: U | Q17: L | R17: U | S17: L | T17: L | U17: 2050 | V17: 11.5454462 | W17: 1.961394833 | X17: 3.863246231 | Y17: 0.6598746091 | Z17: 0.1704753181 | AA17: 0.07027383982 | AB17: 0.2963375966 | AC17: 18.56704862 | AD17: 0.1058919407 | AE17: 0.1058919407 | AF17: 0.1058919407 | AG17: 0.009019617477 | AH17: 0.009019617477 | AI17: 0.009019617477 | AJ17: 447.6195715 | AK17: 447.6195715 | AL17: 447.6195715 | AM17: 24.10827809 | AN17: 24.10827809 | AO17: 24.10827809 | AP17: 0.081460247 | AQ17: 0.081460247 | AR17: 0.081460247 | AS17: 0.07275820208 | AT17: 0.1109316832 | AU17: 0.1836898853 | AV17: 224.5081285 | AW17: 33.74069848 | AX17: 83.73354411 | AY17: 31.08326148 | AZ17: 8.483412008 | BA17: 3.40231948 | BB17: 14.85094977 | BC17: 399.8023139 | BD17: 100.0768138 | BE17: 10.44725045 | BF17: 2.057960093 | BG17: 14.24937979 | BH17: 101.3754145 | BI17: 64.63080191 | BJ17: 418.0645859 | BK17: 350.3238451 | BL17: 17534.07786 | BM17: 21153.04751 | BN17: 16086.22388 | BO17: 19034.43109 | BP17: 24564.68972 | BQ17: 0.3065486762 | BR17: 0.08043751534 | BS17: 0.06741426108 | BT17: 0.01998593888 | BU17: 0.1996456777 | BV17: 0.0634098945 | BW17: 0.1911620053 | BX17: 0.07139603093 | BY17: 0.2995864051 | BZ17: 0.09648674331 | CA17: 0.07149767351 | CB17: 0.01434788237 | CC17: 0.193030439 | CD17: 0.0530829515 | CE17: 0.2095506735 | CF17: 0.06241723164 | CG17: 1673.96691 | CH17: 286.1095642 | CI17: 529.3913128 | CJ17: 1019.268852 | CK17: 1155.596176 | CL17: 392.1815626 | CM17: 83.69045121 | CN17: 354.7401045 | CO17: 5494.944933
B18: 40978 | C18: 10 | D18: 6 | E18: All_In | F18: 3 | G18: L | H18: L | I18: 1 | J18: 1 | K18: 3 | L18: 3 | M18: 5 | N18: L | O18: H | P18: R | Q18: H | R18: R | S18: L | T18: H | U18: 2035 | V18: 12.29343088 | W18: 2.966181093 | X18: 3.448329599 | Y18: 0.3197114597 | Z18: 0.09578036712 | AA18: 0.003629905141 | AB18: 0.0268924705 | AC18: 19.15395577 | AD18: 0.09963087682 | AE18: 0.09963087682 | AF18: 0.09963087682 | AG18: 0.009120304827 | AH18: 0.009120304827 | AI18: 0.009120304827 | AJ18: 450.5857419 | AK18: 450.5857419 | AL18: 450.5857419 | AM18: 23.52442217 | AN18: 23.52442217 | AO18: 23.52442217 | AP18: 0.09419517253 | AQ18: 0.09419517253 | AR18: 0.09419517253 | AS18: 0.07329626812 | AT18: 0.1270010391 | AU18: 0.2002973072 | AV18: 217.8395952 | AW18: 47.5182211 | AX18: 63.28926214 | AY18: 16.4334248 | AZ18: 4.131955843 | BA18: 0.1597852082 | BB18: 1.242893047 | BC18: 350.6151373 | BD18: 89.27756776 | BE18: 4.887771974 | BF18: 0.1706158366 | BG18: 1.655895548 | BH18: 54.21715492 | BI18: 32.95109643 | BJ18: 428.0688109 | BK18: 349.1458025 | BL18: 19337.75365 | BM18: 23494.08841 | BN18: 17821.47633 | BO18: 20894.33666 | BP18: 27390.55385 | BQ18: 0.3113136304 | BR18: 0.1208181815 | BS18: 0.05278983815 | BT18: 0.001690083862 | BU18: 0.1990083826 | BV18: 0.007723097548 | BW18: 0.2584208375 | BX18: 0.04823598404 | BY18: 0.3116381142 | BZ18: 0.1465793858 | CA18: 0.04551077052 | CB18: 0.0008264965131 | CC18: 0.1808535704 | CD18: 0.005156685554 | CE18: 0.2760656598 | CF18: 0.03336931723 | CG18: 1493.048579 | CH18: 25.06483312 | CI18: 693.8645344 | CJ18: 847.6908408 | CK18: 1324.154449 | CL18: 222.4323923 | CM18: 4.409463722 | CN18: 172.8681807 | CO18: 4783.533273
B19: 42002 | C19: 10 | D19: 6 | E19: All_In | F19: 3 | G19: L | H19: L | I19: 1 | J19: 1 | K19: 3 | L19: 3 | M19: 5 | N19: L | O19: H | P19: R | Q19: H | R19: R | S19: L | T19: H | U19: 2050 | V19: 12.28136328 | W19: 2.101737348 | X19: 4.154655177 | Y19: 0.5827785028 | Z19: 0.1311878845 | AA19: 0.0166904308 | AB19: 0.06239020493 | AC19: 19.33080283 | AD19: 0.09976068953 | AE19: 0.09976068953 | AF19: 0.09976068953 | AG19: 0.008886541616 | AH19: 0.008886541616 | AI19: 0.008886541616 | AJ19: 454.3249307 | AK19: 454.3249307 | AL19: 454.3249307 | AM19: 23.5026416 | AN19: 23.5026416 | AO19: 23.5026416 | AP19: 0.08263022458 | AQ19: 0.08263022458 | AR19: 0.08263022458 | AS19: 0.07425005886 | AT19: 0.1100494825 | AU19: 0.1842995413 | AV19: 238.8184779 | AW19: 36.15492655 | AX19: 90.04965817 | AY19: 33.05146689 | AZ19: 6.243830688 | BA19: 0.8051350656 | BB19: 3.124854778 | BC19: 408.24835 | BD19: 107.6614625 | BE19: 5.64469448 | BF19: 0.4452421508 | BG19: 2.600127463 | BH19: 88.23560293 | BI19: 56.60724494 | BJ19: 415.0080278 | BK19: 347.7494023 | BL19: 17322.93503 | BM19: 21036.42233 | BN19: 16015.08449 | BO19: 18826.92855 | BP19: 24479.66575 | BQ19: 0.33310889 | BR19: 0.08761521388 | BS19: 0.05570075016 | BT19: 0.005107080097 | BU19: 0.2177509869 | BV19: 0.01371963142 | BW19: 0.2229165456 | BX19: 0.06408090199 | BY19: 0.3222610287 | BZ19: 0.1037766639 | CA19: 0.05483196082 | CB19: 0.0034242377 | CC19: 0.2083697627 | CD19: 0.0107019168 | CE19: 0.2404303207 | CF19: 0.05620410866 | CG19: 1801.691925 | CH19: 58.10509134 | CI19: 569.9383268 | CJ19: 1100.968004 | CK19: 1327.464946 | CL19: 303.2667572 | CM19: 20.12556777 | CN19: 316.7292999 | CO19: 5498.289918
B20: 41018 | C20: 10 | D20: 7 | E20: All_In | F20: 3 | G20: L | H20: L | I20: 1 | J20: 1 | K20: 7 | L20: 7 | M20: 7 | N20: L | O20: H | P20: U | Q20: H | R20: U | S20: H | T20: H | U20: 2035 | V20: 12.6230099 | W20: 3.043166588 | X20: 3.553672393 | Y20: 0.07007727616 | Z20: 0.09684212223 | AA20: 0.003838819774 | AB20: 0.02799953907 | AC20: 19.41860664 | AD20: 0.09711585634 | AE20: 0.09711585634 | AF20: 0.09711585634 | AG20: 0.009045172944 | AH20: 0.009045172944 | AI20: 0.009045172944 | AJ20: 455.5990448 | AK20: 455.5990448 | AL20: 455.5990448 | AM20: 23.46198434 | AN20: 23.46198434 | AO20: 23.46198434 | AP20: 0.0952985539 | AQ20: 0.0952985539 | AR20: 0.0952985539 | AS20: 0.07259184439 | AT20: 0.126498751 | AU20: 0.1990905954 | AV20: 223.6797354 | AW20: 48.75152875 | AX20: 65.22268163 | AY20: 3.602028057 | AZ20: 4.325343764 | BA20: 0.1676313938 | BB20: 1.294879172 | BC20: 347.0438282 | BD20: 92.01937819 | BE20: 6.051649733 | BF20: 0.1637355106 | BG20: 1.729831663 | BH20: 11.3453317 | BI20: 7.026212391 | BJ20: 426.1293333 | BK20: 347.5629572 | BL20: 19242.6261 | BM20: 23399.82004 | BN20: 17760.956 | BO20: 20794.9098 | BP20: 27245.13423 | BQ20: 0.3232814109 | BR20: 0.125628314 | BS20: 0.05335619991 | BT20: 0.001792642097 | BU20: 0.2070565903 | BV20: 0.008097487633 | BW20: 0.2692912104 | BX20: 0.01149618034 | BY20: 0.3198806348 | BZ20: 0.150303286 | CA20: 0.04608793847 | CB20: 0.0008744601796 | CC20: 0.1863150928 | CD20: 0.005379244913 | CE20: 0.2838561541 | CF20: 0.007303188732 | CG20: 1535.354603 | CH20: 26.09457193 | CI20: 712.8754023 | CJ20: 874.422991 | CK20: 1363.960806 | CL20: 225.10358 | CM20: 4.663400484 | CN20: 38.27971615 | CO20: 4780.755071
B21: 42042 | C21: 10 | D21: 7 | E21: All_In | F21: 3 | G21: L | H21: L | I21: 1 | J21: 1 | K21: 7 | L21: 7 | M21: 7 | N21: L | O21: H | P21: U | Q21: H | R21: U | S21: H | T21: H | U21: 2050 | V21: 12.80147005 | W21: 2.195160566 | X21: 4.344424241 | Y21: 0.1559668141 | Z21: 0.1294351616 | AA21: 0.01774984434 | AB21: 0.06570443054 | AC21: 19.70991111 | AD21: 0.09583883617 | AE21: 0.09583883617 | AF21: 0.09583883617 | AG21: 0.008800111537 | AH21: 0.008800111537 | AI21: 0.008800111537 | AJ21: 460.9649472 | AK21: 460.9649472 | AL21: 460.9649472 | AM21: 23.38746962 | AN21: 23.38746962 | AO21: 23.38746962 | AP21: 0.0838856287 | AQ21: 0.0838856287 | AR21: 0.0838856287 | AS21: 0.07284515541 | AT21: 0.1097419531 | AU21: 0.1825871085 | AV21: 248.932266 | AW21: 37.76203012 | AX21: 94.16278876 | AY21: 8.845439507 | AZ21: 6.441118963 | BA21: 0.8593616247 | BB21: 3.292775565 | BC21: 400.2957806 | BD21: 112.6006784 | BE21: 7.280813279 | BF21: 0.4556728643 | BG21: 2.741974494 | BH21: 22.45211553 | BI21: 14.74977837 | BJ21: 413.8105194 | BK21: 346.5802215 | BL21: 17256.65954 | BM21: 21011.19881 | BN21: 15937.88443 | BO21: 18794.17691 | BP21: 24367.45784 | BQ21: 0.3497490975 | BR21: 0.09218830878 | BS21: 0.05425661194 | BT21: 0.005443477562 | BU21: 0.2290833334 | BV21: 0.01454128968 | BW21: 0.2363261725 | BX21: 0.01841170871 | BY21: 0.3365824109 | BZ21: 0.1084687863 | CA21: 0.05433016659 | CB21: 0.003644803648 | CC21: 0.218074202 | CD21: 0.01129751567 | CE21: 0.2526364058 | CF21: 0.01496570908 | CG21: 1882.668413 | CH21: 61.19017709 | CI21: 596.1172713 | CJ21: 1152.834215 | CK21: 1396.128253 | CL21: 299.7008401 | CM21: 21.40848769 | CN21: 85.11229341 | CO21: 5495.15995
B22: 41016 | C22: 10 | D22: 8 | E22: All_In | F22: 3 | G22: L | H22: L | I22: 1 | J22: 1 | K22: 5 | L22: 5 | M22: 7 | N22: L | O22: L | P22: U | Q22: L | R22: U | S22: H | T22: H | U22: 2035 | V22: 12.18773627 | W22: 2.912268412 | X22: 3.382509376 | Y22: 0.0655464456 | Z22: 0.153753255 | AA22: 0.02371842288 | AB22: 0.1663431402 | AC22: 18.89187533 | AD22: 0.1004652504 | AE22: 0.1004652504 | AF22: 0.1004652504 | AG22: 0.009173666861 | AH22: 0.009173666861 | AI22: 0.009173666861 | AJ22: 450.1126632 | AK22: 450.1126632 | AL22: 450.1126632 | AM22: 23.82572695 | AN22: 23.82572695 | AO22: 23.82572695 | AP22: 0.09424338644 | AQ22: 0.09424338644 | AR22: 0.09424338644 | AS22: 0.07195614232 | AT22: 0.1275528119 | AU22: 0.1995089542 | AV22: 215.9666868 | AW22: 46.65453997 | AX22: 62.08122409 | AY22: 3.369139741 | AZ22: 6.867215084 | BA22: 1.035722571 | BB22: 7.692779051 | BC22: 343.6673073 | BD22: 87.56443136 | BE22: 9.902429395 | BF22: 1.093498387 | BG22: 10.93073378 | BH22: 10.62307089 | BI22: 6.575726034 | BJ22: 429.3414311 | BK22: 350.1153378 | BL22: 19443.13773 | BM22: 23605.64556 | BN22: 17803.64311 | BO22: 21042.31773 | BP22: 27286.18861 | BQ22: 0.3051901328 | BR22: 0.1184754188 | BS22: 0.07850804876 | BT22: 0.008882118062 | BU22: 0.1949059645 | BV22: 0.0450413828 | BW22: 0.2383076868 | BX22: 0.0106892831 | BY22: 0.3054788776 | BZ22: 0.1436043582 | CA22: 0.07342824193 | CB22: 0.005391680215 | CC22: 0.1770054914 | CD22: 0.03282774878 | CE22: 0.2554452327 | CF22: 0.006818369184 | CG22: 1464.035357 | CH22: 157.3554391 | CI22: 680.1432172 | CJ22: 830.1936117 | CK22: 1225.269845 | CL22: 355.1892509 | CM22: 28.1359575 | CN22: 35.74363455 | CO22: 4776.066312
B23: 42040 | C23: 10 | D23: 8 | E23: All_In | F23: 3 | G23: L | H23: L | I23: 1 | J23: 1 | K23: 5 | L23: 5 | M23: 7 | N23: L | O23: L | P23: U | Q23: L | R23: U | S23: H | T23: H | U23: 2050 | V23: 12.11599281 | W23: 2.060293895 | X23: 4.062969335 | Y23: 0.1434388047 | Z23: 0.1796329075 | AA23: 0.07448104111 | AB23: 0.3145302734 | AC23: 18.95133906 | AD23: 0.1010758008 | AE23: 0.1010758008 | AF23: 0.1010758008 | AG23: 0.00892542884 | AH23: 0.00892542884 | AI23: 0.00892542884 | AJ23: 454.8649155 | AK23: 454.8649155 | AL23: 454.8649155 | AM23: 24.00172959 | AN23: 24.00172959 | AO23: 24.00172959 | AP23: 0.08287465256 | AQ23: 0.08287465256 | AR23: 0.08287465256 | AS23: 0.0720676855 | AT23: 0.1105913485 | AU23: 0.182659034 | AV23: 235.6027497 | AW23: 35.4419997 | AX23: 88.06242256 | AY23: 8.134930996 | AZ23: 8.939123752 | BA23: 3.60601182 | BB23: 15.76267521 | BC23: 395.5499137 | BD23: 105.2751085 | BE23: 10.89908172 | BF23: 2.170768891 | BG23: 14.99239332 | BH23: 20.69570158 | BI23: 13.58015043 | BJ23: 416.563282 | BK23: 348.8450982 | BL23: 17462.25084 | BM23: 21116.3828 | BN23: 15986.12866 | BO23: 18991.35909 | BP23: 24420.30094 | BQ23: 0.3239660553 | BR23: 0.08520950405 | BS23: 0.07153106874 | BT23: 0.02126651849 | BU23: 0.2114263426 | BV23: 0.06760133888 | BW23: 0.2022529734 | BX23: 0.01674619847 | BY23: 0.3146554531 | BZ23: 0.1014202491 | CA23: 0.07536229348 | CB23: 0.01520752837 | CC23: 0.2031769524 | CD23: 0.05630483357 | CE23: 0.2201387 | CF23: 0.01373399002 | CG23: 1759.202597 | CH23: 303.6508154 | CI23: 556.9121484 | CJ23: 1073.515816 | CK23: 1214.848117 | CL23: 413.6572629 | CM23: 88.73974461 | CN23: 78.0626092 | CO23: 5488.589109
B24: 41000 | C24: 10 | D24: 9 | E24: All_In | F24: 3 | G24: L | H24: L | I24: 1 | J24: 1 | K24: 5 | L24: 5 | M24: 3 | N24: L | O24: L | P24: U | Q24: L | R24: U | S24: H | T24: L | U24: 2035 | V24: 12.17279951 | W24: 2.908816304 | X24: 3.377750121 | Y24: 0.0784861933 | Z24: 0.1535214688 | AA24: 0.02366827777 | AB24: 0.1660085235 | AC24: 18.8810504 | AD24: 0.1005842924 | AE24: 0.1005842924 | AF24: 0.1005842924 | AG24: 0.00917710499 | AH24: 0.00917710499 | AI24: 0.00917710499 | AJ24: 449.9053381 | AK24: 449.9053381 | AL24: 449.9053381 | AM24: 23.82840618 | AN24: 23.82840618 | AO24: 23.82840618 | AP24: 0.09419180535 | AQ24: 0.09419180535 | AR24: 0.09419180535 | AS24: 0.07186281568 | AT24: 0.1276210154 | AU24: 0.1994838311 | AV24: 215.7020073 | AW24: 46.59923719 | AX24: 61.99387463 | AY24: 3.388531515 | AZ24: 6.856862618 | BA24: 1.033532863 | BB24: 7.677304217 | BC24: 343.2513504 | BD24: 87.44055982 | BE24: 9.889298803 | BF24: 1.091312192 | BG24: 10.91051913 | BH24: 12.85143851 | BI24: 7.921080106 | BJ24: 429.6772528 | BK24: 350.3329389 | BL24: 19454.74885 | BM24: 23627.0364 | BN24: 17809.21418 | BO24: 21066.73302 | BP24: 27305.59077 | BQ24: 0.3046243088 | BR24: 0.1182445485 | BS24: 0.07834428648 | BT24: 0.008861256955 | BU24: 0.1945207849 | BV24: 0.0449346666 | BW24: 0.2378571911 | BX24: 0.0126129923 | BY24: 0.3051180054 | BZ24: 0.1434384836 | CA24: 0.0733209435 | CB24: 0.005380494221 | CC24: 0.1767598032 | CD24: 0.03276418169 | CE24: 0.2551406493 | CF24: 0.008077439105 | CG24: 1462.177668 | CH24: 157.0419511 | CI24: 679.2947176 | CJ24: 828.988092 | CK24: 1223.713166 | CL24: 354.6442706 | CM24: 28.07637184 | CN24: 42.54443754 | CO24: 4776.480675
B25: 42024 | C25: 10 | D25: 9 | E25: All_In | F25: 3 | G25: L | H25: L | I25: 1 | J25: 1 | K25: 5 | L25: 5 | M25: 3 | N25: L | O25: L | P25: U | Q25: L | R25: U | S25: H | T25: L | U25: 2050 | V25: 12.08453305 | W25: 2.054818939 | X25: 4.051690041 | Y25: 0.1740104688 | Z25: 0.1791052895 | AA25: 0.0742190855 | AB25: 0.3134146959 | AC25: 18.93179157 | AD25: 0.1013299203 | AE25: 0.1013299203 | AF25: 0.1013299203 | AG25: 0.008930591566 | AH25: 0.008930591566 | AI25: 0.008930591566 | AJ25: 454.5108932 | AK25: 454.5108932 | AL25: 454.5108932 | AM25: 24.00781202 | AN25: 24.00781202 | AO25: 24.00781202 | AP25: 0.08279623067 | AQ25: 0.08279623067 | AR25: 0.08279623067 | AS25: 0.071876419 | AT25: 0.1106948659 | AU25: 0.1825712849 | AV25: 234.9909959 | AW25: 35.34781731 | AX25: 87.81795062 | AY25: 8.196728331 | AZ25: 8.912867744 | BA25: 3.593329196 | BB25: 15.70676808 | BC25: 394.5664572 | BD25: 104.9815366 | BE25: 10.87524469 | BF25: 2.164307907 | BG25: 14.95220744 | BH25: 25.20413599 | BI25: 16.51104418 | BJ25: 417.0742304 | BK25: 349.230335 | BL25: 17480.55685 | BM25: 21144.76118 | BN25: 15992.72372 | BO25: 19023.42265 | BP25: 24451.11241 | BQ25: 0.3228701399 | BR25: 0.08489922012 | BS25: 0.0712587488 | BT25: 0.02117982556 | BU25: 0.2106667473 | BV25: 0.06731743312 | BW25: 0.201544014 | BX25: 0.0202638712 | BY25: 0.3138356318 | BZ25: 0.1011513176 | CA25: 0.07514398787 | CB25: 0.01515486091 | CC25: 0.2026106826 | CD25: 0.05611200804 | CE25: 0.2195635837 | CF25: 0.01642792745 | CG25: 1754.480461 | CH25: 302.5840632 | CI25: 555.37903 | CJ25: 1070.431584 | CK25: 1211.564389 | CL25: 412.4206164 | CM25: 88.42630087 | CN25: 94.22545189 | CO25: 5489.511896
B26: 40976 | C26: 10 | D26: 10 | E26: All_In | F26: 3 | G26: L | H26: L | I26: 1 | J26: 1 | K26: 1 | L26: 1 | M26: 5 | N26: L | O26: L | P26: R | Q26: L | R26: R | S26: L | T26: H | U26: 2035 | V26: 11.89043746 | W26: 2.842688593 | X26: 3.287850332 | Y26: 0.301309737 | Z26: 0.1524875597 | AA26: 0.0225698951 | AB26: 0.1604973273 | AC26: 18.6578409 | AD26: 0.102888932 | AE26: 0.102888932 | AF26: 0.102888932 | AG26: 0.009243466028 | AH26: 0.009243466028 | AI26: 0.009243466028 | AJ26: 445.5600305 | AK26: 445.5600305 | AL26: 445.5600305 | AM26: 23.88057829 | AN26: 23.88057829 | AO26: 23.88057829 | AP26: 0.09323235997 | AQ26: 0.09323235997 | AR26: 0.09323235997 | AS26: 0.0726213425 | AT26: 0.1279876053 | AU26: 0.2006089478 | AV26: 210.6985518 | AW26: 45.53987126 | AX26: 60.34388986 | AY26: 15.48756153 | AZ26: 6.578298686 | BA26: 0.9935067855 | BB26: 7.417727285 | BC26: 347.0594072 | BD26: 85.10069232 | BE26: 8.048041626 | BF26: 1.152495268 | BG26: 10.52543547 | BH26: 51.18594595 | BI26: 31.0870843 | BJ26: 431.041372 | BK26: 351.5266153 | BL26: 19525.62698 | BM26: 23681.94565 | BN26: 17864.73282 | BO26: 21123.44524 | BP26: 27426.94985 | BQ26: 0.2945218595 | BR26: 0.1141897517 | BS26: 0.07795650327 | BT26: 0.008399908273 | BU26: 0.1877610523 | BV26: 0.04315229361 | BW26: 0.2288696483 | BX26: 0.04514901877 | BY26: 0.2980761413 | BZ26: 0.1402557289 | CA26: 0.07271659644 | CB26: 0.005131568841 | CC26: 0.1721205397 | CD26: 0.03165112204 | CE26: 0.2486581654 | CF26: 0.03139013752 | CG26: 1426.025352 | CH26: 151.8288425 | CI26: 663.0470441 | CJ26: 806.273067 | CK26: 1190.552744 | CL26: 351.9209404 | CM26: 26.76952741 | CN26: 162.6101795 | CO26: 4779.027697
B27: 42000 | C27: 10 | D27: 10 | E27: All_In | F27: 3 | G27: L | H27: L | I27: 1 | J27: 1 | K27: 1 | L27: 1 | M27: 5 | N27: L | O27: L | P27: R | Q27: L | R27: R | S27: L | T27: H | U27: 2050 | V27: 11.66124633 | W27: 1.977615667 | X27: 3.896149551 | Y27: 0.5405577733 | Z27: 0.1826658083 | AA27: 0.07027201228 | AB27: 0.2999257013 | AC27: 18.62843284 | AD27: 0.1048776724 | AE27: 0.1048776724 | AF27: 0.1048776724 | AG27: 0.00900403317 | AH27: 0.00900403317 | AI27: 0.00900403317 | AJ27: 448.9528307 | AK27: 448.9528307 | AL27: 448.9528307 | AM27: 24.10040794 | AN27: 24.10040794 | AO27: 24.10040794 | AP27: 0.08174552996 | AQ27: 0.08174552996 | AR27: 0.08174552996 | AS27: 0.07337643365 | AT27: 0.1108368936 | AU27: 0.1842133273 | AV27: 226.7599316 | AW27: 34.01973574 | AX27: 84.44670383 | AY27: 30.65697733 | AZ27: 8.693900236 | BA27: 3.389874228 | BB27: 15.0219776 | BC27: 402.9891005 | BD27: 100.9332052 | BE27: 8.713889296 | BF27: 2.168576491 | BG27: 14.31104493 | BH27: 82.12424513 | BI27: 52.60132268 | BJ27: 417.5488643 | BK27: 349.8418797 | BL27: 17513.12493 | BM27: 21131.76541 | BN27: 16065.40349 | BO27: 19009.06024 | BP27: 24526.68765 | BQ27: 0.309557602 | BR27: 0.08125543105 | BS27: 0.07376984882 | BT27: 0.02002664943 | BU27: 0.2016657128 | BV27: 0.06415031684 | BW27: 0.1908107932 | BX27: 0.05876364592 | BY27: 0.3020917478 | BZ27: 0.09729802593 | CA27: 0.07631076704 | CB27: 0.01434050099 | CC27: 0.1947051239 | CD27: 0.05363314582 | CE27: 0.2096155791 | CF27: 0.05200510941 | CG27: 1688.180965 | CH27: 289.5770793 | CI27: 533.9308369 | CJ27: 1028.252984 | CK27: 1155.621869 | CL27: 419.9146815 | CM27: 83.70257189 | CN27: 292.8970609 | CO27: 5492.078049
B28: 40984 | C28: 10 | D28: 11 | E28: All_In | F28: 3 | G28: L | H28: L | I28: 1 | J28: 1 | K28: 1 | L28: 1 | M28: 7 | N28: L | O28: L | P28: R | Q28: L | R28: R | S28: H | T28: H | U28: 2035 | V28: 12.18498667 | W28: 2.910055818 | X28: 3.379414246 | Y28: 0.06547079732 | Z28: 0.1569588896 | AA28: 0.02343694397 | AB28: 0.1665202271 | AC28: 18.88684359 | AD28: 0.1004871428 | AE28: 0.1004871428 | AF28: 0.1004871428 | AG28: 0.009175870199 | AH28: 0.009175870199 | AI28: 0.009175870199 | AJ28: 450.0996552 | AK28: 450.0996552 | AL28: 450.0996552 | AM28: 23.83138576 | AN28: 23.83138576 | AO28: 23.83138576 | AP28: 0.09423363963 | AQ28: 0.09423363963 | AR28: 0.09423363963 | AS28: 0.07190019231 | AT28: 0.1275564391 | AU28: 0.1994566314 | AV28: 215.9179637 | AW28: 46.6190942 | AX28: 62.0244173 | AY28: 3.365251359 | AZ28: 6.771191428 | BA28: 1.031673508 | BB28: 7.696088481 | BC28: 343.42568 | BD28: 87.48387283 | BE28: 8.251984408 | BF28: 1.194443512 | BG28: 10.88875165 | BH28: 10.6116729 | BI28: 6.56842261 | BJ28: 429.405491 | BK28: 350.1513889 | BL28: 19446.38471 | BM28: 23607.57233 | BN28: 17809.43544 | BO28: 21045.04834 | BP28: 27290.78608 | BQ28: 0.3047632161 | BR28: 0.1183095861 | BS28: 0.08092637103 | BT28: 0.008752579077 | BU28: 0.1946347636 | BV28: 0.04499817615 | BW28: 0.2369404965 | BX28: 0.01067484702 | BY28: 0.3052386286 | BZ28: 0.1435040975 | CA28: 0.07479363642 | CB28: 0.005326751985 | CC28: 0.1768549974 | CD28: 0.03280957081 | CE28: 0.2546615511 | CF28: 0.00681076603 | CG28: 1462.76176 | CH28: 157.5233545 | CI28: 679.6143913 | CJ28: 829.4331296 | CK28: 1221.12958 | CL28: 362.4531825 | CM28: 27.80415071 | CN28: 35.70272504 | CO28: 4776.422274
B29: 42008 | C29: 10 | D29: 11 | E29: All_In | F29: 3 | G29: L | H29: L | I29: 1 | J29: 1 | K29: 1 | L29: 1 | M29: 7 | N29: L | O29: L | P29: R | Q29: L | R29: R | S29: H | T29: H | U29: 2050 | V29: 12.10723618 | W29: 2.055212457 | X29: 4.052369953 | Y29: 0.1430550259 | Z29: 0.1902957149 | AA29: 0.0735524548 | AB29: 0.3143312572 | AC29: 18.93605304 | AD29: 0.1011464053 | AE29: 0.1011464053 | AF29: 0.1011464053 | AG29: 0.00893022029 | AH29: 0.00893022029 | AI29: 0.00893022029 | AJ29: 454.8406651 | AK29: 454.8406651 | AL29: 454.8406651 | AM29: 24.0198242 | AN29: 24.0198242 | AO29: 24.0198242 | AP29: 0.0828611369 | AQ29: 0.0828611369 | AR29: 0.0828611369 | AS29: 0.07197445182 | AT29: 0.1106182493 | AU29: 0.1825927012 | AV29: 235.4324718 | AW29: 35.35458677 | AX29: 87.83268731 | AY29: 8.11316552 | AZ29: 9.057042342 | BA29: 3.548120551 | BB29: 15.74348942 | BC29: 395.0815637 | BD29: 104.999233 | BE29: 8.986208463 | BF29: 2.261316917 | BG29: 14.9004023 | BH29: 20.64445776 | BI29: 13.54513856 | BJ29: 416.7322331 | BK29: 348.9682623 | BL29: 17469.77725 | BM29: 21121.66034 | BN29: 16000.37329 | BO29: 18997.71304 | BP29: 24431.45485 | BQ29: 0.3228619298 | BR29: 0.08491829824 | BS29: 0.07719396936 | BT29: 0.02101252728 | BU29: 0.2107090069 | BV29: 0.06740814941 | BW29: 0.1992053095 | BX29: 0.01669080952 | BY29: 0.313868384 | BZ29: 0.1011812432 | CA29: 0.07953267976 | CB29: 0.01501224255 | CC29: 0.2026692263 | CD29: 0.05618481302 | CE29: 0.2178525966 | CF29: 0.01369881453 | CG29: 1754.604248 | CH29: 303.4611967 | CI29: 555.5302832 | CJ29: 1070.713209 | CK29: 1201.567074 | CL29: 437.8183496 | CM29: 87.64198173 | CN29: 77.85536012 | CO29: 5489.191702
B30: 41008 | C30: 10 | D30: 12 | E30: All_In | F30: 3 | G30: L | H30: L | I30: 1 | J30: 1 | K30: 5 | L30: 5 | M30: 5 | N30: L | O30: L | P30: U | Q30: L | R30: U | S30: L | T30: H | U30: 2035 | V30: 11.89280739 | W30: 2.844765509 | X30: 3.290747499 | Y30: 0.3016295542 | Z30: 0.1493781196 | AA30: 0.02283976624 | AB30: 0.1603191112 | AC30: 18.66248695 | AD30: 0.1028691492 | AE30: 0.1028691492 | AF30: 0.1028691492 | AG30: 0.009241367189 | AH30: 0.009241367189 | AI30: 0.009241367189 | AJ30: 445.5681321 | AK30: 445.5681321 | AL30: 445.5681321 | AM30: 23.87506731 | AN30: 23.87506731 | AO30: 23.87506731 | AP30: 0.09324071211 | AQ30: 0.09324071211 | AR30: 0.09324071211 | AS30: 0.07267647749 | AT30: 0.1279845186 | AU30: 0.2006609961 | AV30: 210.740547 | AW30: 45.57314346 | AX30: 60.3970633 | AY30: 15.50400039 | AZ30: 6.671804615 | BA30: 0.9973538935 | BB30: 7.41418912 | BC30: 347.2981018 | BD30: 85.17609836 | BE30: 9.654115453 | BF30: 1.054965709 | BG30: 10.56548461 | BH30: 51.23471103 | BI30: 31.11814937 | BJ30: 430.981532 | BK30: 351.4930409 | BL30: 19522.6014 | BM30: 23680.19203 | BN30: 17859.07804 | BO30: 21120.93868 | BP30: 27422.69395 | BQ30: 0.2949209815 | BR30: 0.1143443765 | BS30: 0.07561697035 | BT30: 0.008523861771 | BU30: 0.1880136771 | BV30: 0.04319137015 | BW30: 0.2301802032 | BX30: 0.04520859505 | BY30: 0.2983015456 | BZ30: 0.1403496935 | CA30: 0.07139333544 | CB30: 0.005193842947 | CC30: 0.1722611829 | CD30: 0.03166724248 | CE30: 0.2494110834 | CF30: 0.03142207369 | CG30: 1427.220029 | CH30: 151.6599072 | CI30: 663.5424239 | CJ30: 806.9836339 | CK30: 1194.530009 | CL30: 344.8816272 | CM30: 27.08756305 | CN30: 162.7813059 | CO30: 4778.686499
B31: 42032 | C31: 10 | D31: 12 | E31: All_In | F31: 3 | G31: L | H31: L | I31: 1 | J31: 1 | K31: 5 | L31: 5 | M31: 5 | N31: L | O31: L | P31: U | Q31: L | R31: U | S31: L | T31: H | U31: 2050 | V31: 11.66859786 | W31: 1.982311941 | X31: 3.905937397 | Y31: 0.5419295971 | Z31: 0.1723944614 | AA31: 0.07115089628 | AB31: 0.3000786919 | AC31: 18.64240085 | AD31: 0.1048139374 | AE31: 0.1048139374 | AF31: 0.1048139374 | AG31: 0.008999531231 | AH31: 0.008999531231 | AI31: 0.008999531231 | AJ31: 448.9622303 | AK31: 448.9622303 | AL31: 448.9622303 | AM31: 24.08285467 | AN31: 24.08285467 | AO31: 24.08285467 | AP31: 0.08175569709 | AQ31: 0.08175569709 | AR31: 0.08175569709 | AS31: 0.07346962263 | AT31: 0.110811549 | AU31: 0.1842811716 | AV31: 226.9028866 | AW31: 34.10052293 | AX31: 84.65884951 | AY31: 30.7347784 | AZ31: 8.578914889 | BA31: 3.444782312 | BB31: 15.03843464 | BC31: 403.4591693 | BD31: 101.1879584 | BE31: 10.54236919 | BF31: 2.080721602 | BG31: 14.39769115 | BH31: 82.30905018 | BI31: 52.72698883 | BJ31: 417.3893536 | BK31: 349.7257082 | BL31: 17506.0781 | BM31: 21126.78305 | BN31: 16051.60031 | BO31: 19003.05379 | BP31: 24516.33343 | BQ31: 0.3105737116 | BR31: 0.08152227446 | BS31: 0.06833462492 | BT31: 0.02026566728 | BU31: 0.2023234158 | BV31: 0.06432413156 | BW31: 0.1937046432 | BX31: 0.0589515311 | BY31: 0.3028198575 | BZ31: 0.09751855547 | CA31: 0.07229704069 | CB31: 0.01452540935 | CC31: 0.1951730563 | CD31: 0.05374137116 | CE31: 0.211793559 | CF31: 0.05213115045 | CG31: 1692.433567 | CH31: 289.7225307 | CI31: 535.2051033 | CJ31: 1030.834922 | CK31: 1168.271879 | CL31: 396.6662007 | CM31: 84.74107632 | CN31: 293.6347466 | CO31: 5491.510026
B32: 40986 | C32: 10 | D32: 13 | E32: All_In | F32: 3 | G32: L | H32: L | I32: 1 | J32: 1 | K32: 3 | L32: 3 | M32: 7 | N32: L | O32: H | P32: R | Q32: H | R32: R | S32: H | T32: H | U32: 2035 | V32: 12.62082083 | W32: 3.041682981 | X32: 3.55154369 | Y32: 0.07001912462 | Z32: 0.09901306274 | AA32: 0.003799985639 | AB32: 0.02806201505 | AC32: 19.41494169 | AD32: 0.09713214217 | AE32: 0.09713214217 | AF32: 0.09713214217 | AG32: 0.009046609131 | AH32: 0.009046609131 | AI32: 0.009046609131 | AJ32: 455.5869803 | AK32: 455.5869803 | AL32: 455.5869803 | AM32: 23.46579184 | AN32: 23.46579184 | AO32: 23.46579184 | AP32: 0.09529268922 | AQ32: 0.09529268922 | AR32: 0.09529268922 | AS32: 0.07255649426 | AT32: 0.1265101793 | AU32: 0.1990666736 | AV32: 223.6409452 | AW32: 48.72776136 | AX32: 65.18361227 | AY32: 3.599039021 | AZ32: 4.271414022 | BA32: 0.1672720011 | BB32: 1.29694605 | BC32: 346.8869899 | BD32: 91.96397335 | BE32: 5.033604796 | BF32: 0.1785075638 | BG32: 1.724751061 | BH32: 11.33661854 | BI32: 7.020613389 | BJ32: 426.2068009 | BK32: 347.6065443 | BL32: 19246.19999 | BM32: 23403.29732 | BN32: 17764.86798 | BO32: 20799.22133 | BP32: 27250.36028 | BQ32: 0.3229858439 | BR32: 0.125511159 | BS32: 0.05502947963 | BT32: 0.001769793351 | BU32: 0.2068629217 | BV32: 0.008092364451 | BW32: 0.2682636353 | BX32: 0.01148483824 | BY32: 0.3197188409 | BZ32: 0.1502351137 | CA32: 0.04701266696 | CB32: 0.0008651545908 | CC32: 0.18621017 | CD32: 0.005377102074 | CE32: 0.2832836382 | CF32: 0.007297313593 | CG32: 1534.496276 | CH32: 26.15311712 | CI32: 712.5149606 | CJ32: 873.8926919 | CK32: 1360.934612 | CL32: 230.0664755 | CM32: 4.616463102 | CN32: 38.24809631 | CO32: 4780.922693
B33: 42010 | C33: 10 | D33: 13 | E33: All_In | F33: 3 | G33: L | H33: L | I33: 1 | J33: 1 | K33: 3 | L33: 3 | M33: 7 | N33: L | O33: H | P33: R | Q33: H | R33: R | S33: H | T33: H | U33: 2050 | V33: 12.79344691 | W33: 2.191344038 | X33: 4.336390591 | Y33: 0.1556453741 | Z33: 0.1373734887 | AA33: 0.01758541357 | AB33: 0.06577936046 | AC33: 19.69756517 | AD33: 0.09589699142 | AE33: 0.09589699142 | AF33: 0.09589699142 | AG33: 0.008803609431 | AH33: 0.008803609431 | AI33: 0.008803609431 | AJ33: 460.9473046 | AK33: 460.9473046 | AL33: 460.9473046 | AM33: 23.40123262 | AN33: 23.40123262 | AO33: 23.40123262 | AP33: 0.08387762046 | AQ33: 0.08387762046 | AR33: 0.08387762046 | AS33: 0.07278164276 | AT33: 0.1097802177 | AU33: 0.1825618605 | AV33: 248.7762512 | AW33: 37.69637667 | AX33: 93.98866423 | AY33: 8.827209487 | AZ33: 6.53823185 | BA33: 0.8483084276 | BB33: 3.294602881 | BC33: 399.9696447 | BD33: 112.3915825 | BE33: 5.852573873 | BF33: 0.4680730776 | BG33: 2.727018701 | BH33: 22.40935529 | BI33: 14.72050331 | BJ33: 414.013397 | BK33: 346.7208972 | BL33: 17265.44326 | BM33: 21019.37936 | BN33: 15948.26522 | BO33: 18804.24186 | BP33: 24380.19882 | BQ33: 0.3488970267 | BR33: 0.09195726563 | BS33: 0.05861707874 | BT33: 0.005395035943 | BU33: 0.2285141511 | BV33: 0.01450891401 | BW33: 0.2337465806 | BX33: 0.01836394729 | BY33: 0.3359933635 | BZ33: 0.108286695 | CA33: 0.05744077562 | CB33: 0.003608146442 | CC33: 0.2176830896 | CD33: 0.01127881688 | CE33: 0.2507730547 | CF33: 0.01493605824 | CG33: 1879.222804 | CH33: 61.26075839 | CI33: 595.0610621 | CJ33: 1150.672082 | CK33: 1385.275102 | CL33: 317.8340562 | CM33: 21.21103019 | CN33: 84.93737042 | CO33: 5495.474265
B34: 40968 | C34: 10 | D34: 14 | E34: All_In | F34: 3 | G34: L | H34: L | I34: 1 | J34: 1 | K34: 1 | L34: 1 | M34: 3 | N34: L | O34: L | P34: R | Q34: L | R34: R | S34: H | T34: L | U34: 2035 | V34: 12.17007004 | W34: 2.906610963 | X34: 3.374665796 | Y34: 0.07839622899 | Z34: 0.1567220269 | AA34: 0.02338746647 | AB34: 0.1661857246 | AC34: 18.87603824 | AD34: 0.1006060761 | AE34: 0.1006060761 | AF34: 0.1006060761 | AG34: 0.00917930275 | AH34: 0.00917930275 | AI34: 0.00917930275 | AJ34: 449.8925655 | AK34: 449.8925655 | AL34: 449.8925655 | AM34: 23.83405669 | AN34: 23.83405669 | AO34: 23.83405669 | AP34: 0.0941821346 | AQ34: 0.0941821346 | AR34: 0.0941821346 | AS34: 0.07180706947 | AT34: 0.1276245574 | AU34: 0.1994316268 | AV34: 215.653641 | AW34: 46.56390763 | AX34: 61.93726615 | AY34: 3.384647432 | AZ34: 6.760973194 | BA34: 1.029495553 | BB34: 7.680628734 | BC34: 343.0105597 | BD34: 87.36028251 | BE34: 8.241223046 | BF34: 1.192065244 | BG34: 10.8686469 | BH34: 12.83787858 | BI34: 7.912392573 | BJ34: 429.7407284 | BK34: 350.3686887 | BL34: 19457.97424 | BM34: 23628.9315 | BN34: 17814.98967 | BO34: 21069.42087 | BP34: 27310.15185 | BQ34: 0.3041989667 | BR34: 0.118079358 | BS34: 0.08075825566 | BT34: 0.008732041382 | BU34: 0.1942506471 | BV34: 0.04489170391 | BW34: 0.236493161 | BX34: 0.01259590189 | BY34: 0.3048785408 | BZ34: 0.1433385576 | CA34: 0.07468413087 | CB34: 0.005315716866 | CC34: 0.1766098438 | CD34: 0.03274612436 | CE34: 0.2543585776 | CF34: 0.008068508215 | CG34: 1460.908272 | CH34: 157.2099708 | CI34: 678.7676828 | CJ34: 828.2303396 | CK34: 1219.581494 | CL34: 361.8963526 | CM34: 27.74535351 | CN34: 42.49605073 | CO34: 4776.835516
B35: 41992 | C35: 10 | D35: 14 | E35: All_In | F35: 3 | G35: L | H35: L | I35: 1 | J35: 1 | K35: 1 | L35: 1 | M35: 3 | N35: L | O35: L | P35: R | Q35: L | R35: R | S35: H | T35: L | U35: 2050 | V35: 12.07588163 | W35: 2.049766553 | X35: 4.041152693 | Y35: 0.1735443414 | Z35: 0.18973904 | AA35: 0.07329441919 | AB35: 0.3132196034 | AC35: 18.91659828 | AD35: 0.1014000273 | AE35: 0.1014000273 | AF35: 0.1014000273 | AG35: 0.008935361122 | AH35: 0.008935361122 | AI35: 0.008935361122 | AJ35: 454.4875954 | AK35: 454.4875954 | AL35: 454.4875954 | AM35: 24.02586283 | AN35: 24.02586283 | AO35: 24.02586283 | AP35: 0.08278296779 | AQ35: 0.08278296779 | AR35: 0.08278296779 | AS35: 0.07178399613 | AT35: 0.1107213846 | AU35: 0.1825053807 | AV35: 234.8227638 | AW35: 35.26090415 | AX35: 87.58955993 | AY35: 8.174771494 | AZ35: 9.03054764 | BA35: 3.535673088 | BB35: 15.6878115 | BC35: 394.1020316 | BD35: 104.7072757 | BE35: 8.969176863 | BF35: 2.254757343 | BG35: 14.8606301 | BH35: 25.14193263 | BI35: 16.4685304 | BJ35: 417.2409316 | BK35: 349.3520549 | BL35: 17487.99674 | BM35: 21149.93013 | BN35: 16006.93563 | BO35: 19029.63231 | BP35: 24462.11441 | BQ35: 0.3217733388 | BR35: 0.08461010305 | BS35: 0.07690285974 | BT35: 0.02092714094 | BU35: 0.2099544774 | BV35: 0.06712596322 | BW35: 0.1985091184 | BX35: 0.02019699842 | BY35: 0.3130529274 | BZ35: 0.1009136856 | CA35: 0.07930292745 | CB35: 0.01496037808 | CC35: 0.2021059668 | CD35: 0.05599293875 | CE35: 0.2172853895 | CF35: 0.01638578643 | CG35: 1749.908099 | CH35: 302.3981755 | CI35: 554.0053138 | CJ35: 1067.645935 | CK35: 1198.330268 | CL35: 436.5139701 | CM35: 87.33319452 | CN35: 93.97499616 | CO35: 5490.109952
B36: 41002 | C36: 10 | D36: 15 | E36: All_In | F36: 3 | G36: L | H36: L | I36: 1 | J36: 1 | K36: 7 | L36: 7 | M36: 3 | N36: L | O36: H | P36: U | Q36: H | R36: U | S36: H | T36: L | U36: 2035 | V36: 12.60626236 | W36: 3.039267728 | X36: 3.548266335 | Y36: 0.08384725573 | Z36: 0.09667071167 | AA36: 0.003828527457 | AB36: 0.02793296975 | AC36: 19.40607588 | AD36: 0.09724059088 | AE36: 0.09724059088 | AF36: 0.09724059088 | AG36: 0.00904894816 | AH36: 0.00904894816 | AI36: 0.00904894816 | AJ36: 455.3678071 | AK36: 455.3678071 | AL36: 455.3678071 | AM36: 23.46521831 | AN36: 23.46521831 | AO36: 23.46521831 | AP36: 0.09524153779 | AQ36: 0.09524153779 | AR36: 0.09524153779 | AS36: 0.07249078553 | AT36: 0.1265734087 | AU36: 0.1990641942 | AV36: 223.382969 | AW36: 48.68906901 | AX36: 65.123461 | AY36: 3.61998788 | AZ36: 4.317687906 | BA36: 0.1671819547 | BB36: 1.291800577 | BC36: 346.5921573 | BD36: 91.87867195 | BE36: 6.042019855 | BF36: 0.1633065798 | BG36: 1.725918406 | BH36: 13.71147386 | BI36: 8.456066424 | BJ36: 426.4957826 | BK36: 347.7996599 | BL36: 19255.31859 | BM36: 23423.80883 | BN36: 17766.68895 | BO36: 20821.87517 | BP36: 27264.99584 | BQ36: 0.3226330085 | BR36: 0.1253639207 | BS36: 0.05323101681 | BT36: 0.001787834502 | BU36: 0.2066140901 | BV36: 0.008075576569 | BW36: 0.2687392153 | BX36: 0.01355537314 | BY36: 0.3194700982 | BZ36: 0.1501152468 | CA36: 0.04600863876 | CB36: 0.0008721465654 | CC36: 0.1860351347 | CD36: 0.005366805759 | CE36: 0.2834868712 | CF36: 0.008645057947 | CG36: 1533.240809 | CH36: 26.03298638 | CI36: 711.9130925 | CJ36: 873.0491113 | CK36: 1362.072332 | CL36: 224.6998137 | CM36: 4.650929405 | CN36: 45.53007562 | CO36: 4781.18915
B37: 42026 | C37: 10 | D37: 15 | E37: All_In | F37: 3 | G37: L | H37: L | I37: 1 | J37: 1 | K37: 7 | L37: 7 | M37: 3 | N37: L | O37: H | P37: U | Q37: H | R37: U | S37: H | T37: L | U37: 2050 | V37: 12.76492088 | W37: 2.188772782 | X37: 4.331167797 | Y37: 0.1890513163 | Z37: 0.1289973416 | AA37: 0.01767596504 | AB37: 0.06543310294 | AC37: 19.68601918 | AD37: 0.09610433335 | AE37: 0.09610433335 | AF37: 0.09610433335 | AG37: 0.008805967584 | AH37: 0.008805967584 | AI37: 0.008805967584 | AJ37: 460.5599216 | AK37: 460.5599216 | AL37: 460.5599216 | AM37: 23.39527953 | AN37: 23.39527953 | AO37: 23.39527953 | AP37: 0.0837969757 | AQ37: 0.0837969757 | AR37: 0.0837969757 | AS37: 0.07263436928 | AT37: 0.1098571562 | AU37: 0.1824915255 | AV37: 248.2215455 | AW37: 37.65214491 | AX37: 93.87546329 | AY37: 8.905224445 | AZ37: 6.419331604 | BA37: 0.8557847464 | BB37: 3.279177991 | BC37: 399.2086725 | BD37: 112.2556462 | BE37: 7.261604883 | BF37: 0.4539786866 | BG37: 2.732939994 | BH37: 27.3159103 | BI37: 17.91647945 | BJ37: 414.378735 | BK37: 347.0059343 | BL37: 17277.50414 | BM37: 21043.61135 | BN37: 15944.60239 | BO37: 18830.4573 | BP37: 24399.11749 | BQ37: 0.3484377717 | BR37: 0.09181790696 | BS37: 0.05402118459 | BT37: 0.005417570507 | BU37: 0.2281726221 | BV37: 0.01447072498 | BW37: 0.235406294 | BX37: 0.0222559252 | BY37: 0.3356159148 | BZ37: 0.1081532386 | CA37: 0.05414917622 | CB37: 0.003629864732 | CC37: 0.2174052866 | CD37: 0.01125224179 | CE37: 0.2519065816 | CF37: 0.01788769551 | CG37: 1877.097545 | CH37: 60.93905183 | CI37: 594.3163811 | CJ37: 1149.18836 | CK37: 1391.954611 | CL37: 298.6718581 | CM37: 21.3192039 | CN37: 102.6531277 | CO37: 5496.140138
B38: 41010 | C38: 10 | D38: 16 | E38: All_In | F38: 3 | G38: L | H38: L | I38: 1 | J38: 1 | K38: 7 | L38: 7 | M38: 5 | N38: L | O38: H | P38: U | Q38: H | R38: U | S38: L | T38: H | U38: 2035 | V38: 12.29531296 | W38: 2.967560558 | X38: 3.450303475 | Y38: 0.319946556 | Z38: 0.09368464359 | AA38: 0.003666815471 | AB38: 0.02683150518 | AC38: 19.15730652 | AD38: 0.09961614488 | AE38: 0.09961614488 | AF38: 0.09961614488 | AG38: 0.009118947596 | AH38: 0.009118947596 | AI38: 0.009118947596 | AJ38: 450.593897 | AK38: 450.593897 | AL38: 450.593897 | AM38: 23.52073329 | AN38: 23.52073329 | AO38: 23.52073329 | AP38: 0.09420002246 | AQ38: 0.09420002246 | AR38: 0.09420002246 | AS38: 0.07333099971 | AT38: 0.1269905269 | AU38: 0.2003215266 | AV38: 217.8729457 | AW38: 47.54032013 | AX38: 63.32548986 | AY38: 16.44550893 | AZ38: 4.184318555 | BA38: 0.1601204079 | BB38: 1.240861755 | BC38: 350.7695653 | BD38: 89.32894283 | BE38: 5.87401382 | BF38: 0.156484179 | BG38: 1.660701612 | BH38: 54.25277576 | BI38: 32.97385937 | BJ38: 427.995889 | BK38: 349.1052466 | BL38: 19334.38875 | BM38: 23490.86282 | BN38: 17817.63733 | BO38: 20890.31685 | BP38: 27385.62363 | BQ38: 0.3115872685 | BR38: 0.1209264294 | BS38: 0.05117867935 | BT38: 0.001711835773 | BU38: 0.1991871408 | BV38: 0.007727632207 | BW38: 0.2594002073 | BX38: 0.04828084228 | BY38: 0.3117884057 | BZ38: 0.1466426792 | CA38: 0.0446188277 | CB38: 0.0008353439344 | CC38: 0.1809507242 | CD38: 0.005158541137 | CE38: 0.276612542 | CF38: 0.03339293614 | CG38: 1493.845752 | CH38: 25.00771013 | CI38: 694.1990472 | CJ38: 848.1817791 | CK38: 1327.044779 | CL38: 217.6456246 | CM38: 4.454070128 | CN38: 172.9948004 | CO38: 4783.373563
B39: 42034 | C39: 10 | D39: 16 | E39: All_In | F39: 3 | G39: L | H39: L | I39: 1 | J39: 1 | K39: 7 | L39: 7 | M39: 5 | N39: L | O39: H | P39: U | Q39: H | R39: U | S39: L | T39: H | U39: 2050 | V39: 12.28811777 | W39: 2.105225994 | X39: 4.161988629 | Y39: 0.5838795896 | Z39: 0.1235846562 | AA39: 0.01684465855 | AB39: 0.0623120753 | AC39: 19.34195337 | AD39: 0.09970770141 | AE39: 0.09970770141 | AF39: 0.09970770141 | AG39: 0.008883283607 | AH39: 0.008883283607 | AI39: 0.008883283607 | AJ39: 454.3301114 | AK39: 454.3301114 | AL39: 454.3301114 | AM39: 23.48936028 | AN39: 23.48936028 | AO39: 23.48936028 | AP39: 0.08263557884 | AQ39: 0.08263557884 | AR39: 0.08263557884 | AS39: 0.07431353882 | AT39: 0.1100133895 | AU39: 0.1843269283 | AV39: 238.949823 | AW39: 36.21493963 | AX39: 90.20860634 | AY39: 33.11391349 | AZ39: 6.149978591 | BA39: 0.8155369062 | BB39: 3.122767785 | BC39: 408.5755657 | BD39: 107.852334 | BE39: 7.002646019 | BF39: 0.4332801552 | BG39: 2.614094436 | BH39: 88.38320913 | BI39: 56.70788157 | BJ39: 414.8167298 | BK39: 347.6167901 | BL39: 17314.71307 | BM39: 21028.74437 | BN39: 16004.97614 | BO39: 18817.46006 | BP39: 24467.70207 | BQ39: 0.3338831176 | BR39: 0.08782448694 | BS39: 0.05154074748 | BT39: 0.005152215976 | BU39: 0.2182665682 | BV39: 0.01374829539 | BW39: 0.2253478724 | BX39: 0.06423669599 | BY39: 0.3227994472 | BZ39: 0.1039428451 | CA39: 0.0518552179 | CB39: 0.003458660805 | CC39: 0.208726138 | CD39: 0.01071849757 | CE39: 0.2421931513 | CF39: 0.05630604222 | CG39: 1804.840253 | CH39: 58.03159532 | CI39: 570.9016332 | CJ39: 1102.937248 | CK39: 1337.729996 | CL39: 285.9180978 | CM39: 20.31069983 | CN39: 317.3268344 | CO39: 5497.996357
B40: 41009 | C40: 10 | D40: 17 | E40: All_In | F40: 3 | G40: L | H40: H | I40: 2 | J40: 2 | K40: 6 | L40: 6 | M40: 6 | N40: L | O40: L | P40: U | Q40: L | R40: U | S40: L | T40: H | U40: 2035 | V40: 13.04006338 | W40: 1.246739615 | X40: 4.08273424 | Y40: 0.438875142 | Z40: 0.1155070123 | AA40: 0.05201338617 | AB40: 0.1873357425 | AC40: 19.16326852 | AD40: 0.09410968263 | AE40: 0.09410968263 | AF40: 0.09410968263 | AG40: 0.01119767412 | AH40: 0.01119767412 | AI40: 0.01119767412 | AJ40: 453.6773779 | AK40: 453.6773779 | AL40: 453.6773779 | AM40: 23.6743214 | AN40: 23.6743214 | AO40: 23.6743214 | AP40: 0.09521352067 | AQ40: 0.09521352067 | AR40: 0.09521352067 | AS40: 0.07652467655 | AT40: 0.1346768976 | AU40: 0.2112015741 | AV40: 231.0699231 | AW40: 19.97276862 | AX40: 74.93287114 | AY40: 22.5585334 | AZ40: 5.15898995 | BA40: 2.2712909 | BB40: 8.663612297 | BC40: 364.6279894 | BD40: 105.7895397 | BE40: 7.607958233 | BF40: 2.341864245 | BG40: 12.10609446 | BH40: 73.61880204 | BI40: 44.93695232 | BJ40: 454.3687904 | BK40: 368.8012253 | BL40: 20439.34767 | BM40: 24747.71455 | BN40: 18929.77052 | BO40: 22557.44832 | BP40: 29157.18549 | BQ40: 0.3953069085 | BR40: 0.03773538235 | BS40: 0.05467765427 | BT40: 0.01880826569 | BU40: 0.2205617237 | BV40: 0.0486956564 | BW40: 0.1620792097 | BX40: 0.06213523505 | BY40: 0.3998472284 | BZ40: 0.06358047943 | CA40: 0.05574946469 | CB40: 0.01077568103 | CC40: 0.201167127 | CD40: 0.03428787809 | CE40: 0.1925285212 | CF40: 0.04206362013 | CG40: 1919.250519 | CH40: 163.733511 | CI40: 290.6790402 | CJ40: 936.7643267 | CK40: 912.4842826 | CL40: 267.1768827 | CM40: 56.6982527 | CN40: 218.0551399 | CO40: 4764.841955
B41: 42033 | C41: 10 | D41: 17 | E41: All_In | F41: 3 | G41: L | H41: H | I41: 2 | J41: 2 | K41: 6 | L41: 6 | M41: 6 | N41: L | O41: L | P41: U | Q41: L | R41: U | S41: L | T41: H | U41: 2050 | V41: 12.19518434 | W41: 0.5474186049 | X41: 4.549416674 | Y41: 0.8494707552 | Z41: 0.1109281428 | AA41: 0.2092071423 | AB41: 0.3914167312 | AC41: 18.85304239 | AD41: 0.1004417296 | AE41: 0.1004417296 | AF41: 0.1004417296 | AG41: 0.01062225837 | AH41: 0.01062225837 | AI41: 0.01062225837 | AJ41: 456.1966217 | AK41: 456.1966217 | AL41: 456.1966217 | AM41: 24.19750681 | AN41: 24.19750681 | AO41: 24.19750681 | AP41: 0.08334084361 | AQ41: 0.08334084361 | AR41: 0.08334084361 | AS41: 0.07830056231 | AT41: 0.1184754519 | AU41: 0.1967760142 | AV41: 237.1426767 | AW41: 9.416913809 | AX41: 98.60587675 | AY41: 48.17654462 | AZ41: 5.520148896 | BA41: 10.12879811 | BB41: 19.61583774 | BC41: 428.6067966 | BD41: 117.9361206 | BE41: 7.713678509 | BF41: 5.601914828 | BG41: 17.62693516 | BH41: 126.7148697 | BI41: 81.85952038 | BJ41: 447.9202487 | BK41: 372.7119335 | BL41: 18671.67598 | BM41: 22404.48104 | BN41: 17302.44252 | BO41: 20701.98124 | BP41: 26635.38451 | BQ41: 0.3833021735 | BR41: 0.01813305546 | BS41: 0.0392620448 | BT41: 0.0581983948 | BU41: 0.2254604294 | BV41: 0.08092835463 | BW41: 0.1069972672 | BX41: 0.08771828031 | BY41: 0.3890341547 | BZ41: 0.02765804285 | CA41: 0.04717068777 | CB41: 0.03860011886 | CC41: 0.2230237447 | CD41: 0.06492112182 | CE41: 0.1344155672 | CF41: 0.07517656202 | CG41: 2166.148129 | CH41: 349.2571407 | CI41: 147.6694973 | CJ41: 1173.041898 | CK41: 730.8085015 | CL41: 255.5543024 | CM41: 227.4575989 | CN41: 423.9290698 | CO41: 5473.866138
B42: 40993 | C42: 10 | D42: 18 | E42: All_In | F42: 3 | G42: L | H42: H | I42: 2 | J42: 2 | K42: 6 | L42: 6 | M42: 2 | N42: L | O42: L | P42: U | Q42: L | R42: U | S42: L | T42: L | U42: 2035 | V42: 12.91864086 | W42: 1.235381323 | X42: 4.041317214 | Y42: 0.5399477297 | Z42: 0.1142953037 | AA42: 0.05135046598 | AB42: 0.185021591 | AC42: 19.08595449 | AD42: 0.09496553217 | AE42: 0.09496553217 | AF42: 0.09496553217 | AG42: 0.01121454788 | AH42: 0.01121454788 | AI42: 0.01121454788 | AJ42: 452.2909367 | AK42: 452.2909367 | AL42: 452.2909367 | AM42: 23.69758017 | AN42: 23.69758017 | AO42: 23.69758017 | AP42: 0.09486656482 | AQ42: 0.09486656482 | AR42: 0.09486656482 | AS42: 0.07594870611 | AT42: 0.1347981576 | AU42: 0.2107468637 | AV42: 228.9183161 | AW42: 19.79080879 | AX42: 74.17271961 | AY42: 23.3114873 | AZ42: 5.104870359 | BA42: 2.242342879 | BB42: 8.556591018 | BC42: 362.097136 | BD42: 104.7115577 | BE42: 7.535360475 | BF42: 2.313039563 | BG42: 11.96345662 | BH42: 92.37907512 | BI42: 55.9614167 | BJ42: 455.0463426 | BK42: 369.3511184 | BL42: 20471.79384 | BM42: 24777.14743 | BN42: 18964.91338 | BO42: 22589.23629 | BP42: 29208.30586 | BQ42: 0.390308448 | BR42: 0.03722846429 | BS42: 0.05394819852 | BT42: 0.01855359859 | BU42: 0.2177039317 | BV42: 0.0480208654 | BW42: 0.159962571 | BX42: 0.07427395826 | BY42: 0.3962056394 | BZ42: 0.06302065373 | CA42: 0.05517835925 | CB42: 0.01063981323 | CC42: 0.1991282469 | CD42: 0.03387162262 | CE42: 0.190742268 | CF42: 0.05121339685 | CG42: 1900.818647 | CH42: 161.7122126 | CI42: 287.9586143 | CJ42: 926.9726038 | CK42: 903.6144801 | CL42: 264.344155 | CM42: 55.97330777 | CN42: 266.2597627 | CO42: 4767.653783
B43: 42017 | C43: 10 | D43: 18 | E43: All_In | F43: 3 | G43: L | H43: H | I43: 2 | J43: 2 | K43: 6 | L43: 6 | M43: 2 | N43: L | O43: L | P43: U | Q43: L | R43: U | S43: L | T43: L | U43: 2050 | V43: 11.98794144 | W43: 0.5382937548 | X43: 4.470275839 | Y43: 1.049559211 | Z43: 0.1089919948 | AA43: 0.20510571 | AB43: 0.3838867883 | AC43: 18.74405474 | AD43: 0.102118196 | AE43: 0.102118196 | AF43: 0.102118196 | AG43: 0.01063445239 | AH43: 0.01063445239 | AI43: 0.01063445239 | AJ43: 454.3609207 | AK43: 454.3609207 | AL43: 454.3609207 | AM43: 24.24026855 | AN43: 24.24026855 | AO43: 24.24026855 | AP43: 0.08292434389 | AQ43: 0.08292434389 | AR43: 0.08292434389 | AS43: 0.07725457265 | AT43: 0.1185388709 | AU43: 0.1957934435 | AV43: 233.1127141 | AW43: 9.259944488 | AX43: 96.89054666 | AY43: 49.43927672 | AZ43: 5.423799807 | BA43: 9.930226587 | BB43: 19.23847488 | BC43: 423.2949832 | BD43: 115.8762819 | BE43: 7.629285233 | BF43: 5.504693624 | BG43: 17.35117435 | BH43: 158.2793547 | BI43: 101.7879282 | BJ43: 448.4102902 | BK43: 373.2763413 | BL43: 18688.31752 | BM43: 22418.89241 | BN43: 17356.21639 | BO43: 20711.60996 | BP43: 26677.5185 | BQ43: 0.3750721655 | BR43: 0.01774278307 | BS43: 0.03840611074 | BT43: 0.05691291548 | BU43: 0.2205772392 | BV43: 0.07912675836 | BW43: 0.1046594065 | BX43: 0.1075026212 | BY43: 0.3824228447 | BZ43: 0.02720796949 | CA43: 0.04636527019 | CB43: 0.03785099994 | CC43: 0.2191533848 | CD43: 0.06369326756 | CE43: 0.1321649029 | CF43: 0.09114136033 | CG43: 2128.302668 | CH43: 342.5193685 | CI43: 145.1843985 | CJ43: 1152.117371 | CK43: 718.1868036 | CL43: 251.0654988 | CM43: 222.9720372 | CN43: 518.8742319 | CO43: 5479.222377
B44: 41003 | C44: 10 | D44: 19 | E44: All_In | F44: 3 | G44: L | H44: H | I44: 2 | J44: 2 | K44: 8 | L44: 8 | M44: 4 | N44: L | O44: H | P44: U | Q44: H | R44: U | S44: H | T44: L | U44: 2035 | V44: 14.01007593 | W44: 1.349760194 | X44: 4.453415387 | Y44: 0.119352685 | Z44: 0.07746139556 | AA44: 0.008366238304 | AB44: 0.02829567215 | AC44: 20.0467275 | AD44: 0.0877891948 | AE44: 0.0877891948 | AF44: 0.0877891948 | AG44: 0.01104691556 | AH44: 0.01104691556 | AI44: 0.01104691556 | AJ44: 464.6648492 | AK44: 464.6648492 | AL44: 464.6648492 | AM44: 23.17908742 | AN44: 23.17908742 | AO44: 23.17908742 | AP44: 0.09747233042 | AQ44: 0.09747233042 | AR44: 0.09747233042 | AS44: 0.07591636809 | AT44: 0.1330988792 | AU44: 0.2090152473 | AV44: 248.2585454 | AW44: 21.6231583 | AX44: 81.73620464 | AY44: 5.152885081 | AZ44: 3.459725547 | BA44: 0.3653321255 | BB44: 1.308574274 | BC44: 361.9044254 | BD44: 115.4374463 | BE44: 4.901116396 | BF44: 0.3534279414 | BG44: 1.729631134 | BH44: 19.31671215 | BI44: 11.96707231 | BJ44: 449.4536687 | BK44: 364.6562159 | BL44: 20120.3672 | BM44: 24488.4033 | BN44: 18802.23631 | BO44: 22265.85938 | BP44: 28966.37935 | BQ44: 0.4405369826 | BR44: 0.0428823293 | BS44: 0.04088298641 | BT44: 0.003394683388 | BU44: 0.2474034881 | BV44: 0.007845855399 | BW44: 0.1988004546 | BX44: 0.01825325585 | BY44: 0.4323139859 | BZ44: 0.06874406011 | CA44: 0.03708306068 | CB44: 0.001747059455 | CC44: 0.2198684973 | CD44: 0.005034729323 | CE44: 0.2238454829 | CF44: 0.01136312435 | CG44: 2083.391499 | CH44: 24.33322508 | CI44: 316.0496857 | CJ44: 1026.669037 | CK44: 1067.204647 | CL44: 180.2312342 | CM44: 9.358540814 | CN44: 59.90832718 | CO44: 4767.146196
B45: 42027 | C45: 10 | D45: 19 | E45: All_In | F45: 3 | G45: L | H45: H | I45: 2 | J45: 2 | K45: 8 | L45: 8 | M45: 4 | N45: L | O45: H | P45: U | Q45: H | R45: U | S45: H | T45: L | U45: 2050 | V45: 13.87018465 | W45: 0.6354380177 | X45: 5.234476199 | Y45: 0.2973956706 | Z45: 0.09313882815 | AA45: 0.04811216319 | AB45: 0.07603829861 | AC45: 20.25478383 | AD45: 0.08867566088 | AE45: 0.08867566088 | AF45: 0.08867566088 | AG45: 0.01050605357 | AH45: 0.01050605357 | AI45: 0.01050605357 | AJ45: 469.1393818 | AK45: 469.1393818 | AL45: 469.1393818 | AM45: 23.16190515 | AN45: 23.16190515 | AO45: 23.16190515 | AP45: 0.08562370779 | AQ45: 0.08562370779 | AR45: 0.08562370779 | AS45: 0.07645128636 | AT45: 0.1177791328 | AU45: 0.1942304191 | AV45: 269.7140626 | AW45: 10.93105896 | AX45: 113.4541309 | AY45: 14.00876359 | AZ45: 4.634894143 | BA45: 2.329358271 | BB45: 3.810657054 | BC45: 418.8829256 | BD45: 135.766513 | BE45: 5.511852223 | BF45: 1.15932174 | BG45: 2.985166091 | BH45: 42.34029572 | BI45: 27.97748266 | BJ45: 446.9549356 | BK45: 370.8744923 | BL45: 18487.67876 | BM45: 22494.17984 | BN45: 17129.4676 | BO45: 20701.18421 | BP45: 26596.99654 | BQ45: 0.4535431005 | BR45: 0.0219793931 | BS45: 0.03698001378 | BT45: 0.01475575205 | BU45: 0.26868867 | BV45: 0.01638161303 | BW45: 0.1539060242 | BX45: 0.03376543336 | BY45: 0.4468413784 | BZ45: 0.03215621759 | CA45: 0.03937611288 | CB45: 0.009000748156 | CC45: 0.258120959 | CD45: 0.01207688787 | CE45: 0.1764503839 | CF45: 0.02597731222 | CG45: 2493.984635 | CH45: 65.35403688 | CI45: 172.3802926 | CJ45: 1361.125788 | CK45: 967.4128216 | CL45: 215.854857 | CM45: 53.40611133 | CN45: 149.5642246 | CO45: 5479.082766
B46: 40969 | C46: 10 | D46: 20 | E46: All_In | F46: 3 | G46: L | H46: H | I46: 2 | J46: 2 | K46: 2 | L46: 2 | M46: 4 | N46: L | O46: L | P46: R | Q46: L | R46: R | S46: H | T46: L | U46: 2035 | V46: 13.45650873 | W46: 1.284035427 | X46: 4.226568387 | Y46: 0.1108561049 | Z46: 0.1222573202 | AA46: 0.05387372191 | AB46: 0.1965467827 | AC46: 19.45064647 | AD46: 0.09128802693 | AE46: 0.09128802693 | AF46: 0.09128802693 | AG46: 0.01114262322 | AH46: 0.01114262322 | AI46: 0.01114262322 | AJ46: 459.1547789 | AK46: 459.1547789 | AL46: 459.1547789 | AM46: 23.60614489 | AN46: 23.60614489 | AO46: 23.60614489 | AP46: 0.09641612148 | AQ46: 0.09641612148 | AR46: 0.09641612148 | AS46: 0.07519767249 | AT46: 0.1343949087 | AU46: 0.2095925812 | AV46: 238.4493347 | AW46: 20.57024755 | AX46: 77.57274555 | AY46: 4.786057131 | AZ46: 5.274169055 | BA46: 2.371473506 | BB46: 9.083829976 | BC46: 358.1078575 | BD46: 109.5331842 | BE46: 6.557480676 | BF46: 2.671750326 | BG46: 12.59476747 | BH46: 17.97862625 | BI46: 11.12752665 | BJ46: 453.5590389 | BK46: 367.8265045 | BL46: 20382.75217 | BM46: 24735.45628 | BN46: 18860.24902 | BO46: 22560.41195 | BP46: 29058.97653 | BQ46: 0.4131565193 | BR46: 0.03969044921 | BS46: 0.05927385312 | BT46: 0.0195135463 | BU46: 0.2310259427 | BV46: 0.05134235211 | BW46: 0.1691872679 | BX46: 0.01681010499 | BY46: 0.412034201 | BZ46: 0.06536995475 | CA46: 0.05879455188 | CB46: 0.01116067203 | CC46: 0.2081825151 | CD46: 0.03588938744 | CE46: 0.1980355163 | CF46: 0.01053320155 | CG46: 1982.052386 | CH46: 171.7802505 | CI46: 299.7278085 | CJ46: 971.0263612 | CK46: 940.4950624 | CL46: 282.832509 | CM46: 58.77929671 | CN46: 55.52629344 | CO46: 4762.219968
B47: 41993 | C47: 10 | D47: 20 | E47: All_In | F47: 3 | G47: L | H47: H | I47: 2 | J47: 2 | K47: 2 | L47: 2 | M47: 4 | N47: L | O47: L | P47: R | Q47: L | R47: R | S47: H | T47: L | U47: 2050 | V47: 12.84435351 | W47: 0.5785741125 | X47: 4.793727444 | Y47: 0.2661411342 | Z47: 0.1241898302 | AA47: 0.2199566405 | AB47: 0.4164037331 | AC47: 19.24334641 | AD47: 0.09552919029 | AE47: 0.09552919029 | AF47: 0.09552919029 | AG47: 0.01058083354 | AH47: 0.01058083354 | AI47: 0.01058083354 | AJ47: 463.5614588 | AK47: 463.5614588 | AL47: 463.5614588 | AM47: 24.08944105 | AN47: 24.08944105 | AO47: 24.08944105 | AP47: 0.08472128727 | AQ47: 0.08472128727 | AR47: 0.08472128727 | AS47: 0.07557816345 | AT47: 0.1187077501 | AU47: 0.1942859136 | AV47: 249.7661606 | AW47: 9.952863313 | AX47: 103.9011661 | AY47: 12.5365249 | AZ47: 5.910761318 | BA47: 10.61055921 | BB47: 20.85585705 | BC47: 413.5338925 | BD47: 124.2949212 | BE47: 6.720327186 | BF47: 6.105185988 | BG47: 18.47587282 | BH47: 38.05927047 | BI47: 25.09144122 | BJ47: 449.3315678 | BK47: 373.2884912 | BL47: 18714.41314 | BM47: 22517.54603 | BN47: 17228.65082 | BO47: 20850.50865 | BP47: 26672.90514 | BQ47: 0.4060589135 | BR47: 0.01931633799 | BS47: 0.04521874666 | BT47: 0.06154995617 | BU47: 0.2392834774 | BV47: 0.08635763967 | BW47: 0.1126498064 | BX47: 0.02956512226 | BY47: 0.4094007747 | BZ47: 0.02922090483 | CA47: 0.05261287299 | CB47: 0.04059236962 | CC47: 0.2352169176 | CD47: 0.0689666139 | CE47: 0.1407966553 | CF47: 0.02319289097 | CG47: 2281.10487 | CH47: 371.5643086 | CI47: 156.1684103 | CJ47: 1238.054982 | CK47: 765.9115836 | CL47: 286.0858274 | CM47: 239.396661 | CN47: 133.3188268 | CO47: 5471.60547
B48: 40963 | C48: 10 | D48: 21 | E48: All_In | F48: 3 | G48: L | H48: H | I48: 2 | J48: 2 | K48: 4 | L48: 4 | M48: 2 | N48: L | O48: H | P48: R | Q48: H | R48: R | S48: L | T48: L | U48: 2035 | V48: 13.40445967 | W48: 1.293678337 | X48: 4.239157492 | Y48: 0.5738311105 | Z48: 0.07492788022 | AA48: 0.0074393444 | AB48: 0.02651495665 | AC48: 19.6200088 | AD48: 0.09163140209 | AE48: 0.09163140209 | AF48: 0.09163140209 | AG48: 0.01112847765 | AH48: 0.01112847765 | AI48: 0.01112847765 | AJ48: 457.0528865 | AK48: 457.0528865 | AL48: 457.0528865 | AM48: 23.29524371 | AN48: 23.29524371 | AO48: 23.29524371 | AP48: 0.09575726378 | AQ48: 0.09575726378 | AR48: 0.09575726378 | AS48: 0.07660013315 | AT48: 0.1336065776 | AU48: 0.2102067108 | AV48: 237.5270254 | AW48: 20.72472695 | AX48: 77.80380094 | AY48: 24.77435483 | AZ48: 3.23238156 | BA48: 0.3274733493 | BB48: 1.225445437 | BC48: 365.6152085 | BD48: 109.8608472 | BE48: 3.889969186 | BF48: 0.3451479273 | BG48: 1.616932509 | BH48: 97.9164945 | BI48: 59.37988501 | BJ48: 451.4186017 | BK48: 366.4994435 | BL48: 20239.25979 | BM48: 24557.24458 | BN48: 18916.33825 | BO48: 22325.01889 | BP48: 29132.50969 | BQ48: 0.4135968975 | BR48: 0.03993937059 | BS48: 0.03930578846 | BT48: 0.003114598373 | BU48: 0.2316301473 | BV48: 0.007283189506 | BW48: 0.185459801 | BX48: 0.07967024289 | BY48: 0.4140334445 | BZ48: 0.06602975156 | CA48: 0.03585415506 | CB48: 0.001542037936 | CC48: 0.209361323 | CD48: 0.004711407745 | CE48: 0.2139284867 | CF48: 0.05453939349 | CG48: 1989.469759 | CH48: 22.80512209 | CI48: 302.4188333 | CJ48: 975.491111 | CK48: 1016.760799 | CL48: 174.1871438 | CM48: 8.282604344 | CN48: 283.620828 | CO48: 4773.036201
B49: 41987 | C49: 10 | D49: 21 | E49: All_In | F49: 3 | G49: L | H49: H | I49: 2 | J49: 2 | K49: 4 | L49: 4 | M49: 2 | N49: L | O49: H | P49: R | Q49: H | R49: R | S49: L | T49: L | U49: 2050 | V49: 12.84027748 | W49: 0.5850857586 | X49: 4.829975913 | Y49: 1.149897781 | Z49: 0.09064676942 | AA49: 0.04345444575 | AB49: 0.0694082459 | AC49: 19.60874639 | AD49: 0.09555853577 | AE49: 0.09555853577 | AF49: 0.09555853577 | AG49: 0.01057221635 | AH49: 0.01057221635 | AI49: 0.01057221635 | AJ49: 458.5852754 | AK49: 458.5852754 | AL49: 458.5852754 | AM49: 23.38677171 | AN49: 23.38677171 | AO49: 23.38677171 | AP49: 0.08356954659 | AQ49: 0.08356954659 | AR49: 0.08356954659 | AS49: 0.07808539752 | AT49: 0.1177154929 | AU49: 0.1958008904 | AV49: 249.6868997 | AW49: 10.06487925 | AX49: 104.6868299 | AY49: 54.16570499 | AZ49: 4.314293831 | BA49: 2.096213001 | BB49: 3.476358013 | BC49: 428.4911787 | BD49: 125.2383785 | BE49: 4.251615637 | BF49: 1.073361919 | BG49: 2.737144012 | BH49: 172.41041 | BI49: 111.1823402 | BJ49: 446.413466 | BK49: 371.2414302 | BL49: 18495.22398 | BM49: 22396.79478 | BN49: 17278.56471 | BO49: 20575.46727 | BP49: 26629.3772 | BQ49: 0.4130944567 | BR49: 0.01988218429 | BS49: 0.0361770645 | BT49: 0.01326108684 | BU49: 0.2441368006 | BV49: 0.01478956934 | BW49: 0.1384177017 | BX49: 0.120241136 | BY49: 0.4130743832 | BZ49: 0.02963301115 | CA49: 0.03821308521 | CB49: 0.008121746098 | CC49: 0.2379036849 | CD49: 0.01101087759 | CE49: 0.1618868966 | CF49: 0.1001563152 | CG49: 2302.06656 | CH49: 59.65611909 | CI49: 158.5303206 | CJ49: 1252.571165 | CK49: 885.6983547 | CL49: 209.7750333 | CM49: 48.20884771 | CN49: 570.9623498 | CO49: 5487.46875
B50: 40971 | C50: 10 | D50: 22 | E50: All_In | F50: 3 | G50: L | H50: H | I50: 2 | J50: 2 | K50: 4 | L50: 4 | M50: 4 | N50: L | O50: H | P50: R | Q50: H | R50: R | S50: H | T50: L | U50: 2035 | V50: 14.00802379 | W50: 1.349296806 | X50: 4.451412847 | Y50: 0.1192744905 | Z50: 0.07912616495 | AA50: 0.0082700098 | AB50: 0.02836224494 | AC50: 20.04376635 | AD50: 0.08780167004 | AE50: 0.08780167004 | AF50: 0.08780167004 | AG50: 0.01104758459 | AH50: 0.01104758459 | AI50: 0.01104758459 | AJ50: 464.6528137 | AK50: 464.6528137 | AL50: 464.6528137 | AM50: 23.1819113 | AN50: 23.1819113 | AO50: 23.1819113 | AP50: 0.09746692543 | AQ50: 0.09746692543 | AR50: 0.09746692543 | AS50: 0.07588702468 | AT50: 0.1331093783 | AU50: 0.2089964029 | AV50: 248.2221815 | AW50: 21.61573483 | AX50: 81.69945083 | AY50: 5.149509145 | AZ50: 3.41349516 | BA50: 0.3640385042 | BB50: 1.310821817 | BC50: 361.7752318 | BD50: 115.3853252 | BE50: 4.081074408 | BF50: 0.3845160807 | BG50: 1.724730112 | BH50: 19.30500648 | BI50: 11.95954658 | BJ50: 449.5244677 | BK50: 364.6957576 | BL50: 20123.54716 | BM50: 24491.80082 | BN50: 18805.1053 | BO50: 22270.01321 | BP50: 28971.18427 | BQ50: 0.4402441941 | BR50: 0.04284973741 | BS50: 0.04215149343 | BT50: 0.003349797537 | BU50: 0.2472320344 | BV50: 0.007842882705 | BW50: 0.1980904892 | BX50: 0.01823940686 | BY50: 0.432150625 | BZ50: 0.06872259992 | CA50: 0.03779695042 | CB50: 0.001727440822 | CC50: 0.2197742091 | CD50: 0.005033615161 | CE50: 0.2234386336 | CF50: 0.01135592605 | CG50: 2082.526807 | CH50: 24.39081398 | CI50: 315.9373196 | CJ50: 1026.195972 | CK50: 1065.060007 | CL50: 184.0476895 | CM50: 9.259140001 | CN50: 59.86932454 | CO50: 4767.287073
B51: 41995 | C51: 10 | D51: 22 | E51: All_In | F51: 3 | G51: L | H51: H | I51: 2 | J51: 2 | K51: 4 | L51: 4 | M51: 4 | N51: L | O51: H | P51: R | Q51: H | R51: R | S51: H | T51: L | U51: 2050 | V51: 13.86405398 | W51: 0.6346242081 | X51: 5.227874773 | Y51: 0.2969479213 | Z51: 0.09865399268 | AA51: 0.0477121232 | AB51: 0.07612805345 | AC51: 20.24599506 | AD51: 0.08871369739 | AE51: 0.08871369739 | AF51: 0.08871369739 | AG51: 0.01050711633 | AH51: 0.01050711633 | AI51: 0.01050711633 | AJ51: 469.1201124 | AK51: 469.1201124 | AL51: 469.1201124 | AM51: 23.17100795 | AN51: 23.17100795 | AO51: 23.17100795 | AP51: 0.08561615003 | AQ51: 0.08561615003 | AR51: 0.08561615003 | AS51: 0.07639979329 | AT51: 0.1178133738 | AU51: 0.1942131671 | AV51: 269.5948482 | AW51: 10.91705948 | AX51: 113.311049 | AY51: 13.98767244 | AZ51: 4.695394163 | BA51: 2.301600474 | BB51: 3.81292403 | BC51: 418.6205477 | BD51: 135.5946943 | BE51: 4.522629661 | BF51: 1.179254821 | BG51: 2.967914416 | BH51: 42.28080116 | BI51: 27.93672493 | BJ51: 447.1355766 | BK51: 370.9998232 | BL51: 18495.09152 | BM51: 22502.3236 | BN51: 17135.85117 | BO51: 20711.04911 | BP51: 26608.53165 | BQ51: 0.4528189424 | BR51: 0.02193771994 | BS51: 0.03991157279 | BT51: 0.01464631889 | BU51: 0.2682415661 | BV51: 0.01635782947 | BW51: 0.1523820892 | BX51: 0.03370396117 | BY51: 0.4463138342 | BZ51: 0.03211683803 | CA51: 0.04156227494 | CB51: 0.008919921551 | CC51: 0.2578007983 | CD51: 0.01206359614 | CE51: 0.1752830881 | CF51: 0.02593964876 | CG51: 2490.917004 | CH51: 65.43233131 | CI51: 172.1563128 | CJ51: 1359.365889 | CK51: 960.6587721 | CL51: 228.5041704 | CM51: 52.96672588 | CN51: 149.3401604 | CO51: 5479.341366
B52: 41011 | C52: 10 | D52: 23 | E52: All_In | F52: 3 | G52: L | H52: H | I52: 2 | J52: 2 | K52: 8 | L52: 8 | M52: 6 | N52: L | O52: H | P52: U | Q52: H | R52: U | S52: L | T52: H | U52: 2035 | V52: 13.54066382 | W52: 1.306786123 | X52: 4.287362561 | Y52: 0.4675940108 | Z52: 0.07423076653 | AA52: 0.007633171209 | AB52: 0.02680994763 | AC52: 19.7110804 | AD52: 0.09073825507 | AE52: 0.09073825507 | AF52: 0.09073825507 | AG52: 0.0111093068 | AH52: 0.0111093068 | AI52: 0.0111093068 | AJ52: 458.5843971 | AK52: 458.5843971 | AL52: 458.5843971 | AM52: 23.26531006 | AN52: 23.26531006 | AO52: 23.26531006 | AP52: 0.09613969 | AQ52: 0.09613969 | AR52: 0.09613969 | AS52: 0.07725129674 | AT52: 0.1334534265 | AU52: 0.2107047232 | AV52: 239.9405629 | AW52: 20.93471369 | AX52: 78.68853749 | AY52: 24.03470623 | AZ52: 3.315433158 | BA52: 0.3333209695 | BB52: 1.239864795 | BC52: 368.4871393 | BD52: 111.115505 | BE52: 4.719737214 | BF52: 0.3217097321 | BG52: 1.642659362 | BH52: 78.25189551 | BI52: 47.81256696 | BJ52: 450.5785616 | BK52: 365.8449272 | BL52: 20197.64691 | BM52: 24518.5222 | BN52: 18877.75752 | BO52: 22282.48023 | BP52: 29074.88244 | BQ52: 0.4195414022 | BR52: 0.04055400009 | BS52: 0.03867769152 | BT52: 0.003202863337 | BU52: 0.2350487256 | BV52: 0.007394384812 | BW52: 0.1887652415 | BX52: 0.06681572661 | BY52: 0.4182565296 | BZ52: 0.06667597588 | CA52: 0.03559097375 | CB52: 0.00158132916 | CC52: 0.2117400377 | CD52: 0.004775036975 | CE52: 0.2164684034 | CF52: 0.04491171359 | CG52: 2010.897981 | CH52: 23.05787204 | CI52: 305.5741659 | CJ52: 986.9430779 | CK52: 1029.519971 | CL52: 172.6380016 | CM52: 8.489923519 | CN52: 232.8589913 | CO52: 4769.979985
B53: 42035 | C53: 10 | D53: 23 | E53: All_In | F53: 3 | G53: L | H53: H | I53: 2 | J53: 2 | K53: 8 | L53: 8 | M53: 6 | N53: L | O53: H | P53: U | Q53: H | R53: U | S53: L | T53: H | U53: 2050 | V53: 13.08908451 | W53: 0.5967039817 | X53: 4.929921958 | Y53: 0.9346023915 | Z53: 0.08729305466 | AA53: 0.04479847459 | AB53: 0.07082134019 | AC53: 19.75322571 | AD53: 0.09379967544 | AE53: 0.09379967544 | AF53: 0.09379967544 | AG53: 0.01055687617 | AH53: 0.01055687617 | AI53: 0.01055687617 | AJ53: 460.6738071 | AK53: 460.6738071 | AL53: 460.6738071 | AM53: 23.32144702 | AN53: 23.32144702 | AO53: 23.32144702 | AP53: 0.0840413131 | AQ53: 0.0840413131 | AR53: 0.0840413131 | AS53: 0.07930465382 | AT53: 0.1175976485 | AU53: 0.1969023024 | AV53: 254.5251018 | AW53: 10.26474058 | AX53: 106.8531005 | AY53: 53.00466619 | AZ53: 4.343989245 | BA53: 2.168925494 | BB53: 3.549209339 | BC53: 434.7097332 | BD53: 127.839725 | BE53: 5.232121906 | BF53: 1.076722686 | BG53: 2.802274701 | BH53: 138.6429659 | BI53: 89.80801984 | BJ53: 445.658856 | BK53: 370.4674704 | BL53: 18463.28838 | BM53: 22371.85858 | BN53: 17216.50257 | BO53: 20551.58251 | BP53: 26573.73647 | BQ53: 0.4238527244 | BR53: 0.02040886451 | BS53: 0.03435112206 | BT53: 0.01369253601 | BU53: 0.2505721411 | BV53: 0.01517853446 | BW53: 0.1432902657 | BX53: 0.0986538117 | BY53: 0.4214236067 | BZ53: 0.03020782385 | CA53: 0.03691487895 | CB53: 0.008376352983 | CC53: 0.2428298184 | CD53: 0.01125591325 | CE53: 0.1660441407 | CF53: 0.08294746523 | CG53: 2349.98933 | CH53: 60.86936226 | CI53: 161.7221655 | CJ53: 1279.283106 | CK53: 909.3291091 | CL53: 202.1650772 | CM53: 49.69884946 | CN53: 468.4590554 | CO53: 5481.516055
B54: 40979 | C54: 10 | D54: 24 | E54: All_In | F54: 3 | G54: L | H54: H | I54: 2 | J54: 2 | K54: 4 | L54: 4 | M54: 6 | N54: L | O54: H | P54: R | Q54: H | R54: R | S54: L | T54: H | U54: 2035 | V54: 13.53895407 | W54: 1.306367048 | X54: 4.285547677 | Y54: 0.467327079 | Z54: 0.0758170606 | AA54: 0.00754717619 | AB54: 0.02687432897 | AC54: 19.70843444 | AD54: 0.0907493587 | AE54: 0.0907493587 | AF54: 0.0907493587 | AG54: 0.0111099187 | AH54: 0.0111099187 | AI54: 0.0111099187 | AJ54: 458.576153 | AK54: 458.576153 | AL54: 458.576153 | AM54: 23.26801525 | AN54: 23.26801525 | AO54: 23.26801525 | AP54: 0.09613527722 | AQ54: 0.09613527722 | AR54: 0.09613527722 | AS54: 0.0772223805 | AT54: 0.1334633032 | AU54: 0.2106856837 | AV54: 239.9102661 | AW54: 20.92800011 | AX54: 78.65522784 | AY54: 24.02098572 | AZ54: 3.270740716 | BA54: 0.3322200091 | BB54: 1.242054597 | BC54: 368.3594951 | BD54: 111.0682681 | BE54: 3.93214246 | BF54: 0.3500293943 | BG54: 1.638093567 | BH54: 78.21144711 | BI54: 47.78672077 | BJ54: 450.6451226 | BK54: 365.8822194 | BL54: 20200.61574 | BM54: 24521.69979 | BN54: 18880.55815 | BO54: 22286.37809 | BP54: 29079.39278 | BQ54: 0.4192776519 | BR54: 0.04052490151 | BS54: 0.0398818796 | BT54: 0.003160637233 | BU54: 0.2348947534 | BV54: 0.007391914117 | BW54: 0.1880989673 | BX54: 0.06676933058 | BY54: 0.4181079473 | BZ54: 0.06665655784 | CA54: 0.0362707386 | CB54: 0.001564070307 | CC54: 0.2116546414 | CD54: 0.004774165787 | CE54: 0.2160848732 | CF54: 0.04488700553 | CG54: 2010.112162 | CH54: 23.11355559 | CI54: 305.472642 | CJ54: 986.514982 | CK54: 1027.499171 | CL54: 176.2715823 | CM54: 8.402314852 | CN54: 232.7267713 | CO54: 4770.113181
B55: 42003 | C55: 10 | D55: 24 | E55: All_In | F55: 3 | G55: L | H55: H | I55: 2 | J55: 2 | K55: 4 | L55: 4 | M55: 6 | N55: L | O55: H | P55: R | Q55: H | R55: R | S55: L | T55: H | U55: 2050 | V55: 13.08430428 | W55: 0.5959917313 | X55: 4.924132094 | Y55: 0.9333654944 | Z55: 0.09246763815 | AA55: 0.04443074945 | AB55: 0.07091278432 | AC55: 19.74560477 | AD55: 0.09383285749 | AE55: 0.09383285749 | AF55: 0.09383285749 | AG55: 0.01055781531 | AH55: 0.01055781531 | AI55: 0.01055781531 | AJ55: 460.6659707 | AK55: 460.6659707 | AL55: 460.6659707 | AM55: 23.33005121 | AN55: 23.33005121 | AO55: 23.33005121 | AP55: 0.08403622889 | AQ55: 0.08403622889 | AR55: 0.08403622889 | AS55: 0.07925249968 | AT55: 0.1176300734 | AU55: 0.1968825731 | AV55: 254.4321473 | AW55: 10.25248816 | AX55: 106.7276087 | AY55: 52.9345173 | AZ55: 4.400957292 | BA55: 2.143309229 | BB55: 3.551713818 | BC55: 434.4427418 | BD55: 127.6890293 | BE55: 4.312268543 | BF55: 1.094922165 | BG55: 2.786457748 | BH55: 138.4770867 | BI55: 89.69495009 | BJ55: 445.8297537 | BK55: 370.5857339 | BL55: 18470.16621 | BM55: 22379.62125 | BN55: 17222.64655 | BO55: 20561.03523 | BP55: 26584.55181 | BQ55: 0.423225066 | BR55: 0.02037294916 | BS55: 0.03708280627 | BT55: 0.01359278797 | BU55: 0.2501854163 | BV55: 0.01515854928 | BW55: 0.1418897789 | BX55: 0.09849264614 | BY55: 0.4209602328 | BZ55: 0.03017334098 | CA55: 0.03896527474 | CB55: 0.008302030788 | CC55: 0.2425493808 | CD55: 0.01124472235 | CE55: 0.1649632834 | CF55: 0.08284173422 | CG55: 2347.298307 | CH55: 60.94897235 | CI55: 161.5263875 | CJ55: 1277.743623 | CK55: 903.0798847 | CL55: 214.0212071 | CM55: 49.29532577 | CN55: 467.8407311 | CO55: 5481.754438
B56: 40961 | C56: 10 | D56: 25 | E56: All_In | F56: 3 | G56: L | H56: H | I56: 2 | J56: 2 | K56: 2 | L56: 2 | M56: 2 | N56: L | O56: L | P56: R | Q56: L | R56: R | S56: L | T56: L | U56: 2035 | V56: 12.9170949 | W56: 1.234845545 | X56: 4.038905158 | Y56: 0.539544141 | Z56: 0.1165579787 | AA56: 0.0506961713 | AB56: 0.1852061058 | AC56: 19.08285 | AD56: 0.09497652925 | AE56: 0.09497652925 | AF56: 0.09497652925 | AG56: 0.01121534508 | AH56: 0.01121534508 | AI56: 0.01121534508 | AJ56: 452.2810468 | AK56: 452.2810468 | AL56: 452.2810468 | AM56: 23.70091714 | AN56: 23.70091714 | AO56: 23.70091714 | AP56: 0.09485946953 | AQ56: 0.09485946953 | AR56: 0.09485946953 | AS56: 0.0759065398 | AT56: 0.1348019036 | AU56: 0.2107084434 | AV56: 228.8909217 | AW56: 19.78222563 | AX56: 74.1284497 | AY56: 23.29406292 | AZ56: 5.028300013 | BA56: 2.231600544 | BB56: 8.559696333 | BC56: 361.9152568 | BD56: 104.6487779 | BE56: 6.293867285 | BF56: 2.520950929 | BG56: 11.91615194 | BH56: 92.31725655 | BI56: 55.92212106 | BJ56: 455.1001321 | BK56: 369.3809329 | BL56: 20474.40239 | BM56: 24779.07537 | BN56: 18969.25418 | BO56: 22591.60094 | BP56: 29212.08432 | BQ56: 0.3899681537 | BR56: 0.0371946128 | BS56: 0.05563078968 | BT56: 0.01827856797 | BU56: 0.2175120582 | BV56: 0.04799865159 | BW56: 0.1592094635 | BX56: 0.07420773822 | BY56: 0.3960032451 | BZ56: 0.06299600376 | CA56: 0.0561534172 | CB56: 0.01050863595 | CC56: 0.1990165676 | CD56: 0.03386411114 | CE56: 0.1902812154 | CF56: 0.05117680386 | CG56: 1899.750529 | CH56: 161.8746823 | CI56: 287.8305098 | CJ56: 926.4135747 | CK56: 901.1917167 | CL56: 269.487186 | CM56: 55.29514559 | CN56: 266.0627918 | CO56: 4767.906136
B57: 41985 | C57: 10 | D57: 25 | E57: All_In | F57: 3 | G57: L | H57: H | I57: 2 | J57: 2 | K57: 2 | L57: 2 | M57: 2 | N57: L | O57: L | P57: R | Q57: L | R57: R | S57: L | T57: L | U57: 2050 | V57: 11.98542723 | W57: 0.5375294004 | X57: 4.463719669 | Y57: 1.047902717 | Z57: 0.1152749295 | AA57: 0.2029848266 | AB57: 0.3837973672 | AC57: 18.73663614 | AD57: 0.102138878 | AE57: 0.102138878 | AF57: 0.102138878 | AG57: 0.0106354751 | AH57: 0.0106354751 | AI57: 0.0106354751 | AJ57: 454.3343978 | AK57: 454.3343978 | AL57: 454.3343978 | AM57: 24.2484507 | AN57: 24.2484507 | AO57: 24.2484507 | AP57: 0.08291360476 | AQ57: 0.08291360476 | AR57: 0.08291360476 | AS57: 0.07718089462 | AT57: 0.1185641519 | AU57: 0.1957450465 | AV57: 233.0638238 | AW57: 9.246795758 | AX57: 96.74844558 | AY57: 49.36124792 | AZ57: 5.48646047 | BA57: 9.79185041 | BB57: 19.2227456 | BC57: 422.9213695 | BD57: 115.7056411 | BE57: 6.400973204 | BF57: 5.676269284 | BG57: 17.2420585 | BH57: 158.055517 | BI57: 101.6359659 | BJ57: 448.5615338 | BK57: 373.3825113 | BL57: 18694.42531 | BM57: 22424.97162 | BN57: 17364.87992 | BO57: 20718.64592 | BP57: 26687.54921 | BQ57: 0.3743950838 | BR57: 0.01770734877 | BS57: 0.04148492491 | BT57: 0.0564454429 | BU57: 0.220170152 | BV57: 0.07901150926 | BW57: 0.1034862267 | BX57: 0.1072993117 | BY57: 0.3818915434 | BZ57: 0.02717117988 | CA57: 0.04886516023 | CB57: 0.03746199688 | CC57: 0.2188410946 | CD57: 0.06362279791 | CE57: 0.1311428968 | CF57: 0.09100333029 | CG57: 2125.232326 | CH57: 342.4457394 | CI57: 144.9772653 | CJ57: 1150.411562 | CK57: 712.3459372 | CL57: 265.3552463 | CM57: 220.7816725 | CN57: 518.0624227 | CO57: 5479.612171
B58: 40995 | C58: 10 | D58: 26 | E58: All_In | F58: 3 | G58: L | H58: H | I58: 2 | J58: 2 | K58: 8 | L58: 8 | M58: 2 | N58: L | O58: H | P58: U | Q58: H | R58: U | S58: L | T58: L | U58: 2035 | V58: 13.40608151 | W58: 1.294086541 | X58: 4.240924028 | Y58: 0.5741479864 | Z58: 0.07336213639 | AA58: 0.007523986887 | AB58: 0.02645118359 | AC58: 19.62257737 | AD58: 0.09162066364 | AE58: 0.09162066364 | AF58: 0.09162066364 | AG58: 0.01112787963 | AH58: 0.01112787963 | AI58: 0.01112787963 | AJ58: 457.060305 | AK58: 457.060305 | AL58: 457.060305 | AM58: 23.29257245 | AN58: 23.29257245 | AO58: 23.29257245 | AP58: 0.09576142559 | AQ58: 0.09576142559 | AR58: 0.09576142559 | AS58: 0.07662831298 | AT58: 0.1335969108 | AU58: 0.2102252238 | AV58: 237.5557643 | AW58: 20.73126638 | AX58: 77.83622325 | AY58: 24.78803551 | AZ58: 3.276636776 | BA58: 0.3285531707 | BB58: 1.223273234 | BC58: 365.7397526 | BD58: 109.9068257 | BE58: 4.668667113 | BF58: 0.3172104758 | BG58: 1.621422569 | BH58: 97.96458923 | BI58: 59.4105955 | BJ58: 451.3534704 | BK58: 366.4629472 | BL58: 20236.3621 | BM58: 24554.13695 | BN58: 18913.56831 | BO58: 22321.21428 | BP58: 29128.09395 | BQ58: 0.4138532506 | BR58: 0.03996762696 | BS58: 0.03811839347 | BT58: 0.003156174159 | BU58: 0.2317797465 | BV58: 0.007285546527 | BW58: 0.1861148024 | BX58: 0.07972449501 | BY58: 0.4141781209 | BZ58: 0.06604866885 | CA58: 0.03518325307 | CB58: 0.001559029276 | CC58: 0.2094444288 | CD58: 0.004712223551 | CE58: 0.2143059643 | CF58: 0.05456831128 | CG58: 1990.234738 | CH58: 22.74996721 | CI58: 302.5177031 | CJ58: 975.9076171 | CK58: 1018.749416 | CL58: 170.6012851 | CM58: 8.368834191 | CN58: 283.776672 | CO58: 4772.906233
B59: 42019 | C59: 10 | D59: 26 | E59: All_In | F59: 3 | G59: L | H59: H | I59: 2 | J59: 2 | K59: 8 | L59: 8 | M59: 2 | N59: L | O59: H | P59: U | Q59: H | R59: U | S59: L | T59: L | U59: 2050 | V59: 12.84466256 | W59: 0.5857698693 | X59: 4.835525986 | Y59: 1.151380223 | Z59: 0.08557800672 | AA59: 0.04381294277 | AB59: 0.06931649734 | AC59: 19.61604609 | AD59: 0.09552696601 | AE59: 0.09552696601 | AF59: 0.09552696601 | AG59: 0.01057131184 | AH59: 0.01057131184 | AI59: 0.01057131184 | AJ59: 458.5905537 | AK59: 458.5905537 | AL59: 458.5905537 | AM59: 23.3783379 | AN59: 23.3783379 | AO59: 23.3783379 | AP59: 0.08357395215 | AQ59: 0.08357395215 | AR59: 0.08357395215 | AS59: 0.07813489462 | AT59: 0.1176839081 | AU59: 0.1958188027 | AV59: 249.7721703 | AW59: 10.0766476 | AX59: 104.8071244 | AY59: 54.23553515 | AZ59: 4.258642824 | BA59: 2.12121081 | BB59: 3.473794185 | BC59: 428.7451253 | BD59: 125.3828331 | BE59: 5.150254909 | BF59: 1.055147299 | BG59: 2.752553138 | BH59: 172.6092297 | BI59: 111.3178636 | BJ59: 446.2475212 | BK59: 371.1265278 | BL59: 18488.58768 | BM59: 22389.23444 | BN59: 17272.55415 | BO59: 20566.2836 | BP59: 26618.88989 | BQ59: 0.4136916762 | BR59: 0.0199163878 | BS59: 0.0335111089 | BT59: 0.0133578662 | BU59: 0.2445047636 | BV59: 0.01480846086 | BW59: 0.139778233 | BX59: 0.1204315033 | BY59: 0.4135187267 | BZ59: 0.02966615518 | CA59: 0.03620432062 | CB59: 0.008194251523 | CC59: 0.2381725195 | CD59: 0.01102149158 | CE59: 0.1629417093 | CF59: 0.1002808256 | CG59: 2304.644972 | CH59: 59.57629003 | CI59: 158.7183059 | CJ59: 1254.045716 | CK59: 891.7940417 | CL59: 198.1643264 | CM59: 48.60220823 | CN59: 571.6967785 | CO59: 5487.242638
B60: 41017 | C60: 10 | D60: 27 | E60: All_In | F60: 3 | G60: L | H60: H | I60: 2 | J60: 2 | K60: 6 | L60: 6 | M60: 8 | N60: L | O60: L | P60: U | Q60: L | R60: U | S60: H | T60: H | U60: 2035 | V60: 13.48169033 | W60: 1.286879467 | X60: 4.237550257 | Y60: 0.09121516007 | Z60: 0.1201241579 | AA60: 0.0547325147 | AB60: 0.1969158157 | AC60: 19.46910771 | AD60: 0.09112282229 | AE60: 0.09112282229 | AF60: 0.09112282229 | AG60: 0.01113844744 | AH60: 0.01113844744 | AI60: 0.01113844744 | AJ60: 459.4401462 | AK60: 459.4401462 | AL60: 459.4401462 | AM60: 23.59841823 | AN60: 23.59841823 | AO60: 23.59841823 | AP60: 0.09649332897 | AQ60: 0.09649332897 | AR60: 0.09649332897 | AS60: 0.07536409094 | AT60: 0.1343047217 | AU60: 0.2096688127 | AV60: 238.8955527 | AW60: 20.61580906 | AX60: 77.77430239 | AY60: 4.6885322 | AZ60: 5.36520953 | BA60: 2.390028254 | BB60: 9.106656639 | BC60: 358.8360908 | BD60: 109.8190149 | BE60: 7.869922679 | BF60: 2.458640549 | BG60: 12.67844128 | BH60: 14.65648427 | BI60: 9.107126538 | BJ60: 453.0794235 | BK60: 367.5138284 | BL60: 20363.86091 | BM60: 24707.59311 | BN60: 18851.3268 | BO60: 22528.11739 | BP60: 29027.85731 | BQ60: 0.4146044206 | BR60: 0.03985754313 | BS60: 0.05766435855 | BT60: 0.01987122181 | BU60: 0.2318845415 | BV60: 0.05153923294 | BW60: 0.1704756146 | BX60: 0.01410310261 | BY60: 0.4129359629 | BZ60: 0.0655046868 | CA60: 0.05788165049 | CB60: 0.01133322358 | CC60: 0.2087102053 | CD60: 0.03599651165 | CE60: 0.1988632345 | CF60: 0.008774524671 | CG60: 1986.749016 | CH60: 172.0961783 | CI60: 300.4152055 | CJ60: 973.6294591 | CK60: 944.8028494 | CL60: 277.9939768 | CM60: 59.67892185 | CN60: 46.00132957 | CO60: 4761.366936
B61: 42041 | C61: 10 | D61: 27 | E61: All_In | F61: 3 | G61: L | H61: H | I61: 2 | J61: 2 | K61: 6 | L61: 6 | M61: 8 | N61: L | O61: L | P61: U | Q61: L | R61: U | S61: H | T61: H | U61: 2050 | V61: 12.89968066 | W61: 0.5820944589 | X61: 4.821533833 | Y61: 0.2162166 | Z61: 0.1179643869 | AA61: 0.2234411496 | AB61: 0.4187838173 | AC61: 19.27971491 | AD61: 0.09513263678 | AE61: 0.09513263678 | AF61: 0.09513263678 | AG61: 0.01057617314 | AH61: 0.01057617314 | AI61: 0.01057617314 | AJ61: 464.0848488 | AK61: 464.0848488 | AL61: 464.0848488 | AM61: 24.07114685 | AN61: 24.07114685 | AO61: 24.07114685 | AP61: 0.08484541528 | AQ61: 0.08484541528 | AR61: 0.08484541528 | AS61: 0.07592592608 | AT61: 0.1185513681 | AU61: 0.1944772942 | AV61: 250.8420303 | AW61: 10.01342172 | AX61: 104.5038529 | AY61: 12.26242176 | AZ61: 5.870295523 | BA61: 10.8179399 | BB61: 20.98733844 | BC61: 415.2973005 | BD61: 125.0186522 | BE61: 8.039559198 | BF61: 5.953047228 | BG61: 18.6707323 | BH61: 30.82101379 | BI61: 20.34780721 | BJ61: 448.5163472 | BK61: 372.6716295 | BL61: 18682.60184 | BM61: 22477.87212 | BN61: 17207.6469 | BO61: 20805.76075 | BP61: 26618.29891 | BQ61: 0.4090337368 | BR61: 0.0194855054 | BS61: 0.0421340889 | BT61: 0.06244575153 | BU61: 0.2411201474 | BV61: 0.08705194787 | BW61: 0.114618813 | BX61: 0.02411000909 | BY61: 0.4116308467 | BZ61: 0.02939248074 | CA61: 0.05014294145 | CB61: 0.04122927954 | CC61: 0.2365744258 | CD61: 0.0694075615 | CE61: 0.142494917 | CF61: 0.01912754725 | CG61: 2293.993185 | CH61: 373.6627332 | CI61: 157.1321744 | CJ61: 1245.471193 | CK61: 775.6041351 | CL61: 271.9360155 | CM61: 243.0687864 | CN61: 108.9010907 | CO61: 5469.769313
B62: 40987 | C62: 10 | D62: 28 | E62: All_In | F62: 3 | G62: L | H62: H | I62: 2 | J62: 2 | K62: 4 | L62: 4 | M62: 8 | N62: L | O62: H | P62: R | Q62: H | R62: R | S62: H | T62: H | U62: 2035 | V62: 14.03432285 | W62: 1.351863084 | X62: 4.460914826 | Y62: 0.09816842338 | Z62: 0.07932568542 | AA62: 0.008300335983 | AB62: 0.02845726566 | AC62: 20.06135247 | AD62: 0.08764206248 | AE62: 0.08764206248 | AF62: 0.08764206248 | AG62: 0.0110438805 | AH62: 0.0110438805 | AI62: 0.0110438805 | AJ62: 464.9563836 | AK62: 464.9563836 | AL62: 464.9563836 | AM62: 23.17672173 | AN62: 23.17672173 | AO62: 23.17672173 | AP62: 0.09754310208 | AQ62: 0.09754310208 | AR62: 0.09754310208 | AS62: 0.07602100562 | AT62: 0.1330138421 | AU62: 0.2090348477 | AV62: 248.6882008 | AW62: 21.65684661 | AX62: 81.87384635 | AY62: 5.045935496 | AZ62: 3.422102454 | BA62: 0.3653734359 | BB62: 1.315213403 | BC62: 362.3675186 | BD62: 115.632638 | BE62: 4.089999732 | BF62: 0.3858863504 | BG62: 1.730208337 | BH62: 15.74693734 | BI62: 9.792506853 | BJ62: 449.0572906 | BK62: 364.3873081 | BL62: 20105.66278 | BM62: 24462.30865 | BN62: 18800.64381 | BO62: 22236.46164 | BP62: 28943.46228 | BQ62: 0.4414837731 | BR62: 0.04300093868 | BS62: 0.0422962234 | BT62: 0.003362217745 | BU62: 0.2479814803 | BV62: 0.00787264896 | BW62: 0.1987020886 | BX62: 0.01530066487 | BY62: 0.432926695 | BZ62: 0.0688455579 | CA62: 0.03788828528 | CB62: 0.001733682723 | CC62: 0.2202379042 | CD62: 0.005049965714 | CE62: 0.2238554038 | CF62: 0.009462505353 | CG62: 2086.551402 | CH62: 24.47185561 | CI62: 316.5621903 | CJ62: 1028.473355 | CK62: 1067.199993 | CL62: 184.5150345 | CM62: 9.293027901 | CN62: 49.60934647 | CO62: 4766.676205
B63: 42011 | C63: 10 | D63: 28 | E63: All_In | F63: 3 | G63: L | H63: H | I63: 2 | J63: 2 | K63: 4 | L63: 4 | M63: 8 | N63: L | O63: H | P63: R | Q63: H | R63: R | S63: H | T63: H | U63: 2050 | V63: 13.92663647 | W63: 0.6378545282 | X63: 5.252747647 | Y63: 0.2411125705 | Z63: 0.09918630097 | AA63: 0.04801820639 | AB63: 0.07661421517 | AC63: 20.28216994 | AD63: 0.08832694359 | AE63: 0.08832694359 | AF63: 0.08832694359 | AG63: 0.01050289909 | AH63: 0.01050289909 | AI63: 0.01050289909 | AJ63: 469.6824676 | AK63: 469.6824676 | AL63: 469.6824676 | AM63: 23.15740717 | AN63: 23.15740717 | AO63: 23.15740717 | AP63: 0.08574250835 | AQ63: 0.08574250835 | AR63: 0.08574250835 | AS63: 0.07670623003 | AT63: 0.1176648851 | AU63: 0.1943711151 | AV63: 270.8118022 | AW63: 10.97262874 | AX63: 113.8501536 | AY63: 13.67436188 | AZ63: 4.720729146 | BA63: 2.31636572 | BB63: 3.837273762 | BC63: 420.1833151 | BD63: 136.2420733 | BE63: 4.537999533 | BF63: 1.18583562 | BG63: 2.982818595 | BH63: 34.2317235 | BI63: 22.64667487 | BJ63: 446.3877751 | BK63: 370.4296927 | BL63: 18464.6806 | BM63: 22463.356 | BN63: 17123.76045 | BO63: 20667.22214 | BP63: 26562.89187 | BQ63: 0.4556019506 | BR63: 0.02210196977 | BS63: 0.04019822113 | BT63: 0.01475328414 | BU63: 0.2699793776 | BV63: 0.01648197688 | BW63: 0.1534114126 | BX63: 0.0274718073 | BY63: 0.4483094737 | BZ63: 0.03227567149 | CA63: 0.04178000392 | CB63: 0.00897617807 | CC63: 0.2590341011 | CD63: 0.01213809596 | CE63: 0.1761068709 | CF63: 0.0213796049 | CG63: 2502.471379 | CH63: 65.84732333 | CI63: 173.0509636 | CJ63: 1366.116211 | CK63: 965.3717004 | CL63: 229.7467208 | CM63: 53.30714374 | CN63: 121.9136951 | CO63: 5477.825137
B64: 40985 | C64: 10 | D64: 29 | E64: All_In | F64: 3 | G64: L | H64: H | I64: 2 | J64: 2 | K64: 2 | L64: 2 | M64: 8 | N64: L | O64: L | P64: R | Q64: L | R64: R | S64: H | T64: H | U64: 2035 | V64: 13.47963801 | W64: 1.286275001 | X64: 4.234836323 | Y64: 0.09113669723 | Z64: 0.1225185072 | AA64: 0.05403187047 | AB64: 0.197100674 | AC64: 19.46553708 | AD64: 0.09113626423 | AE64: 0.09113626423 | AF64: 0.09113626423 | AG64: 0.01113933469 | AH64: 0.01113933469 | AI64: 0.01113933469 | AJ64: 459.4244017 | AK64: 459.4244017 | AL64: 459.4244017 | AM64: 23.60193812 | AN64: 23.60193812 | AO64: 23.60193812 | AP64: 0.09648449585 | AQ64: 0.09648449585 | AR64: 0.09648449585 | AS64: 0.07532018988 | AT64: 0.1343090545 | AU64: 0.2096292444 | AV64: 238.8591855 | AW64: 20.60612552 | AX64: 77.72449194 | AY64: 4.684499147 | AZ64: 5.28543664 | BA64: 2.378435066 | BB64: 9.109429246 | BC64: 358.6476031 | BD64: 109.7483779 | BE64: 6.569325105 | BF64: 2.679154076 | BG64: 12.6274752 | BH64: 14.64464571 | BI64: 9.099546425 | BJ64: 453.1383547 | BK64: 367.5467357 | BL64: 20366.75062 | BM64: 24709.72347 | BN64: 18855.85147 | BO64: 22530.73156 | BP64: 29032.06252 | BQ64: 0.4142196346 | BR64: 0.03981872415 | BS64: 0.05945431382 | BT64: 0.01957568235 | BU64: 0.2316665228 | BV64: 0.05151208416 | BW64: 0.1696635325 | BX64: 0.01408954128 | BY64: 0.4127091422 | BZ64: 0.0654768966 | CA64: 0.05891421992 | CB64: 0.01119277041 | CC64: 0.2085843164 | CD64: 0.03598651801 | CE64: 0.1983688948 | CF64: 0.008767241753 | CG64: 1985.550901 | CH64: 172.2591139 | CI64: 300.2704647 | CJ64: 972.9987231 | CK64: 942.2036878 | CL64: 283.4425025 | CM64: 58.95206213 | CN64: 45.96220232 | CO64: 4761.639657
B65: 42009 | C65: 10 | D65: 29 | E65: All_In | F65: 3 | G65: L | H65: H | I65: 2 | J65: 2 | K65: 2 | L65: 2 | M65: 8 | N65: L | O65: L | P65: R | Q65: L | R65: R | S65: H | T65: H | U65: 2050 | V65: 12.89549216 | W65: 0.5811931088 | X65: 4.813835473 | Y65: 0.2158305092 | Z65: 0.1247570117 | AA65: 0.2211013862 | AB65: 0.41862296 | AC65: 19.2708326 | AD65: 0.09516254238 | AE65: 0.09516254238 | AF65: 0.09516254238 | AG65: 0.010577366 | AH65: 0.010577366 | AI65: 0.010577366 | AJ65: 464.0406823 | AK65: 464.0406823 | AL65: 464.0406823 | AM65: 24.07994983 | AN65: 24.07994983 | AO65: 24.07994983 | AP65: 0.08483050767 | AQ65: 0.08483050767 | AR65: 0.08483050767 | AS65: 0.07584838113 | AT65: 0.1185787182 | AU65: 0.1944270993 | AV65: 250.7605823 | AW65: 9.997916334 | AX65: 104.3369956 | AY65: 12.24052517 | AZ65: 5.937756076 | BA65: 10.66578096 | BB65: 20.9670085 | BC65: 414.9065649 | BD65: 124.8182831 | BE65: 6.736365363 | BF65: 6.131736558 | BG65: 18.54987363 | BH65: 30.76939441 | BI65: 20.31256384 | BJ65: 448.6810073 | BK65: 372.7876308 | BL65: 18689.37382 | BM65: 22484.41192 | BN65: 17216.90827 | BO65: 20813.26934 | BP65: 26629.45832 | BQ65: 0.4082247684 | BR65: 0.01944274821 | BS65: 0.04549770724 | BT65: 0.06192126817 | BU65: 0.240632041 | BV65: 0.0869089675 | BW65: 0.113313705 | BX65: 0.02405879448 | BY65: 0.4110089642 | BZ65: 0.0293491702 | CA65: 0.05284593492 | CB65: 0.04080047225 | CC65: 0.2362072134 | CD65: 0.06932079032 | CE65: 0.1413726317 | CF65: 0.01909482291 | CG65: 2290.391852 | CH65: 373.5264662 | CI65: 156.8876283 | CJ65: 1243.460951 | CK65: 769.1815705 | CL65: 287.4033132 | CM65: 240.649427 | CN65: 108.7086853 | CO65: 5470.209894
B66: 41001 | C66: 10 | D66: 30 | E66: All_In | F66: 3 | G66: L | H66: H | I66: 2 | J66: 2 | K66: 6 | L66: 6 | M66: 4 | N66: L | O66: L | P66: U | Q66: L | R66: U | S66: H | T66: L | U66: 2035 | V66: 13.4585385 | W66: 1.28463662 | X66: 4.229268476 | Y66: 0.1109505554 | Z66: 0.1198688247 | AA66: 0.05457216676 | AB66: 0.196361854 | AC66: 19.454197 | AD66: 0.09127468838 | AE66: 0.09127468838 | AF66: 0.09127468838 | AG66: 0.01114174025 | AH66: 0.01114174025 | AI66: 0.01114174025 | AJ66: 459.17028 | AK66: 459.17028 | AL66: 459.17028 | AM66: 23.60263341 | AN66: 23.60263341 | AO66: 23.60263341 | AP66: 0.0964248741 | AQ66: 0.0964248741 | AR66: 0.0964248741 | AS66: 0.07524136196 | AT66: 0.1343906603 | AU66: 0.2096320223 | AV66: 238.4853022 | AW66: 20.57987865 | AX66: 77.62230189 | AY66: 4.7901349 | AZ66: 5.353805365 | BA66: 2.383026272 | BB66: 9.081037879 | BC66: 358.2954872 | BD66: 109.6034607 | BE66: 7.855484976 | BF66: 2.451820439 | BG66: 12.64555871 | BH66: 17.99288469 | BI66: 11.13665414 | BJ66: 453.5006622 | BK66: 367.7939064 | BL66: 20379.88385 | BM66: 24733.35601 | BN66: 18855.72945 | BO66: 22557.84084 | BP66: 29054.80992 | BQ66: 0.4135392682 | BR66: 0.03972901597 | BS66: 0.05748877954 | BT66: 0.01980811593 | BU66: 0.2312427283 | BV66: 0.05136924857 | BW66: 0.1699966457 | BX66: 0.01682623342 | BY66: 0.412259944 | BZ66: 0.06539759629 | CA66: 0.05776451605 | CB66: 0.01130069147 | CC66: 0.2083077551 | CD66: 0.03589925348 | CE66: 0.1985283916 | CF66: 0.01054185205 | CG66: 1983.244722 | CH66: 171.6172625 | CI66: 299.8717555 | CJ66: 971.6537961 | CK66: 943.0864038 | CL66: 277.3975379 | CM66: 59.50386295 | CN66: 55.57311243 | CO66: 4761.948453
B67: 42025 | C67: 10 | D67: 30 | E67: All_In | F67: 3 | G67: L | H67: H | I67: 2 | J67: 2 | K67: 6 | L67: 6 | M67: 4 | N67: L | O67: L | P67: U | Q67: L | R67: U | S67: H | T67: L | U67: 2050 | V67: 12.84843736 | W67: 0.5794664147 | X67: 4.801353683 | Y67: 0.2666152383 | Z67: 0.1174280351 | AA67: 0.2222825877 | AB67: 0.4165594147 | AC67: 19.25214273 | AD67: 0.09549980661 | AE67: 0.09549980661 | AF67: 0.09549980661 | AG67: 0.01057965188 | AH67: 0.01057965188 | AI67: 0.01057965188 | AJ67: 463.6046391 | AK67: 463.6046391 | AL67: 463.6046391 | AM67: 24.08067744 | AN67: 24.08067744 | AO67: 24.08067744 | AP67: 0.08473592803 | AQ67: 0.08473592803 | AR67: 0.08473592803 | AS67: 0.07565483158 | AT67: 0.1186807826 | AU67: 0.1943356141 | AV67: 249.8455735 | AW67: 9.968213053 | AX67: 104.0664603 | AY67: 12.55885748 | AZ67: 5.843604897 | BA67: 10.76184794 | BB67: 20.87586257 | BC67: 413.9204197 | BD67: 124.4934131 | BE67: 8.019541127 | BF67: 5.926605238 | BG67: 18.59597785 | BH67: 38.12262371 | BI67: 25.13470883 | BJ67: 449.1691889 | BK67: 373.1739641 | BL67: 18707.72497 | BM67: 22511.11363 | BN67: 17219.41766 | BO67: 20843.1499 | BP67: 26661.91126 | BQ67: 0.406858838 | BR67: 0.01935853435 | BS67: 0.04187426314 | BT67: 0.06207047636 | BU67: 0.2397658928 | BV67: 0.0864985558 | BW67: 0.1139458784 | BX67: 0.02962756118 | BY67: 0.4100171341 | BZ67: 0.02926379111 | CA67: 0.04992197973 | CB67: 0.04101871238 | CC67: 0.235580687 | CD67: 0.06905226863 | CE67: 0.1419129329 | CF67: 0.02323249412 | CG67: 2284.67333 | CH67: 371.69608 | CI67: 156.4104726 | CJ67: 1240.045838 | CK67: 772.2987071 | CL67: 270.6897625 | CM67: 241.8016464 | CN67: 133.5538308 | CO67: 5471.169667
B68: 41019 | C68: 10 | D68: 31 | E68: All_In | F68: 3 | G68: L | H68: H | I68: 2 | J68: 2 | K68: 8 | L68: 8 | M68: 8 | N68: L | O68: H | P68: U | Q68: H | R68: U | S68: H | T68: H | U68: 2035 | V68: 14.03639689 | W68: 1.352329369 | X68: 4.462929553 | Y68: 0.09823360652 | Z68: 0.07765611306 | AA68: 0.008396948413 | AB68: 0.02839055653 | AC68: 20.06433304 | AD68: 0.0876294999 | AE68: 0.0876294999 | AF68: 0.0876294999 | AG68: 0.01104320774 | AH68: 0.01104320774 | AI68: 0.01104320774 | AJ68: 464.9686371 | AK68: 464.9686371 | AL68: 464.9686371 | AM68: 23.17388952 | AN68: 23.17388952 | AO68: 23.17388952 | AP68: 0.09754857197 | AQ68: 0.09754857197 | AR68: 0.09754857197 | AS68: 0.0760505215 | AT68: 0.1330032479 | AU68: 0.2090537694 | AV68: 248.7249529 | AW68: 21.66431649 | AX68: 81.91082385 | AY68: 5.049285962 | AZ68: 3.468422383 | BA68: 0.366673157 | BB68: 1.31296234 | BC68: 362.4974371 | BD68: 115.6850764 | BE68: 4.91201305 | BF68: 0.354691254 | BG68: 1.735130782 | BH68: 15.75669102 | BI68: 9.798778746 | BJ68: 448.9859236 | BK68: 364.3474565 | BL68: 20102.46359 | BM68: 24458.87508 | BN68: 18797.7722 | BO68: 22232.26035 | BP68: 28938.62496 | BQ68: 0.4417783906 | BR68: 0.04303376825 | BS68: 0.04102372708 | BT68: 0.003407277923 | BU68: 0.2481540584 | BV68: 0.007875656776 | BW68: 0.1994147975 | BX68: 0.01531235912 | BY68: 0.4330909969 | BZ68: 0.06886715099 | CA68: 0.037172334 | CB68: 0.001753377869 | CC68: 0.2203327683 | CD68: 0.005051097546 | CE68: 0.2242636872 | CF68: 0.009468587196 | CG68: 2087.421148 | CH68: 24.41414879 | CI68: 316.675267 | CJ68: 1028.949353 | CK68: 1069.352309 | CL68: 180.6874294 | CM68: 9.392823412 | CN68: 49.64205527 | CO68: 4766.534534
B69: 42043 | C69: 10 | D69: 31 | E69: All_In | F69: 3 | G69: L | H69: H | I69: 2 | J69: 2 | K69: 8 | L69: 8 | M69: 8 | N69: L | O69: H | P69: U | Q69: H | R69: U | S69: H | T69: H | U69: 2050 | V69: 13.93289111 | W69: 0.6386778889 | X69: 5.259423903 | Y69: 0.2414789613 | Z69: 0.0936410579 | AA69: 0.04842123499 | AB69: 0.07652476274 | AC69: 20.29105892 | AD69: 0.08828847582 | AE69: 0.08828847582 | AF69: 0.08828847582 | AG69: 0.01050182473 | AH69: 0.01050182473 | AI69: 0.01050182473 | AJ69: 469.7026174 | AK69: 469.7026174 | AL69: 469.7026174 | AM69: 23.14825556 | AN69: 23.14825556 | AO69: 23.14825556 | AP69: 0.08575029493 | AQ69: 0.08575029493 | AR69: 0.08575029493 | AS69: 0.07675849391 | AT69: 0.1176302029 | AU69: 0.1943886968 | AV69: 270.9334273 | AW69: 10.98679252 | AX69: 113.9948575 | AY69: 13.69514122 | AZ69: 4.659886745 | BA69: 2.344322033 | BB69: 3.835036189 | BC69: 420.4494635 | BD69: 136.4158396 | BE69: 5.533820669 | BF69: 1.165936887 | BG69: 3.000207921 | BH69: 34.28042777 | BI69: 22.68003269 | BJ69: 446.204593 | BK69: 370.3027657 | BL69: 18457.17531 | BM69: 22455.07718 | BN69: 17117.35968 | BO69: 20657.17577 | BP69: 26551.20522 | BQ69: 0.456335922 | BR69: 0.02214428028 | BS69: 0.03724691408 | BT69: 0.01486372781 | BU69: 0.2704327237 | BV69: 0.01650617871 | BW69: 0.1549477451 | BX69: 0.02752250838 | BY69: 0.448842749 | BZ69: 0.0323155033 | CA69: 0.03958208734 | CB69: 0.009057587587 | CC69: 0.2593578795 | CD69: 0.01215160007 | CE69: 0.177281722 | CF69: 0.0214108712 | CG69: 2505.57322 | CH69: 65.76927335 | CI69: 173.2776066 | CJ69: 1367.896536 | CK69: 972.1706832 | CL69: 217.0275485 | CM69: 53.74982116 | CN69: 122.0980158 | CO69: 5477.562705
B70: 40977 | C70: 10 | D70: 32 | E70: All_In | F70: 3 | G70: L | H70: H | I70: 2 | J70: 2 | K70: 2 | L70: 2 | M70: 6 | N70: L | O70: L | P70: R | Q70: L | R70: R | S70: L | T70: H | U70: 2035 | V70: 13.03841786 | W70: 1.246190879 | X70: 4.080263093 | Y70: 0.4385377447 | Z70: 0.1177962345 | AA70: 0.05134996153 | AB70: 0.187520535 | AC70: 19.16007631 | AD70: 0.094121178 | AE70: 0.094121178 | AF70: 0.094121178 | AG70: 0.01119848815 | AH70: 0.01119848815 | AI70: 0.01119848815 | AJ70: 453.6664686 | AK70: 453.6664686 | AL70: 453.6664686 | AM70: 23.67769634 | AN70: 23.67769634 | AO70: 23.67769634 | AP70: 0.09520608675 | AQ70: 0.09520608675 | AR70: 0.09520608675 | AS70: 0.07648155446 | AT70: 0.1346807761 | AU70: 0.2111623306 | AV70: 231.0407645 | AW70: 19.96397789 | AX70: 74.8875167 | AY70: 22.54119091 | AZ70: 5.081718248 | BA70: 2.26037981 | BB70: 8.666662633 | BC70: 364.4422106 | BD70: 105.7252219 | BE70: 6.353946077 | BF70: 2.552275454 | BG70: 12.05808787 | BH70: 73.56722548 | BI70: 44.90413972 | BJ70: 454.4238695 | BK70: 368.8317747 | BL70: 20442.02497 | BM70: 24749.69181 | BN70: 18934.16691 | BO70: 22559.88131 | BP70: 29161.06341 | BQ70: 0.3949577351 | BR70: 0.03770059789 | BS70: 0.05638190192 | BT70: 0.01852922998 | BU70: 0.2203647326 | BV70: 0.04867253419 | BW70: 0.1613142706 | BX70: 0.06207903337 | BY70: 0.3996399871 | BZ70: 0.06355523799 | CA70: 0.05673606111 | CB70: 0.01064268254 | CC70: 0.2010526802 | CD70: 0.03427992183 | CE70: 0.1920608437 | CF70: 0.04203258556 | CG70: 1918.156574 | CH70: 163.8962517 | CI70: 290.5478094 | CJ70: 936.1913129 | CK70: 910.0263852 | CL70: 272.3813043 | CM70: 56.01052677 | CN70: 217.8892539 | CO70: 4765.099418
B71: 42001 | C71: 10 | D71: 32 | E71: All_In | F71: 3 | G71: L | H71: H | I71: 2 | J71: 2 | K71: 2 | L71: 2 | M71: 6 | N71: L | O71: L | P71: R | Q71: L | R71: R | S71: L | T71: H | U71: 2050 | V71: 12.19230514 | W71: 0.5466261075 | X71: 4.542610148 | Y71: 0.84810204 | Z71: 0.1173264925 | AA71: 0.2070381865 | AB71: 0.3913124524 | AC71: 18.84532056 | AD71: 0.1004646434 | AE71: 0.1004646434 | AF71: 0.1004646434 | AG71: 0.01062331631 | AH71: 0.01062331631 | AI71: 0.01062331631 | AJ71: 456.1668447 | AK71: 456.1668447 | AL71: 456.1668447 | AM71: 24.20584161 | AN71: 24.20584161 | AO71: 24.20584161 | AP71: 0.08332922682 | AQ71: 0.08332922682 | AR71: 0.08332922682 | AS71: 0.07822371194 | AT71: 0.1185013645 | AU71: 0.1967250764 | AV71: 237.0866888 | AW71: 9.403280951 | AX71: 98.45834938 | AY71: 48.09891985 | AZ71: 5.584103728 | BA71: 9.987381747 | BB71: 19.59914362 | BC71: 428.2178681 | BD71: 117.7589637 | BE71: 6.472069037 | BF71: 5.774516541 | BG71: 17.51531904 | BH71: 126.5299285 | BI71: 81.73396714 | BJ71: 448.0757117 | BK71: 372.821086 | BL71: 18677.9791 | BM71: 22410.7064 | BN71: 17311.31113 | BO71: 20709.20162 | BP71: 26645.73989 | BQ71: 0.3825946608 | BR71: 0.01809603873 | BS71: 0.04240799909 | BT71: 0.05771788616 | BU71: 0.2250349523 | BV71: 0.08080708999 | BW71: 0.1057933622 | BX71: 0.08754801069 | BY71: 0.3884828906 | BZ71: 0.02761992669 | CA71: 0.04971607958 | CB71: 0.03820243894 | CC71: 0.2226995465 | CD71: 0.06484724691 | CE71: 0.1333714188 | CF71: 0.07506045197 | CG71: 2162.960008 | CH71: 349.1704645 | CI71: 147.4546946 | CJ71: 1171.269664 | CK71: 724.8382993 | CL71: 270.1095967 | CM71: 225.2170199 | CN71: 423.2521516 | CO71: 5474.271898
B72: 40974 | C72: 10 | D72: 33 | E72: All_In | F72: 3 | G72: L | H72: L | I72: 1 | J72: 3 | K72: 3 | L72: 3 | M72: 3 | N72: H | O72: H | P72: R | Q72: H | R72: R | S72: H | T72: L | U72: 2035 | V72: 13.56038761 | W72: 3.271986762 | X72: 2.329858654 | Y72: 0.089170913 | Z72: 0.1059726996 | AA72: 0.004022432418 | AB72: 0.02979873739 | AC72: 19.39119781 | AD72: 0.09061035919 | AE72: 0.09061035919 | AF72: 0.09061035919 | AG72: 0.008828994901 | AH72: 0.008828994901 | AI72: 0.008828994901 | AJ72: 462.1305498 | AK72: 462.1305498 | AL72: 462.1305498 | AM72: 23.83197543 | AN72: 23.83197543 | AO72: 23.83197543 | AP72: 0.09634071563 | AQ72: 0.09634071563 | AR72: 0.09634071563 | AS72: 0.07201505225 | AT72: 0.1268076315 | AU72: 0.1988226838 | AV72: 240.2900685 | AW72: 52.41722793 | AX72: 42.76129379 | AY72: 3.84982933 | AZ72: 4.571652086 | BA72: 0.1770639111 | BB72: 1.377212388 | BC72: 345.4443479 | BD72: 60.16655608 | BE72: 5.403333792 | BF72: 0.188888476 | BG72: 1.834645992 | BH72: 14.60398121 | BI72: 9.0007837 | BJ72: 429.3926537 | BK72: 349.5835222 | BL72: 19356.84351 | BM72: 23622.01476 | BN72: 17819.83574 | BO72: 20992.52232 | BP72: 27442.18754 | BQ72: 0.3444637226 | BR72: 0.1336841986 | BS72: 0.05847882825 | BT72: 0.001875815016 | BU72: 0.1525828967 | BV72: 0.008577695174 | BW72: 0.285935195 | BX72: 0.01440168421 | BY72: 0.3432362369 | BZ72: 0.1617110249 | CA72: 0.05038930797 | CB72: 0.0009159109174 | CC72: 0.1238735571 | CD72: 0.005716456734 | CE72: 0.3049575677 | CF72: 0.009199937788 | CG72: 1646.805153 | CH72: 27.78535246 | CI72: 766.078828 | CJ72: 593.537733 | CK72: 1463.079192 | CL72: 246.2307506 | CM72: 4.887417469 | CN72: 48.43091675 | CO72: 4796.835344
B73: =1*(MID(H73,1,1)="H")+2*(OR(MID(O73,1,1)="H",MID(Q73,1,1)="H"))+4*(MID(N73,1,1)="H")+8*(MID(S73,1,1)="H")+16*(MID(T73,1,1)="H")+32*(OR(MID(P73,1,1)="U",MID(R73,1,1)="U"))+256*(MID(G73,1,1)="B")+512*(MID(G73,1,1)="H")+1024*(U73=2050)+2048*(F73=17)+4096*C73 -> 41998 | C73: =1*(E73="liqICEonly")+2*(E73="LiqICE&CNG")+3*(E73="liqICE&allElect")+4*(E73="liqICE&EV")+5*(E73="liqICE&PHEV")+6*(E73="liqICE&FCEV")+7*(E73="noCNG")+8*(E73="NoElect")+9*(E73="noFCEV")+10*(E73="All_In") -> 10 | D73: 33 | E73: All_In | F73: 3 | G73: L | H73: L | I73: 1 | J73: 3 | K73: 3 | L73: 3 | M73: 3 | N73: H | O73: H | P73: R | Q73: H | R73: R | S73: H | T73: L | U73: 2050 | V73: 13.6302786 | W73: 2.330929536 | X73: 3.178461288 | Y73: 0.2003526654 | Z73: 0.1457048234 | AA73: 0.01857762373 | AB73: 0.06948518495 | AC73: 19.57378972 | AD73: 0.09018886118 | AE73: 0.09018886118 | AF73: 0.09018886118 | AG73: 0.008677460709 | AH73: 0.008677460709 | AI73: 0.008677460709 | AJ73: 464.8556333 | AK73: 464.8556333 | AL73: 464.8556333 | AM73: 23.74888256 | AN73: 23.74888256 | AO73: 23.74888256 | AP73: 0.08427825466 | AQ73: 0.08427825466 | AR73: 0.08427825466 | AS73: 0.07157472849 | AT73: 0.1106048684 | AU73: 0.1821795969 | AV73: 265.0489455 | AW73: 40.09758225 | AX73: 68.89124134 | AY73: 9.437572234 | AZ73: 6.934758124 | BA73: 0.896171973 | BB73: 3.480211557 | BC73: 394.7864829 | BD73: 82.25356807 | BE73: 6.25026187 | BF73: 0.4948017252 | BG73: 2.889543531 | BH73: 28.98142135 | BI73: 18.99873714 | BJ73: 418.7692364 | BK73: 350.6126331 | BL73: 17440.38729 | BM73: 21293.63706 | BN73: 16068.34236 | BO73: 19053.1523 | BP73: 24647.42225 | BQ73: 0.3712035607 | BR73: 0.09758309253 | BS73: 0.06206224937 | BT73: 0.005694147902 | BU73: 0.1762258808 | BV73: 0.01530964485 | BW73: 0.2483573543 | BX73: 0.02356406958 | BY73: 0.3578694602 | BZ73: 0.1151431381 | CA73: 0.06092134692 | CB73: 0.003812895648 | CC73: 0.1644926578 | CD73: 0.01192105305 | CE73: 0.2668770025 | CF73: 0.01896244575 | CG73: 2001.453724 | CH73: 64.73312579 | CI73: 632.6123373 | CJ73: 874.6453281 | CK73: 1474.037482 | CL73: 337.030942 | CM73: 22.41069754 | CN73: 108.8008547 | CO73: 5515.724491
B74: 40966 | C74: 10 | D74: 34 | E74: All_In | F74: 3 | G74: L | H74: L | I74: 1 | J74: 3 | K74: 3 | L74: 3 | M74: 1 | N74: H | O74: H | P74: R | Q74: H | R74: R | S74: L | T74: L | U74: 2035 | V74: 13.11126317 | W74: 3.16783763 | X74: 2.236186593 | Y74: 0.4123894085 | Z74: 0.1016255928 | AA74: 0.003802454342 | AB74: 0.02827257902 | AC74: 19.06137743 | AD74: 0.09361496633 | AE74: 0.09361496633 | AF74: 0.09361496633 | AG74: 0.008926094522 | AH74: 0.008926094522 | AI74: 0.008926094522 | AJ74: 455.6260583 | AK74: 455.6260583 | AL74: 455.6260583 | AM74: 23.90310249 | AN74: 23.90310249 | AO74: 23.90310249 | AP74: 0.09490625871 | AQ74: 0.09490625871 | AR74: 0.09490625871 | AS74: 0.07244310506 | AT74: 0.1273845513 | AU74: 0.1998276564 | AV74: 232.3315835 | AW74: 50.74875882 | AX74: 41.04207425 | AY74: 17.80433537 | AZ74: 4.384118319 | BA74: 0.1673806711 | BB74: 1.306677714 | BC74: 347.7849286 | BD74: 57.72850575 | BE74: 5.204296007 | BF74: 0.1786896959 | BG74: 1.744316146 | BH74: 71.56013446 | BI74: 43.10949215 | BJ74: 431.5787624 | BK74: 351.464297 | BL74: 19470.97069 | BM74: 23718.81772 | BN74: 17898.8773 | BO74: 21097.92242 | BP74: 27611.97251 | BQ74: 0.3288389266 | BR74: 0.1274288704 | BS74: 0.05552461266 | BT74: 0.001772304966 | BU74: 0.145179936 | BV74: 0.008097895505 | BW74: 0.2727846146 | BX74: 0.06037287501 | BY74: 0.3321054139 | BZ74: 0.1566385735 | CA74: 0.04835923587 | CB74: 0.000865949397 | CC74: 0.1189108728 | CD74: 0.005428098211 | CE74: 0.2949801131 | CF74: 0.04271174318 | CG74: 1590.063898 | CH74: 26.36407154 | CI74: 740.419472 | CJ74: 569.1512702 | CK74: 1412.608626 | CL74: 235.9671377 | CM74: 4.619763339 | CN74: 221.6067255 | CO74: 4800.800964
B75: 41990 | C75: 10 | D75: 34 | E75: All_In | F75: 3 | G75: L | H75: L | I75: 1 | J75: 3 | K75: 3 | L75: 3 | M75: 1 | N75: H | O75: H | P75: R | Q75: H | R75: R | S75: L | T75: L | U75: 2050 | V75: 12.9348322 | W75: 2.210109582 | X75: 3.00550582 | Y75: 0.751042856 | Z75: 0.1374488476 | AA75: 0.01740076512 | AB75: 0.06504022399 | AC75: 19.1213803 | AD75: 0.09488239637 | AE75: 0.09488239637 | AF75: 0.09488239637 | AG75: 0.008786437312 | AH75: 0.008786437312 | AI75: 0.008786437312 | AJ75: 456.471447 | AK75: 456.471447 | AL75: 456.471447 | AM75: 23.87230628 | AN75: 23.87230628 | AO75: 23.87230628 | AP75: 0.08268676398 | AQ75: 0.08268676398 | AR75: 0.08268676398 | AS75: 0.0725848302 | AT75: 0.1108720046 | AU75: 0.1834568347 | AV75: 251.5255731 | AW75: 38.01918907 | AX75: 65.14253534 | AY75: 35.37772352 | AZ75: 6.541818521 | BA75: 0.8394011116 | BB75: 3.25758274 | BC75: 400.7038234 | BD75: 77.75196822 | BE75: 5.969875935 | BF75: 0.4649251739 | BG75: 2.723180592 | BH75: 115.3530192 | BI75: 73.56270344 | BJ75: 419.7770379 | BK75: 351.7630939 | BL75: 17505.21452 | BM75: 21293.08356 | BN75: 16169.77583 | BO75: 19063.7815 | BP75: 24759.71891 | BQ75: 0.3495428284 | BR75: 0.09168252699 | BS75: 0.05814414786 | BT75: 0.005313852009 | BU75: 0.1654290322 | BV75: 0.01426839302 | BW75: 0.2335743025 | BX75: 0.08204491704 | BY75: 0.3392283802 | BZ75: 0.109073384 | CA75: 0.05744511964 | CB75: 0.003571275633 | CC75: 0.1553876954 | CD75: 0.01116429373 | CE75: 0.2528997031 | CF75: 0.07123014823 | CG75: 1896.060678 | CH75: 60.59105161 | CI75: 598.76403 | CJ75: 825.7158233 | CK75: 1395.815263 | CL75: 317.6006972 | CM75: 20.9835774 | CN75: 404.9587985 | CO75: 5520.489919
B76: 40998 | C76: 10 | D76: 35 | E76: All_In | F76: 3 | G76: L | H76: L | I76: 1 | J76: 3 | K76: 7 | L76: 7 | M76: 1 | N76: H | O76: H | P76: U | Q76: H | R76: U | S76: L | T76: L | U76: 2035 | V76: 13.11362762 | W76: 3.169373837 | X76: 2.237668302 | Y76: 0.4127016888 | Z76: 0.09941695065 | AA76: 0.003841303312 | AB76: 0.02820941523 | AC76: 19.06483912 | AD76: 0.0935986267 | AE76: 0.0935986267 | AF76: 0.0935986267 | AG76: 0.008924646778 | AH76: 0.008924646778 | AI76: 0.008924646778 | AJ76: 455.6365538 | AK76: 455.6365538 | AL76: 455.6365538 | AM76: 23.89931281 | AN76: 23.89931281 | AO76: 23.89931281 | AP76: 0.09491160481 | AQ76: 0.09491160481 | AR76: 0.09491160481 | AS76: 0.0724791956 | AT76: 0.1273737577 | AU76: 0.1998529533 | AV76: 232.3734815 | AW76: 50.77336887 | AX76: 41.06926895 | AY76: 17.81781763 | AZ76: 4.440345561 | BA76: 0.1677398435 | BB76: 1.304585198 | BC76: 347.9466075 | BD76: 57.76707095 | BE76: 6.251820274 | BF76: 0.163897685 | BG76: 1.749421828 | BH76: 71.60753414 | BI76: 43.13975916 | BJ76: 431.5052098 | BK76: 351.4228162 | BL76: 19467.5373 | BM76: 23715.65868 | BN76: 17894.76975 | BO76: 21093.94667 | BP76: 27606.978 | BQ76: 0.3291433389 | BR76: 0.1275489899 | BS76: 0.05382919114 | BT76: 0.001795202098 | BU76: 0.1453184548 | BV76: 0.008103020296 | BW76: 0.2738301544 | BX76: 0.06043168403 | BY76: 0.332272875 | BZ76: 0.1567090229 | CA76: 0.04741974098 | CB76: 0.0008752615834 | CC76: 0.1189853693 | CD76: 0.005430225083 | CE76: 0.2955647795 | CF76: 0.04274272559 | CG76: 1590.95185 | CH76: 26.30485241 | CI76: 740.7915764 | CJ76: 569.5292748 | CK76: 1415.69774 | CL76: 230.9252219 | CM76: 4.666721123 | CN76: 221.7738943 | CO76: 4800.641131
B77: 42022 | C77: 10 | D77: 35 | E77: All_In | F77: 3 | G77: L | H77: L | I77: 1 | J77: 3 | K77: 7 | L77: 7 | M77: 1 | N77: H | O77: H | P77: U | Q77: H | R77: U | S77: L | T77: L | U77: 2050 | V77: 12.9430651 | W77: 2.21394744 | X77: 3.011135759 | Y77: 0.7525250994 | Z77: 0.1294800848 | AA77: 0.01756314182 | AB77: 0.06496390933 | AC77: 19.13268054 | AD77: 0.09482397731 | AE77: 0.09482397731 | AF77: 0.09482397731 | AG77: 0.008782933583 | AH77: 0.008782933583 | AI77: 0.008782933583 | AJ77: 456.4802237 | AK77: 456.4802237 | AL77: 456.4802237 | AM77: 23.85866543 | AN77: 23.85866543 | AO77: 23.85866543 | AP77: 0.08269233769 | AQ77: 0.08269233769 | AR77: 0.08269233769 | AS77: 0.07264783561 | AT77: 0.110836049 | AU77: 0.1834838846 | AV77: 251.6856668 | AW77: 38.08520945 | AX77: 65.26456089 | AY77: 35.4475443 | AZ77: 6.443354494 | BA77: 0.8503223913 | BB77: 3.255664367 | BC77: 401.0323227 | BD77: 77.8985015 | BE77: 7.386740288 | BF77: 0.4523722082 | BG77: 2.737890966 | BH77: 115.5517124 | BI77: 73.6981787 | BJ77: 419.5884586 | BK77: 351.6320764 | BL77: 17497.03024 | BM77: 21285.74995 | BN77: 16159.12337 | BO77: 19054.65288 | BP77: 24747.89815 | BQ77: 0.350392733 | BR77: 0.09191116623 | BS77: 0.05379688645 | BT77: 0.005361340732 | BU77: 0.1658411086 | BV77: 0.01429959237 | BW77: 0.2361448966 | BX77: 0.082252276 | BY77: 0.3398220227 | BZ77: 0.1092560499 | CA77: 0.05432703401 | CB77: 0.003607497125 | CC77: 0.1556699219 | CD77: 0.01118246463 | CE77: 0.2547698334 | CF77: 0.07136517632 | CG77: 1899.530811 | CH77: 60.51921272 | CI77: 599.8222555 | CJ77: 827.2825937 | CK77: 1406.701825 | CL77: 299.4318963 | CM77: 21.17850725 | CN77: 405.7568576 | CO77: 5520.223958
B78: 40964 | C78: 10 | D78: 36 | E78: All_In | F78: 3 | G78: L | H78: L | I78: 1 | J78: 3 | K78: 1 | L78: 1 | M78: 1 | N78: H | O78: L | P78: R | Q78: L | R78: R | S78: L | T78: L | U78: 2035 | V78: 12.65266166 | W78: 3.029036659 | X78: 2.120267692 | Y78: 0.3878945724 | Z78: 0.1616871504 | AA78: 0.02369760201 | AB78: 0.168764037 | AC78: 18.54400938 | AD78: 0.09689579514 | AE78: 0.09689579514 | AF78: 0.09689579514 | AG78: 0.009058869772 | AH78: 0.009058869772 | AI78: 0.009058869772 | AJ78: 450.144438 | AK78: 450.144438 | AL78: 450.144438 | AM78: 24.27438581 | AN78: 24.27438581 | AO78: 24.27438581 | AP78: 0.09387377815 | AQ78: 0.09387377815 | AR78: 0.09387377815 | AS78: 0.07178201176 | AT78: 0.1283937602 | AU78: 0.200175772 | AV78: 224.2051647 | AW78: 48.52516728 | AX78: 38.91454511 | AY78: 16.74680511 | AZ78: 6.975168145 | BA78: 1.043147444 | BB78: 7.799790957 | BC78: 344.2097887 | BD78: 54.71142561 | BE78: 8.562774543 | BF78: 1.213208756 | BG78: 11.10962043 | BH78: 67.44781899 | BI78: 40.60033114 | BJ78: 434.4746085 | BK78: 353.8361988 | BL78: 19660.41254 | BM78: 23895.61345 | BN78: 17944.42205 | BO78: 21322.00187 | BP78: 27645.77664 | BQ78: 0.3103276041 | BR78: 0.1201336921 | BS78: 0.08185663828 | BT78: 0.008788088803 | BU78: 0.1363979257 | BV78: 0.04511706576 | BW78: 0.2410084225 | BX78: 0.05637059837 | BY78: 0.3168859456 | BZ78: 0.149515517 | CA78: 0.07719531279 | CB78: 0.005392351145 | CC78: 0.1125014611 | CD78: 0.03332932794 | CE78: 0.2650830264 | CF78: 0.04009705809 | CG78: 1515.05967 | CH78: 159.6752467 | CI78: 705.8231943 | CJ78: 538.3342543 | CK78: 1267.197826 | CL78: 372.9918152 | CM78: 28.10473373 | CN78: 208.0228161 | CO78: 4795.209556
B79: 41988 | C79: 10 | D79: 36 | E79: All_In | F79: 3 | G79: L | H79: L | I79: 1 | J79: 3 | K79: 1 | L79: 1 | M79: 1 | N79: H | O79: L | P79: R | Q79: L | R79: R | S79: L | T79: L | U79: 2050 | V79: 12.25340488 | W79: 2.074756307 | X79: 2.806199845 | Y79: 0.6950877829 | Z79: 0.1911625843 | AA79: 0.07316736064 | AB79: 0.3118035952 | AC79: 18.40558235 | AD79: 0.09998062008 | AE79: 0.09998062008 | AF79: 0.09998062008 | AG79: 0.008911819866 | AH79: 0.008911819866 | AI79: 0.008911819866 | AJ79: 450.8104355 | AK79: 450.8104355 | AL79: 450.8104355 | AM79: 24.49313621 | AN79: 24.49313621 | AO79: 24.49313621 | AP79: 0.08177907135 | AQ79: 0.08177907135 | AR79: 0.08177907135 | AS79: 0.07179539224 | AT79: 0.1116289156 | AU79: 0.1834243079 | AV79: 238.2748099 | AW79: 35.6907879 | AX79: 60.82269791 | AY79: 32.741971 | AZ79: 9.098300616 | BA79: 3.52954387 | BB79: 15.61688979 | BC79: 395.775001 | BD79: 72.56453032 | BE79: 9.213285296 | BF79: 2.267465174 | BG79: 14.99360614 | BH79: 107.1724312 | BI79: 68.2244992 | BJ79: 422.0516683 | BK79: 353.654545 | BL79: 17687.16206 | BM79: 21363.85666 | BN79: 16221.62751 | BO79: 19230.34609 | BP79: 24802.6396 | BQ79: 0.3239972414 | BR79: 0.08480161897 | BS79: 0.07687345315 | BT79: 0.02080170247 | BU79: 0.1525135089 | BV79: 0.06651708169 | BW79: 0.1994369681 | BX79: 0.07505842541 | BY79: 0.3172011686 | BZ79: 0.1020047636 | CA79: 0.07982452888 | CB79: 0.01493156728 | CC79: 0.144534719 | CD79: 0.0557994354 | CE79: 0.2199606057 | CF79: 0.06574321158 | CG79: 1772.188719 | CH79: 301.1456123 | CI79: 559.5153292 | CJ79: 767.6630985 | CK79: 1212.238785 | CL79: 439.0924874 | CM79: 87.1297174 | CN79: 373.5666612 | CO79: 5512.54041
B80: 40996 | C80: 10 | D80: 37 | E80: All_In | F80: 3 | G80: L | H80: L | I80: 1 | J80: 3 | K80: 5 | L80: 5 | M80: 1 | N80: H | O80: L | P80: U | Q80: L | R80: U | S80: L | T80: L | U80: 2035 | V80: 12.65575265 | W80: 3.031349245 | X80: 2.122396898 | Y80: 0.3883199224 | Z80: 0.1584140561 | AA80: 0.02398195228 | AB80: 0.1685828481 | AC80: 18.54879757 | AD80: 0.09687291269 | AE80: 0.09687291269 | AF80: 0.09687291269 | AG80: 0.009056625233 | AH80: 0.009056625233 | AI80: 0.009056625233 | AJ80: 450.1561129 | AK80: 450.1561129 | AL80: 450.1561129 | AM80: 24.26874902 | AN80: 24.26874902 | AO80: 24.26874902 | AP80: 0.09388299621 | AQ80: 0.09388299621 | AR80: 0.09388299621 | AS80: 0.0718393645 | AT80: 0.1283910972 | AU80: 0.2002304617 | AV80: 224.259937 | AW80: 48.5622149 | AX80: 38.95362372 | AY80: 16.765169 | AZ80: 7.07538449 | BA80: 1.047230222 | BB80: 7.796357582 | BC80: 344.4599169 | BD80: 54.76684355 | BE80: 10.2674427 | BF80: 1.110473872 | BG80: 11.15211116 | BH80: 67.51282188 | BI80: 40.6417012 | BJ80: 434.4161778 | BK80: 353.8032945 | BL80: 19657.4236 | BM80: 23894.04897 | BN80: 17938.42737 | BO80: 21319.68177 | BP80: 27641.61955 | BQ80: 0.3107713465 | BR80: 0.1203050408 | BS80: 0.07939875409 | BT80: 0.008918393889 | BU80: 0.1365902503 | BV80: 0.04516055468 | BW80: 0.2424069448 | BX80: 0.05644875056 | BY80: 0.3171369838 | BZ80: 0.1496200033 | CA80: 0.07580367738 | CB80: 0.00545798492 | CC80: 0.1126071189 | CD80: 0.03334748517 | CE80: 0.2658877666 | CF80: 0.04013897991 | CG80: 1516.389976 | CH80: 159.5035511 | CI80: 706.3737554 | CJ80: 538.8704901 | CK80: 1271.447886 | CL80: 365.5887337 | CM80: 28.43979065 | CN80: 208.2489026 | CO80: 4794.863086
B81: 42020 | C81: 10 | D81: 37 | E81: All_In | F81: 3 | G81: L | H81: L | I81: 1 | J81: 3 | K81: 5 | L81: 5 | M81: 1 | N81: H | O81: L | P81: U | Q81: L | R81: U | S81: L | T81: L | U81: 2050 | V81: 12.26274497 | W81: 2.079921455 | X81: 2.813597149 | Y81: 0.6969381933 | Z81: 0.1804072616 | AA81: 0.07409115323 | AB81: 0.3119918001 | AC81: 18.41969198 | AD81: 0.0999070399 | AE81: 0.0999070399 | AF81: 0.0999070399 | AG81: 0.00890696957 | AH81: 0.00890696957 | AI81: 0.00890696957 | AJ81: 450.8259226 | AK81: 450.8259226 | AL81: 450.8259226 | AM81: 24.47521506 | AN81: 24.47521506 | AO81: 24.47521506 | AP81: 0.08178985425 | AQ81: 0.08178985425 | AR81: 0.08178985425 | AS81: 0.07188829383 | AT81: 0.1116046652 | AU81: 0.183492959 | AV81: 238.4564335 | AW81: 35.77964084 | AX81: 60.98303005 | AY81: 32.82913421 | AZ81: 8.977658156 | BA81: 3.587135335 | BB81: 15.6354597 | BC81: 396.2484918 | BD81: 72.75706372 | BE81: 11.11755211 | BF81: 2.174848699 | BG81: 15.08468218 | BH81: 107.4217154 | BI81: 68.39401698 | BJ81: 421.8995453 | BK81: 353.5432471 | BL81: 17680.39997 | BM81: 21359.38506 | BN81: 16207.29813 | BO81: 19224.9308 | BP81: 24792.83614 | BQ81: 0.3251125932 | BR81: 0.08509270595 | BS81: 0.07120147511 | BT81: 0.02105264368 | BU81: 0.1530315499 | BV81: 0.06670490518 | BW81: 0.2024952489 | BX81: 0.07530887808 | BY81: 0.3180038631 | BZ81: 0.1022468723 | CA81: 0.07562609161 | CB81: 0.01512580184 | CC81: 0.1448994001 | CD81: 0.05591718078 | CE81: 0.2222704613 | CF81: 0.06591032903 | CG81: 1776.876164 | CH81: 301.3252906 | CI81: 560.9135496 | CJ81: 769.6847931 | CK81: 1225.651652 | CL81: 414.777631 | CM81: 88.22089639 | CN81: 374.5530305 | CO81: 5512.003007
B82: 40982 | C82: 10 | D82: 38 | E82: All_In | F82: 3 | G82: L | H82: L | I82: 1 | J82: 3 | K82: 3 | L82: 3 | M82: 5 | N82: H | O82: H | P82: R | Q82: H | R82: R | S82: L | T82: H | U82: 2035 | V82: 13.20682458 | W82: 3.190416368 | X82: 2.255142059 | Y82: 0.3402911057 | Z82: 0.1025067229 | AA82: 0.003842625319 | AB82: 0.02855510027 | AC82: 19.12757856 | AD82: 0.09295909662 | AE82: 0.09295909662 | AF82: 0.09295909662 | AG82: 0.008904863175 | AH82: 0.008904863175 | AI82: 0.008904863175 | AJ82: 456.9007422 | AK82: 456.9007422 | AL82: 456.9007422 | AM82: 23.88701428 | AN82: 23.88701428 | AO82: 23.88701428 | AP82: 0.09521223309 | AQ82: 0.09521223309 | AR82: 0.09521223309 | AS82: 0.07292041279 | AT82: 0.1272362702 | AU82: 0.2001566829 | AV82: 234.0249315 | AW82: 51.11047021 | AX82: 41.3899753 | AY82: 17.49123506 | AZ82: 4.422130185 | BA82: 0.169148962 | BB82: 1.319735038 | BC82: 349.9276263 | BD82: 58.22186931 | BE82: 5.246453721 | BF82: 0.1805383168 | BG82: 1.761287964 | BH82: 57.84527494 | BI82: 35.1196229 | BJ82: 430.8707461 | BK82: 350.9059996 | BL82: 19437.3729 | BM82: 23683.62008 | BN82: 17874.73491 | BO82: 21056.99465 | BP82: 27564.90939 | BQ82: 0.3319765701 | BR82: 0.1286743713 | BS82: 0.05609573629 | BT82: 0.001791400032 | BU82: 0.1466350692 | BV82: 0.008186434844 | BW82: 0.275415606 | BX82: 0.05122484792 | BY82: 0.3344967936 | BZ82: 0.1577549747 | CA82: 0.0487760011 | CB82: 0.0008749909542 | CC82: 0.1199248632 | CD82: 0.005481630185 | CE82: 0.2971486211 | CF82: 0.03554212505 | CG82: 1602.047133 | CH82: 26.62707442 | CI82: 745.935277 | CJ82: 574.0801447 | CK82: 1423.356162 | CL82: 238.0426845 | CM82: 4.668448418 | CN82: 184.003984 | CO82: 4798.760908
B83: 42006 | C83: 10 | D83: 38 | E83: All_In | F83: 3 | G83: L | H83: L | I83: 1 | J83: 3 | K83: 3 | L83: 3 | M83: 5 | N83: H | O83: H | P83: R | Q83: H | R83: R | S83: L | T83: H | U83: 2050 | V83: 13.09248099 | W83: 2.236964242 | X83: 3.04417686 | Y83: 0.6181338177 | Z83: 0.1392619627 | AA83: 0.01765570186 | AB83: 0.06598801052 | AC83: 19.21466158 | AD83: 0.09377611304 | AE83: 0.09377611304 | AF83: 0.09377611304 | AG83: 0.00876197915 | AH83: 0.00876197915 | AI83: 0.00876197915 | AJ83: 458.1077794 | AK83: 458.1077794 | AL83: 458.1077794 | AM83: 23.84157418 | AN83: 23.84157418 | AO83: 23.84157418 | AP83: 0.083037219 | AQ83: 0.083037219 | AR83: 0.083037219 | AS83: 0.07339170419 | AT83: 0.1107358487 | AU83: 0.1841275529 | AV83: 254.5911483 | AW83: 38.48115367 | AX83: 65.98070693 | AY83: 35.05659408 | AZ83: 6.628112954 | BA83: 0.851699087 | BB83: 3.305053257 | BC83: 404.8944683 | BD83: 78.75847902 | BE83: 6.030287383 | BF83: 0.4710862462 | BG83: 2.756917665 | BH83: 93.77443484 | BI83: 60.10446471 | BJ83: 419.0327245 | BK83: 351.1024511 | BL83: 17472.06937 | BM83: 21264.38413 | BN83: 16132.19709 | BO83: 19028.28932 | BP83: 24710.0605 | BQ83: 0.3548326978 | BR83: 0.09310405572 | BS83: 0.05906627017 | BT83: 0.005400083856 | BU83: 0.16801267 | BV83: 0.01450379569 | BW83: 0.2371573757 | BX83: 0.06792305105 | BY83: 0.343426026 | BZ83: 0.1104065227 | CA83: 0.05819820358 | CB83: 0.003623075304 | CC83: 0.1573995003 | CD83: 0.01132410388 | CE83: 0.2560059478 | CF83: 0.05961662043 | CG83: 1920.043026 | CH83: 61.47340155 | CI83: 606.2811379 | CJ83: 836.6401768 | CK83: 1413.386995 | CL83: 321.8534202 | CM83: 21.29189771 | CN83: 335.9268841 | CO83: 5516.89694
B84: 41022 | C84: 10 | D84: 39 | E84: All_In | F84: 3 | G84: L | H84: L | I84: 1 | J84: 3 | K84: 7 | L84: 7 | M84: 7 | N84: H | O84: H | P84: U | Q84: H | R84: U | S84: H | T84: H | U84: 2035 | V84: 13.5822497 | W84: 3.278108724 | X84: 2.33566756 | Y84: 0.07458977847 | Z84: 0.1038587887 | AA84: 0.004075397984 | AB84: 0.02980896566 | AC84: 19.40835891 | AD84: 0.09046901851 | AE84: 0.09046901851 | AF84: 0.09046901851 | AG84: 0.00882335301 | AH84: 0.00882335301 | AI84: 0.00882335301 | AJ84: 462.4006575 | AK84: 462.4006575 | AL84: 462.4006575 | AM84: 23.82482 | AN84: 23.82482 | AO84: 23.82482 | AP84: 0.09640931897 | AQ84: 0.09640931897 | AR84: 0.09640931897 | AS84: 0.07215883346 | AT84: 0.1267175612 | AU84: 0.1988763947 | AV84: 240.6774646 | AW84: 52.51530176 | AX84: 42.86790812 | AY84: 3.833974285 | AZ84: 4.638735227 | BA84: 0.1779621562 | BB84: 1.378558721 | BC84: 346.0899049 | BD84: 60.31774743 | BE84: 6.504813771 | BF84: 0.1737540231 | BG84: 1.844547987 | BH84: 12.09148296 | BI84: 7.484217826 | BJ84: 428.9380082 | BK84: 349.2906703 | BL84: 19339.71925 | BM84: 23593.6377 | BN84: 17812.71359 | BO84: 20960.21143 | BP84: 27415.89702 | BQ84: 0.3455210899 | BR84: 0.1341123993 | BS84: 0.05684196313 | BT84: 0.00190557659 | BU84: 0.1530908116 | BV84: 0.00860837052 | BW84: 0.287662149 | BX84: 0.01225767567 | BY84: 0.343887634 | BZ84: 0.1620028526 | CA84: 0.04949652443 | CB84: 0.0009284306766 | CC84: 0.1241758285 | CD84: 0.005733062598 | CE84: 0.3059981106 | CF84: 0.00777755655 | CG84: 1650.184162 | CH84: 27.79403932 | CI84: 767.5831996 | CJ84: 595.043686 | CK84: 1468.502648 | CL84: 241.4137249 | CM84: 4.951484256 | CN84: 40.7507241 | CO84: 4796.223668
B85: 42046 | C85: 10 | D85: 39 | E85: All_In | F85: 3 | G85: L | H85: L | I85: 1 | J85: 3 | K85: 7 | L85: 7 | M85: 7 | N85: H | O85: H | P85: U | Q85: H | R85: U | S85: H | T85: H | U85: 2050 | V85: 13.68170441 | W85: 2.342445206 | X85: 3.195484588 | Y85: 0.1656661862 | Z85: 0.1377778232 | AA85: 0.01883672004 | AB85: 0.06971894014 | AC85: 19.61163387 | AD85: 0.08986016163 | AE85: 0.08986016163 | AF85: 0.08986016163 | AG85: 0.008667214798 | AH85: 0.008667214798 | AI85: 0.008667214798 | AJ85: 465.3222509 | AK85: 465.3222509 | AL85: 465.3222509 | AM85: 23.72684775 | AN85: 23.72684775 | AO85: 23.72684775 | AP85: 0.08438236343 | AQ85: 0.08438236343 | AR85: 0.08438236343 | AS85: 0.07185896191 | AT85: 0.1104472394 | AU85: 0.1823062013 | AV85: 266.0489512 | AW85: 40.29567941 | AX85: 69.26021116 | AY85: 9.395525818 | AZ85: 6.856277219 | BA85: 0.9119828901 | BB85: 3.493962593 | BC85: 396.2625903 | BD85: 82.69664217 | BE85: 7.782697714 | BF85: 0.4836064367 | BG85: 2.915755135 | BH85: 23.86900555 | BI85: 15.67421001 | BJ85: 417.9810277 | BK85: 350.0320021 | BL85: 17409.72744 | BM85: 21252.70209 | BN85: 16049.97197 | BO85: 19006.2883 | BP85: 24601.6933 | BQ85: 0.3736482294 | BR85: 0.0982606545 | BS85: 0.05770857989 | BT85: 0.00577520634 | BU85: 0.1774602528 | BV85: 0.0154252796 | BW85: 0.2521725592 | BX85: 0.01954923828 | BY85: 0.3596289991 | BZ85: 0.1157047863 | CA85: 0.05782725598 | CB85: 0.003868906296 | CC85: 0.1653664631 | CD85: 0.01199309241 | CE85: 0.2697107601 | CF85: 0.01589973664 | CG85: 2011.651349 | CH85: 64.94837848 | CI85: 635.8360988 | CJ85: 879.4576278 | CK85: 1490.452827 | CL85: 318.9657359 | CM85: 22.72253587 | CN85: 90.41458102 | CO85: 5514.449134
B86: 41020 | C86: 10 | D86: 40 | E86: All_In | F86: 3 | G86: L | H86: L | I86: 1 | J86: 3 | K86: 5 | L86: 5 | M86: 7 | N86: H | O86: L | P86: U | Q86: L | R86: U | S86: H | T86: H | U86: 2035 | V86: 13.07567788 | W86: 3.128023961 | X86: 2.208748816 | Y86: 0.06948799086 | Z86: 0.1645725523 | AA86: 0.02518788126 | AB86: 0.1768777163 | AC86: 18.84857679 | AD86: 0.09386157117 | AE86: 0.09386157117 | AF86: 0.09386157117 | AG86: 0.008963779997 | AH86: 0.008963779997 | AI86: 0.008963779997 | AJ86: 456.2693191 | AK86: 456.2693191 | AL86: 456.2693191 | AM86: 24.2070966 | AN86: 24.2070966 | AO86: 24.2070966 | AP86: 0.0952452405 | AQ86: 0.0952452405 | AR86: 0.0952452405 | AS86: 0.07150709642 | AT86: 0.1278168621 | AU86: 0.1993239586 | AV86: 231.701012 | AW86: 50.11094385 | AX86: 40.53849227 | AY86: 3.57173832 | AZ86: 7.350446752 | BA86: 1.099890042 | BB86: 8.179965757 | BC86: 342.552489 | BD86: 57.01436879 | BE86: 10.62198939 | BF86: 1.163692294 | BG86: 11.66062545 | BH86: 11.27642349 | BI86: 6.976330807 | BJ86: 432.156586 | BK86: 351.8980717 | BL86: 19547.1733 | BM86: 23793.60484 | BN86: 17858.23349 | BO86: 21208.73148 | BP86: 27456.07685 | BQ86: 0.3250725555 | BR86: 0.1260387971 | BS86: 0.08338695735 | BT86: 0.009407119006 | BU86: 0.1433469167 | BV86: 0.04768709212 | BW86: 0.2537114031 | BX86: 0.01134919471 | BY86: 0.3273917596 | BZ86: 0.1543065375 | CA86: 0.07868338267 | CB86: 0.005729834421 | CC86: 0.1171623547 | CD86: 0.03495064162 | CE86: 0.2745444073 | CF86: 0.00723108215 | CG86: 1568.678657 | CH86: 167.3473364 | CI86: 730.0809084 | CJ86: 561.2667461 | CK86: 1315.233913 | CL86: 380.088927 | CM86: 29.87795011 | CN86: 37.89400651 | CO86: 4790.468444
B87: 42044 | C87: 10 | D87: 40 | E87: All_In | F87: 3 | G87: L | H87: L | I87: 1 | J87: 3 | K87: 5 | L87: 5 | M87: 7 | N87: H | O87: L | P87: U | Q87: L | R87: U | S87: H | T87: H | U87: 2050 | V87: 12.90297715 | W87: 2.190718284 | X87: 2.971035687 | Y87: 0.1516368218 | Z87: 0.190643619 | AA87: 0.07877463561 | AB87: 0.3322122077 | AC87: 18.81799841 | AD87: 0.09510911332 | AE87: 0.09510911332 | AF87: 0.09510911332 | AG87: 0.008804183206 | AH87: 0.008804183206 | AI87: 0.008804183206 | AJ87: 458.6452736 | AK87: 458.6452736 | AL87: 458.6452736 | AM87: 24.3726917 | AN87: 24.3726917 | AO87: 24.3726917 | AP87: 0.08329646405 | AQ87: 0.08329646405 | AR87: 0.08329646405 | AS87: 0.07110861226 | AT87: 0.111286152 | AU87: 0.1823947642 | AV87: 250.9061325 | AW87: 37.68561222 | AX87: 64.39541589 | AY87: 8.599870059 | AZ87: 9.487052939 | BA87: 3.813886902 | BB87: 16.64880482 | BC87: 391.5367753 | BD87: 76.85479655 | BE87: 11.62514852 | BF87: 2.300719483 | BG87: 15.9146471 | BH87: 21.89947875 | BI87: 14.36351593 | BJ87: 420.5454479 | BK87: 352.161791 | BL87: 17613.87552 | BM87: 21335.39708 | BN87: 16100.95734 | BO87: 19193.05553 | BP87: 24652.63803 | BQ87: 0.3446280551 | BR87: 0.0904244473 | BS87: 0.0757921357 | BT87: 0.02247637932 | BU87: 0.1627294909 | BV87: 0.07135827417 | BW87: 0.2149053355 | BX87: 0.01768588199 | BY87: 0.3349091909 | BZ87: 0.1077715328 | CA87: 0.07994501778 | CB87: 0.01608287623 | CC87: 0.1531311166 | CD87: 0.05950186202 | CE87: 0.2341390238 | CF87: 0.01451937983 | CG87: 1872.491694 | CH87: 320.8348911 | CI87: 591.7249724 | CJ87: 813.9378471 | CK87: 1292.059552 | CL87: 438.7724509 | CM87: 93.84140518 | CN87: 82.51657695 | CO87: 5506.17939
B88: 41004 | C88: 10 | D88: 41 | E88: All_In | F88: 3 | G88: L | H88: L | I88: 1 | J88: 3 | K88: 5 | L88: 5 | M88: 3 | N88: H | O88: L | P88: U | Q88: L | R88: U | S88: H | T88: L | U88: 2035 | V88: 13.05881375 | W88: 3.124122178 | X88: 2.205107064 | Y88: 0.08321092213 | Z88: 0.1643112419 | AA88: 0.02513165182 | AB88: 0.1765021088 | AC88: 18.83719891 | AD88: 0.09397889331 | AE88: 0.09397889331 | AF88: 0.09397889331 | AG88: 0.008967490342 | AH88: 0.008967490342 | AI88: 0.008967490342 | AJ88: 456.0428979 | AK88: 456.0428979 | AL88: 456.0428979 | AM88: 24.20969806 | AN88: 24.20969806 | AO88: 24.20969806 | AP88: 0.09518959666 | AQ88: 0.09518959666 | AR88: 0.09518959666 | AS88: 0.07140919163 | AT88: 0.127888085 | AU88: 0.1992972766 | AV88: 231.4021796 | AW88: 50.0484373 | AX88: 40.47165302 | AY88: 3.592515068 | AZ88: 7.338775618 | BA88: 1.097434647 | BB88: 8.162595244 | BC88: 342.1135905 | BD88: 56.91958307 | BE88: 10.60714245 | BF88: 1.161235735 | BG88: 11.63786037 | BH88: 13.64446688 | BI88: 8.40484176 | BJ88: 432.4988338 | BK88: 352.1251509 | BL88: 19559.37286 | BM88: 23815.71097 | BN88: 17861.08394 | BO88: 21233.95191 | BP88: 27476.4788 | BQ88: 0.3244485177 | BR88: 0.1257830231 | BS88: 0.08320467681 | BT88: 0.009383790931 | BU88: 0.1430414817 | BV88: 0.04756768021 | BW88: 0.2532136586 | BX88: 0.01335720657 | BY88: 0.3269838537 | BZ88: 0.1541187591 | CA88: 0.07856220889 | CB88: 0.005717278543 | CC88: 0.1169711514 | CD88: 0.03487917575 | CE88: 0.2741998708 | CF88: 0.008567701749 | CG88: 1566.581652 | CH88: 166.9953042 | CI88: 729.1220351 | CJ88: 560.3206816 | CK88: 1313.475734 | CL88: 379.4743924 | CM88: 29.81112263 | CN88: 45.1091957 | CO88: 4790.890117
B89: 42028 | C89: 10 | D89: 41 | E89: All_In | F89: 3 | G89: L | H89: L | I89: 1 | J89: 3 | K89: 5 | L89: 5 | M89: 3 | N89: H | O89: L | P89: U | Q89: L | R89: U | S89: H | T89: L | U89: 2050 | V89: 12.86771335 | W89: 2.184587883 | X89: 2.962035618 | Y89: 0.183951577 | Z89: 0.1900537525 | AA89: 0.07848263598 | AB89: 0.3309704276 | AC89: 18.79779524 | AD89: 0.09536135774 | AE89: 0.09536135774 | AF89: 0.09536135774 | AG89: 0.008809808349 | AH89: 0.008809808349 | AI89: 0.008809808349 | AJ89: 458.2627467 | AK89: 458.2627467 | AL89: 458.2627467 | AM89: 24.378537 | AN89: 24.378537 | AO89: 24.378537 | AP89: 0.08321298417 | AQ89: 0.08321298417 | AR89: 0.08321298417 | AS89: 0.07091018609 | AT89: 0.1113926793 | AU89: 0.1823028654 | AV89: 250.2204067 | AW89: 37.58015459 | AX89: 64.20034479 | AY89: 8.665002244 | AZ89: 9.457699241 | BA89: 3.799749692 | BB89: 16.58657305 | BC89: 390.5099303 | BD89: 76.62054718 | BE89: 11.59841206 | BF89: 2.293503566 | BG89: 15.86972783 | BH89: 26.67171913 | BI89: 17.46388566 | BJ89: 421.0699987 | BK89: 352.5582312 | BL89: 17632.8267 | BM89: 21364.23875 | BN89: 16108.07805 | BO89: 19225.6659 | BP89: 24684.63643 | BQ89: 0.3434009288 | BR89: 0.09007770542 | BS89: 0.07548825495 | BT89: 0.02237984141 | BU89: 0.1620979494 | BV89: 0.07104250546 | BW89: 0.2141122634 | BX89: 0.0214005511 | BY89: 0.3339901073 | BZ89: 0.1074704342 | CA89: 0.07970095107 | CB89: 0.01602415649 | CC89: 0.1526659005 | CD89: 0.05928700514 | CE89: 0.2334946615 | CF89: 0.01736678373 | CG89: 1867.19849 | CH89: 319.6466648 | CI89: 590.0088725 | CJ89: 811.3903731 | CK89: 1288.381115 | CL89: 437.3902 | CM89: 93.49201018 | CN89: 99.59854216 | CO89: 5507.106268
B90: 40980 | C90: 10 | D90: 42 | E90: All_In | F90: 3 | G90: L | H90: L | I90: 1 | J90: 3 | K90: 1 | L90: 1 | M90: 5 | N90: H | O90: L | P90: R | Q90: L | R90: R | S90: L | T90: H | U90: 2035 | V90: 12.73902176 | W90: 3.049276938 | X90: 2.137088117 | Y90: 0.3196030036 | Z90: 0.1629387493 | AA90: 0.02391673961 | AB90: 0.1703085129 | AC90: 18.60215382 | AD90: 0.09626051673 | AE90: 0.09626051673 | AF90: 0.09626051673 | AG90: 0.009039262705 | AH90: 0.009039262705 | AI90: 0.009039262705 | AJ90: 451.3027263 | AK90: 451.3027263 | AL90: 451.3027263 | AM90: 24.26077811 | AN90: 24.26077811 | AO90: 24.26077811 | AP90: 0.09415390094 | AQ90: 0.09415390094 | AR90: 0.09415390094 | AS90: 0.07222437239 | AT90: 0.1282622728 | AU90: 0.2004866452 | AV90: 225.7354656 | AW90: 48.84941655 | AX90: 39.22326047 | AY90: 16.42785007 | AZ90: 7.029162004 | BA90: 1.052793687 | BB90: 7.871172216 | BC90: 346.1891205 | BD90: 55.14921936 | BE90: 8.623805484 | BF90: 1.224101616 | BG90: 11.20725313 | BH90: 54.42387199 | BI90: 33.0192995 | BJ90: 433.8370623 | BK90: 353.3290306 | BL90: 19630.90565 | BM90: 23865.21803 | BN90: 17920.84612 | BO90: 21286.34511 | BP90: 27599.98632 | BQ90: 0.3130864337 | BR90: 0.1212287022 | BS90: 0.08262591301 | BT90: 0.008875001878 | BU90: 0.1376709387 | BV90: 0.04557512832 | BW90: 0.2431718459 | BX90: 0.04776607191 | BY90: 0.3190157551 | BZ90: 0.1505127778 | CA90: 0.07778900946 | CB90: 0.005441837361 | CC90: 0.1133980702 | CD90: 0.03362972606 | CE90: 0.2668989487 | CF90: 0.0333138754 | CG90: 1525.724618 | CH90: 161.1339239 | CI90: 710.7448655 | CJ90: 542.6914767 | CK90: 1276.185379 | CL90: 375.9318881 | CM90: 28.36540313 | CN90: 172.4675662 | CO90: 4793.24512
B91: 42004 | C91: 10 | D91: 42 | E91: All_In | F91: 3 | G91: L | H91: L | I91: 1 | J91: 3 | K91: 1 | L91: 1 | M91: 5 | N91: H | O91: L | P91: R | Q91: L | R91: R | S91: L | T91: H | U91: 2050 | V91: 12.39110913 | W91: 2.098050943 | X91: 2.839439241 | Y91: 0.5710267249 | Z91: 0.1934294193 | AA91: 0.07412716629 | AB91: 0.3159388638 | AC91: 18.48312149 | AD91: 0.09890666382 | AE91: 0.09890666382 | AF91: 0.09890666382 | AG91: 0.008889986909 | AH91: 0.008889986909 | AI91: 0.008889986909 | AJ91: 452.2600537 | AK91: 452.2600537 | AL91: 452.2600537 | AM91: 24.46881356 | AN91: 24.46881356 | AO91: 24.46881356 | AP91: 0.08209294428 | AQ91: 0.08209294428 | AR91: 0.08209294428 | AS91: 0.07253029073 | AT91: 0.111511833 | AU91: 0.1840421237 | AV91: 240.9525516 | AW91: 36.09151154 | AX91: 61.54314189 | AY91: 32.38498127 | AZ91: 9.206189649 | BA91: 3.575844243 | BB91: 15.82400746 | BC91: 399.5782277 | BD91: 73.42966899 | BE91: 9.294451862 | BF91: 2.293427208 | BG91: 15.15776289 | BH91: 86.9366668 | BI91: 55.62842918 | BJ91: 421.3951115 | BK91: 353.0645424 | BL91: 17660.11982 | BM91: 21339.32444 | BN91: 16185.08262 | BO91: 19200.63763 | BP91: 24754.70549 | BQ91: 0.3284760113 | BR91: 0.0860044229 | BS91: 0.07797455664 | BT91: 0.02110745669 | BU91: 0.1546870634 | BV91: 0.06752401611 | BW91: 0.2022286386 | BX91: 0.0619978345 | BY91: 0.3208081435 | BZ91: 0.1031533473 | CA91: 0.08076554598 | CB91: 0.01512579921 | CC91: 0.1462528066 | CD91: 0.05652697418 | CE91: 0.2224389831 | CF91: 0.05492840021 | CG91: 1792.784424 | CH91: 305.1422158 | CI91: 565.9842916 | CJ91: 776.9859022 | CK91: 1226.235595 | CL91: 444.3838829 | CM91: 88.27947679 | CN91: 309.3263134 | CO91: 5509.122101
B92: 40988 | C92: 10 | D92: 43 | E92: All_In | F92: 3 | G92: L | H92: L | I92: 1 | J92: 3 | K92: 1 | L92: 1 | M92: 7 | N92: H | O92: L | P92: R | Q92: L | R92: R | S92: H | T92: H | U92: 2035 | V92: 13.07200647 | W92: 3.125512037 | X92: 2.206420095 | Y92: 0.06940316407 | Z92: 0.1679789339 | AA92: 0.02488744784 | AB92: 0.1770566434 | AC92: 18.8432648 | AD92: 0.09388708781 | AE92: 0.09388708781 | AF92: 0.09388708781 | AG92: 0.008966168323 | AH92: 0.008966168323 | AI92: 0.008966168323 | AJ92: 456.2506789 | AK92: 456.2506789 | AL92: 456.2506789 | AM92: 24.21293145 | AN92: 24.21293145 | AO92: 24.21293145 | AP92: 0.09523404422 | AQ92: 0.09523404422 | AR92: 0.09523404422 | AS92: 0.0714478567 | AT92: 0.1278202465 | AU92: 0.1992681033 | AV92: 231.6359547 | AW92: 50.07070284 | AX92: 40.49575185 | AY92: 3.567378156 | AZ92: 7.246595081 | BA92: 1.095523404 | BB92: 8.183051499 | BC92: 342.2949576 | BD92: 56.95375798 | BE92: 8.854479133 | BF92: 1.271150775 | BG92: 11.61543104 | BH92: 11.2636384 | BI92: 6.968139835 | BJ92: 432.2208243 | BK92: 351.9343834 | BL92: 19550.47601 | BM92: 23795.3936 | BN92: 17864.43478 | BO92: 21211.35408 | BP92: 27460.7093 | BQ92: 0.3245878884 | BR92: 0.125851014 | BS92: 0.08595387147 | BT92: 0.009269103216 | BU92: 0.1431353943 | BV92: 0.04763761588 | BW92: 0.2522322563 | BX92: 0.01133289198 | BY92: 0.3271188448 | BZ92: 0.1541928104 | CA92: 0.08013329452 | CB92: 0.005660523877 | CC92: 0.1170465858 | CD92: 0.03492951157 | CE92: 0.273695874 | CF92: 0.007222555089 | CG92: 1567.232024 | CH92: 167.516943 | CI92: 729.4812745 | CJ92: 560.6790625 | CK92: 1310.75179 | CL92: 387.8028611 | CM92: 29.52382107 | CN92: 37.848134 | CO92: 4790.83591
B93: 42012 | C93: 10 | D93: 43 | E93: All_In | F93: 3 | G93: L | H93: L | I93: 1 | J93: 3 | K93: 1 | L93: 1 | M93: 7 | N93: H | O93: L | P93: R | Q93: L | R93: R | S93: H | T93: H | U93: 2050 | V93: 12.89142361 | W93: 2.184972862 | X93: 2.962774463 | Y93: 0.1512080102 | Z93: 0.2019593263 | AA93: 0.07777955423 | AB93: 0.3319541577 | AC93: 18.80207198 | AD93: 0.09519160948 | AE93: 0.09519160948 | AF93: 0.09519160948 | AG93: 0.008809454888 | AH93: 0.008809454888 | AI93: 0.008809454888 | AJ93: 458.608511 | AK93: 458.608511 | AL93: 458.608511 | AM93: 24.39138152 | AN93: 24.39138152 | AO93: 24.39138152 | AP93: 0.0832808873 | AQ93: 0.0832808873 | AR93: 0.0832808873 | AS93: 0.07101270828 | AT93: 0.111312616 | AU93: 0.1823253243 | AV93: 250.681467 | AW93: 37.58677716 | AX93: 64.21635881 | AY93: 8.575550608 | AZ93: 9.612166889 | BA93: 3.752032962 | BB93: 16.62614407 | BC93: 391.0504975 | BD93: 76.63977747 | BE93: 9.600691979 | BF93: 2.396933802 | BG93: 15.81594464 | BH93: 21.84221135 | BI93: 14.32439232 | BJ93: 420.7112644 | BK93: 352.2831799 | BL93: 17621.33487 | BM93: 21340.26052 | BN93: 16116.05179 | BO93: 19198.96707 | BP93: 24663.58433 | BQ93: 0.3433774104 | BR93: 0.09009627834 | BS93: 0.08179348645 | BT93: 0.02220366736 | BU93: 0.1621446789 | BV93: 0.07114154469 | BW93: 0.2116188505 | BX93: 0.01762408338 | BY93: 0.334017071 | BZ93: 0.1075016846 | CA93: 0.08436681134 | CB93: 0.01587380445 | CC93: 0.1527229255 | CD93: 0.05936666297 | CE93: 0.2316709619 | CF93: 0.01448007821 | CG93: 1867.278782 | CH93: 320.5880521 | CI93: 590.164916 | CJ93: 811.6731916 | CK93: 1277.721545 | CL93: 464.3909982 | CM93: 92.66528406 | CN93: 82.28506097 | CO93: 5506.76783
B94: 41012 | C94: 10 | D94: 44 | E94: All_In | F94: 3 | G94: L | H94: L | I94: 1 | J94: 3 | K94: 5 | L94: 5 | M94: 5 | N94: H | O94: L | P94: U | Q94: L | R94: U | S94: L | T94: H | U94: 2035 | V94: 12.742223 | W94: 3.051627142 | X94: 2.139254489 | Y94: 0.3199613073 | Z94: 0.1596398909 | AA94: 0.02420404469 | AB94: 0.1701275404 | AC94: 18.60703742 | AD94: 0.09623712793 | AE94: 0.09623712793 | AF94: 0.09623712793 | AG94: 0.009036991525 | AH94: 0.009036991525 | AI94: 0.009036991525 | AJ94: 451.3155937 | AK94: 451.3155937 | AL94: 451.3155937 | AM94: 24.25510217 | AN94: 24.25510217 | AO94: 24.25510217 | AP94: 0.09416349363 | AQ94: 0.09416349363 | AR94: 0.09416349363 | AS94: 0.07228272577 | AT94: 0.1282594536 | AU94: 0.2005421794 | AV94: 225.7921916 | AW94: 48.88706681 | AX94: 39.26302118 | AY94: 16.44626717 | AZ94: 7.130135017 | BA94: 1.056928427 | BB94: 7.867794108 | BC94: 346.4434044 | BD94: 55.20560461 | BE94: 10.34122483 | BF94: 1.120471881 | BG94: 11.25023682 | BH94: 54.47853619 | BI94: 33.05411338 | BJ94: 433.7772307 | BK94: 353.2953434 | BL94: 19627.84216 | BM94: 23863.59983 | BN94: 17914.79177 | BO94: 21283.94818 | BP94: 27595.72344 | BQ94: 0.3135380016 | BR94: 0.1214031579 | BS94: 0.08014694683 | BT94: 0.009006710913 | BU94: 0.1378668425 | BV94: 0.04561968213 | BW94: 0.2445858985 | BX94: 0.04783279517 | BY94: 0.3192709571 | BZ94: 0.1506190021 | CA94: 0.07638617582 | CB94: 0.005508145985 | CC94: 0.1135056024 | CD94: 0.0336484003 | CE94: 0.2677120662 | CF94: 0.03334965003 | CG94: 1527.077101 | CH94: 160.9624302 | CI94: 711.3046562 | CJ94: 543.2372721 | CK94: 1280.47989 | CL94: 368.4689367 | CM94: 28.70395625 | CN94: 172.6592274 | CO94: 4792.89347
B95: 42036 | C95: 10 | D95: 44 | E95: All_In | F95: 3 | G95: L | H95: L | I95: 1 | J95: 3 | K95: 5 | L95: 5 | M95: 5 | N95: H | O95: L | P95: U | Q95: L | R95: U | S95: L | T95: H | U95: 2050 | V95: 12.40092958 | W95: 2.103339526 | X95: 2.847020757 | Y95: 0.5725581736 | Z95: 0.1825502148 | AA95: 0.07506574869 | AB95: 0.3161413093 | AC95: 18.49760531 | AD95: 0.0988309547 | AE95: 0.0988309547 | AF95: 0.0988309547 | AG95: 0.008885045063 | AH95: 0.008885045063 | AI95: 0.008885045063 | AJ95: 452.2795128 | AK95: 452.2795128 | AL95: 452.2795128 | AM95: 24.45070619 | AN95: 24.45070619 | AO95: 24.45070619 | AP95: 0.08210472863 | AQ95: 0.08210472863 | AR95: 0.08210472863 | AS95: 0.07262637208 | AT95: 0.1114869159 | AU95: 0.184113288 | AV95: 241.1435163 | AW95: 36.18248785 | AX95: 61.70746671 | AY95: 32.47183523 | AZ95: 9.08429855 | BA95: 3.634320534 | BB95: 15.84341223 | BC95: 400.0673374 | BD95: 73.62699696 | BE95: 11.2247039 | BF95: 2.200220935 | BG95: 15.25038341 | BH95: 87.14303593 | BI95: 55.76873742 | BJ95: 421.2386456 | BK95: 352.9501729 | BL95: 17653.15041 | BM95: 21334.71588 | BN95: 16170.49867 | BO95: 19195.03285 | BP95: 24744.58385 | BQ95: 0.3296221499 | BR95: 0.08630378638 | BS95: 0.07222667805 | BT95: 0.0213631187 | BU95: 0.1552199143 | BV95: 0.06771799064 | BW95: 0.2053391862 | BX95: 0.06220717573 | BY95: 0.3216301669 | BZ95: 0.1034012967 | CA95: 0.07651832934 | CB95: 0.01532308551 | CC95: 0.1466266666 | CD95: 0.05664827478 | CE95: 0.2247831375 | CF95: 0.05506904257 | CG95: 1797.586294 | CH95: 305.3356132 | CI95: 567.4168498 | CJ95: 779.0592194 | CK95: 1239.850558 | CL95: 419.7822673 | CM95: 89.38824419 | CN95: 310.1493429 | CO95: 5508.568389
B96: 40990 | C96: 10 | D96: 45 | E96: All_In | F96: 3 | G96: L | H96: L | I96: 1 | J96: 3 | K96: 3 | L96: 3 | M96: 7 | N96: H | O96: H | P96: R | Q96: H | R96: R | S96: H | T96: H | U96: 2035 | V96: 13.57941783 | W96: 3.276419184 | X96: 2.334027831 | Y96: 0.0745240836 | Z96: 0.1061719199 | AA96: 0.004033899822 | AB96: 0.02987406824 | AC96: 19.40446882 | AD96: 0.09048730195 | AE96: 0.09048730195 | AF96: 0.09048730195 | AG96: 0.008824909339 | AH96: 0.008824909339 | AI96: 0.008824909339 | AJ96: 462.3846115 | AK96: 462.3846115 | AL96: 462.3846115 | AM96: 23.82876933 | AN96: 23.82876933 | AO96: 23.82876933 | AP96: 0.09640253306 | AQ96: 0.09640253306 | AR96: 0.09640253306 | AS96: 0.07212134346 | AT96: 0.1267293829 | AU96: 0.1988507264 | AV96: 240.627284 | AW96: 52.48823533 | AX96: 42.8378132 | AY96: 3.830597516 | AZ96: 4.580246433 | BA96: 0.1775686961 | BB96: 1.380693964 | BC96: 345.9224391 | BD96: 60.27506938 | BE96: 5.41231814 | BF96: 0.189414022 | BG96: 1.839059267 | BH96: 12.08163696 | BI96: 7.477891645 | BJ96: 429.0178309 | BK96: 349.3357228 | BL96: 19343.45303 | BM96: 23597.12931 | BN96: 17816.93238 | BO96: 20964.58459 | BP96: 27421.30552 | BQ96: 0.3451842985 | BR96: 0.1339791703 | BS96: 0.05862361952 | BT96: 0.001881167148 | BU96: 0.1529366948 | BV96: 0.00860238817 | BW96: 0.2865478932 | BX96: 0.01224480404 | BY96: 0.3437031831 | BZ96: 0.1619252214 | CA96: 0.0504815084 | CB96: 0.0009184888045 | CC96: 0.1240932533 | CD96: 0.005730517321 | CE96: 0.3053769118 | CF96: 0.007770915886 | CG96: 1649.20587 | CH96: 27.85508744 | CI96: 767.1729376 | CJ96: 594.6245842 | CK96: 1465.219887 | CL96: 246.7001562 | CM96: 4.901318052 | CN96: 40.71499273 | CO96: 4796.394834
B97: 42014 | C97: 10 | D97: 45 | E97: All_In | F97: 3 | G97: L | H97: L | I97: 1 | J97: 3 | K97: 3 | L97: 3 | M97: 7 | N97: H | O97: H | P97: R | Q97: H | R97: R | S97: H | T97: H | U97: 2050 | V97: 13.67148462 | W97: 2.338112078 | X97: 3.189101024 | Y97: 0.1653039375 | Z97: 0.1462271398 | AA97: 0.01865972548 | AB97: 0.06978973712 | AC97: 19.59867826 | AD97: 0.08992529275 | AE97: 0.08992529275 | AF97: 0.08992529275 | AG97: 0.008671067299 | AH97: 0.008671067299 | AI97: 0.008671067299 | AJ97: 465.2956522 | AK97: 465.2956522 | AL97: 465.2956522 | AM97: 23.74117509 | AN97: 23.74117509 | AO97: 23.74117509 | AP97: 0.08437299724 | AQ97: 0.08437299724 | AR97: 0.08437299724 | AS97: 0.07179358865 | AT97: 0.1104862626 | AU97: 0.1822798512 | AV97: 265.8502214 | AW97: 40.22113921 | AX97: 69.12185124 | AY97: 9.374981388 | AZ97: 6.959617546 | BA97: 0.9001325057 | BB97: 3.495465254 | BC97: 395.9234085 | BD97: 82.5304939 | BE97: 6.265481561 | BF97: 0.496719711 | BG97: 2.899629884 | BH97: 23.82081076 | BI97: 15.6412164 | BJ97: 418.1862799 | BK97: 350.174528 | BL97: 17418.74493 | BM97: 21260.7125 | BN97: 16061.09929 | BO97: 19016.2644 | BP97: 24614.63505 | BQ97: 0.3726785353 | BR97: 0.09799876214 | BS97: 0.06234644609 | BT97: 0.005722920578 | BU97: 0.1769874872 | BV97: 0.01538853255 | BW97: 0.2493818775 | BX97: 0.01949543875 | BY97: 0.3589583984 | BZ97: 0.1154981351 | CA97: 0.06113678001 | CB97: 0.003829494175 | CC97: 0.1650457779 | CD97: 0.01197177713 | CE97: 0.2676933313 | CF97: 0.01586630596 | CG97: 2007.728589 | CH97: 65.01516809 | CI97: 634.6375952 | CJ97: 877.6758572 | CK97: 1478.703035 | CL97: 338.2584361 | CM97: 22.50995399 | CN97: 90.21740298 | CO97: 5514.746038
B98: 40972 | C98: 10 | D98: 46 | E98: All_In | F98: 3 | G98: L | H98: L | I98: 1 | J98: 3 | K98: 1 | L98: 1 | M98: 3 | N98: H | O98: L | P98: R | Q98: L | R98: R | S98: H | T98: L | U98: 2035 | V98: 13.05516722 | W98: 3.121618889 | X98: 2.202787322 | Y98: 0.08311004756 | Z98: 0.1677119564 | AA98: 0.02483197483 | AB98: 0.17668121 | AC98: 18.83190862 | AD98: 0.09400430039 | AE98: 0.09400430039 | AF98: 0.09400430039 | AG98: 0.008969872427 | AH98: 0.008969872427 | AI98: 0.008969872427 | AJ98: 456.0245355 | AK98: 456.0245355 | AL98: 456.0245355 | AM98: 24.21552401 | AN98: 24.21552401 | AO98: 24.21552401 | AP98: 0.09517848783 | AQ98: 0.09517848783 | AR98: 0.09517848783 | AS98: 0.07135017801 | AT98: 0.1278913768 | AU98: 0.1992415548 | AV98: 231.3375632 | AW98: 50.00833461 | AX98: 40.4290774 | AY98: 3.588159949 | AZ98: 7.235077699 | BA98: 1.093081531 | BB98: 8.165700042 | BC98: 341.8569944 | BD98: 56.85920596 | BE98: 8.842306981 | BF98: 1.268478487 | BG98: 11.59279195 | BH98: 13.62925716 | BI98: 8.395098821 | BJ98: 432.5624646 | BK98: 352.1611339 | BL98: 19562.65159 | BM98: 23817.46568 | BN98: 17867.2793 | BO98: 21236.52859 | BP98: 27481.07079 | BQ98: 0.323965664 | BR98: 0.1255959858 | BS98: 0.0857668061 | BT98: 0.009246140361 | BU98: 0.1428308428 | BV98: 0.04751849518 | BW98: 0.2517380653 | BX98: 0.01333803609 | BY98: 0.3267118736 | BZ98: 0.1540054304 | CA98: 0.08000965675 | CB98: 0.005648138974 | CC98: 0.1168558351 | CD98: 0.0348581898 | CE98: 0.2733531895 | CF98: 0.008557685773 | CG98: 1565.140022 | CH98: 167.1650713 | CI98: 728.5245329 | CJ98: 559.7353177 | CK98: 1309.003494 | CL98: 387.1750984 | CM98: 29.45788704 | CN98: 45.05494008 | CO98: 4791.256364
B99: 41996 | C99: 10 | D99: 46 | E99: All_In | F99: 3 | G99: L | H99: L | I99: 1 | J99: 3 | K99: 1 | L99: 1 | M99: 3 | N99: H | O99: L | P99: R | Q99: L | R99: R | S99: H | T99: L | U99: 2050 | V99: 12.85628923 | W99: 2.178876876 | X99: 2.953826863 | Y99: 0.1834307566 | Z99: 0.2013370984 | AA99: 0.077492019 | AB99: 0.3307171111 | AC99: 18.78196995 | AD99: 0.09544336245 | AE99: 0.09544336245 | AF99: 0.09544336245 | AG99: 0.008815055134 | AH99: 0.008815055134 | AI99: 0.008815055134 | AJ99: 458.2270975 | AK99: 458.2270975 | AL99: 458.2270975 | AM99: 24.39717978 | AN99: 24.39717978 | AO99: 24.39717978 | AP99: 0.08319769336 | AQ99: 0.08319769336 | AR99: 0.08319769336 | AS99: 0.07081516375 | AT99: 0.1114187346 | AU99: 0.1822338983 | AV99: 249.9982578 | AW99: 37.48191158 | AX99: 64.02242497 | AY99: 8.640469103 | AZ99: 9.582552219 | BA99: 3.738162457 | BB99: 16.56418578 | BC99: 390.0279639 | BD99: 76.40689375 | BE99: 9.58155637 | BF99: 2.389607705 | BG99: 15.7714963 | BH99: 26.60220422 | BI99: 17.41637934 | BJ99: 421.2334071 | BK99: 352.67807 | BL99: 17640.19191 | BM99: 21368.98838 | BN99: 16123.13414 | BO99: 19231.42632 | BP99: 24695.41699 | BQ99: 0.3421589685 | BR99: 0.08975200522 | BS99: 0.08146870183 | BT99: 0.02210861954 | BU99: 0.1615175874 | BV99: 0.07082779899 | BW99: 0.2108403783 | BX99: 0.02132594018 | BY99: 0.3331031689 | BZ99: 0.1072022132 | CA99: 0.08410999917 | CB99: 0.01581599846 | CC99: 0.1522603332 | CD99: 0.05915292819 | CE99: 0.2310356579 | CF99: 0.01731970091 | CG99: 1862.016424 | CH99: 319.404334 | CI99: 588.4584645 | CJ99: 809.1405716 | CK99: 1274.096835 | CL99: 462.9333359 | CM99: 92.32119209 | CN99: 99.31876711 | CO99: 5507.689925
B100: 41006 | C100: 10 | D100: 47 | E100: All_In | F100: 3 | G100: L | H100: L | I100: 1 | J100: 3 | K100: 7 | L100: 7 | M100: 3 | N100: H | O100: H | P100: U | Q100: H | R100: U | S100: H | T100: L | U100: 2035 | V100: 13.56319822 | W100: 3.273669347 | X100: 2.331490983 | Y100: 0.08924878338 | Z100: 0.1036641929 | AA100: 0.004063797047 | AB100: 0.02973371202 | AC100: 19.39506903 | AD100: 0.0905921636 | AE100: 0.0905921636 | AF100: 0.0905921636 | AG100: 0.008827443541 | AH100: 0.008827443541 | AI100: 0.008827443541 | AJ100: 462.146359 | AK100: 462.146359 | AL100: 462.146359 | AM100: 23.82803373 | AN100: 23.82803373 | AO100: 23.82803373 | AP100: 0.09634743449 | AQ100: 0.09634743449 | AR100: 0.09634743449 | AS100: 0.07205237041 | AT100: 0.1267959037 | AU100: 0.1988482741 | AV100: 240.3398724 | AW100: 52.44418294 | AX100: 42.7912529 | AY100: 3.853191274 | AZ100: 4.630043827 | BA100: 0.1774555731 | BB100: 1.375078507 | BC100: 345.6110774 | BD100: 60.20904154 | BE100: 6.493850417 | BF100: 0.1732705228 | BG100: 1.840115951 | BH100: 14.61565566 | BI100: 9.008283823 | BJ100: 429.3133915 | BK100: 349.5387718 | BL100: 19353.129 | BM100: 23618.56 | BN100: 17815.61992 | BO100: 20988.19426 | BP100: 27436.80971 | BQ100: 0.3447990225 | BR100: 0.1338168122 | BS100: 0.05670106872 | BT100: 0.001900150139 | BU100: 0.1527362735 | BV100: 0.008583633741 | BW100: 0.2870463138 | BX100: 0.01441676098 | BY100: 0.3434199253 | BZ100: 0.1617883326 | CA100: 0.04940632176 | CB100: 0.0009258214111 | CC100: 0.1239557566 | CD100: 0.005718980436 | CE100: 0.3055771499 | CF100: 0.009207711983 | CG100: 1647.779362 | CH100: 27.724377 | CI100: 766.487358 | CJ100: 593.9549098 | CK100: 1466.353323 | CL100: 240.9551266 | CM100: 4.937422542 | CN100: 48.47303907 | CO100: 4796.664918
B101: 42030 | C101: 10 | D101: 47 | E101: All_In | F101: 3 | G101: L | H101: L | I101: 1 | J101: 3 | K101: 7 | L101: 7 | M101: 3 | N101: H | O101: H | P101: U | Q101: H | R101: U | S101: H | T101: L | U101: 2050 | V101: 13.64037569 | W101: 2.335232049 | X101: 3.184797259 | Y101: 0.200790639 | Z101: 0.137284288 | AA101: 0.01875365577 | AB101: 0.06941392398 | AC101: 19.5866475 | AD101: 0.09012413376 | AE101: 0.09012413376 | AF101: 0.09012413376 | AG101: 0.008673629773 | AH101: 0.008673629773 | AI101: 0.008673629773 | AJ101: 464.8812395 | AK101: 464.8812395 | AL101: 464.8812395 | AM101: 23.73459978 | AN101: 23.73459978 | AO101: 23.73459978 | AP101: 0.08428738296 | AQ101: 0.08428738296 | AR101: 0.08428738296 | AS101: 0.07163937285 | AT101: 0.110566268 | AU101: 0.1822056409 | AV101: 265.2452895 | AW101: 40.1715958 | AX101: 69.0285697 | AY101: 9.458202893 | AZ101: 6.831717288 | BA101: 0.9079613196 | BB101: 3.478676718 | BC101: 395.1220132 | BD101: 82.41847761 | BE101: 7.760987926 | BF101: 0.481700501 | BG101: 2.905575203 | BH101: 29.03966245 | BI101: 19.03861933 | BJ101: 418.5664004 | BK101: 350.4716178 | BL101: 17431.45925 | BM101: 21285.75925 | BN101: 16057.23695 | BO101: 19043.34209 | BP101: 24634.61694 | BQ101: 0.3721652396 | BR101: 0.09784269566 | BS101: 0.05744338877 | BT101: 0.005746089221 | BU101: 0.1766944667 | BV101: 0.01534598407 | BW101: 0.2511334451 | BX101: 0.0236286908 | BY101: 0.3585353926 | BZ101: 0.115348325 | CA101: 0.05762313397 | CB101: 0.003852101054 | CC101: 0.1648109358 | CD101: 0.01194215361 | CE101: 0.2688856398 | CF101: 0.0190023182 | CG101: 2005.348674 | CH101: 64.66591257 | CI101: 633.8021429 | CJ101: 876.4134628 | CK101: 1485.735042 | CL101: 317.8055194 | CM101: 22.62212013 | CN101: 109.038062 | CO101: 5515.430936
B102: 41014 | C102: 10 | D102: 48 | E102: All_In | F102: 3 | G102: L | H102: L | I102: 1 | J102: 3 | K102: 7 | L102: 7 | M102: 5 | N102: H | O102: H | P102: U | Q102: H | R102: U | S102: L | T102: H | U102: 2035 | V102: 13.20927507 | W102: 3.1919808 | X102: 2.256652564 | Y102: 0.3405559585 | Z102: 0.1002782893 | AA102: 0.003881936593 | AB102: 0.02849157232 | AC102: 19.13111619 | AD102: 0.09294239894 | AE102: 0.09294239894 | AF102: 0.09294239894 | AG102: 0.008903395842 | AH102: 0.008903395842 | AI102: 0.008903395842 | AJ102: 456.9121623 | AK102: 456.9121623 | AL102: 456.9121623 | AM102: 23.88319415 | AN102: 23.88319415 | AO102: 23.88319415 | AP102: 0.09521784375 | AQ102: 0.09521784375 | AR102: 0.09521784375 | AS102: 0.07295722466 | AT102: 0.1272252688 | AU102: 0.2001824935 | AV102: 234.0683542 | AW102: 51.13553242 | AX102: 41.4176985 | AY102: 17.50484871 | AZ102: 4.478816278 | BA102: 0.1695141944 | BB102: 1.317633961 | BC102: 350.0923983 | BD102: 58.26118397 | BE102: 6.302843016 | BF102: 0.1655976589 | BG102: 1.766459863 | BH102: 57.88542335 | BI102: 35.14527345 | BJ102: 430.7958041 | BK102: 350.8637534 | BL102: 19433.87065 | BM102: 23680.39169 | BN102: 17870.59535 | BO102: 21052.92918 | BP102: 27559.82575 | BQ102: 0.3322869958 | BR102: 0.1287969066 | BS102: 0.05438399733 | BT102: 0.001814563137 | BU102: 0.1467764269 | BV102: 0.008191704809 | BW102: 0.2764740435 | BX102: 0.05127539756 | BY102: 0.3346674014 | BZ102: 0.1578267414 | CA102: 0.04782793912 | CB102: 0.0008844120876 | CC102: 0.1200008249 | CD102: 0.00548382716 | CE102: 0.2977401118 | CF102: 0.03556874222 | CG102: 1602.951849 | CH102: 26.56751121 | CI102: 746.3143859 | CJ102: 574.465623 | CK102: 1426.481511 | CL102: 232.9545932 | CM102: 4.715963964 | CN102: 184.1466431 | CO102: 4798.598081
B103: 42038 | C103: 10 | D103: 48 | E103: All_In | F103: 3 | G103: L | H103: L | I103: 1 | J103: 3 | K103: 7 | L103: 7 | M103: 5 | N103: H | O103: H | P103: U | Q103: H | R103: U | S103: L | T103: H | U103: 2050 | V103: 13.10113076 | W103: 2.240904964 | X103: 3.049963564 | Y103: 0.6193709 | Z103: 0.1311892118 | AA103: 0.01782099184 | AB103: 0.065912716 | AC103: 19.22629311 | AD103: 0.09371616023 | AE103: 0.09371616023 | AF103: 0.09371616023 | AG103: 0.008758401548 | AH103: 0.008758401548 | AI103: 0.008758401548 | AJ103: 458.119755 | AK103: 458.119755 | AL103: 458.119755 | AM103: 23.82777337 | AN103: 23.82777337 | AO103: 23.82777337 | AP103: 0.08304355814 | AQ103: 0.08304355814 | AR103: 0.08304355814 | AS103: 0.07345722576 | AT103: 0.1106990819 | AU103: 0.1841563076 | AV103: 254.7593484 | AW103: 38.54894356 | AX103: 66.10613027 | AY103: 35.12675347 | AZ103: 6.528406268 | BA103: 0.8628062428 | BB103: 3.303213785 | BC103: 405.235602 | BD103: 78.90909251 | BE103: 7.468438665 | BF103: 0.4584623243 | BG103: 2.771907502 | BH103: 93.94030686 | BI103: 60.21754243 | BJ103: 418.8394179 | BK103: 350.9682591 | BL103: 17463.65367 | BM103: 21256.86011 | BN103: 16121.38755 | BO103: 19018.90513 | BP103: 24697.94373 | BQ103: 0.3557090117 | BR103: 0.09333992819 | BS103: 0.05465353267 | BT103: 0.005448567678 | BU103: 0.1684378593 | BV103: 0.01453612088 | BW103: 0.2397770451 | BX103: 0.06809793451 | BY103: 0.3440358398 | BZ103: 0.1105941257 | CA103: 0.05503912253 | CB103: 0.003659927741 | CC103: 0.1576896553 | CD103: 0.01134288874 | CE103: 0.2579072742 | CF103: 0.05973116601 | CG103: 1923.608925 | CH103: 61.40249305 | CI103: 607.3684492 | CJ103: 838.251574 | CK103: 1424.457683 | CL103: 303.4423347 | CM103: 21.4903355 | CN103: 336.598222 | CO103: 5516.620016
B104: 41013 | C104: 10 | D104: 49 | E104: All_In | F104: 3 | G104: L | H104: H | I104: 2 | J104: 4 | K104: 6 | L104: 6 | M104: 6 | N104: H | O104: L | P104: U | Q104: L | R104: U | S104: L | T104: H | U104: 2035 | V104: 14.16187937 | W104: 1.353412458 | X104: 2.630170731 | Y104: 0.4698740753 | Z104: 0.1248321012 | AA104: 0.05562772022 | AB104: 0.2003243862 | AC104: 18.99612084 | AD104: 0.08687608959 | AE104: 0.08687608959 | AF104: 0.08687608959 | AG104: 0.01104164538 | AH104: 0.01104164538 | AI104: 0.01104164538 | AJ104: 458.4131576 | AK104: 458.4131576 | AL104: 458.4131576 | AM104: 24.13193522 | AN104: 24.13193522 | AO104: 24.13193522 | AP104: 0.09580380415 | AQ104: 0.09580380415 | AR104: 0.09580380415 | AS104: 0.07572213767 | AT104: 0.135153304 | AU104: 0.2108754417 | AV104: 250.9485024 | AW104: 21.68166757 | AX104: 48.27310153 | AY104: 24.15190337 | AZ104: 5.575484488 | BA104: 2.429119579 | BB104: 9.264290907 | BC104: 362.3240699 | BD104: 67.98293113 | BE104: 8.245150955 | BF104: 2.509741803 | BG104: 12.99218427 | BH104: 79.01057331 | BI104: 48.17694522 | BJ104: 458.4246624 | BK104: 371.6650632 | BL104: 20600.17177 | BM104: 24996.6583 | BN104: 19037.02232 | BO104: 22781.26284 | BP104: 29421.03418 | BQ104: 0.4255872113 | BR104: 0.04024646503 | BS104: 0.0584569937 | BT104: 0.02006628436 | BU104: 0.1635472316 | BV104: 0.05184560918 | BW104: 0.1738813745 | BX104: 0.066368866 | BY104: 0.4339355198 | BZ104: 0.06907861575 | CA104: 0.06033759622 | CB104: 0.01153035165 | CC104: 0.1339997944 | CD104: 0.03672371261 | CE104: 0.2093402139 | CF104: 0.04505419572 | CG104: 2081.883177 | CH104: 175.1456616 | CI104: 315.3451231 | CJ104: 639.3237823 | CK104: 990.5398071 | CL104: 288.641444 | CM104: 60.6256864 | CN104: 233.4113417 | CO104: 4784.916024
B105: 42037 | C105: 10 | D105: 49 | E105: All_In | F105: 3 | G105: L | H105: H | I105: 2 | J105: 4 | K105: 6 | L105: 6 | M105: 6 | N105: H | O105: L | P105: U | Q105: L | R105: U | S105: L | T105: H | U105: 2050 | V105: 13.10448096 | W105: 0.5822574527 | X105: 3.300730909 | Y105: 0.9049096482 | Z105: 0.1182878958 | AA105: 0.2228499811 | AB105: 0.4148148069 | AC105: 18.64833165 | AD105: 0.09369296015 | AE105: 0.09369296015 | AF105: 0.09369296015 | AG105: 0.01057595746 | AH105: 0.01057595746 | AI105: 0.01057595746 | AJ105: 459.5511305 | AK105: 459.5511305 | AL105: 459.5511305 | AM105: 24.64301574 | AN105: 24.64301574 | AO105: 24.64301574 | AP105: 0.08363970533 | AQ105: 0.08363970533 | AR105: 0.08363970533 | AS105: 0.07738167262 | AT105: 0.1192764439 | AU105: 0.1966581165 | AV105: 254.824495 | AW105: 10.0162256 | AX105: 71.54136201 | AY105: 51.32068383 | AZ105: 5.886394388 | BA105: 10.78931838 | BB105: 20.78843161 | BC105: 425.1669108 | BD105: 85.43594163 | BE105: 8.326372541 | BF105: 5.978101636 | BG105: 18.79441371 | BH105: 135.2670882 | BI105: 87.29726223 | BJ105: 452.3515334 | BK105: 376.6402931 | BL105: 18836.94559 | BM105: 22633.32097 | BN105: 17463.96464 | BO105: 20917.59506 | BP105: 26912.12461 | BQ105: 0.4106327801 | BR105: 0.01918664584 | BS105: 0.04168883792 | BT105: 0.06188679371 | BU105: 0.173812715 | BV105: 0.08561239166 | BW105: 0.11398602 | BX105: 0.09319381578 | BY105: 0.4178294682 | BZ105: 0.02941479576 | CA105: 0.05027985037 | CB105: 0.04109066552 | CC105: 0.1686882379 | CD105: 0.06885730061 | CE105: 0.1437848655 | CF105: 0.08005481611 | CG105: 2326.282793 | CH105: 370.3097205 | CI105: 156.9691175 | CJ105: 893.5554992 | CK105: 781.5055616 | CL105: 272.312994 | CM105: 242.1267785 | CN105: 451.3510881 | CO105: 5494.413553
B106: 40997 | C106: 10 | D106: 50 | E106: All_In | F106: 3 | G106: L | H106: H | I106: 2 | J106: 4 | K106: 6 | L106: 6 | M106: 2 | N106: H | O106: L | P106: U | Q106: L | R106: U | S106: L | T106: L | U106: 2035 | V106: 14.02073755 | W106: 1.34018182 | X106: 2.59972566 | Y106: 0.5782173574 | Z106: 0.1234326325 | AA106: 0.05487237012 | AB106: 0.1976887874 | AC106: 18.91485618 | AD106: 0.08772443836 | AE106: 0.08772443836 | AF106: 0.08772443836 | AG106: 0.01106076101 | AH106: 0.01106076101 | AI106: 0.01106076101 | AJ106: 456.8807457 | AK106: 456.8807457 | AL106: 456.8807457 | AM106: 24.15459791 | AN106: 24.15459791 | AO106: 24.15459791 | AP106: 0.09542741735 | AQ106: 0.09542741735 | AR106: 0.09542741735 | AS106: 0.07511842168 | AT106: 0.135276282 | AU106: 0.2103947037 | AV106: 248.4474695 | AW106: 21.46971275 | AX106: 47.71432488 | AY106: 24.9637249 | AZ106: 5.512978806 | BA106: 2.396135381 | BB106: 9.142403831 | BC106: 359.64675 | BD106: 67.1905218 | BE106: 8.16079308 | BF106: 2.476806392 | BG106: 12.82887392 | BH106: 99.2232324 | BI106: 60.02985619 | BJ106: 459.0945916 | BK106: 372.2220493 | BL106: 20632.37469 | BM106: 25024.53572 | BN106: 19075.33861 | BO106: 22811.35302 | BP106: 29472.39305 | BQ106: 0.4198369383 | BR106: 0.03967109688 | BS106: 0.05762581814 | BT106: 0.01977682896 | BU106: 0.1612559442 | BV106: 0.05108083098 | BW106: 0.1714581283 | BX106: 0.07929444987 | BY106: 0.4296973167 | BZ106: 0.06842439704 | CA106: 0.05967602127 | CB106: 0.0113754012 | CC106: 0.1324459917 | CD106: 0.03624836286 | CE106: 0.2072591229 | CF106: 0.0548733864 | CG106: 2060.479835 | CH106: 172.8417771 | CI106: 312.1795417 | CJ106: 631.7545273 | CK106: 980.2380835 | CL106: 285.3701938 | CM106: 59.79976702 | CN106: 285.0666604 | CO106: 4787.730386
B107: 42021 | C107: 10 | D107: 50 | E107: All_In | F107: 3 | G107: L | H107: H | I107: 2 | J107: 4 | K107: 6 | L107: 6 | M107: 2 | N107: H | O107: L | P107: U | Q107: L | R107: U | S107: L | T107: L | U107: 2050 | V107: 12.8670179 | W107: 0.5719674437 | X107: 3.238654377 | Y107: 1.117363324 | Z107: 0.1160949838 | AA107: 0.2182077555 | AB107: 0.4063639169 | AC107: 18.5356697 | AD107: 0.09536634581 | AE107: 0.09536634581 | AF107: 0.09536634581 | AG107: 0.01058959085 | AH107: 0.01058959085 | AI107: 0.01058959085 | AJ107: 457.5299768 | AK107: 457.5299768 | AL107: 457.5299768 | AM107: 24.68375755 | AN107: 24.68375755 | AO107: 24.68375755 | AP107: 0.08319114309 | AQ107: 0.08319114309 | AR107: 0.08319114309 | AS107: 0.07629117322 | AT107: 0.1193276248 | AU107: 0.195618798 | AV107: 250.2068832 | AW107: 9.839212753 | AX107: 70.19589043 | AY107: 52.63317592 | AZ107: 5.777267882 | BA107: 10.56456427 | BB107: 20.36491551 | BC107: 419.58191 | BD107: 83.82024419 | BE107: 8.229944931 | BF107: 5.867821069 | BG107: 18.48256747 | BH107: 168.9427565 | BI107: 108.5122389 | BJ107: 452.776935 | BK107: 377.1674537 | BL107: 18850.00593 | BM107: 22643.83683 | BN107: 17521.09016 | BO107: 20922.60256 | BP107: 26950.43725 | BQ107: 0.4012387032 | BR107: 0.01875004173 | BS107: 0.0407253585 | BT107: 0.06043563914 | BU107: 0.1697898879 | BV107: 0.08359558826 | BW107: 0.1113406423 | BX107: 0.1141241389 | BY107: 0.4102588251 | BZ107: 0.02890730419 | CA107: 0.04936796909 | CB107: 0.04024347181 | CC107: 0.1655329429 | CD107: 0.06747699383 | CE107: 0.1412235999 | CF107: 0.09698889322 | CG107: 2282.948316 | CH107: 362.7400993 | CI107: 154.1692539 | CJ107: 876.392375 | CK107: 767.1485288 | CL107: 267.2335064 | CM107: 237.0544866 | CN107: 552.0572743 | CO107: 5499.74384
B108: 41007 | C108: 10 | D108: 51 | E108: All_In | F108: 3 | G108: L | H108: H | I108: 2 | J108: 4 | K108: 8 | L108: 8 | M108: 4 | N108: H | O108: H | P108: U | Q108: H | R108: U | S108: H | T108: L | U108: 2035 | V108: 15.29595204 | W108: 1.473287172 | X108: 2.909918029 | Y108: 0.1283257512 | Z108: 0.08406830241 | AA108: 0.00897822491 | AB108: 0.0303965105 | AC108: 19.93092603 | AD108: 0.08061225754 | AE108: 0.08061225754 | AF108: 0.08061225754 | AG108: 0.01087141518 | AH108: 0.01087141518 | AI108: 0.01087141518 | AJ108: 470.5624346 | AK108: 470.5624346 | AL108: 470.5624346 | AM108: 23.60966239 | AN108: 23.60966239 | AO108: 23.60966239 | AP108: 0.09825523053 | AQ108: 0.09825523053 | AR108: 0.09825523053 | AS108: 0.07499119803 | AT108: 0.133530391 | AU108: 0.208521589 | AV108: 271.0442701 | AW108: 23.6020605 | AX108: 53.40747154 | AY108: 5.540284651 | AZ108: 3.754815562 | BA108: 0.3920560078 | BB108: 1.405730581 | BC108: 359.146689 | BD108: 75.26405621 | BE108: 5.332682627 | BF108: 0.3791770553 | BG108: 1.860654381 | BH108: 20.79500109 | BI108: 12.87612805 | BJ108: 453.6807415 | BK108: 367.5297062 | BL108: 20276.25566 | BM108: 24763.9538 | BN108: 18897.58874 | BO108: 22506.15737 | BP108: 29234.26582 | BQ108: 0.4777459904 | BR108: 0.04612594317 | BS108: 0.04402609989 | BT108: 0.003646490153 | BU108: 0.1854956516 | BV108: 0.008423730968 | BW108: 0.2149069894 | BX108: 0.01962914008 | BY108: 0.4717357254 | BZ108: 0.07510421867 | CA108: 0.04031296356 | CB108: 0.001875012005 | CC108: 0.1486552977 | CD108: 0.005414829191 | CE108: 0.2446763382 | CF108: 0.01222561524 | CG108: 2272.620351 | CH108: 26.15518158 | CI108: 344.8515549 | CJ108: 710.6712654 | CK108: 1164.808708 | CL108: 195.6036843 | CM108: 10.04411897 | CN108: 64.42971277 | CO108: 4789.184577
B109: 42031 | C109: 10 | D109: 51 | E109: All_In | F109: 3 | G109: L | H109: H | I109: 2 | J109: 4 | K109: 8 | L109: 8 | M109: 4 | N109: H | O109: H | P109: U | Q109: H | R109: U | S109: H | T109: L | U109: 2050 | V109: 15.03259663 | W109: 0.6822354553 | X109: 3.849904272 | Y109: 0.3193451041 | Z109: 0.100154382 | AA109: 0.05162660281 | AB109: 0.08143938475 | AC109: 20.11730184 | AD109: 0.08200877943 | AE109: 0.08200877943 | AF109: 0.08200877943 | AG109: 0.01044530001 | AH109: 0.01044530001 | AI109: 0.01044530001 | AJ109: 473.8567297 | AK109: 473.8567297 | AL109: 473.8567297 | AM109: 23.55468609 | AN109: 23.55468609 | AO109: 23.55468609 | AP109: 0.08610562302 | AQ109: 0.08610562302 | AR109: 0.08610562302 | AS109: 0.0752481507 | AT109: 0.1186825344 | AU109: 0.1939306851 | AV109: 292.3178611 | AW109: 11.7360872 | AX109: 83.44436515 | AY109: 15.04268726 | AZ109: 4.984011154 | BA109: 2.499510442 | BB109: 4.081332324 | BC109: 414.1058546 | BD109: 99.72955583 | BE109: 5.959271764 | BF109: 1.244066511 | BG109: 3.203264076 | BH109: 45.49662031 | BI109: 30.05343057 | BJ109: 452.2106533 | BK109: 375.3644188 | BL109: 18680.1998 | BM109: 22790.20932 | BN109: 17278.76722 | BO109: 20967.51921 | BP109: 26903.84354 | BQ109: 0.49109107 | BR109: 0.02353146576 | BS109: 0.03969930266 | BT109: 0.01582874113 | BU109: 0.2102291864 | BV109: 0.0175359505 | BW109: 0.1658509454 | BX109: 0.03623333818 | BY109: 0.4842356787 | BZ109: 0.0345269092 | CA109: 0.0423414902 | CB109: 0.009659328206 | CC109: 0.1979123426 | CD109: 0.01294274516 | CE109: 0.190481881 | CF109: 0.02789962485 | CG109: 2702.788247 | CH109: 70.02609945 | CI109: 185.0343993 | CJ109: 1051.146193 | CK109: 1044.209282 | CL109: 232.075817 | CM109: 57.30944116 | CN109: 160.6135998 | CO109: 5503.203079
B110: 40973 | C110: 10 | D110: 52 | E110: All_In | F110: 3 | G110: L | H110: H | I110: 2 | J110: 4 | K110: 2 | L110: 2 | M110: 4 | N110: H | O110: L | P110: R | Q110: L | R110: R | S110: H | T110: L | U110: 2035 | V110: 14.64249833 | W110: 1.396400108 | X110: 2.739249547 | Y110: 0.1185874892 | Z110: 0.1324091531 | AA110: 0.0577927801 | AB110: 0.210787628 | AC110: 19.29772504 | AD110: 0.08410641864 | AE110: 0.08410641864 | AF110: 0.08410641864 | AG110: 0.01097999033 | AH110: 0.01097999033 | AI110: 0.01097999033 | AJ110: 464.4088391 | AK110: 464.4088391 | AL110: 464.4088391 | AM110: 24.06547084 | AN110: 24.06547084 | AO110: 24.06547084 | AP110: 0.09710070475 | AQ110: 0.09710070475 | AR110: 0.09710070475 | AS110: 0.07427277329 | AT110: 0.134879425 | AU110: 0.2091521983 | AV110: 259.4650704 | AW110: 22.37032973 | AX110: 50.27509049 | AY110: 5.119848824 | AZ110: 5.712118156 | BA110: 2.543986976 | BB110: 9.742001104 | BC110: 355.2284457 | BD110: 70.82198091 | BE110: 7.123782107 | BF110: 2.871707653 | BG110: 13.55265898 | BH110: 19.25804595 | BI110: 11.91271161 | BJ110: 457.7616173 | BK110: 370.7443597 | BL110: 20547.79385 | BM110: 24998.16842 | BN110: 18961.18323 | BO110: 22797.65498 | BP110: 29328.05123 | BQ110: 0.4461232328 | BR110: 0.04247188742 | BS110: 0.06358387422 | BT110: 0.0208888802 | BU110: 0.1720302073 | BV110: 0.05485334218 | BW110: 0.1820732805 | BX110: 0.01797533103 | BY110: 0.4480266701 | BZ110: 0.07114488586 | CA110: 0.06376145099 | CB110: 0.01197834061 | CC110: 0.1395333706 | CD110: 0.0385489897 | CE110: 0.2157331301 | CF110: 0.01127316204 | CG110: 2154.415922 | CH110: 184.2937106 | CI110: 325.7668141 | CJ110: 666.6101613 | CK110: 1023.004531 | CL110: 306.2152091 | CM110: 63.04389175 | CN110: 59.40432724 | CO110: 4782.754567
B111: 41997 | C111: 10 | D111: 52 | E111: All_In | F111: 3 | G111: L | H111: H | I111: 2 | J111: 4 | K111: 2 | L111: 2 | M111: 4 | N111: H | O111: L | P111: R | Q111: L | R111: R | S111: H | T111: L | U111: 2050 | V111: 13.84707235 | W111: 0.6175289433 | X111: 3.494474477 | Y111: 0.283736103 | Z111: 0.1329147035 | AA111: 0.2351773226 | AB111: 0.4429428329 | AC111: 19.05384673 | AD111: 0.08881922716 | AE111: 0.08881922716 | AF111: 0.08881922716 | AG111: 0.01052949096 | AH111: 0.01052949096 | AI111: 0.01052949096 | AJ111: 467.59863 | AK111: 467.59863 | AL111: 467.59863 | AM111: 24.54090434 | AN111: 24.54090434 | AO111: 24.54090434 | AP111: 0.08512431523 | AQ111: 0.08512431523 | AR111: 0.08512431523 | AS111: 0.07442928532 | AT111: 0.1195721768 | AU111: 0.1940014621 | AV111: 269.2646301 | AW111: 10.62297989 | AX111: 75.74063761 | AY111: 13.36533238 | AZ111: 6.326017895 | BA111: 11.34479459 | BB111: 22.18508546 | BC111: 408.849478 | BD111: 90.47860395 | BE111: 7.269323413 | BF111: 6.539087829 | BG111: 19.7629059 | BH111: 40.61419709 | BI111: 26.76360318 | BJ111: 454.1335906 | BK111: 377.4856841 | BL111: 18895.21024 | BM111: 22768.64308 | BN111: 17386.27955 | BO111: 21089.0915 | BP111: 26971.95942 | BQ111: 0.4366099105 | BR111: 0.02051577109 | BS111: 0.04820952906 | BT111: 0.06570683078 | BU111: 0.185328555 | BV111: 0.09171283756 | BW111: 0.1204619666 | BX111: 0.03145459945 | BY111: 0.4411613955 | BZ111: 0.03118391903 | CA111: 0.05628445267 | CB111: 0.04337382998 | CC111: 0.178727974 | CD111: 0.07342250943 | CE111: 0.1511218125 | CF111: 0.02472410685 | CG111: 2457.954503 | CH111: 395.4454327 | CI111: 166.5828324 | CJ111: 947.4228025 | CK111: 821.8605974 | CL111: 305.9693044 | CM111: 255.7970231 | CN111: 142.0939831 | CO111: 5493.126478
B112: 40967 | C112: 10 | D112: 53 | E112: All_In | F112: 3 | G112: L | H112: H | I112: 2 | J112: 4 | K112: 4 | L112: 4 | M112: 2 | N112: H | O112: H | P112: R | Q112: H | R112: R | S112: L | T112: L | U112: 2035 | V112: 14.58928467 | W112: 1.407959174 | X112: 2.746494276 | Y112: 0.616856048 | Z112: 0.08100219494 | AA112: 0.008221135231 | AB112: 0.02834769775 | AC112: 19.47816519 | AD112: 0.08440434915 | AE112: 0.08440434915 | AF112: 0.08440434915 | AG112: 0.01096352903 | AH112: 0.01096352903 | AI112: 0.01096352903 | AJ112: 462.1514505 | AK112: 462.1514505 | AL112: 462.1514505 | AM112: 23.7266419 | AN112: 23.7266419 | AO112: 23.7266419 | AP112: 0.09639157687 | AQ112: 0.09639157687 | AR112: 0.09639157687 | AS112: 0.0757706638 | AT112: 0.1340429038 | AU112: 0.2098135676 | AV112: 258.5221243 | AW112: 22.55550596 | AX112: 50.40805735 | AY112: 26.63189627 | AZ112: 3.494426914 | BA112: 0.361887089 | BB112: 1.310149487 | BC112: 363.2840474 | BD112: 71.01054315 | BE112: 4.220076034 | BF112: 0.3825851489 | BG112: 1.731469489 | BH112: 105.5664503 | BI112: 63.9379865 | BJ112: 455.5006674 | BK112: 369.3514553 | BL112: 20393.17004 | BM112: 24816.22512 | BN112: 19022.35451 | BO112: 22550.01904 | BP112: 29396.19721 | BQ112: 0.4464741574 | BR112: 0.04274533101 | BS112: 0.0421171361 | BT112: 0.003328225593 | BU112: 0.1725950954 | BV112: 0.007778460611 | BW112: 0.199524456 | BX112: 0.08543717356 | BY112: 0.4503643941 | BZ112: 0.07193401624 | CA112: 0.03882802517 | CB112: 0.001717864304 | CC112: 0.1403182845 | CD112: 0.005043205324 | CE112: 0.2331217194 | CF112: 0.05867249098 | CG112: 2162.978392 | CH112: 24.39547003 | CI112: 328.978744 | CJ112: 669.6410675 | CK112: 1106.155433 | CL112: 188.2954039 | CM112: 9.203899789 | CN112: 304.8727038 | CO112: 4794.521114
B113: 41991 | C113: 10 | D113: 53 | E113: All_In | F113: 3 | G113: L | H113: H | I113: 2 | J113: 4 | K113: 4 | L113: 4 | M113: 2 | N113: H | O113: H | P113: R | Q113: H | R113: R | S113: L | T113: L | U113: 2050 | V113: 13.83913993 | W113: 0.6246551859 | X113: 3.525307139 | Y113: 1.230770426 | Z113: 0.09690733733 | AA113: 0.04635985935 | AB113: 0.07386805534 | AC113: 19.43700793 | AD113: 0.08886860805 | AE113: 0.08886860805 | AF113: 0.08886860805 | AG113: 0.01052015241 | AH113: 0.01052015241 | AI113: 0.01052015241 | AJ113: 462.1980157 | AK113: 462.1980157 | AL113: 462.1980157 | AM113: 23.77927803 | AN113: 23.77927803 | AO113: 23.77927803 | AP113: 0.08387976355 | AQ113: 0.08387976355 | AR113: 0.08387976355 | AS113: 0.07709066487 | AT113: 0.1185338213 | AU113: 0.1956244862 | AV113: 269.1103795 | AW113: 10.74556837 | AX113: 76.40891706 | AY113: 57.97519476 | AZ113: 4.612262856 | BA113: 2.236368183 | BB113: 3.699730526 | BC113: 424.7884212 | BD113: 91.28110131 | BE113: 4.586075902 | BF113: 1.153593515 | BG113: 2.92076687 | BH113: 184.9546325 | BI113: 119.1438744 | BJ113: 451.1383635 | BK113: 375.373765 | BL113: 18666.37728 | BM113: 22656.96224 | BN113: 17437.74377 | BO113: 20807.21275 | BP113: 26909.15085 | BQ113: 0.444305259 | BR113: 0.02114481414 | BS113: 0.0385786352 | BT113: 0.01412692985 | BU113: 0.1894930221 | BV113: 0.01572281082 | BW113: 0.148140311 | BX113: 0.1284882179 | BY113: 0.4451093392 | BZ113: 0.03164029488 | CA113: 0.04085105861 | CB113: 0.008670762135 | CC113: 0.1810530972 | CD113: 0.01172581472 | CE113: 0.1737619816 | CF113: 0.1071876516 | CG113: 2480.436425 | CH113: 63.51367097 | CI113: 169.1986369 | CJ113: 960.0536781 | CK113: 950.4388336 | CL113: 224.2039428 | CM113: 51.44103709 | CN113: 610.9583939 | CO113: 5510.244618
B114: 40975 | C114: 10 | D114: 54 | E114: All_In | F114: 3 | G114: L | H114: H | I114: 2 | J114: 4 | K114: 4 | L114: 4 | M114: 4 | N114: H | O114: H | P114: R | Q114: H | R114: R | S114: H | T114: L | U114: 2035 | V114: 15.2932445 | W114: 1.472750855 | X114: 2.908362978 | Y114: 0.1282356362 | Z114: 0.08586241028 | AA114: 0.008874430391 | AB114: 0.0304667013 | AC114: 19.92779751 | AD114: 0.08062613626 | AE114: 0.08062613626 | AF114: 0.08062613626 | AG114: 0.0108721651 | AH114: 0.0108721651 | AI114: 0.0108721651 | AJ114: 470.5476381 | AK114: 470.5476381 | AL114: 470.5476381 | AM114: 23.61262642 | AN114: 23.61262642 | AO114: 23.61262642 | AP114: 0.09824920049 | AQ114: 0.09824920049 | AR114: 0.09824920049 | AS114: 0.07495997711 | AT114: 0.1335412614 | AU114: 0.2085012385 | AV114: 270.9962926 | AW114: 23.59346869 | AX114: 53.37893076 | AY114: 5.536394062 | AZ114: 3.704096137 | BA114: 0.3906445631 | BB114: 1.408083769 | BC114: 359.0079105 | BD114: 75.22358211 | BE114: 4.44221258 | BF114: 0.4125005365 | BG114: 1.855315301 | BH114: 20.78150895 | BI114: 12.86745428 | BJ114: 453.7539511 | BK114: 367.5706268 | BL114: 20279.60817 | BM114: 24767.37219 | BN114: 18900.75359 | BO114: 22510.36031 | BP114: 29239.26038 | BQ114: 0.4774040248 | BR114: 0.04608832536 | BS114: 0.04539257314 | BT114: 0.003598054371 | BU114: 0.1853549083 | BV114: 0.008420070048 | BW114: 0.2141289252 | BX114: 0.01961315434 | BY114: 0.4715449649 | BZ114: 0.07507936156 | CA114: 0.04108207179 | CB114: 0.001853836557 | CC114: 0.1485788725 | CD114: 0.00541339953 | CE114: 0.2442301787 | CF114: 0.01221731449 | CG114: 2271.610899 | CH114: 26.21594865 | CI114: 344.7215332 | CJ114: 710.2850716 | CK114: 1162.457613 | CL114: 199.7153052 | CM114: 9.936792316 | CN114: 64.38474804 | CO114: 4789.327911
B115: 41999 | C115: 10 | D115: 54 | E115: All_In | F115: 3 | G115: L | H115: H | I115: 2 | J115: 4 | K115: 4 | L115: 4 | M115: 4 | N115: H | O115: H | P115: R | Q115: H | R115: R | S115: H | T115: L | U115: 2050 | V115: 15.02453397 | W115: 0.6813008605 | X115: 3.844551229 | Y115: 0.3188303708 | Z115: 0.1060879852 | AA115: 0.05119158857 | AB115: 0.08152688769 | AC115: 20.10802289 | AD115: 0.0820515676 | AE115: 0.0820515676 | AF115: 0.0820515676 | AG115: 0.01044650644 | AH115: 0.01044650644 | AI115: 0.01044650644 | AJ115: 473.8302672 | AK115: 473.8302672 | AL115: 473.8302672 | AM115: 23.5642395 | AN115: 23.5642395 | AO115: 23.5642395 | AP115: 0.08609695694 | AQ115: 0.08609695694 | AR115: 0.08609695694 | AS115: 0.07519462953 | AT115: 0.1187177803 | AU115: 0.1939124098 | AV115: 292.1610778 | AW115: 11.72000992 | AX115: 83.32834116 | AY115: 15.01844085 | AZ115: 5.049211825 | BA115: 2.469447525 | BB115: 4.083328222 | BC115: 413.8298573 | BD115: 99.59022946 | BE115: 4.89889478 | BF115: 1.265347342 | BG115: 3.184538225 | BH115: 45.42821877 | BI115: 30.00657326 | BJ115: 452.3955947 | BK115: 375.492716 | BL115: 18687.94293 | BM115: 22798.32486 | BN115: 17285.7921 | BO115: 20977.37728 | BP115: 26915.72056 | BQ115: 0.4902497772 | BR115: 0.02348379948 | BS115: 0.0428489407 | BT115: 0.01570941384 | BU115: 0.2098476185 | BV115: 0.01750826857 | BW115: 0.1641894343 | BX115: 0.03616274743 | BY115: 0.4836214435 | BZ115: 0.03448167348 | CA115: 0.04469283186 | CB115: 0.009571523499 | CC115: 0.1976425655 | CD115: 0.01292715783 | CE115: 0.1892065012 | CF115: 0.02785630312 | CG115: 2699.217128 | CH115: 70.10258888 | CI115: 184.7772361 | CJ115: 1049.654168 | CK115: 1036.831466 | CL115: 245.6795561 | CM115: 56.83154658 | CN115: 160.3559561 | CO115: 5503.449646
B116: 41015 | C116: 10 | D116: 55 | E116: All_In | F116: 3 | G116: L | H116: H | I116: 2 | J116: 4 | K116: 8 | L116: 8 | M116: 6 | N116: H | O116: H | P116: U | Q116: H | R116: U | S116: L | T116: H | U116: 2035 | V116: 14.74888017 | W116: 1.423321958 | X116: 2.782369141 | Y116: 0.5026430125 | Z116: 0.08032966184 | AA116: 0.008446523631 | AB116: 0.02869117692 | AC116: 19.57468165 | AD116: 0.08351707339 | AE116: 0.08351707339 | AF116: 0.08351707339 | AG116: 0.01094172708 | AH116: 0.01094172708 | AI116: 0.01094172708 | AJ116: 463.8549853 | AK116: 463.8549853 | AL116: 463.8549853 | AM116: 23.69668093 | AN116: 23.69668093 | AO116: 23.69668093 | AP116: 0.09680847644 | AQ116: 0.09680847644 | AR116: 0.09680847644 | AS116: 0.07645628481 | AT116: 0.1338860455 | AU116: 0.2103423304 | AV116: 261.3501567 | AW116: 22.80161777 | AX116: 51.06649027 | AY116: 25.83625296 | AZ116: 3.587833413 | BA116: 0.3688379794 | BB116: 1.326864964 | BC116: 366.338054 | BD116: 71.94427649 | BE116: 5.122205072 | BF116: 0.3570011921 | BG116: 1.760706473 | BH116: 84.31574873 | BI116: 51.46455686 | BJ116: 454.6611672 | BK116: 368.6845253 | BL116: 20351.04285 | BM116: 24778.96642 | BN116: 18980.18276 | BO116: 22508.90968 | BP116: 29338.00354 | BQ116: 0.4533654886 | BR116: 0.04344908153 | BS116: 0.04148581324 | BT116: 0.003426204474 | BU116: 0.175365957 | BV116: 0.007905659354 | BW116: 0.203296273 | BX116: 0.07170555842 | BY116: 0.4553101215 | BZ116: 0.07269408032 | CA116: 0.03858285396 | CB116: 0.001764181118 | CC116: 0.1421551333 | CD116: 0.005116269145 | CE116: 0.2360686775 | CF116: 0.04830868313 | CG116: 2188.017412 | CH116: 24.69009393 | CI116: 332.6742551 | CJ116: 678.6063236 | CK116: 1120.911822 | CL116: 186.8125212 | CM116: 9.447723185 | CN116: 250.3106205 | CO116: 4791.470772
B117: 42039 | C117: 10 | D117: 55 | E117: All_In | F117: 3 | G117: L | H117: H | I117: 2 | J117: 4 | K117: 8 | L117: 8 | M117: 6 | N117: H | O117: H | P117: U | Q117: H | R117: U | S117: L | T117: H | U117: 2050 | V117: 14.12758933 | W117: 0.6378853855 | X117: 3.604812276 | Y117: 1.001354745 | Z117: 0.09344443072 | AA117: 0.04786966181 | AB117: 0.07548438124 | AC117: 19.58844021 | AD117: 0.08710755791 | AE117: 0.08710755791 | AF117: 0.08710755791 | AG117: 0.01050285883 | AH117: 0.01050285883 | AI117: 0.01050285883 | AJ117: 464.5180114 | AK117: 464.5180114 | AL117: 464.5180114 | AM117: 23.71388464 | AN117: 23.71388464 | AO117: 23.71388464 | AP117: 0.08439095828 | AQ117: 0.08439095828 | AR117: 0.08439095828 | AS117: 0.07836805595 | AT117: 0.1184282778 | AU117: 0.1967963337 | AV117: 274.719451 | AW117: 10.97315955 | AX117: 78.1321432 | AY117: 56.79043249 | AZ117: 4.650101931 | BA117: 2.317617527 | BB117: 3.782897501 | BC117: 431.3658032 | BD117: 93.35042191 | BE117: 5.637002401 | BF117: 1.157700846 | BG117: 2.993980708 | BH117: 148.8065301 | BI117: 96.31091497 | BJ117: 450.4565297 | BK117: 374.6388443 | BL117: 18637.94501 | BM117: 22637.24429 | BN117: 17371.32744 | BO117: 20788.85099 | BP117: 26857.15285 | BQ117: 0.4567207581 | BR117: 0.02174147995 | BS117: 0.03668954778 | BT117: 0.0146122241 | BU117: 0.1948793601 | BV117: 0.01616402921 | BW117: 0.1536348307 | BX117: 0.1055577701 | BY117: 0.4547624853 | BZ117: 0.0322951094 | CA117: 0.03951503457 | CB117: 0.008956708197 | CC117: 0.1851277072 | CD117: 0.01200447227 | CE117: 0.1784717395 | CF117: 0.08886674353 | CG117: 2535.840656 | CH117: 64.90273481 | CI117: 172.8324442 | CJ117: 982.2851625 | CK117: 977.1952951 | CL117: 216.3603386 | CM117: 53.11573359 | CN117: 501.8252205 | CO117: 5504.357586
B118: 40983 | C118: 10 | D118: 56 | E118: All_In | F118: 3 | G118: L | H118: H | I118: 2 | J118: 4 | K118: 4 | L118: 4 | M118: 6 | N118: H | O118: H | P118: R | Q118: H | R118: R | S118: L | T118: H | U118: 2035 | V118: 14.74662279 | W118: 1.422840905 | X118: 2.780976434 | Y118: 0.5023373833 | Z118: 0.08203337923 | AA118: 0.008349336466 | AB118: 0.0287587842 | AC118: 19.57191901 | AD118: 0.08352949327 | AE118: 0.08352949327 | AF118: 0.08352949327 | AG118: 0.01094240845 | AH118: 0.01094240845 | AI118: 0.01094240845 | AJ118: 463.8447669 | AK118: 463.8447669 | AL118: 463.8447669 | AM118: 23.69950369 | AN118: 23.69950369 | AO118: 23.69950369 | AP118: 0.09680361784 | AQ118: 0.09680361784 | AR118: 0.09680361784 | AS118: 0.07642555625 | AT118: 0.1338960147 | AU118: 0.210321571 | AV118: 261.3101559 | AW118: 22.79391131 | AX118: 51.04092907 | AY118: 25.82054337 | AZ118: 3.538912105 | BA118: 0.3675303937 | BB118: 1.329148727 | BC118: 366.2011309 | BD118: 71.90802778 | BE118: 4.26931878 | BF118: 0.3884181259 | BG118: 1.755745304 | BH118: 84.26942486 | BI118: 51.43495941 | BJ118: 454.7298385 | BK118: 368.7223605 | BL118: 20354.15871 | BM118: 24782.16018 | BN118: 18983.26387 | BO118: 22512.84994 | BP118: 29342.67452 | BQ118: 0.4530596672 | BR118: 0.04341575981 | BS118: 0.04277826598 | BT118: 0.003380847965 | BU118: 0.1752407007 | BV118: 0.00790262851 | BW118: 0.2025698966 | BX118: 0.071652269 | BY118: 0.4551384355 | BZ118: 0.07267178144 | CA118: 0.03931269951 | CB118: 0.001744350274 | CC118: 0.1420867702 | CD118: 0.005115149248 | CE118: 0.2356504165 | CF118: 0.04828039729 | CG118: 2187.109483 | CH118: 24.74861386 | CI118: 332.5577919 | CJ118: 678.2610723 | CK118: 1118.708725 | CL118: 190.71347 | CM118: 9.347273075 | CN118: 250.1592697 | CO118: 4791.605699
B119: 42007 | C119: 10 | D119: 56 | E119: All_In | F119: 3 | G119: L | H119: H | I119: 2 | J119: 4 | K119: 4 | L119: 4 | M119: 6 | N119: H | O119: H | P119: R | Q119: H | R119: R | S119: L | T119: H | U119: 2050 | V119: 14.12125825 | W119: 0.6370747832 | X119: 3.600167772 | Y119: 0.9999413449 | Z119: 0.09898735225 | AA119: 0.04747181386 | AB119: 0.075574989 | AC119: 19.5804763 | AD119: 0.08714546114 | AE119: 0.08714546114 | AF119: 0.08714546114 | AG119: 0.01050391675 | AH119: 0.01050391675 | AI119: 0.01050391675 | AJ119: 464.5053384 | AK119: 464.5053384 | AL119: 464.5053384 | AM119: 23.72288249 | AN119: 23.72288249 | AO119: 23.72288249 | AP119: 0.08438516977 | AQ119: 0.08438516977 | AR119: 0.08438516977 | AS119: 0.07831358721 | AT119: 0.1184616482 | AU119: 0.1967752354 | AV119: 274.5963394 | AW119: 10.95921525 | AX119: 78.03147636 | AY119: 56.71027346 | AZ119: 4.711260268 | BA119: 2.290008115 | BB119: 3.78522343 | BC119: 431.0837963 | BD119: 93.22953704 | BE119: 4.656095616 | BF119: 1.178315399 | BG119: 2.976918655 | BH119: 148.6169551 | BI119: 96.18170182 | BJ119: 450.6315996 | BK119: 374.7598908 | BL119: 18645.10984 | BM119: 22645.01283 | BN119: 17378.06059 | BO119: 20798.33616 | BP119: 26868.27368 | BQ119: 0.4559987016 | BR119: 0.0217008019 | BS119: 0.03961026707 | BT119: 0.01450425265 | BU119: 0.1945529315 | BV119: 0.01614099631 | BW119: 0.1521180727 | BX119: 0.1053739764 | BY119: 0.4542278673 | BZ119: 0.03225585795 | CA119: 0.04171060175 | CB119: 0.008876280996 | CC119: 0.1848939318 | CD119: 0.01199146847 | CE119: 0.1772981022 | CF119: 0.08874588945 | CG119: 2532.736418 | CH119: 64.9817377 | CI119: 172.6097103 | CJ119: 980.9939665 | CK119: 970.4113262 | CL119: 229.0542338 | CM119: 52.67891194 | CN119: 501.1186803 | CO119: 5504.584985
B120: 40965 | C120: 10 | D120: 57 | E120: All_In | F120: 3 | G120: L | H120: H | I120: 2 | J120: 4 | K120: 2 | L120: 2 | M120: 2 | N120: H | O120: L | P120: R | Q120: L | R120: R | S120: L | T120: L | U120: 2035 | V120: 14.01848768 | W120: 1.339569821 | X120: 2.597915871 | Y120: 0.577757619 | Z120: 0.1258560452 | AA120: 0.05416992826 | AB120: 0.1978782859 | AC120: 18.91163525 | AD120: 0.08773809565 | AE120: 0.08773809565 | AF120: 0.08773809565 | AG120: 0.01106164683 | AH120: 0.01106164683 | AI120: 0.01106164683 | AJ120: 456.8680836 | AK120: 456.8680836 | AL120: 456.8680836 | AM120: 24.15804226 | AN120: 24.15804226 | AO120: 24.15804226 | AP120: 0.09541960521 | AQ120: 0.09541960521 | AR120: 0.09541960521 | AS120: 0.07507363605 | AT120: 0.1352798072 | AU120: 0.2103534433 | AV120: 248.4076017 | AW120: 21.45990853 | AX120: 47.68110873 | AY120: 24.94387634 | AZ120: 5.429417706 | BA120: 2.384512248 | BB120: 9.145368246 | BC120: 359.4517935 | BD120: 67.1434175 | BE120: 6.819298718 | BF120: 2.699503481 | BG120: 12.77786821 | BH120: 99.15275772 | BI120: 59.98507485 | BJ120: 459.1486396 | BK120: 372.2519074 | BL120: 20635.03262 | BM120: 25026.36546 | BN120: 19080.07197 | BO120: 22813.60895 | BP120: 29476.18047 | BQ120: 0.4194438678 | BR120: 0.03963267863 | BS120: 0.05942528195 | BT120: 0.01948213207 | BU120: 0.161103148 | BV120: 0.05105441383 | BW120: 0.1706394881 | BX120: 0.07921902525 | BY120: 0.4294633801 | BZ120: 0.06839623475 | CA120: 0.06071946813 | CB120: 0.01123457725 | CC120: 0.132358459 | CD120: 0.03623898945 | CE120: 0.2067571769 | CF120: 0.05483171449 | CG120: 2059.245421 | CH120: 173.0086905 | CI120: 312.0333551 | CJ120: 631.3129871 | CK120: 977.601273 | CL120: 290.8736228 | CM120: 59.07191173 | CN120: 284.8424039 | CO120: 4787.989665
B121: 41989 | C121: 10 | D121: 57 | E121: All_In | F121: 3 | G121: L | H121: H | I121: 2 | J121: 4 | K121: 2 | L121: 2 | M121: 2 | N121: H | O121: L | P121: R | Q121: L | R121: R | S121: L | T121: L | U121: 2050 | V121: 12.86297277 | W121: 0.5711071259 | X121: 3.233517017 | Y121: 1.115491202 | Z121: 0.1227942987 | AA121: 0.21592758 | AB121: 0.406233206 | AC121: 18.5280432 | AD121: 0.09539536944 | AE121: 0.09539536944 | AF121: 0.09539536944 | AG121: 0.01059073229 | AH121: 0.01059073229 | AI121: 0.01059073229 | AJ121: 457.496487 | AK121: 457.496487 | AL121: 457.496487 | AM121: 24.69211033 | AN121: 24.69211033 | AO121: 24.69211033 | AP121: 0.08317927987 | AQ121: 0.08317927987 | AR121: 0.08317927987 | AS121: 0.076214472 | AT121: 0.1193531603 | AU121: 0.1955676323 | AV121: 250.1282234 | AW121: 9.824413222 | AX121: 70.08454123 | AY121: 52.54498996 | AZ121: 5.844341599 | BA121: 10.41620006 | BB121: 20.34645945 | BC121: 419.1891689 | BD121: 83.68653151 | BE121: 6.904291107 | BF121: 6.051600781 | BG121: 18.36584697 | BH121: 168.6896397 | BI121: 108.3404498 | BJ121: 452.9296263 | BK121: 377.2743522 | BL121: 18856.22793 | BM121: 22649.81121 | BN121: 17530.47578 | BO121: 20929.47346 | BP121: 26960.55304 | BQ121: 0.4004674958 | BR121: 0.01871050125 | BS121: 0.04399610627 | BT121: 0.05993245865 | BU121: 0.1694539946 | BV121: 0.08346524901 | BW121: 0.1100787257 | BX121: 0.1138954687 | BY121: 0.409650285 | BZ121: 0.02886590746 | CA121: 0.05203106272 | CB121: 0.03982547331 | CC121: 0.1652785139 | CD121: 0.06739653352 | CE121: 0.1401192283 | CF121: 0.09683299575 | CG121: 2279.432603 | CH121: 362.6299359 | CI121: 153.9363771 | CJ121: 874.9939352 | CK121: 760.8391643 | CL121: 282.4533412 | CM121: 234.6995122 | CN121: 551.1407366 | CO121: 5500.125605
B122: 40999 | C122: 10 | D122: 58 | E122: All_In | F122: 3 | G122: L | H122: H | I122: 2 | J122: 4 | K122: 8 | L122: 8 | M122: 2 | N122: H | O122: H | P122: U | Q122: H | R122: U | S122: L | T122: L | U122: 2035 | V122: 14.59142973 | W122: 1.40842693 | X122: 2.747846768 | Y122: 0.6172183337 | Z122: 0.0793220573 | AA122: 0.008316695284 | AB122: 0.02828074994 | AC122: 19.48084126 | AD122: 0.08439229865 | AE122: 0.08439229865 | AF122: 0.08439229865 | AG122: 0.01096286394 | AH122: 0.01096286394 | AI122: 0.01096286394 | AJ122: 462.1606869 | AK122: 462.1606869 | AL122: 462.1606869 | AM122: 23.72385672 | AN122: 23.72385672 | AO122: 23.72385672 | AP122: 0.09639614624 | AQ122: 0.09639614624 | AR122: 0.09639614624 | AS122: 0.07580056286 | AT122: 0.1340331597 | AU122: 0.2098337226 | AV122: 258.5601348 | AW122: 22.56299942 | AX122: 50.43288044 | AY122: 26.64753745 | AZ122: 3.542829897 | BA122: 0.3631687091 | BB122: 1.307884175 | BC122: 363.4174349 | BD122: 71.04574514 | BE122: 5.062620541 | BF122: 0.351626161 | BG122: 1.736341996 | BH122: 105.6214597 | BI122: 63.97310602 | BJ122: 455.4335537 | BK122: 369.31448 | BL122: 20390.1339 | BM122: 24813.10517 | BN122: 19019.31089 | BO122: 22546.17714 | BP122: 29391.63071 | BQ122: 0.4467708076 | BR122: 0.04277762366 | BS122: 0.04084395692 | BT122: 0.003372833041 | BU122: 0.1727165215 | BV122: 0.007781349701 | BW122: 0.2002375548 | BX122: 0.08549938852 | BY122: 0.4505312586 | BZ122: 0.07195570204 | CA122: 0.0381083501 | CB122: 0.001737367709 | CC122: 0.1403846626 | CD122: 0.005044256205 | CE122: 0.2335328563 | CF122: 0.05870554647 | CG122: 2163.860602 | CH122: 24.33752439 | CI122: 329.0919618 | CJ122: 669.9762062 | CK122: 1108.320668 | CL122: 184.4492077 | CM122: 9.302667176 | CN122: 305.0508247 | CO122: 4794.389661
B123: 42023 | C123: 10 | D123: 58 | E123: All_In | F123: 3 | G123: L | H123: H | I123: 2 | J123: 4 | K123: 8 | L123: 8 | M123: 2 | N123: H | O123: H | P123: U | Q123: H | R123: U | S123: L | T123: L | U123: 2050 | V123: 13.84496703 | W123: 0.6254317533 | X123: 3.529744936 | Y123: 1.23246052 | Z123: 0.09148535119 | AA123: 0.0467469797 | AB123: 0.07377679458 | AC123: 19.44461337 | AD123: 0.08883232785 | AE123: 0.08883232785 | AF123: 0.08883232785 | AG123: 0.01051913577 | AH123: 0.01051913577 | AI123: 0.01051913577 | AJ123: 462.2075796 | AK123: 462.2075796 | AL123: 462.2075796 | AM123: 23.77046902 | AN123: 23.77046902 | AO123: 23.77046902 | AP123: 0.0838847661 | AQ123: 0.0838847661 | AR123: 0.0838847661 | AS123: 0.07714217937 | AT123: 0.1185013459 | AU123: 0.1956435253 | AV123: 269.2236909 | AW123: 10.75892719 | AX123: 76.50510364 | AY123: 58.0548063 | AZ123: 4.552611696 | BA123: 2.263262689 | BB123: 3.697321847 | BC123: 425.0557243 | BD123: 91.39660609 | BE123: 5.5428175 | BF123: 1.132982808 | BG123: 2.937357888 | BH123: 185.1813471 | BI123: 119.2983963 | BJ123: 450.968556 | BK123: 375.2563066 | BL123: 18659.47644 | BM123: 22649.39934 | BN123: 17431.17229 | BO123: 20798.00091 | BP123: 26898.38286 | BQ123: 0.4449899425 | BR123: 0.02118343326 | BS123: 0.03573287596 | BT123: 0.01423144751 | BU123: 0.1898025367 | BV123: 0.01574451705 | BW123: 0.1496105169 | BX123: 0.1287047301 | BY123: 0.4456205207 | BZ123: 0.03167792609 | CA123: 0.03870306718 | CB123: 0.008749077947 | CC123: 0.1812764907 | CD123: 0.01173811565 | CE123: 0.1749051665 | CF123: 0.1073296353 | CG123: 2483.402026 | CH123: 63.43415548 | CI123: 169.4119477 | CJ123: 961.2864517 | CK123: 957.0433625 | CL123: 211.7904386 | CM123: 51.8660366 | CN123: 611.7956027 | CO123: 5510.030021
B124: 41021 | C124: 10 | D124: 59 | E124: All_In | F124: 3 | G124: L | H124: H | I124: 2 | J124: 4 | K124: 6 | L124: 6 | M124: 8 | N124: H | O124: L | P124: U | Q124: L | R124: U | S124: H | T124: H | U124: 2035 | V124: 14.67200968 | W124: 1.399675776 | X124: 2.747640692 | Y124: 0.09759043846 | Z124: 0.1301353276 | AA124: 0.05872919999 | AB124: 0.2112308035 | AC124: 19.31701192 | AD124: 0.08394209654 | AE124: 0.08394209654 | AF124: 0.08394209654 | AG124: 0.01097532043 | AH124: 0.01097532043 | AI124: 0.01097532043 | AJ124: 464.7234966 | AK124: 464.7234966 | AL124: 464.7234966 | AM124: 24.05773204 | AN124: 24.05773204 | AO124: 24.05773204 | AP124: 0.09718409754 | AQ124: 0.09718409754 | AR124: 0.09718409754 | AS124: 0.07444793691 | AT124: 0.1347856535 | AU124: 0.2092335904 | AV124: 259.9880116 | AW124: 22.42280594 | AX124: 50.42909821 | AY124: 5.016226609 | AZ124: 5.812347095 | BA124: 2.56455323 | BB124: 9.768673948 | BC124: 356.0017166 | BD124: 71.0403815 | BE124: 8.546983069 | BF124: 2.643096141 | BG124: 13.64531812 | BH124: 15.69937161 | BI124: 9.750234561 | BJ124: 457.2649598 | BK124: 370.4195034 | BL124: 20527.97286 | BM124: 24969.69323 | BN124: 18951.36389 | BO124: 22764.68871 | BP124: 29295.45916 | BQ124: 0.4477929465 | BR124: 0.04266255682 | BS124: 0.06186817618 | BT124: 0.02127810282 | BU124: 0.1727304983 | BV124: 0.05507916054 | BW124: 0.1835069354 | BX124: 0.01508165907 | BY124: 0.4490682302 | BZ124: 0.07130035735 | CA124: 0.06279004371 | CB124: 0.01216652586 | CC124: 0.1399530302 | CD124: 0.03867241683 | CE124: 0.216658445 | CF124: 0.009390950815 | CG124: 2159.836027 | CH124: 184.6740174 | CI124: 326.5582112 | CJ124: 668.6998518 | CK124: 1027.814608 | CL124: 301.0638182 | CM124: 64.02514177 | CN124: 49.2165997 | CO124: 4781.888275
B125: 42045 | C125: 10 | D125: 59 | E125: All_In | F125: 3 | G125: L | H125: H | I125: 2 | J125: 4 | K125: 6 | L125: 6 | M125: 8 | N125: H | O125: L | P125: U | Q125: L | R125: U | S125: H | T125: H | U125: 2050 | V125: 13.91171316 | W125: 0.6215206974 | X125: 3.516747919 | Y125: 0.2305461734 | Z125: 0.126281271 | AA125: 0.2390112395 | AB125: 0.4456667987 | AC125: 19.09148726 | AD125: 0.08841886173 | AE125: 0.08841886173 | AF125: 0.08841886173 | AG125: 0.01052425794 | AH125: 0.01052425794 | AI125: 0.01052425794 | AJ125: 468.1787836 | AK125: 468.1787836 | AL125: 468.1787836 | AM125: 24.52290789 | AN125: 24.52290789 | AO125: 24.52290789 | AP125: 0.0852583788 | AQ125: 0.0852583788 | AR125: 0.0852583788 | AS125: 0.07479153632 | AT125: 0.119412323 | AU125: 0.1942038593 | AV125: 270.5216094 | AW125: 10.69164764 | AX125: 76.2234011 | AY125: 13.07510346 | AZ125: 6.284171004 | BA125: 11.57176836 | BB125: 22.33457825 | BC125: 410.7022793 | BD125: 91.05832614 | BE125: 8.688056822 | BF125: 6.377411138 | BG125: 19.97700588 | BH125: 32.89250878 | BI125: 21.70620052 | BJ125: 453.3031223 | BK125: 376.8552393 | BL125: 18862.48296 | BM125: 22728.90654 | BN125: 17363.27152 | BO125: 21044.43232 | BP125: 26915.78055 | BQ125: 0.4400104103 | BR125: 0.02070634651 | BS125: 0.04493243146 | BT125: 0.06669707376 | BU125: 0.1868715798 | BV125: 0.09249750428 | BW125: 0.1226294267 | BX125: 0.02565522717 | BY125: 0.443719189 | BZ125: 0.03137843758 | CA125: 0.05365580573 | CB125: 0.04407420733 | CC125: 0.1798564656 | CD125: 0.07392300692 | CE125: 0.1529990128 | CF125: 0.02039387511 | CG125: 2472.73421 | CH125: 397.8501951 | CI125: 167.6747779 | CJ125: 953.6256519 | CK125: 832.5700641 | CL125: 290.9105466 | CM125: 259.8395858 | CN125: 116.0884955 | CO125: 5491.293527
B126: 40991 | C126: 10 | D126: 60 | E126: All_In | F126: 3 | G126: L | H126: H | I126: 2 | J126: 4 | K126: 4 | L126: 4 | M126: 8 | N126: H | O126: H | P126: R | Q126: H | R126: R | S126: H | T126: H | U126: 2035 | V126: 15.32378157 | W126: 1.475734355 | X126: 2.915729459 | Y126: 0.1055590218 | Z126: 0.08609339025 | AA126: 0.008909320344 | AB126: 0.03057607495 | AC126: 19.94638319 | AD126: 0.08046988109 | AE126: 0.08046988109 | AF126: 0.08046988109 | AG126: 0.01086799467 | AH126: 0.01086799467 | AI126: 0.01086799467 | AJ126: 470.8826228 | AK126: 470.8826228 | AL126: 470.8826228 | AM126: 23.60741887 | AN126: 23.60741887 | AO126: 23.60741887 | AP126: 0.09833175772 | AQ126: 0.09833175772 | AR126: 0.09833175772 | AS126: 0.07510117245 | AT126: 0.1334408678 | AU126: 0.2085420402 | AV126: 271.5374094 | AW126: 23.64126437 | AX126: 53.5141322 | AY126: 5.425818165 | AZ126: 3.714060591 | BA126: 0.3921803879 | BB126: 1.413138706 | BC126: 359.6380038 | BD126: 75.41531325 | BE126: 4.452579967 | BF126: 0.4140769444 | BG126: 1.861630202 | BH126: 16.95126493 | BI126: 10.53647875 | BJ126: 453.2657604 | BK126: 367.2471809 | BL126: 20260.60655 | BM126: 24736.85382 | BN126: 18895.81255 | BO126: 22475.70202 | BP126: 29210.00264 | BQ126: 0.4788433787 | BR126: 0.04626255821 | BS126: 0.04555964632 | BT126: 0.00361236234 | BU126: 0.1859763176 | BV126: 0.008454338974 | BW126: 0.2148371389 | BX126: 0.0164542946 | BY126: 0.4724477238 | BZ126: 0.07522269486 | CA126: 0.04118803164 | CB126: 0.001861021309 | CC126: 0.1489527972 | CD126: 0.005432249218 | CE126: 0.2447151448 | CF126: 0.01018033719 | CG126: 2276.286847 | CH126: 26.30930629 | CI126: 345.4480528 | CJ126: 712.1395051 | CK126: 1164.943593 | CL126: 200.2566539 | CM126: 9.975792061 | CN126: 53.35382257 | CO126: 4788.713572
B127: 42015 | C127: 10 | D127: 60 | E127: All_In | F127: 3 | G127: L | H127: H | I127: 2 | J127: 4 | K127: 4 | L127: 4 | M127: 8 | N127: H | O127: H | P127: R | Q127: H | R127: R | S127: H | T127: H | U127: 2050 | V127: 15.09700424 | W127: 0.6850073535 | X127: 3.864859855 | Y127: 0.2589202374 | Z127: 0.1067003103 | AA127: 0.05154316685 | AB127: 0.08208371644 | AC127: 20.14611888 | AD127: 0.08166856689 | AE127: 0.08166856689 | AF127: 0.08166856689 | AG127: 0.0104417235 | AH127: 0.0104417235 | AI127: 0.0104417235 | AJ127: 474.4539249 | AK127: 474.4539249 | AL127: 474.4539249 | AM127: 23.55063661 | AN127: 23.55063661 | AO127: 23.55063661 | AP127: 0.08623399853 | AQ127: 0.08623399853 | AR127: 0.08623399853 | AS127: 0.07551576162 | AT127: 0.1185648239 | AU127: 0.1940805855 | AV127: 293.5703057 | AW127: 11.7837705 | AX127: 83.76851843 | AY127: 14.68429877 | AZ127: 5.078355176 | BA127: 2.486407423 | BB127: 4.111217359 | BC127: 415.4828733 | BD127: 100.1188124 | BE127: 4.916648025 | BF127: 1.272909832 | BG127: 3.201642295 | BH127: 36.78313167 | BI127: 24.3273955 | BJ127: 451.6293901 | BK127: 374.9057764 | BL127: 18656.24129 | BM127: 22759.07649 | BN127: 17272.46212 | BO127: 20933.22565 | BP127: 26868.4405 | BQ127: 0.4934733637 | BR127: 0.02367168295 | BS127: 0.04317820245 | BT127: 0.01583224515 | BU127: 0.2113364212 | BV127: 0.01765040142 | BW127: 0.1653763106 | BX127: 0.02948137251 | BY127: 0.4859350597 | BZ127: 0.03466399671 | CA127: 0.0449434356 | CB127: 0.009636173398 | CC127: 0.1986875881 | CD127: 0.01301259014 | CE127: 0.1901580403 | CF127: 0.02296311611 | CG127: 2712.611009 | CH127: 70.57829978 | CI127: 185.8037697 | CJ127: 1055.409006 | CK127: 1042.273952 | CL127: 247.1092742 | CM127: 57.22267165 | CN127: 130.9278313 | CO127: 5501.935814
B128: 40989 | C128: 10 | D128: 61 | E128: All_In | F128: 3 | G128: L | H128: H | I128: 2 | J128: 4 | K128: 2 | L128: 2 | M128: 8 | N128: H | O128: L | P128: R | Q128: L | R128: R | S128: H | T128: H | U128: 2035 | V128: 14.6691078 | W128: 1.398980231 | X128: 2.745581558 | Y128: 0.09750084812 | Z128: 0.1327089643 | AA128: 0.05797338182 | AB128: 0.2114193838 | AC128: 19.31327217 | AD128: 0.08395822604 | AE128: 0.08395822604 | AF128: 0.08395822604 | AG128: 0.01097631169 | AH128: 0.01097631169 | AI128: 0.01097631169 | AJ128: 464.7038953 | AK128: 464.7038953 | AL128: 464.7038953 | AM128: 24.06137558 | AN128: 24.06137558 | AO128: 24.06137558 | AP128: 0.09717428515 | AQ128: 0.09717428515 | AR128: 0.09717428515 | AS128: 0.07440124703 | AT128: 0.1347897754 | AU128: 0.2091910224 | AV128: 259.9365902 | AW128: 22.4116633 | AX128: 50.39130568 | AY128: 5.011621594 | AZ128: 5.725051982 | BA128: 2.551936903 | BB128: 9.77119905 | BC128: 355.7993688 | BD128: 70.98678737 | BE128: 7.137428807 | BF128: 2.880173962 | BG128: 13.59006867 | BH128: 15.68585017 | BI128: 9.741578088 | BJ128: 457.3243694 | BK128: 370.4526106 | BL128: 20530.93488 | BM128: 24971.71723 | BN128: 18956.3209 | BO128: 22767.18342 | BP128: 29299.70452 | BQ128: 0.4473450388 | BR128: 0.04261811298 | BS128: 0.06379013569 | BT128: 0.02095981189 | BU128: 0.1725550174 | BV128: 0.05504666734 | BW128: 0.1826190936 | BX128: 0.01506615796 | BY128: 0.4488042181 | BZ128: 0.07126837478 | CA128: 0.06389907141 | CB128: 0.01201501756 | CC128: 0.139853266 | CD128: 0.03865998416 | CE128: 0.2161174338 | CF128: 0.009382634067 | CG128: 2158.441578 | CH128: 184.840312 | CI128: 326.3918024 | CJ128: 668.1961905 | CK128: 1024.970844 | CL128: 306.9155792 | CM128: 63.24119187 | CN128: 49.17192712 | CO128: 4782.169425
B129: 42013 | C129: 10 | D129: 61 | E129: All_In | F129: 3 | G129: L | H129: H | I129: 2 | J129: 4 | K129: 2 | L129: 2 | M129: 8 | N129: H | O129: L | P129: R | Q129: L | R129: R | S129: H | T129: H | U129: 2050 | V129: 13.90552091 | W129: 0.6204960482 | X129: 3.510638311 | Y129: 0.2301079987 | Z129: 0.1335590625 | AA129: 0.2364778744 | AB129: 0.4454478985 | AC129: 19.08224811 | AD129: 0.08845705823 | AE129: 0.08845705823 | AF129: 0.08845705823 | AG129: 0.01052560072 | AH129: 0.01052560072 | AI129: 0.01052560072 | AJ129: 468.124292 | AK129: 468.124292 | AL129: 468.124292 | AM129: 24.53192566 | AN129: 24.53192566 | AO129: 24.53192566 | AP129: 0.08524172418 | AQ129: 0.08524172418 | AR129: 0.08524172418 | AS129: 0.07471078045 | AT129: 0.1194399254 | AU129: 0.1941507058 | AV129: 270.4011975 | AW129: 10.67402122 | AX129: 76.090979 | AY129: 13.050253 | AZ129: 6.356685881 | BA129: 11.40753233 | BB129: 22.31055333 | BC129: 410.2912222 | BD129: 90.89930825 | BE129: 7.287422146 | BF129: 6.569303018 | BG129: 19.84681747 | BH129: 32.83391025 | BI129: 21.66619781 | BJ129: 453.4693126 | BK129: 376.9721162 | BL129: 18869.39491 | BM129: 22735.30335 | BN129: 17373.37603 | BO129: 21051.70986 | BP129: 26927.05999 | BQ129: 0.439079038 | BR129: 0.02065810411 | BS129: 0.04852502597 | BT129: 0.06612783741 | BU129: 0.1864636561 | BV129: 0.09233400629 | BW129: 0.1212150335 | BX129: 0.02559729853 | BY129: 0.443000083 | BZ129: 0.03132922124 | CA129: 0.05654922431 | CB129: 0.04361018166 | CC129: 0.1795535626 | CD129: 0.07382292429 | CE129: 0.1517780613 | CF129: 0.02035674164 | CG129: 2468.570575 | CH129: 397.6624995 | CI129: 167.3970792 | CJ129: 951.9569885 | CK129: 825.5847985 | CL129: 307.4653713 | CM129: 257.2196039 | CN129: 115.8702457 | CO129: 5491.727161
B130: 41005 | C130: 10 | D130: 62 | E130: All_In | F130: 3 | G130: L | H130: H | I130: 2 | J130: 4 | K130: 6 | L130: 6 | M130: 4 | N130: H | O130: L | P130: U | Q130: L | R130: U | S130: H | T130: L | U130: 2035 | V130: 14.64537128 | W130: 1.397091667 | X130: 2.741297076 | Y130: 0.1186953276 | Z130: 0.1298421829 | AA130: 0.05854606029 | AB130: 0.2105988992 | AC130: 19.30144249 | AD130: 0.08409039354 | AE130: 0.08409039354 | AF130: 0.08409039354 | AG130: 0.01097900409 | AH130: 0.01097900409 | AI130: 0.01097900409 | AJ130: 464.428152 | AK130: 464.428152 | AL130: 464.428152 | AM130: 24.06183643 | AN130: 24.06183643 | AO130: 24.06183643 | AP130: 0.09711042458 | AQ130: 0.09711042458 | AR130: 0.09711042458 | AS130: 0.07431922646 | AT130: 0.1348753952 | AU130: 0.2091946217 | AV130: 259.515979 | AW130: 22.3814085 | AX130: 50.31267002 | AY130: 5.124504595 | AZ130: 5.799254118 | BA130: 2.556555989 | BB130: 9.73945062 | BC130: 355.4298228 | BD130: 70.87527298 | BE130: 8.530354903 | BF130: 2.635296603 | BG130: 13.60770513 | BH130: 19.2743307 | BI130: 11.9231347 | BJ130: 457.7028166 | BK130: 370.7115919 | BL130: 20544.85597 | BM130: 24996.17677 | BN130: 18956.23249 | BO130: 22795.20635 | BP130: 29323.84931 | BQ130: 0.4465686331 | BR130: 0.04251602443 | BS130: 0.06166748322 | BT130: 0.02120605293 | BU130: 0.1722046054 | BV130: 0.05488552393 | BW130: 0.1829579465 | BX130: 0.01799376618 | BY130: 0.4482893584 | BZ130: 0.07117668733 | CA130: 0.06265530897 | CB130: 0.01212934816 | CC130: 0.1396325683 | CD130: 0.03856126491 | CE130: 0.2162724235 | CF130: 0.01128304034 | CG130: 2155.803274 | CH130: 184.127297 | CI130: 325.9322565 | CJ130: 667.1109226 | CK130: 1025.839127 | CL130: 300.3788844 | CM130: 63.82519359 | CN130: 59.45778027 | CO130: 4782.474735
B131: 42029 | C131: 10 | D131: 62 | E131: All_In | F131: 3 | G131: L | H131: H | I131: 2 | J131: 4 | K131: 6 | L131: 6 | M131: 4 | N131: H | O131: L | P131: U | Q131: L | R131: U | S131: H | T131: L | U131: 2050 | V131: 13.85313094 | W131: 0.6185427084 | X131: 3.500521848 | Y131: 0.2842740937 | Z131: 0.1256718783 | AA131: 0.237694654 | AB131: 0.4431553409 | AC131: 19.06299147 | AD131: 0.08878154816 | AE131: 0.08878154816 | AF131: 0.08878154816 | AG131: 0.01052816146 | AH131: 0.01052816146 | AI131: 0.01052816146 | AJ131: 467.6519447 | AK131: 467.6519447 | AL131: 467.6519447 | AM131: 24.53192855 | AN131: 24.53192855 | AO131: 24.53192855 | AP131: 0.08514066329 | AQ131: 0.08514066329 | AR131: 0.08514066329 | AS131: 0.0745090738 | AT131: 0.1195449863 | AU131: 0.1940540601 | AV131: 269.3824431 | AW131: 10.64041909 | AX131: 75.87171074 | AY131: 13.39067433 | AZ131: 6.253845624 | BA131: 11.50802566 | BB131: 22.20871662 | BC131: 409.2558352 | BD131: 90.63600194 | BE131: 8.665937174 | BF131: 6.347319744 | BG131: 19.89222772 | BH131: 40.68610688 | BI131: 26.81270747 | BJ131: 453.9698597 | BK131: 377.3704013 | BL131: 18888.39065 | BM131: 22762.35936 | BN131: 17376.20958 | BO131: 21081.97046 | BP131: 26960.86257 | BQ131: 0.4375303024 | BR131: 0.02056334377 | BS131: 0.04463857185 | BT131: 0.0662714588 | BU131: 0.1857313599 | BV131: 0.09187385628 | BW131: 0.121865895 | BX131: 0.03152521206 | BY131: 0.4418737691 | BZ131: 0.03123262515 | CA131: 0.05340475348 | CB131: 0.04383499575 | CC131: 0.1790277985 | CD131: 0.07352124416 | CE131: 0.152335775 | CF131: 0.02476903892 | CG131: 2462.078084 | CH131: 395.627562 | CI131: 166.8575463 | CJ131: 949.0740369 | CK131: 828.804652 | CL131: 289.4952215 | CM131: 258.4003115 | CN131: 142.3605121 | CO131: 5492.697926
B132: 41023 | C132: 10 | D132: 63 | E132: All_In | F132: 3 | G132: L | H132: H | I132: 2 | J132: 4 | K132: 8 | L132: 8 | M132: 8 | N132: H | O132: H | P132: U | Q132: H | R132: U | S132: H | T132: H | U132: 2035 | V132: 15.32651726 | W132: 1.476274247 | X132: 2.917294927 | Y132: 0.1056341613 | Z132: 0.08429375802 | AA132: 0.00901356087 | AB132: 0.03050573833 | AC132: 19.94953365 | AD132: 0.08045591239 | AE132: 0.08045591239 | AF132: 0.08045591239 | AG132: 0.01086724034 | AH132: 0.01086724034 | AI132: 0.01086724034 | AJ132: 470.8976803 | AK132: 470.8976803 | AL132: 470.8976803 | AM132: 23.60444553 | AN132: 23.60444553 | AO132: 23.60444553 | AP132: 0.09833786322 | AQ132: 0.09833786322 | AR132: 0.09833786322 | AS132: 0.07513258801 | AT132: 0.1334298914 | AU132: 0.2085624795 | AV132: 271.5858858 | AW132: 23.64991343 | AX132: 53.54286416 | AY132: 5.429680398 | AZ132: 3.764885282 | BA132: 0.3935990383 | BB132: 1.41078198 | BC132: 359.7776101 | BD132: 75.45605847 | BE132: 5.345335482 | BF132: 0.3806305909 | BG132: 1.866994546 | BH132: 16.96250971 | BI132: 10.54370913 | BJ132: 453.1919179 | BK132: 367.205915 | BL132: 20257.23191 | BM132: 24733.39578 | BN132: 18892.64447 | BO132: 22471.44723 | BP132: 29204.97128 | BQ132: 0.4791876242 | BR132: 0.04630046946 | BS132: 0.04418857697 | BT132: 0.003661000672 | BU132: 0.1861180673 | BV132: 0.008458044167 | BW132: 0.2156184566 | BX132: 0.01646779633 | BY132: 0.4726396554 | BZ132: 0.07524771612 | CA132: 0.04041655092 | CB132: 0.001882285774 | CC132: 0.1490297354 | CD132: 0.005433701147 | CE132: 0.2451630033 | CF132: 0.01018735192 | CG132: 2277.302585 | CH132: 26.24841283 | CI132: 345.5789514 | CJ132: 712.5283278 | CK132: 1167.303779 | CL132: 196.1322029 | CM132: 10.08357817 | CN132: 53.39153954 | CO132: 4788.569376
B133: 42047 | C133: 10 | D133: 63 | E133: All_In | F133: 3 | G133: L | H133: H | I133: 2 | J133: 4 | K133: 8 | L133: 8 | M133: 8 | N133: H | O133: H | P133: U | Q133: H | R133: U | S133: H | T133: H | U133: 2050 | V133: 15.1052259 | W133: 0.6859536499 | X133: 3.87027902 | Y133: 0.2593416382 | Z133: 0.100732158 | AA133: 0.05198169725 | AB133: 0.08199668396 | AC133: 20.15551074 | AD133: 0.08162534169 | AE133: 0.08162534169 | AF133: 0.08162534169 | AG133: 0.01044050307 | AH133: 0.01044050307 | AI133: 0.01044050307 | AJ133: 474.4814602 | AK133: 474.4814602 | AL133: 474.4814602 | AM133: 23.54102887 | AN133: 23.54102887 | AO133: 23.54102887 | AP133: 0.08624293167 | AQ133: 0.08624293167 | AR133: 0.08624293167 | AS133: 0.07557014179 | AT133: 0.1185290949 | AU133: 0.1940992367 | AV133: 293.7301807 | AW133: 11.80004907 | AX133: 83.8859756 | AY133: 14.70819793 | AZ133: 5.012763187 | BA133: 2.516702397 | BB133: 4.109261357 | BC133: 415.7631302 | BD133: 100.2598598 | BE133: 5.984610345 | BF133: 1.251669541 | BG133: 3.220529025 | BH133: 36.83915313 | BI133: 24.36576323 | BJ133: 451.4416683 | BK133: 374.7757278 | BL133: 18648.39322 | BM133: 22750.81621 | BN133: 17265.41602 | BO133: 20923.17401 | BP133: 26856.39431 | BQ133: 0.4943268211 | BR133: 0.02372012741 | BS133: 0.04000589582 | BT133: 0.01595276387 | BU133: 0.2117237509 | BV133: 0.01767859841 | BW133: 0.167052417 | BX133: 0.02953962544 | BY133: 0.4865564121 | BZ133: 0.03470978687 | CA133: 0.04257858538 | CB133: 0.009724663114 | CC133: 0.1989606814 | CD133: 0.01302843986 | CE133: 0.1914423351 | CF133: 0.02299909621 | CG133: 2716.224593 | CH133: 70.50219634 | CI133: 186.064196 | CJ133: 1056.919856 | CK133: 1049.704765 | CL133: 233.4252719 | CM133: 57.70444089 | CN133: 131.1398751 | CO133: 5501.685194
B134: 40981 | C134: 10 | D134: 64 | E134: All_In | F134: 3 | G134: L | H134: H | I134: 2 | J134: 4 | K134: 2 | L134: 2 | M134: 6 | N134: H | O134: L | P134: R | Q134: L | R134: R | S134: L | T134: H | U134: 2035 | V134: 14.15950112 | W134: 1.352784721 | X134: 2.628312645 | Y134: 0.4694894223 | Z134: 0.1272857954 | AA134: 0.05491478096 | AB134: 0.2005139794 | AC134: 18.99280247 | AD134: 0.08689024837 | AE134: 0.08689024837 | AF134: 0.08689024837 | AG134: 0.01104255084 | AH134: 0.01104255084 | AI134: 0.01104255084 | AJ134: 458.3992814 | AK134: 458.3992814 | AL134: 458.3992814 | AM134: 24.13542089 | AN134: 24.13542089 | AO134: 24.13542089 | AP134: 0.09579560202 | AQ134: 0.09579560202 | AR134: 0.09579560202 | AS134: 0.0756762789 | AT134: 0.1351569661 | AU134: 0.210833245 | AV134: 250.9063599 | AW134: 21.67161122 | AX134: 48.23899896 | AY134: 24.1321319 | AZ134: 5.491096992 | BA134: 2.417300004 | BB134: 9.267182458 | BC134: 362.1246815 | BD134: 67.93456977 | BE134: 6.889167054 | BF134: 2.735295191 | BG134: 12.94036618 | BH134: 78.95173645 | BI134: 48.13952468 | BJ134: 458.4800844 | BK134: 371.6957054 | BL134: 20602.90428 | BM134: 24998.53772 | BN134: 19041.82315 | BO134: 22783.5874 | BP134: 29424.92907 | BQ134: 0.4251832039 | BR134: 0.04020691942 | BS134: 0.06028114495 | BT134: 0.01976699213 | BU134: 0.1633900373 | BV134: 0.05181807757 | BW134: 0.1730488759 | BX134: 0.06630478455 | BY134: 0.4336956154 | BZ134: 0.06904973457 | CA134: 0.06139419561 | CB134: 0.01138743311 | CC134: 0.1339099043 | CD134: 0.03671379307 | CE134: 0.2088305012 | CF134: 0.04501882274 | CG134: 2080.616973 | CH134: 175.3126881 | CI134: 315.1951421 | CJ134: 638.8702489 | CK134: 987.8618268 | CL134: 294.214843 | CM134: 59.88683428 | CN134: 233.2223054 | CO134: 4785.180862
B135: 42005 | C135: 10 | D135: 64 | E135: All_In | F135: 3 | G135: L | H135: H | I135: 2 | J135: 4 | K135: 2 | L135: 2 | M135: 6 | N135: H | O135: L | P135: R | Q135: L | R135: R | S135: L | T135: H | U135: 2050 | V135: 13.09996732 | W135: 0.5813635539 | X135: 3.295382448 | Y135: 0.903360515 | Z135: 0.1251180554 | AA135: 0.2205143746 | AB135: 0.4146658541 | AC135: 18.64037212 | AD135: 0.09372421976 | AE135: 0.09372421976 | AF135: 0.09372421976 | AG135: 0.01057714041 | AH135: 0.01057714041 | AI135: 0.01057714041 | AJ135: 459.5137326 | AK135: 459.5137326 | AL135: 459.5137326 | AM135: 24.65153215 | AN135: 24.65153215 | AO135: 24.65153215 | AP135: 0.08362683283 | AQ135: 0.08362683283 | AR135: 0.08362683283 | AS135: 0.07730147049 | AT135: 0.1193026329 | AU135: 0.1966041034 | AV135: 254.7367245 | AW135: 10.0008484 | AX135: 71.42543734 | AY135: 51.2328269 | AZ135: 5.954939796 | BA135: 10.63746392 | BB135: 20.76881423 | BC135: 424.7570551 | BD135: 85.29673454 | BE135: 6.98624624 | BF135: 6.163059528 | BG135: 18.67483944 | BH135: 135.0576669 | BI135: 87.15512649 | BJ135: 452.5086212 | BK135: 376.7503162 | BL135: 18843.37294 | BM135: 22639.43969 | BN135: 17473.59601 | BO135: 20924.64422 | BP135: 26922.58158 | BQ135: 0.4098246671 | BR135: 0.01914523513 | BS135: 0.04503534777 | BT135: 0.06136856685 | BU135: 0.173460627 | BV135: 0.08547489588 | BW135: 0.1126886887 | BX135: 0.09300197157 | BY135: 0.4171965972 | BZ135: 0.02937181664 | CA135: 0.05299446719 | CB135: 0.04066266722 | CC135: 0.1684233936 | CD135: 0.06877276292 | CE135: 0.1426548229 | CF135: 0.07992347226 | CG135: 2322.623565 | CH135: 370.1834938 | CI135: 156.7271012 | CJ135: 892.0986315 | CK135: 775.0463251 | CL135: 287.833438 | CM135: 239.71389 | CN135: 450.5856519 | CO135: 5494.812096
B136: 41240 | C136: 10 | D136: 65 | E136: All_In | F136: 3 | G136: B | H136: L | I136: 3 | J136: 5 | K136: 9 | L136: 9 | M136: 7 | N136: L | O136: L | P136: R | Q136: L | R136: R | S136: H | T136: H | U136: 2035 | V136: 8.239800348 | W136: 2.198450384 | X136: 4.516551697 | Y136: 0.08780696624 | Z136: 0.1504610794 | AA136: 0.03756279758 | AB136: 0.2311376695 | AC136: 15.46177094 | AD136: 0.1462768014 | AE136: 0.1462768014 | AF136: 0.4987628805 | AG136: 0.01043500884 | AH136: 0.01043500884 | AI136: 0.01043500884 | AJ136: 361.541811 | AK136: 361.541811 | AL136: 295.3097877 | AM136: 23.38294962 | AN136: 23.38294962 | AO136: 19.09935083 | AP136: 0.08407520783 | AQ136: 0.08407520783 | AR136: 0.06867319635 | AS136: 0.1029043544 | AT136: 0.1432538251 | AU136: 0.2461581795 | AV136: 266.3762657 | AW136: 65.86205598 | AX136: 86.04934292 | AY136: 4.51334831 | AZ136: 6.808365047 | BA136: 1.731641626 | BB136: 11.17024632 | BC136: 442.5112659 | BD136: 117.0778259 | BE136: 8.054926353 | BF136: 1.92623642 | BG136: 15.20108923 | BH136: 14.27540834 | BI136: 8.822715866 | BJ136: 440.9150814 | BK136: 354.0361084 | BL136: 19929.41148 | BM136: 24052.48369 | BN136: 18448.91478 | BO136: 21558.01198 | BP136: 27734.60151 | BQ136: 0.2154284097 | BR136: 0.1008597064 | BS136: 0.09779467368 | BT136: 0.01577772087 | BU136: 0.2958958391 | BV136: 0.06986604225 | BW136: 0.1883085935 | BX136: 0.01606909232 | BY136: 0.2311985104 | BZ136: 0.1276019445 | CA136: 0.09268524475 | CB136: 0.009644709642 | CC136: 0.2646666396 | CD136: 0.05062526711 | CE136: 0.2133858233 | CF136: 0.01019186065 | CG136: 985.4459705 | CH136: 226.2208832 | CI136: 534.7160397 | CJ136: 1155.11132 | CK136: 901.914896 | CL136: 400.5824128 | CM136: 46.41982152 | CN136: 49.80771316 | CO136: 4300.219057
B137: =1*(MID(H137,1,1)="H")+2*(OR(MID(O137,1,1)="H",MID(Q137,1,1)="H"))+4*(MID(N137,1,1)="H")+8*(MID(S137,1,1)="H")+16*(MID(T137,1,1)="H")+32*(OR(MID(P137,1,1)="U",MID(R137,1,1)="U"))+256*(MID(G137,1,1)="B")+512*(MID(G137,1,1)="H")+1024*(U137=2050)+2048*(F137=17)+4096*C137 -> 42264 | C137: =1*(E137="liqICEonly")+2*(E137="LiqICE&CNG")+3*(E137="liqICE&allElect")+4*(E137="liqICE&EV")+5*(E137="liqICE&PHEV")+6*(E137="liqICE&FCEV")+7*(E137="noCNG")+8*(E137="NoElect")+9*(E137="noFCEV")+10*(E137="All_In") -> 10 | D137: 65 | E137: All_In | F137: 3 | G137: B | H137: L | I137: 3 | J137: 5 | K137: 9 | L137: 9 | M137: 7 | N137: L | O137: L | P137: R | Q137: L | R137: R | S137: H | T137: H | U137: 2050 | V137: 7.553403802 | W137: 1.451490329 | X137: 5.653775368 | Y137: 0.1965136192 | Z137: 0.1704603233 | AA137: 0.1155175339 | AB137: 0.4339985349 | AC137: 15.57515951 | AD137: 0.1583768085 | AE137: 0.7188403137 | AF137: 0.95 | AG137: 0.009847376701 | AH137: 0.04194705215 | AI137: 0.04194705215 | AJ137: 367.8764011 | AK137: 260.6755131 | AL137: 226.1688923 | AM137: 23.61943073 | AN137: 16.73661916 | AO137: 14.52112848 | AP137: 0.07387013163 | AQ137: 0.05234403297 | AR137: 0.04541505189 | AS137: 0.104149441 | AT137: 0.1165343648 | AU137: 0.2206838058 | AV137: 289.3014083 | AW137: 52.2617802 | AX137: 127.5627414 | AY137: 11.1449948 | AZ137: 8.817376426 | BA137: 6.049839119 | BB137: 23.53051087 | BC137: 518.6686511 | BD137: 146.6769243 | BE137: 8.562025376 | BF137: 3.600806021 | BG137: 20.77114434 | BH137: 28.33278163 | BI137: 18.59809745 | BJ137: 394.5221365 | BK137: 333.5322408 | BL137: 17891.24696 | BM137: 21479.61803 | BN137: 16636.26949 | BO137: 19434.67989 | BP137: 24813.44976 | BQ137: 0.2082618172 | BR137: 0.06705051105 | BS137: 0.08399318101 | BT137: 0.03669222619 | BU137: 0.3273827888 | BV137: 0.1032259427 | BW137: 0.1478785116 | BX137: 0.02551502139 | BY137: 0.211702506 | BZ137: 0.08359876448 | CA137: 0.09146017156 | CB137: 0.02643862844 | CC137: 0.3124304553 | CD137: 0.08586210299 | CE137: 0.1677702158 | CF137: 0.02073715544 | CG137: 1062.009442 | CH137: 433.5771763 | CI137: 409.0081507 | CJ137: 1544.361986 | CK137: 825.563897 | CL137: 451.6629482 | CM137: 142.9896471 | CN137: 110.869336 | CO137: 4980.042582
B138: 41274 | C138: 10 | D138: 66 | E138: All_In | F138: 3 | G138: B | H138: L | I138: 3 | J138: 5 | K138: 15 | L138: 15 | M138: 7 | N138: L | O138: H | P138: U | Q138: H | R138: U | S138: H | T138: H | U138: 2035 | V138: 8.393738454 | W138: 2.330791409 | X138: 4.811992015 | Y138: 0.09571497186 | Z138: 0.2224032607 | AA138: 0.009477095137 | AB138: 0.03936988529 | AC138: 15.90348709 | AD138: 0.1437243942 | AE138: 0.1437243942 | AF138: 0.4900598878 | AG138: 0.01026727084 | AH138: 0.01026727084 | AI138: 0.01026727084 | AJ138: 366.3587536 | AK138: 366.3587536 | AL138: 300.0666503 | AM138: 23.03637884 | AN138: 23.03637884 | AO138: 18.86797836 | AP138: 0.08513989831 | AQ138: 0.08513989831 | AR138: 0.06973395298 | AS138: 0.1046980227 | AT138: 0.1419857607 | AU138: 0.2466837834 | AV138: 271.3527767 | AW138: 69.82678134 | AX138: 91.67807187 | AY138: 4.919826126 | AZ138: 10.40268389 | BA138: 0.4338380448 | BB138: 1.903791827 | BC138: 450.5177698 | BD138: 124.7674012 | BE138: 13.99795823 | BF138: 0.4191969929 | BG138: 2.483882845 | BH138: 15.53405021 | BI138: 9.60823188 | BJ138: 437.2079066 | BK138: 351.1308517 | BL138: 19670.77445 | BM138: 23843.85514 | BN138: 18430.6992 | BO138: 21277.45739 | BP138: 27721.25175 | BQ138: 0.2337881218 | BR138: 0.1094130748 | BS138: 0.08354097701 | BT138: 0.003565374265 | BU138: 0.3205269419 | BV138: 0.01253753912 | BW138: 0.21895878 | BX138: 0.0176692689 | BY138: 0.2459543959 | BZ138: 0.1355383256 | CA138: 0.0726873671 | CB138: 0.001970322417 | CC138: 0.2827059223 | CD138: 0.008367308058 | CE138: 0.2416423583 | CF138: 0.01113400037 | CG138: 1051.121956 | CH138: 37.71160392 | CI138: 569.3274996 | CJ138: 1235.186327 | CK138: 1024.26782 | CL138: 321.34869 | CM138: 9.643324423 | CN138: 54.41358139 | CO138: 4303.020802
B139: 42298 | C139: 10 | D139: 66 | E139: All_In | F139: 3 | G139: B | H139: L | I139: 3 | J139: 5 | K139: 15 | L139: 15 | M139: 7 | N139: L | O139: H | P139: U | Q139: H | R139: U | S139: H | T139: H | U139: 2050 | V139: 7.903094756 | W139: 1.588528034 | X139: 6.19344201 | Y139: 0.2201058882 | Z139: 0.2843702095 | AA139: 0.03922107054 | AB139: 0.09087335477 | AC139: 16.31963532 | AD139: 0.1517485651 | AE139: 0.6887560568 | AF139: 0.9187491716 | AG139: 0.009692640524 | AH139: 0.0412879196 | AI139: 0.0412879196 | AJ139: 373.8504292 | AK139: 266.3117409 | AL139: 230.3109299 | AM139: 22.90801368 | AN139: 16.31848602 | AO139: 14.11250468 | AP139: 0.07507367667 | AQ139: 0.0534786106 | AR139: 0.04624921341 | AS139: 0.1073218085 | AT139: 0.1156246842 | AU139: 0.2229464927 | AV139: 302.6948516 | AW139: 57.19590498 | AX139: 139.738916 | AY139: 12.4829973 | AZ139: 15.33462943 | BA139: 2.062116734 | BB139: 4.929630231 | BC139: 534.4390463 | BD139: 160.7231022 | BE139: 16.40904612 | BF139: 1.041386234 | BG139: 3.873440686 | BH139: 31.61963003 | BI139: 20.79401158 | BJ139: 391.8189705 | BK139: 330.9112326 | BL139: 17633.68391 | BM139: 21413.81114 | BN139: 16585.2878 | BO139: 19227.9219 | BP139: 24766.35967 | BQ139: 0.2339584079 | BR139: 0.07525484525 | BS139: 0.07824788391 | BT139: 0.01089478043 | BU139: 0.3663348791 | BV139: 0.02233356857 | BW139: 0.1839007732 | BX139: 0.0290748616 | BY139: 0.2335713338 | BZ139: 0.09191181179 | CA139: 0.0817436483 | CB139: 0.007265069127 | CC139: 0.3440285865 | CD139: 0.01725537031 | CE139: 0.2009389301 | CF139: 0.02328525003 | CG139: 1173.472316 | CH139: 87.40832443 | CI139: 450.5762909 | CJ139: 1702.662531 | CK139: 992.3457726 | CL139: 408.9269106 | CM139: 39.74212274 | CN139: 124.6462056 | CO139: 4979.780474
B140: 41232 | C140: 10 | D140: 67 | E140: All_In | F140: 3 | G140: B | H140: L | I140: 3 | J140: 5 | K140: 9 | L140: 9 | M140: 5 | N140: L | O140: L | P140: R | Q140: L | R140: R | S140: L | T140: H | U140: 2035 | V140: 7.93789615 | W140: 2.122269851 | X140: 4.337559662 | Y140: 0.4060418948 | Z140: 0.1442860604 | AA140: 0.03561413968 | AB140: 0.2193545453 | AC140: 15.2030223 | AD140: 0.1515553402 | AE140: 0.1515553402 | AF140: 0.5167612181 | AG140: 0.01053407432 | AH140: 0.01053407432 | AI140: 0.01053407432 | AJ140: 356.8321465 | AK140: 356.8321465 | AL140: 290.7243723 | AM140: 23.47113221 | AN140: 23.47113221 | AO140: 19.12280114 | AP140: 0.08279950007 | AQ140: 0.08279950007 | AR140: 0.06745982087 | AS140: 0.102672743 | AT140: 0.1436359644 | AU140: 0.2463087074 | AV140: 256.6163067 | AW140: 63.5798091 | AX140: 82.63918669 | AY140: 20.87087822 | AZ140: 6.528945389 | BA140: 1.641808669 | BB140: 10.60080042 | BC140: 442.4777352 | BD140: 112.4191093 | BE140: 7.771823994 | BF140: 1.831894576 | BG140: 14.48949258 | BH140: 69.22732273 | BI140: 41.97573552 | BJ140: 442.9045529 | BK140: 355.7543378 | BL140: 20031.86246 | BM140: 24126.92535 | BN140: 18555.29456 | BO140: 21638.47666 | BP140: 27923.23843 | BQ140: 0.2040827367 | BR140: 0.09549913263 | BS140: 0.09252162882 | BT140: 0.01487648834 | BU140: 0.2804959719 | BV140: 0.06578644362 | BW140: 0.1784169375 | BX140: 0.06832073821 | BY140: 0.2230679131 | BZ140: 0.1232991818 | CA140: 0.08898465369 | CB140: 0.009150130648 | CC140: 0.2542820867 | CD140: 0.04809714757 | CE140: 0.2059036567 | CF140: 0.04721522984 | CG140: 947.9961977 | CH140: 214.6523377 | CI140: 515.1750358 | CJ140: 1107.809977 | CK140: 868.0616995 | CL140: 383.784759 | CM140: 43.997541 | CN140: 228.1154596 | CO140: 4309.593007
B141: 42256 | C141: 10 | D141: 67 | E141: All_In | F141: 3 | G141: B | H141: L | I141: 3 | J141: 5 | K141: 9 | L141: 9 | M141: 5 | N141: L | O141: L | P141: R | Q141: L | R141: R | S141: L | T141: H | U141: 2050 | V141: 7.110589596 | W141: 1.366986872 | X141: 5.325811032 | Y141: 0.7474727656 | Z141: 0.1602683315 | AA141: 0.1080383263 | AB141: 0.4052321555 | AC141: 15.22439908 | AD141: 0.1676496685 | AE141: 0.7609279505 | AF141: 0.95 | AG141: 0.009945280877 | AH141: 0.04236409637 | AI141: 0.04236409637 | AJ141: 361.858739 | AK141: 255.0757613 | AL141: 228.9704306 | AM141: 23.76834298 | AN141: 16.75440587 | AO141: 15.03970235 | AP141: 0.07245428377 | AQ141: 0.05107333221 | AR141: 0.04584631175 | AS141: 0.1041255296 | AT141: 0.1165768971 | AU141: 0.2207024267 | AV141: 272.34127 | AW141: 49.21918251 | AX141: 120.1630788 | AY141: 42.39187144 | AZ141: 8.290176745 | BA141: 5.65814098 | BB141: 21.97085674 | BC141: 520.0345772 | BD141: 138.1408299 | BE141: 8.191207058 | BF141: 3.389573266 | BG141: 19.59978815 | BH141: 113.3793693 | BI141: 72.67870497 | BJ141: 395.2207897 | BK141: 334.6094801 | BL141: 17931.55395 | BM141: 21468.82276 | BN141: 16769.38107 | BO141: 19420.54605 | BP141: 24939.76538 | BQ141: 0.1944908435 | BR141: 0.06257510227 | BS141: 0.07837335037 | BT141: 0.03416890356 | BU141: 0.3060419566 | BV141: 0.09592960176 | BW141: 0.1381058317 | BX141: 0.09031441025 | BY141: 0.1991585164 | BZ141: 0.07869404859 | CA141: 0.0859676714 | CB141: 0.02472474734 | CC141: 0.2940472249 | CD141: 0.08021486211 | CE141: 0.1579482298 | CF141: 0.07924469948 | CG141: 998.2566102 | CH141: 404.8133657 | CI141: 384.617716 | CJ141: 1452.400047 | CK141: 776.5017081 | CL141: 424.1884277 | CM141: 133.659815 | CN141: 419.8665831 | CO141: 4994.304273
B142: 41266 | C142: 10 | D142: 68 | E142: All_In | F142: 3 | G142: B | H142: L | I142: 3 | J142: 5 | K142: 15 | L142: 15 | M142: 5 | N142: L | O142: H | P142: U | Q142: H | R142: U | S142: L | T142: H | U142: 2035 | V142: 8.059150367 | W142: 2.242682959 | X142: 4.604032129 | Y142: 0.437696084 | Z142: 0.2119495544 | AA142: 0.008903113798 | AB142: 0.03706381836 | AC142: 15.60147803 | AD142: 0.14939019 | AE142: 0.14939019 | AF142: 0.5093786627 | AG142: 0.010378339 | AH142: 0.010378339 | AI142: 0.010378339 | AJ142: 361.0370283 | AK142: 361.0370283 | AL142: 294.8782896 | AM142: 23.14120673 | AN142: 23.14120673 | AO142: 18.90066371 | AP142: 0.08370860786 | AQ142: 0.08370860786 | AR142: 0.06836930613 | AS142: 0.1043470141 | AT142: 0.1424591796 | AU142: 0.2468061936 | AV142: 260.5362131 | AW142: 67.18719316 | AX142: 87.71602012 | AY142: 22.49792888 | AZ142: 9.913722522 | BA142: 0.4075625946 | BB142: 1.792278386 | BC142: 450.0509187 | BD142: 119.3547236 | BE142: 13.40895395 | BF142: 0.3945995894 | BG142: 2.346171689 | BH142: 74.42998907 | BI142: 45.17790478 | BJ142: 439.5736112 | BK142: 353.1204076 | BL142: 19798.37361 | BM142: 23940.34862 | BN142: 18539.30745 | BO142: 21383.40524 | BP142: 27914.12901 | BQ142: 0.2203101442 | BR142: 0.103056742 | BS142: 0.07854469142 | BT142: 0.00333714602 | BU142: 0.3022754335 | BV142: 0.01172390712 | BW142: 0.2063691143 | BX142: 0.07438289912 | BY142: 0.2364606952 | BZ142: 0.1305351937 | CA142: 0.06934168655 | CB142: 0.00185185779 | CC142: 0.2705785311 | CD142: 0.007884034498 | CE142: 0.2323338921 | CF142: 0.05101410902 | CG142: 1007.368847 | CH142: 35.49731711 | CI142: 546.5866495 | CJ142: 1179.93623 | CK142: 982.1029301 | CL142: 305.9505556 | CM142: 9.057491968 | CN142: 246.521513 | CO142: 4313.021534
B143: 42290 | C143: 10 | D143: 68 | E143: All_In | F143: 3 | G143: B | H143: L | I143: 3 | J143: 5 | K143: 15 | L143: 15 | M143: 5 | N143: L | O143: H | P143: U | Q143: H | R143: U | S143: L | T143: H | U143: 2050 | V143: 7.388357269 | W143: 1.486088014 | X143: 5.793735112 | Y143: 0.8256024417 | Z143: 0.2651797678 | AA143: 0.03630894996 | AB143: 0.08405465016 | AC143: 15.8793262 | AD143: 0.161710568 | AE143: 0.7339715741 | AF143: 0.95 | AG143: 0.009807846377 | AH143: 0.0417786641 | AI143: 0.0417786641 | AJ143: 366.7871535 | AK143: 259.7020563 | AL143: 228.3321395 | AM143: 23.09840787 | AN143: 16.35472771 | AO143: 14.37920832 | AP143: 0.07342228587 | AQ143: 0.05198633168 | AR143: 0.0457068015 | AS143: 0.1070544568 | AT143: 0.1157290537 | AU143: 0.2227835105 | AV143: 282.9799941 | AW143: 53.50749061 | AX143: 130.7205691 | AY143: 46.82288664 | AZ143: 14.29978715 | BA143: 1.909006875 | BB143: 4.559734209 | BC143: 534.7994687 | BD143: 150.3197277 | BE143: 15.49067281 | BF143: 0.9686983532 | BG143: 3.616542047 | BH143: 124.5920014 | BI143: 80.06015494 | BJ143: 392.7642633 | BK143: 332.2610006 | BL143: 17701.54717 | BM143: 21406.59169 | BN143: 16722.76967 | BO143: 19228.23472 | BP143: 24898.86528 | BQ143: 0.216477501 | BR143: 0.06959638139 | BS143: 0.0722910629 | BT143: 0.01003844492 | BU143: 0.3393806141 | BV143: 0.02054395877 | BW143: 0.1701684288 | BX143: 0.1015036081 | BY143: 0.2181285296 | BZ143: 0.08592171882 | CA143: 0.07619928716 | CB143: 0.006725939096 | CC143: 0.3214476712 | CD143: 0.01597087814 | CE143: 0.187805273 | CF143: 0.08780070293 | CG143: 1094.793849 | CH143: 80.84421159 | CI143: 420.693172 | CJ143: 1589.46768 | CK143: 926.4388595 | CL143: 380.8312497 | CM143: 36.7744673 | CN143: 465.7399242 | CO143: 4995.583413
B144: 41234 | C144: 10 | D144: 69 | E144: All_In | F144: 3 | G144: B | H144: L | I144: 3 | J144: 5 | K144: 11 | L144: 11 | M144: 5 | N144: L | O144: H | P144: R | Q144: H | R144: R | S144: L | T144: H | U144: 2035 | V144: 8.300556308 | W144: 2.257716951 | X144: 4.636829447 | Y144: 0.4409938899 | Z144: 0.09407200949 | AA144: 0.006681750011 | AB144: 0.03744764637 | AC144: 15.774298 | AD144: 0.1452586689 | AE144: 0.1452586689 | AF144: 0.4952913344 | AG144: 0.01035921766 | AH144: 0.01035921766 | AI144: 0.01035921766 | AJ144: 361.4177998 | AK144: 361.4177998 | AL144: 295.1618112 | AM144: 22.91181514 | AN144: 22.91181514 | AO144: 18.71156556 | AP144: 0.0838555209 | AQ144: 0.0838555209 | AR144: 0.06848292319 | AS144: 0.105187977 | AT144: 0.1423743493 | AU144: 0.2475623263 | AV144: 268.3403843 | AW144: 67.6375875 | AX144: 88.34087462 | AY144: 22.66743874 | AZ144: 4.256759182 | BA144: 0.3080280808 | BB144: 1.809741506 | BC144: 453.3608139 | BD144: 120.208356 | BE144: 4.872030661 | BF144: 0.32704707 | BG144: 2.358110973 | BH144: 74.98178529 | BI144: 45.51473254 | BJ144: 438.9990841 | BK144: 352.6633922 | BL144: 19771.42147 | BM144: 23915.60652 | BN144: 18500.50801 | BO144: 21353.31417 | BP144: 27875.52127 | BQ144: 0.2220238478 | BR144: 0.1038604697 | BS144: 0.06578584608 | BT144: 0.003087526675 | BU144: 0.3046275337 | BV144: 0.01181840981 | BW144: 0.2138344368 | BX144: 0.07496200724 | BY144: 0.2380140377 | BZ144: 0.1313918889 | CA144: 0.0577898286 | CB144: 0.001716892159 | CC144: 0.272483104 | CD144: 0.007945711623 | CE144: 0.2392624649 | CF144: 0.05139607216 | CG144: 1014.253216 | CH144: 35.86476587 | CI144: 550.3009004 | CJ144: 1188.370865 | CK144: 1012.383129 | CL144: 252.08944 | CM144: 8.368999524 | CN144: 248.3747036 | CO144: 4310.006019
B145: 42258 | C145: 10 | D145: 69 | E145: All_In | F145: 3 | G145: B | H145: L | I145: 3 | J145: 5 | K145: 11 | L145: 11 | M145: 5 | N145: L | O145: H | P145: R | Q145: H | R145: R | S145: L | T145: H | U145: 2050 | V145: 7.662464805 | W145: 1.496576238 | X145: 5.833467455 | Y145: 0.8312277868 | Z145: 0.1217368428 | AA145: 0.02680770624 | AB145: 0.08487540669 | AC145: 16.05715624 | AD145: 0.1562483055 | AE145: 0.709179469 | AF145: 0.9459924791 | AG145: 0.009795925445 | AH145: 0.04172788429 | AI145: 0.04172788429 | AJ145: 366.1778407 | AK145: 258.867664 | AL145: 222.9279753 | AM145: 22.80465079 | AN145: 16.12163824 | AO145: 13.88340326 | AP145: 0.07334369658 | AQ145: 0.05184997368 | AR145: 0.04465142334 | AS145: 0.1078440715 | AT145: 0.1156411208 | AU145: 0.2234851923 | AV145: 293.478532 | AW145: 53.88512539 | AX145: 131.6170261 | AY145: 47.14192021 | AZ145: 6.297064015 | BA145: 1.40396271 | BB145: 4.601770556 | BC145: 538.425401 | BD145: 151.3538616 | BE145: 5.500772318 | BF145: 0.7504834047 | BG145: 3.627683923 | BH145: 125.4447828 | BI145: 80.6062853 | BJ145: 392.3166787 | BK145: 331.8121681 | BL145: 17680.82977 | BM145: 21386.24647 | BN145: 16695.30583 | BO145: 19204.42776 | BP145: 24869.22787 | BQ145: 0.2177672855 | BR145: 0.0700136146 | BS145: 0.06350745996 | BT145: 0.009120445244 | BU145: 0.3413995826 | BV145: 0.02067413387 | BW145: 0.1754060772 | BX145: 0.102111401 | BY145: 0.219645861 | BZ145: 0.08653133023 | CA145: 0.06530792863 | CB145: 0.006148790912 | CC145: 0.3236710487 | CD145: 0.0160842057 | CE145: 0.1942068843 | CF145: 0.08840395049 | CG145: 1102.319272 | CH145: 81.63263212 | CI145: 423.6436951 | CJ145: 1600.329175 | CK145: 957.8338242 | CL145: 324.4875476 | CM145: 33.47914692 | CN145: 468.9033556 | CO145: 4992.628648
B146: 41272 | C146: 10 | D146: 70 | E146: All_In | F146: 3 | G146: B | H146: L | I146: 3 | J146: 5 | K146: 13 | L146: 13 | M146: 7 | N146: L | O146: L | P146: U | Q146: L | R146: U | S146: H | T146: H | U146: 2035 | V146: 7.84183789 | W146: 2.172717467 | X146: 4.461564978 | Y146: 0.08660066477 | Z146: 0.3356866915 | AA146: 0.0496691701 | AB146: 0.2281350531 | AC146: 15.17621191 | AD146: 0.153315655 | AE146: 0.153315655 | AF146: 0.5227633979 | AG146: 0.01046826297 | AH146: 0.01046826297 | AI146: 0.01046826297 | AJ146: 360.8271803 | AK146: 360.8271803 | AL146: 294.7608413 | AM146: 23.77583961 | AN146: 23.77583961 | AO146: 19.42255703 | AP146: 0.08381167525 | AQ146: 0.08381167525 | AR146: 0.06846601713 | AS146: 0.101519258 | AT146: 0.1432722119 | AU146: 0.2447914699 | AV146: 253.5109353 | AW146: 65.09113896 | AX146: 85.00173596 | AY146: 4.45134345 | AZ146: 15.70139991 | BA146: 2.273732123 | BB146: 11.0318241 | BC146: 437.0621098 | BD146: 115.6466586 | BE146: 21.88960906 | BF146: 2.302205375 | BG146: 15.08175951 | BH146: 14.07926747 | BI146: 8.701592964 | BJ146: 441.4707087 | BK146: 354.4928179 | BL146: 19956.20225 | BM146: 24072.35178 | BN146: 18501.61828 | BO146: 21581.72462 | BP146: 27775.47932 | BQ146: 0.2127295922 | BR146: 0.09960192337 | BS146: 0.1154280596 | BT146: 0.0169132923 | BU146: 0.2921601837 | BV146: 0.06903640122 | BW146: 0.1782484725 | BX146: 0.01588215285 | BY146: 0.2285776872 | BZ146: 0.1261449329 | CA146: 0.1100791527 | CB146: 0.01031003012 | CC146: 0.2615107689 | CD146: 0.05003517152 | CE146: 0.203284465 | CF146: 0.01005779167 | CG146: 973.9473596 | CH146: 223.2785626 | CI146: 528.4826273 | CJ146: 1141.176685 | CK146: 858.1635434 | CL146: 481.2184713 | CM146: 49.79759596 | CN146: 49.14894885 | CO146: 4305.213794
B147: 42296 | C147: 10 | D147: 70 | E147: All_In | F147: 3 | G147: B | H147: L | I147: 3 | J147: 5 | K147: 13 | L147: 13 | M147: 7 | N147: L | O147: L | P147: U | Q147: L | R147: U | S147: H | T147: H | U147: 2050 | V147: 7.122862515 | W147: 1.434932033 | X147: 5.589758443 | Y147: 0.1944501446 | Z147: 0.3676906518 | AA147: 0.1553693847 | AB147: 0.4288806075 | AC147: 15.29394378 | AD147: 0.1673780577 | AE147: 0.7596951641 | AF147: 0.95 | AG147: 0.009866408701 | AH147: 0.04202812311 | AI147: 0.04202812311 | AJ147: 368.6061599 | AK147: 261.7758975 | AL147: 235.4383583 | AM147: 24.10144598 | AN147: 17.11631096 | AO147: 15.39422151 | AP147: 0.07394428221 | AQ147: 0.05251358481 | AR147: 0.04723013966 | AS147: 0.102887425 | AT147: 0.116592416 | AU147: 0.2194798411 | AV147: 272.8113326 | AW147: 51.66558882 | AX147: 126.1183659 | AY147: 11.02796772 | AZ147: 19.82767428 | BA147: 8.16881854 | BB147: 23.26559654 | BC147: 512.8853444 | BD147: 145.0107233 | BE147: 23.3409408 | BF147: 4.555514506 | BG147: 20.645842 | BH147: 28.02579562 | BI147: 18.39989375 | BJ147: 395.0017209 | BK147: 334.0250553 | BL147: 17913.75638 | BM147: 21497.54835 | BN147: 16679.17972 | BO147: 19455.52358 | BP147: 24849.52581 | BQ147: 0.2062264088 | BR147: 0.06639817662 | BS147: 0.09450871404 | BT147: 0.04012006492 | BU147: 0.3241480509 | BV147: 0.1022399995 | BW147: 0.1410807773 | BX147: 0.02527780802 | BY147: 0.2093239854 | BZ147: 0.08264835686 | CA147: 0.1056232539 | CB147: 0.02870147849 | CC147: 0.308906553 | CD147: 0.08495349735 | CE147: 0.1593245652 | CF147: 0.02051830979 | CG147: 1050.215019 | CH147: 428.4619314 | CI147: 404.4168123 | CJ147: 1527.137053 | CK147: 784.2804972 | CL147: 524.7420257 | CM147: 155.9466237 | CN147: 109.7177204 | CO147: 4984.917683
B148: 41242 | C148: 10 | D148: 71 | E148: All_In | F148: 3 | G148: B | H148: L | I148: 3 | J148: 5 | K148: 11 | L148: 11 | M148: 7 | N148: L | O148: H | P148: R | Q148: H | R148: R | S148: H | T148: H | U148: 2035 | V148: 8.649446701 | W148: 2.347126347 | X148: 4.847934758 | Y148: 0.09662839111 | Z148: 0.09880663606 | AA148: 0.007115918727 | AB148: 0.0398339389 | AC148: 16.08689269 | AD148: 0.1396758905 | AE148: 0.1396758905 | AF148: 0.4762556252 | AG148: 0.01024693998 | AH148: 0.01024693998 | AI148: 0.01024693998 | AJ148: 366.795355 | AK148: 366.795355 | AL148: 300.4079559 | AM148: 22.80088281 | AN148: 22.80088281 | AO148: 18.67408216 | AP148: 0.08530557455 | AQ148: 0.08530557455 | AR148: 0.06986586097 | AS148: 0.1055842424 | AT148: 0.1418940225 | AU148: 0.2474782648 | AV148: 279.619313 | AW148: 70.31614996 | AX148: 92.36285301 | AY148: 4.966776606 | AZ148: 4.471001072 | BA148: 0.32804322 | BB148: 1.925064445 | BC148: 453.9892013 | BD148: 125.7029012 | BE148: 5.086276807 | BF148: 0.3475522631 | BG148: 2.502033883 | BH148: 15.70443785 | BI148: 9.707777762 | BJ148: 436.5793837 | BK148: 350.6398461 | BL148: 19640.9755 | BM148: 23816.58164 | BN148: 18390.28135 | BO148: 21244.31437 | BP148: 27678.9901 | BQ148: 0.2357193719 | BR148: 0.1103196511 | BS148: 0.07003971654 | BT148: 0.003300570329 | BU148: 0.3231737703 | BV148: 0.01264534767 | BW148: 0.2269856299 | BX148: 0.01781601995 | BY148: 0.247648266 | BZ148: 0.1364680903 | CA148: 0.06062834434 | CB148: 0.001827564605 | CC148: 0.2847923454 | CD148: 0.008447286667 | CE148: 0.2489523472 | CF148: 0.01123575561 | CG148: 1058.662769 | CH148: 38.15870614 | CI148: 573.379512 | CJ148: 1244.458412 | CK148: 1056.295418 | CL148: 265.0138003 | CM148: 8.914529526 | CN148: 54.89863101 | CO148: 4299.781778
B149: 42266 | C149: 10 | D149: 71 | E149: All_In | F149: 3 | G149: B | H149: L | I149: 3 | J149: 5 | K149: 11 | L149: 11 | M149: 7 | N149: L | O149: H | P149: R | Q149: H | R149: R | S149: H | T149: H | U149: 2050 | V149: 8.201026878 | W149: 1.600505366 | X149: 6.238826214 | Y149: 0.2217112432 | Z149: 0.1306952807 | AA149: 0.02897306163 | AB149: 0.0918095859 | AC149: 16.51354763 | AD149: 0.1465240184 | AE149: 0.6650428956 | AF149: 0.8871175845 | AG149: 0.009679347083 | AH149: 0.04123129329 | AI149: 0.04123129329 | AJ149: 373.2497818 | AK149: 265.4949373 | AL149: 229.4231587 | AM149: 22.60264058 | AN149: 16.07740162 | AO149: 13.89302673 | AP149: 0.075002556 | AQ149: 0.05334979383 | AR149: 0.04610136199 | AS149: 0.1081736487 | AT149: 0.1155292429 | AU149: 0.2237028916 | AV149: 314.1058902 | AW149: 57.62715601 | AX149: 140.7628926 | AY149: 12.57404276 | AZ149: 6.760455836 | BA149: 1.517365855 | BB149: 4.977727538 | BC149: 538.3255308 | BD149: 161.90434 | BE149: 5.805604205 | BF149: 0.8066217636 | BG149: 3.890206846 | BH149: 31.87949517 | BI149: 20.95577938 | BJ149: 391.3297036 | BK149: 330.4198864 | BL149: 17610.60745 | BM149: 21391.75339 | BN149: 16556.01041 | BO149: 19202.0743 | BP149: 24733.73129 | BQ149: 0.2354665715 | BR149: 0.07574313748 | BS149: 0.06879355891 | BT149: 0.009903747603 | BU149: 0.3686902902 | BV149: 0.02248675814 | BW149: 0.1896514138 | BX149: 0.02926452239 | BY149: 0.2353099127 | BZ149: 0.09260894754 | CA149: 0.07013440025 | CB149: 0.006645057568 | CC149: 0.3465737708 | CD149: 0.01738705307 | CE149: 0.207884485 | CF149: 0.02345637302 | CG149: 1182.112317 | CH149: 88.30771386 | CI149: 453.9585374 | CJ149: 1715.119004 | CK149: 1026.450347 | CL149: 348.7939103 | CM149: 36.19953483 | CN149: 125.5527949 | CO149: 4976.494159
B150: 41226 | C150: 10 | D150: 72 | E150: All_In | F150: 3 | G150: B | H150: L | I150: 3 | J150: 5 | K150: 11 | L150: 11 | M150: 3 | N150: L | O150: H | P150: R | Q150: H | R150: R | S150: H | T150: L | U150: 2035 | V150: 8.631129353 | W150: 2.342451763 | X150: 4.836825638 | Y150: 0.1158997819 | Z150: 0.09854967035 | AA150: 0.007090200903 | AB150: 0.0396994167 | AC150: 16.07164582 | AD150: 0.1399583008 | AE150: 0.1399583008 | AF150: 0.4772185652 | AG150: 0.01025274985 | AH150: 0.01025274985 | AI150: 0.01025274985 | AJ150: 366.5462183 | AK150: 366.5462183 | AL150: 300.1654668 | AM150: 22.80701195 | AN150: 22.80701195 | AO150: 18.67670991 | AP150: 0.08522845502 | AQ150: 0.08522845502 | AR150: 0.06979376053 | AS150: 0.1053451462 | AT150: 0.1420029535 | AU150: 0.2473480997 | AV150: 279.0271497 | AW150: 70.17610691 | AX150: 92.15120205 | AY150: 5.003810823 | AZ150: 4.459373372 | BA150: 0.3268576306 | BB150: 1.918563358 | BC150: 453.0630639 | BD150: 125.4137585 | BE150: 5.074723702 | BF150: 0.346351352 | BG150: 2.494084311 | BH150: 18.99921354 | BI150: 11.70258048 | BJ150: 437.1079779 | BK150: 350.9879903 | BL150: 19661.84505 | BM150: 23848.88495 | BN150: 18396.17352 | BO150: 21282.2851 | BP150: 27709.22653 | BQ150: 0.2349671854 | BR150: 0.1099612557 | BS150: 0.0697976964 | BT150: 0.003287852156 | BU150: 0.3221591399 | BV150: 0.01259626453 | BW150: 0.2262629105 | BX150: 0.02096777318 | BY150: 0.2471467212 | BZ150: 0.1362045291 | CA150: 0.06047539739 | CB150: 0.001821072515 | CC150: 0.2841482655 | CD150: 0.00841945595 | CE150: 0.2484500156 | CF150: 0.01333454275 | CG150: 1056.339805 | CH150: 38.03028067 | CI150: 572.1757735 | CJ150: 1241.511267 | CK150: 1054.008156 | CL150: 264.3147024 | CM150: 8.882323873 | CN150: 65.48699162 | CO150: 4300.749301
B151: 42250 | C151: 10 | D151: 72 | E151: All_In | F151: 3 | G151: B | H151: L | I151: 3 | J151: 5 | K151: 11 | L151: 11 | M151: 3 | N151: L | O151: H | P151: R | Q151: H | R151: R | S151: H | T151: L | U151: 2050 | V151: 8.162255203 | W151: 1.593114289 | X151: 6.209693658 | Y151: 0.2690015932 | Z151: 0.1300270876 | AA151: 0.02879585564 | AB151: 0.09125229308 | AC151: 16.48413998 | AD151: 0.1471834659 | AE151: 0.6680359948 | AF151: 0.8911101555 | AG151: 0.009687546004 | AH151: 0.04126621838 | AI151: 0.04126621838 | AJ151: 372.8364029 | AK151: 265.1118486 | AL151: 229.0490275 | AM151: 22.61788625 | AN151: 16.08284381 | AO151: 13.89511541 | AP151: 0.07488471662 | AQ151: 0.05324808816 | AR151: 0.04600481976 | AS151: 0.1076443617 | AT151: 0.1156921568 | AU151: 0.2233365185 | AV151: 312.6209041 | AW151: 57.36103584 | AX151: 140.1055922 | AY151: 12.67126625 | AZ151: 6.725892307 | BA151: 1.508085292 | BB151: 4.947512263 | BC151: 535.9402882 | BD151: 161.1460921 | BE151: 5.78600832 | BF151: 0.8024409481 | BG151: 3.871810212 | BH151: 38.79753548 | BI151: 25.47017047 | BJ151: 392.1224364 | BK151: 331.0394775 | BL151: 17645.64872 | BM151: 21435.78945 | BN151: 16571.54446 | BO151: 19253.92505 | BP151: 24783.42646 | BQ151: 0.2339785154 | BR151: 0.07525348013 | BS151: 0.06833495635 | BT151: 0.009833764824 | BU151: 0.3664180442 | BV151: 0.02232441605 | BW151: 0.1884491759 | BX151: 0.03540764724 | BY151: 0.2341989248 | BZ151: 0.09218432289 | CA151: 0.06978226595 | CB151: 0.006605119291 | CC151: 0.3449472552 | CD151: 0.01728460232 | CE151: 0.2069245103 | CF151: 0.02807299922 | CG151: 1176.33731 | CH151: 87.77418703 | CI151: 451.790221 | CJ151: 1706.807676 | CK151: 1021.528421 | CL151: 346.9840041 | CM151: 35.97765526 | CN151: 151.6055456 | CO151: 4978.805019
B152: 41264 | C152: 10 | D152: 73 | E152: All_In | F152: 3 | G152: B | H152: L | I152: 3 | J152: 5 | K152: 13 | L152: 13 | M152: 5 | N152: L | O152: L | P152: U | Q152: L | R152: U | S152: L | T152: H | U152: 2035 | V152: 7.559076743 | W152: 2.098261899 | X152: 4.286635242 | Y152: 0.4014583277 | Z152: 0.3222517389 | AA152: 0.04712187361 | AB152: 0.2166301533 | AC152: 14.93143598 | AD152: 0.1587431458 | AE152: 0.1587431458 | AF152: 0.5412696196 | AG152: 0.01056568532 | AH152: 0.01056568532 | AI152: 0.01056568532 | AJ152: 356.192322 | AK152: 356.192322 | AL152: 290.2537382 | AM152: 23.85519535 | AN152: 23.85519535 | AO152: 19.43910409 | AP152: 0.0825610549 | AQ152: 0.0825610549 | AR152: 0.06727729188 | AS152: 0.1013469827 | AT152: 0.143649913 | AU152: 0.2449968957 | AV152: 244.3698329 | AW152: 62.86056926 | AX152: 81.66897464 | AY152: 20.63527921 | AZ152: 15.07299381 | BA152: 2.157123171 | BB152: 10.47548684 | BC152: 437.2402599 | BD152: 111.0936735 | BE152: 21.12496042 | BF152: 2.190468597 | BG152: 14.38326025 | BH152: 68.45253552 | BI152: 41.50473174 | BJ152: 443.4090113 | BK152: 356.1766456 | BL152: 20055.8901 | BM152: 24144.90211 | BN152: 18605.24392 | BO152: 21659.86772 | BP152: 27959.75903 | BQ152: 0.2016504209 | BR152: 0.09436712921 | BS152: 0.1093276201 | BT152: 0.01595881814 | BU152: 0.2771238261 | BV152: 0.06504877821 | BW152: 0.1689764908 | BX152: 0.06754699426 | BY152: 0.2206302829 | BZ152: 0.1219391253 | CA152: 0.1057824143 | CB152: 0.009787119264 | CC152: 0.2513611783 | CD152: 0.04756344378 | CE152: 0.1962489246 | CF152: 0.04668751148 | CG152: 937.3443184 | CH152: 211.9832951 | CI152: 509.3837607 | CJ152: 1094.948626 | CK152: 826.3434406 | CL152: 461.5004055 | CM152: 47.22785959 | CN152: 225.5581549 | CO152: 4314.289861
B153: 42288 | C153: 10 | D153: 73 | E153: All_In | F153: 3 | G153: B | H153: L | I153: 3 | J153: 5 | K153: 13 | L153: 13 | M153: 5 | N153: L | O153: L | P153: U | Q153: L | R153: U | S153: L | T153: H | U153: 2050 | V153: 6.710090069 | W153: 1.352217599 | X153: 5.268662955 | Y153: 0.7399921856 | Z153: 0.3461375347 | AA153: 0.1454152651 | AB153: 0.4007189299 | AC153: 14.96323454 | AD153: 0.1770238728 | AE153: 0.8034755687 | AF153: 0.95 | AG153: 0.009962592494 | AH153: 0.04243783899 | AI153: 0.04243783899 | AJ153: 362.6086045 | AK153: 256.2104519 | AL153: 237.6603725 | AM153: 24.23330354 | AN153: 17.12266497 | AO153: 15.88295444 | AP153: 0.07253988072 | AQ153: 0.05125492167 | AR153: 0.04754397678 | AS153: 0.102941634 | AT153: 0.1166306266 | AU153: 0.2195722606 | AV153: 257.0018177 | AW153: 48.68740599 | AX153: 118.8736811 | AY153: 41.96762082 | AZ153: 18.66542502 | BA153: 7.645463203 | BB153: 21.73790278 | BC153: 514.5793166 | BD153: 136.6534078 | BE153: 22.30066414 | BF153: 4.2880321 | BG153: 19.49223528 | BH153: 112.2299556 | BI153: 71.94718902 | BJ153: 395.6626446 | BK153: 335.0615776 | BL153: 17952.03747 | BM153: 21485.61426 | BN153: 16809.26249 | BO153: 19440.07585 | BP153: 24972.27674 | BQ153: 0.1927110994 | BR153: 0.06200569217 | BS153: 0.08826573306 | BT153: 0.03738782388 | BU153: 0.3032067989 | BV153: 0.0950753525 | BW153: 0.1318347071 | BX153: 0.08951279304 | BY153: 0.1970418757 | BZ153: 0.07784739331 | CA153: 0.099397223 | CB153: 0.02685949825 | CC153: 0.290907917 | CD153: 0.07941867709 | CE153: 0.1500772855 | CF153: 0.07845013008 | CG153: 987.7811299 | CH153: 400.302966 | CI153: 380.5372168 | CJ153: 1437.082307 | CK153: 738.0719155 | CL153: 493.3983638 | CM153: 145.8732861 | CN153: 415.701102 | CO153: 4998.748287
B154: 41248 | C154: 10 | D154: 74 | E154: All_In | F154: 3 | G154: B | H154: L | I154: 3 | J154: 5 | K154: 13 | L154: 13 | M154: 1 | N154: L | O154: L | P154: U | Q154: L | R154: U | S154: L | T154: L | U154: 2035 | V154: 7.486493856 | W154: 2.078816668 | X154: 4.242678819 | Y154: 0.4865030867 | Z154: 0.3189186602 | AA154: 0.04654808808 | AB154: 0.2140182617 | AC154: 14.87397744 | AD154: 0.1601988951 | AE154: 0.1601988951 | AF154: 0.5462333168 | AG154: 0.01059142804 | AH154: 0.01059142804 | AI154: 0.01059142804 | AJ154: 355.1642568 | AK154: 355.1642568 | AL154: 289.2599392 | AM154: 23.87823016 | AN154: 23.87823016 | AO154: 19.44738321 | AP154: 0.08224503438 | AQ154: 0.08224503438 | AR154: 0.06698363697 | AS154: 0.1003930693 | AT154: 0.1437673613 | AU154: 0.2441604307 | AV154: 242.0233734 | AW154: 62.27802127 | AX154: 80.83151686 | AY154: 21.00408967 | AZ154: 14.91709248 | BA154: 2.130856685 | BB154: 10.34918477 | BC154: 433.5341351 | BD154: 109.9495973 | BE154: 20.92476333 | BF154: 2.164734795 | BG154: 14.21809006 | BH154: 84.6651187 | BI154: 50.94066701 | BJ154: 444.2141976 | BK154: 356.8047437 | BL154: 20093.86801 | BM154: 24179.99299 | BN154: 18648.25389 | BO154: 21702.00683 | BP154: 28020.75769 | BQ154: 0.1990392074 | BR154: 0.0931409865 | BS154: 0.1079093019 | BT154: 0.01574797338 | BU154: 0.2735599346 | BV154: 0.06416371278 | BW154: 0.166788924 | BX154: 0.07965003714 | BY154: 0.2185653557 | BZ154: 0.1208213136 | CA154: 0.1046985972 | CB154: 0.009668939934 | CC154: 0.2487817776 | CD154: 0.04699704329 | CE154: 0.1943891579 | CF154: 0.05607781484 | CG154: 928.0571493 | CH154: 209.4203853 | CI154: 504.4581639 | CJ154: 1083.404997 | CK154: 818.1611023 | CL154: 456.6292063 | CM154: 46.65004815 | CN154: 271.5861225 | CO154: 4318.367175
B155: 42272 | C155: 10 | D155: 74 | E155: All_In | F155: 3 | G155: B | H155: L | I155: 3 | J155: 5 | K155: 13 | L155: 13 | M155: 1 | N155: L | O155: L | P155: U | Q155: L | R155: U | S155: L | T155: L | U155: 2050 | V155: 6.599170725 | W155: 1.330437957 | X155: 5.180282016 | Y155: 0.899577858 | Z155: 0.3404233904 | AA155: 0.142795303 | AB155: 0.3934926051 | AC155: 14.88617986 | AD155: 0.1798083708 | AE155: 0.8161138421 | AF155: 0.95 | AG155: 0.00998823148 | AH155: 0.04254705385 | AI155: 0.04254705385 | AJ155: 361.3700353 | AK155: 255.095641 | AL155: 238.6297652 | AM155: 24.27553871 | AN155: 17.13640729 | AO155: 16.030289 | AP155: 0.07218416506 | AQ155: 0.05095570761 | AR155: 0.04766662612 | AS155: 0.1012982548 | AT155: 0.1167258654 | AU155: 0.2180241202 | AV155: 252.7535181 | AW155: 47.90321691 | AX155: 116.879595 | AY155: 42.37443509 | AZ155: 18.35729048 | BA155: 7.507714089 | BB155: 21.34589447 | BC155: 507.1216641 | BD155: 134.3530722 | BE155: 22.03680003 | BF155: 4.220472996 | BG155: 19.20675709 | BH155: 138.0817781 | BI155: 88.0861719 | BJ155: 396.4446366 | BK155: 335.8366235 | BL155: 17985.92979 | BM155: 21514.54246 | BN155: 16877.34098 | BO155: 19475.40942 | BP155: 25038.35039 | BQ155: 0.188761381 | BR155: 0.06073836778 | BS155: 0.08646976077 | BT155: 0.03662407695 | BU155: 0.297002038 | BV155: 0.09309396694 | BW155: 0.1291374333 | BX155: 0.1081729752 | BY155: 0.193774641 | BZ155: 0.07660115954 | CA155: 0.09777542222 | CB155: 0.02637996587 | CC155: 0.2860452967 | CD155: 0.0780067485 | CE155: 0.1476376637 | CF155: 0.09377910243 | CG155: 970.97502 | CH155: 393.0513863 | CI155: 374.2621719 | CJ155: 1412.459738 | CK155: 725.7321263 | CL155: 485.1380171 | CM155: 143.2267415 | CN155: 501.3779087 | CO155: 5006.22311
B156: 41216 | C156: 10 | D156: 75 | E156: All_In | F156: 3 | G156: B | H156: L | I156: 3 | J156: 5 | K156: 9 | L156: 9 | M156: 1 | N156: L | O156: L | P156: R | Q156: L | R156: R | S156: L | T156: L | U156: 2035 | V156: 7.860532208 | W156: 2.102376418 | X156: 4.292571837 | Y156: 0.4920035529 | Z156: 0.1427628841 | AA156: 0.03517637225 | AB156: 0.2166810488 | AC156: 15.14210432 | AD156: 0.152969875 | AE156: 0.152969875 | AF156: 0.5215843849 | AG156: 0.01056025432 | AH156: 0.01056025432 | AI156: 0.01056025432 | AJ156: 355.7862439 | AK156: 355.7862439 | AL156: 289.7117657 | AM156: 23.49648611 | AN156: 23.49648611 | AO156: 19.13286024 | AP156: 0.08247696635 | AQ156: 0.08247696635 | AR156: 0.06715984096 | AS156: 0.1016921454 | AT156: 0.1437550828 | AU156: 0.2454472282 | AV156: 254.1152852 | AW156: 62.98383367 | AX156: 81.78207864 | AY156: 21.24156459 | AZ156: 6.460021646 | BA156: 1.62162763 | BB156: 10.4715977 | BC156: 438.6760091 | BD156: 111.2481883 | BE156: 7.697489479 | BF156: 1.810205368 | BG156: 14.32131741 | BH156: 85.61110739 | BI156: 51.51178283 | BJ156: 443.7257261 | BK156: 356.3940418 | BL156: 20070.68958 | BM156: 24162.5827 | BN156: 18599.4036 | BO156: 21681.40031 | BP156: 27985.45737 | BQ156: 0.2014094761 | BR156: 0.0942439493 | BS156: 0.09130424427 | BT156: 0.01467795841 | BU156: 0.2768468619 | BV156: 0.06488142994 | BW156: 0.1760816491 | BX156: 0.08055450874 | BY156: 0.2209557483 | BZ156: 0.1221559822 | CA156: 0.08805614261 | CB156: 0.009038628893 | CC156: 0.2516430008 | CD156: 0.04751816502 | CE156: 0.2039273175 | CF156: 0.05670501466 | CG156: 938.4948471 | CH156: 212.0289064 | CI156: 510.1365195 | CJ156: 1095.99759 | CK156: 859.3598623 | CL156: 379.6582468 | CM156: 43.45427294 | CN156: 274.6346715 | CO156: 4313.764917
B157: 42240 | C157: 10 | D157: 75 | E157: All_In | F157: 3 | G157: B | H157: L | I157: 3 | J157: 5 | K157: 9 | L157: 9 | M157: 1 | N157: L | O157: L | P157: R | Q157: L | R157: R | S157: L | T157: L | U157: 2050 | V157: 6.991783455 | W157: 1.344747266 | X157: 5.23558001 | Y157: 0.9085503421 | Z157: 0.1575802674 | AA157: 0.1060785895 | AB157: 0.397856425 | AC157: 15.14217636 | AD157: 0.1703252519 | AE157: 0.7730718828 | AF157: 0.95 | AG157: 0.009971371723 | AH157: 0.04247523603 | AI157: 0.04247523603 | AJ157: 360.6197627 | AK157: 253.9563732 | AL157: 230.0968754 | AM157: 23.81558332 | AN157: 16.7714579 | AO157: 15.19575985 | AP157: 0.07209615171 | AQ157: 0.05077169669 | AR157: 0.04600163651 | AS157: 0.1024427498 | AT157: 0.1166743504 | AU157: 0.2191171002 | AV157: 267.7908998 | AW157: 48.41843216 | AX157: 118.1272504 | AY157: 42.79708215 | AZ157: 8.151131641 | BA157: 5.555506412 | BB157: 21.57095976 | BC157: 512.4112623 | BD157: 135.7923412 | BE157: 8.094579542 | BF157: 3.336800608 | BG157: 19.31021414 | BH157: 139.4767499 | BI157: 88.96950688 | BJ157: 396.0191257 | BK157: 335.400405 | BL157: 17966.28047 | BM157: 21498.27563 | BN157: 16838.91671 | BO157: 19456.59596 | BP157: 25007.14066 | BQ157: 0.1904684512 | BR157: 0.06128456863 | BS157: 0.07676594592 | BT157: 0.03346621181 | BU157: 0.2997218235 | BV157: 0.09391309422 | BW157: 0.1352539695 | BX157: 0.1091259352 | BY157: 0.1958233094 | BZ157: 0.07742154302 | CA157: 0.08454378722 | CB157: 0.02428044458 | CC157: 0.2890831304 | CD157: 0.07877536528 | CE157: 0.1553562729 | CF157: 0.09471614722 | CG157: 981.1047109 | CH157: 397.4117463 | CI157: 378.2120344 | CJ157: 1427.269057 | CK157: 763.3968211 | CL157: 416.9821522 | CM157: 131.2188656 | CN157: 506.3326499 | CO157: 5001.928038
B158: 41250 | C158: 10 | D158: 76 | E158: All_In | F158: 3 | G158: B | H158: L | I158: 3 | J158: 5 | K158: 15 | L158: 15 | M158: 1 | N158: L | O158: H | P158: U | Q158: H | R158: U | S158: L | T158: L | U158: 2035 | V158: 7.97420448 | W158: 2.219913594 | X158: 4.552338453 | Y158: 0.5296497477 | Z158: 0.2094536513 | AA158: 0.008781015195 | AB158: 0.03657208093 | AC158: 15.53091302 | AD158: 0.1509004539 | AE158: 0.1509004539 | AF158: 0.5145282393 | AG158: 0.01040743354 | AH158: 0.01040743354 | AI158: 0.01040743354 | AJ158: 359.8606087 | AK158: 359.8606087 | AL158: 293.7374194 | AM158: 23.17060228 | AN158: 23.17060228 | AO158: 18.91308122 | AP158: 0.08334975536 | AQ158: 0.08334975536 | AR158: 0.06803451519 | AS158: 0.1032688039 | AT158: 0.1426026639 | AU158: 0.2458714678 | AV158: 257.7900824 | AW158: 66.50505942 | AX158: 86.73115221 | AY158: 22.86688635 | AZ158: 9.796979223 | BA158: 0.4019732216 | BB158: 1.76849966 | BC158: 445.8606325 | BD158: 118.009266 | BE158: 13.26156218 | BF158: 0.3893298531 | BG158: 2.315985395 | BH158: 91.94684048 | BI158: 55.37308261 | BJ158: 440.5072098 | BK158: 353.841177 | BL158: 19844.66294 | BM158: 23982.52535 | BN158: 18584.31112 | BO158: 21434.06233 | BP158: 27977.62753 | BQ158: 0.2171743625 | BR158: 0.1015863003 | BS158: 0.07741680293 | BT158: 0.003289114006 | BU158: 0.2980059538 | BV158: 0.01155267968 | BW158: 0.2034351382 | BX158: 0.08753972634 | BY158: 0.2340238401 | BZ158: 0.1292218124 | CA158: 0.06853167194 | CB158: 0.00182670279 | CC158: 0.2675326475 | CD158: 0.007780617903 | CE158: 0.2299066995 | CF158: 0.06117600784 | CG158: 996.3978389 | CH158: 35.02613332 | CI158: 540.7911795 | CJ158: 1166.298812 | CK158: 971.3993226 | CL158: 302.288339 | CM158: 8.933092697 | CN158: 296.3417664 | CO158: 4317.476484
B159: 42274 | C159: 10 | D159: 76 | E159: All_In | F159: 3 | G159: B | H159: L | I159: 3 | J159: 5 | K159: 15 | L159: 15 | M159: 1 | N159: L | O159: H | P159: U | Q159: H | R159: U | S159: L | T159: L | U159: 2050 | V159: 7.252176052 | W159: 1.459489725 | X159: 5.685561908 | Y159: 1.000712355 | Z159: 0.2602363167 | AA159: 0.03557805901 | AB159: 0.08238219609 | AC159: 15.77613661 | AD159: 0.1645688235 | AE159: 0.7469446179 | AF159: 0.95 | AG159: 0.009838208526 | AH159: 0.04190799831 | AI159: 0.04190799831 | AJ159: 365.3329626 | AK159: 258.3767666 | AL159: 229.5902618 | AM159: 23.15731485 | AN159: 16.37769581 | AO159: 14.55300924 | AP159: 0.07300864456 | AQ159: 0.0516343704 | AR159: 0.04588163548 | AS159: 0.1051375558 | AT159: 0.115853325 | AU159: 0.2209908807 | AV159: 277.7641445 | AW159: 52.54980325 | AX159: 128.279922 | AY159: 47.13835534 | AZ159: 14.03321215 | BA159: 1.870578999 | BB159: 4.469008163 | BC159: 526.1050244 | BD159: 147.5042487 | BE159: 15.25381046 | BF159: 0.9511941726 | BG159: 3.556309047 | BH159: 152.8621822 | BI159: 97.7331094 | BJ159: 393.7010828 | BK159: 333.1760901 | BL159: 17747.78467 | BM159: 21441.68394 | BN159: 16794.415 | BO159: 19273.13275 | BP159: 24968.68475 | BQ159: 0.2114704499 | BR159: 0.06799390237 | BS159: 0.07063482008 | BT159: 0.009812017962 | BU159: 0.3315602857 | BV159: 0.02007555696 | BW159: 0.1662393161 | BX159: 0.122213651 | BY159: 0.2140799467 | BZ159: 0.08438698631 | CA159: 0.07479238359 | CB159: 0.006591927804 | CC159: 0.3154406537 | CD159: 0.01565839593 | CE159: 0.1843835921 | CF159: 0.1046661139 | CG159: 1073.934942 | CH159: 79.23290122 | CI159: 412.9470273 | CJ159: 1559.013293 | CK159: 909.070676 | CL159: 373.6241881 | CM159: 36.03077465 | CN159: 560.1147672 | CO159: 5003.968569
B160: 41258 | C160: 10 | D160: 77 | E160: All_In | F160: 3 | G160: B | H160: L | I160: 3 | J160: 5 | K160: 15 | L160: 15 | M160: 3 | N160: L | O160: H | P160: U | Q160: H | R160: U | S160: H | T160: L | U160: 2035 | V160: 8.376093399 | W160: 2.326151983 | X160: 4.801002471 | Y160: 0.1149768382 | Z160: 0.2218370322 | AA160: 0.009443130497 | AB160: 0.03923786095 | AC160: 15.88874272 | AD160: 0.1440124333 | AE160: 0.1440124333 | AF160: 0.4910420202 | AG160: 0.0102730599 | AH160: 0.0102730599 | AI160: 0.0102730599 | AJ160: 366.1115925 | AK160: 366.1115925 | AL160: 299.8262692 | AM160: 23.04220032 | AN160: 23.04220032 | AO160: 18.87035838 | AP160: 0.08506360291 | AQ160: 0.08506360291 | AR160: 0.06966264722 | AS160: 0.1044636008 | AT160: 0.1420942281 | AU160: 0.2465578289 | AV160: 270.7823474 | AW160: 69.68779156 | AX160: 91.46869909 | AY160: 4.963964023 | AZ160: 10.37619913 | BA160: 0.4322832274 | BB160: 1.897407585 | BC160: 449.608692 | BD160: 124.4813708 | BE160: 13.96611558 | BF160: 0.4177566058 | BG160: 2.476038149 | BH160: 18.84948993 | BI160: 11.60995491 | BJ160: 437.7302225 | BK160: 351.4769878 | BL160: 19691.38693 | BM160: 23875.79196 | BN160: 18436.52703 | BO160: 21314.95242 | BP160: 27751.12472 | BQ160: 0.2330482626 | BR160: 0.1090605678 | BS160: 0.08325838422 | BT160: 0.003551772537 | BU160: 0.3195289486 | BV160: 0.01248927048 | BW160: 0.2182672114 | BX160: 0.02079566014 | BY160: 0.2454577777 | BZ160: 0.1352768381 | CA160: 0.07250746381 | CB160: 0.001963380877 | CC160: 0.2820687158 | CD160: 0.008339926306 | CE160: 0.2411570016 | CF160: 0.01322889581 | CG160: 1048.824754 | CH160: 37.58556335 | CI160: 568.1352447 | CJ160: 1232.273923 | CK160: 1022.061688 | CL160: 320.518162 | CM160: 9.608776941 | CN160: 64.96656075 | CO160: 4303.974672
B161: 42282 | C161: 10 | D161: 77 | E161: All_In | F161: 3 | G161: B | H161: L | I161: 3 | J161: 5 | K161: 15 | L161: 15 | M161: 3 | N161: L | O161: H | P161: U | Q161: H | R161: U | S161: H | T161: L | U161: 2050 | V161: 7.866095074 | W161: 1.58124475 | X161: 6.164723704 | Y161: 0.2670668882 | Z161: 0.2829501854 | AA161: 0.03898297206 | AB161: 0.09032548755 | AC161: 16.29138906 | AD161: 0.1524235163 | AE161: 0.6918195242 | AF161: 0.9228356085 | AG161: 0.009700741986 | AH161: 0.04132242955 | AI161: 0.04132242955 | AJ161: 373.4368812 | AK161: 265.9290613 | AL161: 229.9374185 | AM161: 22.92234749 | AN161: 16.32328958 | AO161: 14.11404624 | AP161: 0.07495633997 | AQ161: 0.05337734468 | AR161: 0.04615309356 | AS161: 0.1068012434 | AT161: 0.1157858336 | AU161: 0.2225870771 | AV161: 301.2777342 | AW161: 56.93366599 | AX161: 139.0909621 | AY161: 12.58013235 | AZ161: 15.25805479 | BA161: 2.049598288 | BB161: 4.899909937 | BC161: 532.0900577 | BD161: 159.9756363 | BE161: 16.34632868 | BF161: 1.035900141 | BG161: 3.855211059 | BH161: 38.5169762 | BI161: 25.28656285 | BJ161: 392.6035882 | BK161: 331.5240304 | BL161: 17668.35596 | BM161: 21457.40974 | BN161: 16600.68736 | BO161: 19279.20962 | BP161: 24815.55002 | BQ161: 0.2324894697 | BR161: 0.07477150939 | BS161: 0.07773328904 | BT161: 0.01081843924 | BU161: 0.3640918161 | BV161: 0.02217336613 | BW161: 0.1827422948 | BX161: 0.03517981567 | BY161: 0.2324763196 | BZ161: 0.09149340765 | CA161: 0.08134223412 | CB161: 0.007221723753 | CC161: 0.3424253522 | CD161: 0.01715439028 | CE161: 0.2000170271 | CF161: 0.02786954537 | CG161: 1167.779502 | CH161: 86.88380402 | CI161: 448.4394085 | CJ161: 1694.468968 | CK161: 987.6176753 | CL161: 406.8507896 | CM161: 39.500335 | CN161: 150.5181587 | CO161: 4982.058641
B162: 41256 | C162: 10 | D162: 78 | E162: All_In | F162: 3 | G162: B | H162: L | I162: 3 | J162: 5 | K162: 13 | L162: 13 | M162: 3 | N162: L | O162: L | P162: U | Q162: L | R162: U | S162: H | T162: L | U162: 2035 | V162: 7.827510352 | W162: 2.168947551 | X162: 4.452678938 | Y162: 0.1037775741 | Z162: 0.3349917238 | AA162: 0.04952542973 | AB162: 0.2275037415 | AC162: 15.16493531 | AD162: 0.1535817248 | AE162: 0.1535817248 | AF162: 0.5236706212 | AG162: 0.01047315257 | AH162: 0.01047315257 | AI162: 0.01047315257 | AJ162: 360.6229279 | AK162: 360.6229279 | AL162: 294.5628518 | AM162: 23.78005053 | AN162: 23.78005053 | AO162: 19.42394384 | AP162: 0.08374775702 | AQ162: 0.08374775702 | AR162: 0.06840657161 | AS162: 0.1013167747 | AT162: 0.1433649172 | AU162: 0.2446816919 | AV162: 253.0477546 | AW162: 64.9781983 | AX162: 84.83243913 | AY162: 4.480451472 | AZ162: 15.66889351 | BA162: 2.267152043 | BB162: 11.00129605 | BC162: 436.2761852 | BD162: 115.4153772 | BE162: 21.85027842 | BF162: 2.295951333 | BG162: 15.04363975 | BH162: 17.02548443 | BI162: 10.48292756 | BJ162: 441.930174 | BK162: 354.7919773 | BL162: 19974.03629 | BM162: 24099.77288 | BN162: 18507.21445 | BO162: 21614.34685 | BP162: 27804.24122 | BQ162: 0.2121278658 | BR162: 0.09931457822 | BS162: 0.1150915159 | BT162: 0.01685838772 | BU162: 0.2913469675 | BV162: 0.06880890133 | BW162: 0.1777443047 | BX162: 0.01870755662 | BY162: 0.2281773913 | BZ162: 0.1259332614 | CA162: 0.109858175 | CB162: 0.01028080645 | CC162: 0.2609964846 | CD162: 0.04990137142 | CE162: 0.202932013 | CF162: 0.01192049679 | CG162: 972.0940039 | CH162: 222.6641514 | CI162: 527.5165065 | CJ162: 1138.824374 | CK162: 856.5609875 | CL162: 480.2003122 | CM162: 49.65317971 | CN162: 58.5472178 | CO162: 4306.060733
B163: 42280 | C163: 10 | D163: 78 | E163: All_In | F163: 3 | G163: B | H163: L | I163: 3 | J163: 5 | K163: 13 | L163: 13 | M163: 3 | N163: L | O163: L | P163: U | Q163: L | R163: U | S163: H | T163: L | U163: 2050 | V163: 7.09379996 | W163: 1.429166078 | X163: 5.567160637 | Y163: 0.2361560178 | Z163: 0.3661554745 | AA163: 0.154595464 | AB163: 0.426722556 | AC163: 15.27375619 | AD163: 0.1680226693 | AE163: 0.7626209255 | AF163: 0.95 | AG163: 0.009873053334 | AH163: 0.04205642738 | AI163: 0.04205642738 | AJ163: 368.2655623 | AK163: 261.464277 | AL163: 235.6765503 | AM163: 24.11100176 | AN163: 17.11853154 | AO163: 15.43016317 | AP163: 0.07384652058 | AQ163: 0.05243017291 | AR163: 0.04725908421 | AS163: 0.1024503891 | AT163: 0.1167300315 | AU163: 0.2191804205 | AV163: 271.6982135 | AW163: 51.45798214 | AX163: 125.6085052 | AY163: 11.12408199 | AZ163: 19.74489002 | BA163: 8.128128297 | BB163: 23.14852817 | BC163: 510.9103293 | BD163: 144.4225587 | BE163: 23.27752187 | BF163: 4.536539651 | BG163: 20.56862122 | BH163: 34.14396933 | BI163: 22.38698095 | BJ163: 395.6737545 | BK163: 334.5526122 | BL163: 17941.91078 | BM163: 21534.21745 | BN163: 16693.95645 | BO163: 19498.73489 | BP163: 24896.52397 | BQ163: 0.2051073371 | BR163: 0.06602803979 | BS163: 0.09398293468 | BT163: 0.03988580318 | BU163: 0.3224327281 | BV163: 0.1016221404 | BW163: 0.1403116218 | BX163: 0.03062939498 | BY163: 0.2084702638 | BZ163: 0.0823195335 | CA163: 0.1051891068 | CB163: 0.02856075803 | CC163: 0.3076542955 | CD163: 0.08453976508 | CE163: 0.1586895517 | CF163: 0.0245767256 | CG163: 1045.782589 | CH163: 426.319783 | CI163: 402.7405828 | CJ163: 1520.743832 | CK163: 781.0335702 | CL163: 522.5082236 | CM163: 155.1656944 | CN163: 132.6104496 | CO163: 4986.904724
B164: 41224 | C164: 10 | D164: 79 | E164: All_In | F164: 3 | G164: B | H164: L | I164: 3 | J164: 5 | K164: 9 | L164: 9 | M164: 3 | N164: L | O164: L | P164: R | Q164: L | R164: R | S164: H | T164: L | U164: 2035 | V164: 8.224670416 | W164: 2.194638661 | X164: 4.507585751 | Y164: 0.1049848077 | Z164: 0.1501417825 | AA164: 0.03745272885 | AB164: 0.2304908773 | AC164: 15.44996502 | AD164: 0.1465325684 | AE164: 0.1465325684 | AF164: 0.4996349742 | AG164: 0.01043992132 | AH164: 0.01043992132 | AI164: 0.01043992132 | AJ164: 361.337092 | AK164: 361.337092 | AL164: 295.1110891 | AM164: 23.38756699 | AN164: 23.38756699 | AO164: 19.10108461 | AP164: 0.08401075921 | AQ164: 0.08401075921 | AR164: 0.06861323455 | AS164: 0.1026964064 | AT164: 0.1433464338 | AU164: 0.2460428403 | AV164: 265.8871452 | AW164: 65.74786285 | AX164: 85.87852373 | AY164: 4.532572093 | AZ164: 6.793916857 | BA164: 1.726567467 | BB164: 11.13898864 | BC164: 441.7055768 | BD164: 116.8444647 | BE164: 8.040406756 | BF164: 1.920954645 | BG164: 15.16224365 | BH164: 17.22245032 | BI164: 10.60446804 | BJ164: 441.3815359 | BK164: 354.3360018 | BL164: 19947.55149 | BM164: 24080.26337 | BN164: 18454.63139 | BO164: 21591.12787 | BP164: 27763.85698 | BQ164: 0.2148120964 | BR164: 0.1005653896 | BS164: 0.09750196016 | BT164: 0.01572576156 | BU164: 0.2950628341 | BV164: 0.06963319752 | BW164: 0.1877710938 | BX164: 0.01892774454 | BY164: 0.2307930458 | BZ164: 0.127387331 | CA164: 0.09249469564 | CB164: 0.009617038392 | CC164: 0.2641460845 | CD164: 0.05048837243 | CE164: 0.2130151669 | CF164: 0.01205826534 | CG164: 983.5692313 | CH164: 225.5914122 | CI164: 533.7367434 | CJ164: 1152.730935 | CK164: 900.2296096 | CL164: 399.7141452 | CM164: 46.28354558 | CN164: 59.22551718 | CO164: 4301.08114
B165: 42248 | C165: 10 | D165: 79 | E165: All_In | F165: 3 | G165: B | H165: L | I165: 3 | J165: 5 | K165: 9 | L165: 9 | M165: 3 | N165: L | O165: L | P165: R | Q165: L | R165: R | S165: H | T165: L | U165: 2050 | V165: 7.52221207 | W165: 1.445608961 | X165: 5.630722105 | Y165: 0.2386056553 | Z165: 0.1697285552 | AA165: 0.1149350098 | AB165: 0.4317937126 | AC165: 15.55360607 | AD165: 0.1589962722 | AE165: 0.7216519343 | AF165: 0.95 | AG165: 0.009854128294 | AH165: 0.04197581204 | AI165: 0.04197581204 | AJ165: 367.5359143 | AK165: 260.3630418 | AL165: 226.4496817 | AM165: 23.63027022 | AN165: 16.73972201 | AO165: 14.55930417 | AP165: 0.07377173103 | AQ165: 0.05226001471 | AR165: 0.04545293224 | AS165: 0.1037016098 | AT165: 0.1166737373 | AU165: 0.2203753471 | AV165: 288.1067401 | AW165: 52.05001801 | AX165: 127.0426044 | AY165: 11.23947167 | AZ165: 8.779524363 | BA165: 6.019331391 | BB165: 23.41096992 | BC165: 516.6486598 | BD165: 146.0769053 | BE165: 8.539541079 | BF165: 3.586023652 | BG165: 20.69279813 | BH165: 34.50159636 | BI165: 22.62024386 | BJ165: 395.2030988 | BK165: 334.0670718 | BL165: 17919.81304 | BM165: 21516.70526 | BN165: 16651.29134 | BO165: 19478.4537 | BP165: 24861.14442 | BQ165: 0.2071211857 | BR165: 0.06667324145 | BS165: 0.0835176979 | BT165: 0.03647525709 | BU165: 0.3256341912 | BV165: 0.1025964311 | BW165: 0.1470658583 | BX165: 0.03091613726 | BY165: 0.2108317669 | BZ165: 0.08326338867 | CA165: 0.09107431991 | CB165: 0.02630750884 | CC165: 0.3111531075 | CD165: 0.08543989806 | CE165: 0.1670976201 | CF165: 0.02483239004 | CG165: 1057.487555 | CH165: 431.3886136 | CI165: 407.2979887 | CJ165: 1537.839137 | CK165: 822.1242259 | CL165: 449.6898645 | CM165: 142.2652372 | CN165: 133.9771932 | CO165: 4982.069815
B166: 41218 | C166: 10 | D166: 80 | E166: All_In | F166: 3 | G166: B | H166: L | I166: 3 | J166: 5 | K166: 11 | L166: 11 | M166: 1 | N166: L | O166: H | P166: R | Q166: H | R166: R | S166: L | T166: L | U166: 2035 | V166: 8.212159103 | W166: 2.234618524 | X166: 4.584374711 | Y166: 0.5335706017 | Z166: 0.0929484187 | AA166: 0.00658959978 | AB166: 0.03694711948 | AC166: 15.70120808 | AD166: 0.146744745 | AE166: 0.146744745 | AF166: 0.5003584369 | AG166: 0.01038862505 | AH166: 0.01038862505 | AI166: 0.01038862505 | AJ166: 360.2287915 | AK166: 360.2287915 | AL166: 294.0077829 | AM166: 22.94274362 | AN166: 22.94274362 | AO166: 18.72516952 | AP166: 0.08349203739 | AQ166: 0.08349203739 | AR166: 0.06814366142 | AS166: 0.104090441 | AT166: 0.1425200625 | AU166: 0.2466105035 | AV166: 265.4826795 | AW166: 66.9455956 | AX166: 87.341507 | AY166: 23.03616373 | AZ166: 4.20591669 | BA166: 0.3037799634 | BB166: 1.785552421 | BC166: 449.1011949 | BD166: 118.84309 | BE166: 4.818323511 | BF166: 0.3226626759 | BG166: 2.327550296 | BH166: 92.61341205 | BI166: 55.77734031 | BJ166: 439.9479334 | BK166: 353.3947701 | BL166: 19818.53496 | BM166: 23958.44032 | BN166: 18546.15368 | BO166: 21404.85297 | BP166: 27940.00482 | BQ166: 0.2188393865 | BR166: 0.1023671451 | BS166: 0.06483217023 | BT166: 0.003042796829 | BU166: 0.3002917411 | BV166: 0.0116444887 | BW166: 0.2107710961 | BX166: 0.08821125318 | BY166: 0.2355420263 | BZ166: 0.1300597263 | CA166: 0.05710646287 | CB166: 0.001693445018 | CC166: 0.2693927187 | CD166: 0.007840715632 | CE166: 0.2367392215 | CF166: 0.0616256837 | CG166: 1003.122234 | CH166: 35.38516832 | CI166: 544.421477 | CJ166: 1174.532661 | CK166: 1001.24929 | CL166: 249.0336596 | CM166: 8.253426963 | CN166: 298.530783 | CO166: 4314.5287
B167: 42242 | C167: 10 | D167: 80 | E167: All_In | F167: 3 | G167: B | H167: L | I167: 3 | J167: 5 | K167: 11 | L167: 11 | M167: 1 | N167: L | O167: H | P167: R | Q167: H | R167: R | S167: L | T167: L | U167: 2050 | V167: 7.520241856 | W167: 1.469612043 | X167: 5.723850824 | Y167: 1.007389094 | Z167: 0.1194405089 | AA167: 0.02626610386 | AB167: 0.08317587117 | AC167: 15.9499763 | AD167: 0.1590355632 | AE167: 0.721830268 | AF167: 0.95 | AG167: 0.009826631692 | AH167: 0.04185868425 | AI167: 0.04185868425 | AJ167: 364.7254938 | AK167: 257.5415228 | AL167: 223.6656287 | AM167: 22.8668361 | AN167: 16.14682793 | AO167: 14.02294427 | AP167: 0.07292870262 | AQ167: 0.05149672684 | AR167: 0.04472307091 | AS167: 0.105897336 | AT167: 0.1157681832 | AU167: 0.2216655192 | AV167: 288.0312793 | AW167: 52.91426337 | AX167: 129.1438118 | AY167: 47.4528618 | AZ167: 6.178281887 | BA167: 1.375598121 | BB167: 4.509625225 | BC167: 529.6057215 | BD167: 148.5008138 | BE167: 5.423595454 | BF167: 0.7371053314 | BG167: 3.566923852 | BH167: 153.8851303 | BI167: 98.38518845 | BJ167: 393.2692225 | BK167: 332.7419846 | BL167: 17727.9339 | BM167: 21421.96365 | BN167: 16767.81583 | BO167: 19250.16414 | BP167: 24940.08045 | BQ167: 0.2127010803 | BR167: 0.06839209213 | BS167: 0.06204580985 | BT167: 0.008913988055 | BU167: 0.3334869662 | BV167: 0.02020001398 | BW167: 0.1713323149 | BX167: 0.1229277346 | BY167: 0.2155424673 | BZ167: 0.0849753651 | CA167: 0.06408892437 | CB167: 0.00602587853 | CC167: 0.3175832031 | CD167: 0.01576750304 | CE167: 0.1906461195 | CF167: 0.1053705391 | CG167: 1081.181367 | CH167: 79.99527752 | CI167: 415.7917039 | CJ167: 1569.469928 | CK167: 939.7650467 | CL167: 318.2812694 | CM167: 32.79984457 | CN167: 563.8396844 | CO167: 5001.124121
B168: 41265 | C168: 10 | D168: 81 | E168: All_In | F168: 3 | G168: B | H168: H | I168: 4 | J168: 6 | K168: 14 | L168: 14 | M168: 6 | N168: L | O168: L | P168: U | Q168: L | R168: U | S168: L | T168: H | U168: 2035 | V168: 8.340400891 | W168: 0.9531033942 | X168: 5.320714153 | Y168: 0.5774155746 | Z168: 0.2410877056 | AA168: 0.1028179449 | AB168: 0.2496459307 | AC168: 15.78518559 | AD168: 0.1445986242 | AE168: 0.1445986242 | AF168: 0.4930407669 | AG168: 0.01233066119 | AH168: 0.01233066119 | AI168: 0.01233066119 | AJ168: 371.73277 | AK168: 371.73277 | AL168: 305.4612449 | AM168: 23.54947098 | AN168: 23.54947098 | AO168: 19.35113421 | AP168: 0.0864943203 | AQ168: 0.0864943203 | AR168: 0.07107434395 | AS168: 0.1064010187 | AT168: 0.1505222001 | AU168: 0.2569232188 | AV168: 269.62848 | AW168: 28.55345273 | AX168: 101.370246 | AY168: 29.67962247 | AZ168: 11.27662959 | BA168: 4.706751967 | BB168: 12.07201593 | BC168: 457.2871987 | BD168: 138.0081708 | BE168: 16.21683766 | BF168: 4.653202131 | BG168: 16.26724878 | BH168: 97.36910231 | BI168: 59.29403682 | BJ168: 464.94242 | BK168: 371.7873141 | BL168: 20934.17816 | BM168: 25136.82185 | BN168: 19641.33888 | BO168: 22993.25299 | BP168: 29625.12309 | BQ168: 0.2617793843 | BR168: 0.03172677005 | BS168: 0.07467932237 | BT168: 0.0339773217 | BU168: 0.3201173787 | BV168: 0.0720283988 | BW168: 0.1142646857 | BX168: 0.09142681608 | BY168: 0.2895794253 | BZ168: 0.05697241781 | CA168: 0.08012326518 | CB168: 0.0194807146 | CC168: 0.2912222062 | CD168: 0.0508513548 | CE168: 0.1498975331 | CF168: 0.06187308293 | CG168: 1221.935233 | CH168: 225.6990437 | CI168: 229.7009321 | CJ168: 1258.080928 | CK168: 622.8544472 | CL168: 345.8729765 | CM168: 94.73202929 | CN168: 298.8952779 | CO168: 4297.770868
B169: 42289 | C169: 10 | D169: 81 | E169: All_In | F169: 3 | G169: B | H169: H | I169: 4 | J169: 6 | K169: 14 | L169: 14 | M169: 6 | N169: L | O169: L | P169: U | Q169: L | R169: U | S169: L | T169: H | U169: 2050 | V169: 6.754800601 | W169: 0.3786317378 | X169: 5.973004215 | Y169: 1.120807397 | Z169: 0.2002002038 | AA169: 0.3816547612 | AB169: 0.5030165836 | AC169: 15.3121155 | AD169: 0.1759257047 | AE169: 0.7984912055 | AF169: 0.95 | AG169: 0.01125393067 | AH169: 0.04793857605 | AI169: 0.04793857605 | AJ169: 374.3669269 | AK169: 268.5200303 | AL169: 249.1287674 | AM169: 24.44906629 | AN169: 17.53644233 | AO169: 16.27004233 | AP169: 0.07500103217 | AQ169: 0.05379556256 | AR169: 0.04991069818 | AS169: 0.1059456474 | AT169: 0.1238305977 | AU169: 0.2297762451 | AV169: 258.7142668 | AW169: 13.6328629 | AX169: 134.7653103 | AY169: 63.56502242 | AZ169: 10.79577197 | BA169: 20.06617002 | BB169: 27.28726988 | BC169: 528.8266743 | BD169: 154.9856557 | BE169: 16.28396066 | BF169: 10.54052393 | BG169: 23.22909779 | BH169: 167.6376782 | BI169: 108.1582256 | BJ169: 421.5012967 | BK169: 355.2294432 | BL169: 19038.00224 | BM169: 22659.16075 | BN169: 18065.25199 | BO169: 20996.99662 | BP169: 26993.20642 | BQ169: 0.2251491598 | BR169: 0.01350493995 | BS169: 0.04274932203 | BT169: 0.09288778796 | BU169: 0.3218576854 | BV169: 0.1139243778 | BW169: 0.06260813015 | BX169: 0.127318597 | BY169: 0.2431232199 | BZ169: 0.02234086829 | CA169: 0.05874627374 | CB169: 0.06406826147 | CC169: 0.3219208867 | CD169: 0.09241317443 | CE169: 0.0878379891 | CF169: 0.1095493264 | CG169: 1203.889605 | CH169: 463.7990743 | CI169: 105.9066861 | CJ169: 1579.277209 | CK169: 422.9527461 | CL169: 286.0347845 | CM169: 349.4981926 | CN169: 580.1320333 | CO169: 4991.490331
B170: 41233 | C170: 10 | D170: 82 | E170: All_In | F170: 3 | G170: B | H170: H | I170: 4 | J170: 6 | K170: 10 | L170: 10 | M170: 6 | N170: L | O170: L | P170: R | Q170: L | R170: R | S170: L | T170: H | U170: 2035 | V170: 8.66617379 | W170: 0.9616841531 | X170: 5.371240341 | Y170: 0.5829209027 | Z170: 0.1082913699 | AA170: 0.07655633082 | AB170: 0.2522765747 | AC170: 16.01914346 | AD170: 0.139418992 | AE170: 0.139418992 | AF170: 0.4753796732 | AG170: 0.01231524616 | AH170: 0.01231524616 | AI170: 0.01231524616 | AJ170: 372.3862913 | AK170: 372.3862913 | AL170: 305.9928452 | AM170: 23.24632976 | AN170: 23.24632976 | AO170: 19.10169829 | AP170: 0.08673048128 | AQ170: 0.08673048128 | AR170: 0.07126714209 | AS170: 0.1075756812 | AT170: 0.1504625896 | AU170: 0.2580382708 | AV170: 280.1600663 | AW170: 28.81051853 | AX170: 102.332871 | AY170: 29.96260073 | AZ170: 4.900185354 | BA170: 3.529240037 | BB170: 12.19183133 | BC170: 461.8873132 | BD170: 139.3232416 | BE170: 6.006744851 | BF170: 3.830217647 | BG170: 16.35528889 | BH170: 98.29188057 | BI170: 59.85705706 | BJ170: 464.307169 | BK170: 371.2797067 | BL170: 20903.96112 | BM170: 25112.18901 | BN170: 19589.35568 | BO170: 22964.40406 | BP170: 29578.25571 | BQ170: 0.2642871829 | BR170: 0.03202692332 | BS170: 0.06353895827 | BT170: 0.03128862884 | BU170: 0.3231892606 | BV170: 0.07272083527 | BW170: 0.1206540925 | BX170: 0.092294196 | BY170: 0.292189327 | BZ170: 0.05747475544 | CA170: 0.06758986082 | CB170: 0.01799276034 | CC170: 0.2939549993 | CD170: 0.0513401059 | CE170: 0.1570007157 | CF170: 0.06245747552 | CG170: 1233.200775 | CH170: 228.0740782 | CI170: 231.7683757 | CJ170: 1269.978904 | CK170: 653.2599423 | CL170: 288.4342827 | CM170: 87.1601069 | CN170: 301.7269581 | CO170: 4293.603423
B171: 42257 | C171: 10 | D171: 82 | E171: All_In | F171: 3 | G171: B | H171: H | I171: 4 | J171: 6 | K171: 10 | L171: 10 | M171: 6 | N171: L | O171: L | P171: R | Q171: L | R171: R | S171: L | T171: H | U171: 2050 | V171: 7.134417063 | W171: 0.3822510174 | X171: 6.032292543 | Y171: 1.131745204 | Z171: 0.09365764503 | AA171: 0.2814116075 | AB171: 0.5082580844 | AC171: 15.56403316 | AD171: 0.1671231483 | AE171: 0.7585381816 | AF171: 0.95 | AG171: 0.01124851053 | AH171: 0.04791548778 | AI171: 0.04791548778 | AJ171: 373.9268502 | AK171: 267.7235916 | AL171: 241.1674007 | AM171: 24.02506126 | AN171: 17.20142773 | AO171: 15.49517391 | AP171: 0.07498348734 | AQ171: 0.05368656606 | AR171: 0.04836125763 | AS171: 0.1071721055 | AT171: 0.1237632252 | AU171: 0.2309353307 | AV171: 273.2538811 | AW171: 13.76317723 | AX171: 136.1029973 | AY171: 64.18534481 | AZ171: 4.844615424 | BA171: 14.73797868 | BB171: 27.55671141 | BC171: 534.4447059 | BD171: 156.5287832 | BE171: 6.036226759 | BF171: 8.171360112 | BG171: 23.31754319 | BH171: 169.262956 | BI171: 109.2097583 | BJ171: 421.0518351 | BK171: 354.7017951 | BL171: 19018.85907 | BM171: 22643.13784 | BN171: 18018.14949 | BO171: 20977.35586 | BP171: 26958.08112 | BQ171: 0.2273984985 | BR171: 0.01363118111 | BS171: 0.03880436406 | BT171: 0.08489012538 | BU171: 0.3251032825 | BV171: 0.1150385623 | BW171: 0.06656494595 | BX171: 0.1285690402 | BY171: 0.2454972446 | BZ171: 0.02255232206 | CA171: 0.05127150388 | CB171: 0.05867633642 | CC171: 0.3250820769 | CD171: 0.09331044198 | CE171: 0.09300173371 | CF171: 0.1106083404 | CG171: 1215.677056 | CH171: 468.6364694 | CI171: 106.9082423 | CJ171: 1594.836674 | CK171: 448.0306177 | CL171: 248.321835 | CM171: 318.6244862 | CN171: 585.7538907 | CO171: 4986.789271
B172: 41259 | C172: 10 | D172: 83 | E172: All_In | F172: 3 | G172: B | H172: H | I172: 4 | J172: 6 | K172: 16 | L172: 16 | M172: 4 | N172: L | O172: H | P172: U | Q172: H | R172: U | S172: H | T172: L | U172: 2035 | V172: 9.423894417 | W172: 1.07049119 | X172: 6.06143158 | Y172: 0.1632032182 | Z172: 0.1747675812 | AA172: 0.01844262601 | AB172: 0.0388556579 | AC172: 16.95108627 | AD172: 0.1286965017 | AE172: 0.1286965017 | AF172: 0.4388189876 | AG172: 0.01212306899 | AH172: 0.01212306899 | AI172: 0.01212306899 | AJ172: 383.5049527 | AK172: 383.5049527 | AL172: 316.8591149 | AM172: 22.62421102 | AN172: 22.62421102 | AO172: 18.69255515 | AP172: 0.08953584315 | AQ172: 0.08953584315 | AR172: 0.07397622328 | AS172: 0.1097651099 | AT172: 0.1488215321 | AU172: 0.2585866419 | AV172: 304.6556587 | AW172: 32.07020327 | AX172: 115.4823945 | AY172: 7.046070461 | AZ172: 8.174573948 | BA172: 0.8442579393 | BB172: 1.878925564 | BC172: 470.1520844 | BD172: 157.2871997 | BE172: 11.16404808 | BF172: 0.7967902557 | BG172: 2.381640536 | BH172: 26.59675094 | BI172: 16.42508911 | BJ172: 458.6069548 | BK172: 366.3452561 | BL172: 20499.62406 | BM172: 24869.52857 | BN172: 19375.18798 | BO172: 22666.08448 | BP172: 29364.66856 | BQ172: 0.3120106402 | BR172: 0.03832201602 | BS172: 0.06243905452 | BT172: 0.006646314166 | BU172: 0.3805630033 | BV172: 0.01202030767 | BW172: 0.1601717167 | BX172: 0.02782702516 | BY172: 0.3269819593 | BZ172: 0.0638356273 | CA172: 0.05752547972 | CB172: 0.003520840004 | CC172: 0.3326679638 | CD172: 0.007676007868 | CE172: 0.1904361935 | CF172: 0.01735592857 | CG172: 1390.101762 | CH172: 34.52559426 | CI172: 259.6432956 | CJ172: 1443.367434 | CK172: 800.2256363 | CL172: 252.8179966 | CM172: 17.35650593 | CN172: 85.21794657 | CO172: 4283.256172
B173: 42283 | C173: 10 | D173: 83 | E173: All_In | F173: 3 | G173: B | H173: H | I173: 4 | J173: 6 | K173: 16 | L173: 16 | M173: 4 | N173: L | O173: H | P173: U | Q173: H | R173: U | S173: H | T173: L | U173: 2050 | V173: 8.428915359 | W173: 0.4700014951 | X173: 7.380254912 | Y173: 0.4129830613 | Z173: 0.19512082 | AA173: 0.1012947078 | AB173: 0.1026793871 | AC173: 17.09124974 | AD173: 0.1427643559 | AE173: 0.6479785478 | AF173: 0.8643550182 | AG173: 0.01111867704 | AH173: 0.04736243363 | AI173: 0.04736243363 | AJ173: 385.9304661 | AK173: 278.6881207 | AL173: 242.5652726 | AM173: 22.58058784 | AN173: 16.30589483 | AO173: 14.19236605 | AP173: 0.07770945686 | AQ173: 0.05611555551 | AR173: 0.04884199938 | AS173: 0.110170852 | AT173: 0.1236404143 | AU173: 0.2338112663 | AV173: 322.8342014 | AW173: 16.92268583 | AX173: 166.5162634 | AY173: 19.45348451 | AZ173: 10.52186681 | BA173: 5.325747339 | BB173: 5.570075098 | BC173: 547.1443244 | BD173: 191.6128847 | BE173: 12.12727185 | BF173: 2.483588298 | BG173: 4.075087238 | BH173: 58.89696806 | BI173: 38.88639401 | BJ173: 421.9251327 | BK173: 352.8957222 | BL173: 18899.35339 | BM173: 22886.8036 | BN173: 17722.21327 | BO173: 21113.82599 | BP173: 27009.35628 | BQ173: 0.2950395669 | BR173: 0.01779834859 | BS173: 0.04962284802 | BT173: 0.0280332755 | BU173: 0.4192114173 | BV173: 0.02444828881 | BW173: 0.1135747632 | BX173: 0.05227149183 | BY173: 0.3031064698 | BZ173: 0.02776060227 | CA173: 0.05667017214 | CB173: 0.01718658068 | CC173: 0.4007597752 | CD173: 0.01802958523 | CE173: 0.1366190142 | CF173: 0.03986780046 | CG173: 1508.46852 | CH173: 91.09761623 | CI173: 132.4101359 | CJ173: 1974.874772 | CK173: 667.8541116 | CL173: 280.9917782 | CM173: 94.82869244 | CN173: 215.7999885 | CO173: 4966.325615
B174: 41257 | C174: 10 | D174: 84 | E174: All_In | F174: 3 | G174: B | H174: H | I174: 4 | J174: 6 | K174: 14 | L174: 14 | M174: 4 | N174: L | O174: L | P174: U | Q174: L | R174: U | S174: H | T174: L | U174: 2035 | V174: 8.738842337 | W174: 0.9935929546 | X174: 5.600429998 | Y174: 0.146589356 | Z174: 0.2538581934 | AA174: 0.110027449 | AB174: 0.266642673 | AC174: 16.10998296 | AD174: 0.138313815 | AE174: 0.138313815 | AF174: 0.4716113294 | AG174: 0.01225825972 | AH174: 0.01225825972 | AI174: 0.01225825972 | AJ174: 377.5435682 | AK174: 377.5435682 | AL174: 311.1241079 | AM174: 23.43537974 | AN174: 23.43537974 | AO174: 19.31250384 | AP174: 0.08807451426 | AQ174: 0.08807451426 | AR174: 0.07257998012 | AS174: 0.1061691198 | AT174: 0.1504734601 | AU174: 0.2566425799 | AV174: 282.5092951 | AW174: 29.76645517 | AX174: 106.6993923 | AY174: 6.328790221 | AZ174: 11.87395603 | BA174: 5.036785289 | BB174: 12.89391975 | BC174: 455.1085938 | BD174: 145.2884772 | BE174: 16.94540658 | BF174: 4.963636862 | BG174: 17.28592551 | BH174: 23.97277253 | BI174: 14.78112804 | BJ174: 464.2055285 | BK174: 370.7041762 | BL174: 20878.86381 | BM174: 25146.75493 | BN174: 19498.86627 | BO174: 23028.68453 | BP174: 29502.78088 | BQ174: 0.2808106025 | BR174: 0.0341356898 | BS174: 0.0802499374 | BT174: 0.03657370665 | BU174: 0.3431437686 | BV174: 0.07768915763 | BW174: 0.1227261161 | BX174: 0.024671099 | BY174: 0.3029582783 | BZ174: 0.05924732018 | CA174: 0.08419239434 | CB174: 0.02083462422 | CC174: 0.3063947347 | CD174: 0.05424330032 | CE174: 0.1565767349 | CF174: 0.01555261297 | CG174: 1283.320257 | CH174: 241.128407 | CI174: 239.9284212 | CJ174: 1326.934762 | CK174: 653.0410742 | CL174: 364.5339385 | CM174: 101.4247919 | CN174: 76.32644492 | CO174: 4286.638097
